Workbook

Sheet 1 - RESUMO
A1: ='2 - ORÇAMENTO'!A1:A1 -> MINISTÉRIO DA INTEGRAÇÃO E DO DESENVOLVIMENTO REGIONAL – MIDR COMPANHIA DE DESENVOLVIMENTO DOS VALES DO SÃO FRANCISCO E DO PARAÍBA - CODEVASF | G1: COSNTRUÇÃO DE REDES DE ABASTECIMENTO DE ÁGUA, COLETA DE ESGOTO E CONSTRUÇÕES CORRELATAS
A2: RESUMO | G2: 1º | H2: 2º | I2: 3º
A3: ='2 - ORÇAMENTO'!A3 -> OBJETO: | B3: ='2 - ORÇAMENTO'!B3:B3 -> ORÇAMENTO PROJETO BÁSICO DO CANAL DO SERTÃO BAIANO (CSB) - ETAPA 2A: PROJETO BÁSICO DO CANAL PRINCIPAL DO PIS - CANAL CP-500/2 | D3: ='2 - ORÇAMENTO'!I3 -> BDI: SERV. | E3: ='2 - ORÇAMENTO'!J3 -> 0.2256 | G3: 4.13 | H3: 7.65 | I3: 10.89
A4: ='2 - ORÇAMENTO'!A4 -> LOCALIDADE: | B4: ='2 - ORÇAMENTO'!B4:B4 -> ESTADO DA BAHIA | D4: ='2 - ORÇAMENTO'!I4 -> BDI: MAT. EQUIP. | E4: ='2 - ORÇAMENTO'!J4 -> 0.14015
A5: ='2 - ORÇAMENTO'!A5 -> REFERÊNCIA: | B5: ='2 - ORÇAMENTO'!B5:B5 -> SICRO3 BA 04/2024, SINAPI BA 07/2024, DNIT 04/2024, AGESUL 06/2024, AGETOP 04/2024, COMPESA 07/2023, CPOS 06/2024, EMBASA 05/2024, EMOP 07/2024, FDE 04/2024, IOPES 06/2024, ORSE 06/2024, SBC 08/2024, SEDOP 05/2024, SEINFRA 028, SETOP 04/2024, SIURB 01/2024, SUDECAP 04/2024 | D5: ='2 - ORÇAMENTO'!I5 -> REVISÃO | E5: ='2 - ORÇAMENTO'!J5 -> 0C
A6: ='2 - ORÇAMENTO'!I6 -> DATA BASE: | B6: ='2 - ORÇAMENTO'!J6 -> 2024-09-01 | D6: ='2 - ORÇAMENTO'!A6 -> MODALIDADE: | E6: ='2 - ORÇAMENTO'!B6 -> ONERADO | H6: =D8/D9 -> 0.08903095726
A7: ITEM | B7: UNIDADE | D7: VALOR | E7: %
A8: 1 | B8: =VLOOKUP(A8,'2 - ORÇAMENTO'!A:J,4,0) -> ADMINISTRAÇÃO DE OBRAS | D8: =VLOOKUP(A8,'2 - ORÇAMENTO'!A:J,10,0) -> 9949397.04 | E8: =D8/$D$20 -> 0.08175245769
B9: SERVIÇOS | D9: =TRUNC(SUM(D10:D19),2) -> 111752106.8 | E9: =D9/$D$20 -> 0.9182475423
A10: 2 | B10: =VLOOKUP(A10,'2 - ORÇAMENTO'!A:J,4,0) -> MOBILIZAÇÃO E DESMOBILIZAÇÃO | D10: =VLOOKUP(A10,'2 - ORÇAMENTO'!A:J,10,0) -> 625434.94 | E10: =D10/$D$20 -> 0.005139089662
A11: 3 | B11: =VLOOKUP(A11,'2 - ORÇAMENTO'!A:J,4,0) -> INSTALAÇÃO DA OBRA | D11: =VLOOKUP(A11,'2 - ORÇAMENTO'!A:J,10,0) -> 2677856.3 | E11: 0.0220034775
A12: 4 | B12: =VLOOKUP(A12,'2 - ORÇAMENTO'!A:J,4,0) -> ENSECADEIRA PROVISÓRIA | D12: =VLOOKUP(A12,'2 - ORÇAMENTO'!A:J,10,0) -> 1219600.63 | E12: 0.01002124536
A13: 5 | B13: =VLOOKUP(A13,'2 - ORÇAMENTO'!A:J,4,0) -> ESTRUTURA DE TOMADA D'ÁGUA DO RC-500 | D13: =VLOOKUP(A13,'2 - ORÇAMENTO'!A:J,10,0) -> 4303174.77 | E13: 0.03535843548
A14: 6 | B14: =VLOOKUP(A14,'2 - ORÇAMENTO'!A:J,4,0) -> CANAL PRINCIPAL PIS - CP500-2 | D14: =VLOOKUP(A14,'2 - ORÇAMENTO'!A:J,10,0) -> 68042229.62 | E14: 0.5590911164
A15: 7 | B15: =VLOOKUP(A15,'2 - ORÇAMENTO'!A:J,4,0) -> SISTEMA DE DRENAGEM DO SISTEMA ADUTOR | D15: =VLOOKUP(A15,'2 - ORÇAMENTO'!A:J,10,0) -> 24573414.72 | E15: 0.2019154567
A16: 8 | B16: =VLOOKUP(A16,'2 - ORÇAMENTO'!A:J,4,0) -> SISTEMA VIÁRIO DO SISTEMA ADUTOR | D16: =VLOOKUP(A16,'2 - ORÇAMENTO'!A:J,10,0) -> 2461800.9 | E16: 0.02022818801
A17: 9 | B17: =VLOOKUP(A17,'2 - ORÇAMENTO'!A:J,4,0) -> OBRAS DE ARTES ESPECIAIS | D17: =VLOOKUP(A17,'2 - ORÇAMENTO'!A:J,10,0) -> 3681329.56 | E17: 0.03024884201
A18: 10 | B18: =VLOOKUP(A18,'2 - ORÇAMENTO'!A:J,4,0) -> SERVIÇOS COMPLEMENTARES | D18: =VLOOKUP(A18,'2 - ORÇAMENTO'!A:J,10,0) -> 3865989.65 | E18: 0.03176616171
A19: 11 | B19: =VLOOKUP(A19,'2 - ORÇAMENTO'!A:J,4,0) -> FINALIZAÇÃO DA OBRA | D19: =VLOOKUP(A19,'2 - ORÇAMENTO'!A:J,10,0) -> 301275.66 | E19: 0.002475529477
B20: TOTAL | D20: =TRUNC(SUM(D8:D9),2) -> 121701503.8 | E20: =SUM(E8:E9) -> 1
D22: 1990814.58
D23: =D20+D22 -> 123692318.4

Sheet 2 - ORÇAMENTO
A1: MINISTÉRIO DA INTEGRAÇÃO E DO DESENVOLVIMENTO REGIONAL – MIDR COMPANHIA DE DESENVOLVIMENTO DOS VALES DO SÃO FRANCISCO E DO PARAÍBA - CODEVASF
A2: =UPPER(CONCATENATE("ORÇAMENTO ",B6)) -> ORÇAMENTO ONERADO
A3: OBJETO: | B3: ORÇAMENTO PROJETO BÁSICO DO CANAL DO SERTÃO BAIANO (CSB) - ETAPA 2A: PROJETO BÁSICO DO CANAL PRINCIPAL DO PIS - CANAL CP-500/2 | I3: BDI: SERV. | J3: =TRUNC('BDI ONERADO SERV'!D16,4) -> 0.2256
A4: LOCALIDADE: | B4: ESTADO DA BAHIA | I4: BDI: MAT. EQUIP. | J4: =TRUNC('BDI ONERADO MAT. E EQUIP'!D16,5) -> 0.14015
A5: REFERÊNCIA: | B5: SICRO3 BA 04/2024, SINAPI BA 07/2024, DNIT 04/2024, AGESUL 06/2024, AGETOP 04/2024, COMPESA 07/2023, CPOS 06/2024, EMBASA 05/2024, EMOP 07/2024, FDE 04/2024, IOPES 06/2024, ORSE 06/2024, SBC 08/2024, SEDOP 05/2024, SEINFRA 028, SETOP 04/2024, SIURB 01/2024, SUDECAP 04/2024 | I5: REVISÃO | J5: 0C
A6: MODALIDADE: | B6: ONERADO | I6: DATA BASE: | J6: 2024-09-01
A8: Item | B8: Banco | C8: Código | D8: Descrição | E8: Und | F8: Quant. | G8: Valor Unit | H8: BDI | I8: Valor Unit com BDI | J8: Total
A9: 1 | D9: ADMINISTRAÇÃO DE OBRAS | J9: =SUM(J11:J84) -> 9949397.04 | K9: =J9/$J$1093 -> 0.0817524565
A10: 1.1 | D10: PARCELA FIXA DA ADMINISTRAÇÃO LOCAL | K10: =J10/$J$1093 -> 0
A11: 1.1 .1 | D11: GERÊNCIA TÉCNICA GERAL - MÃO DE OBRA | K11: 0
A12: 1.1.1.1 | B12: SINAPI | C12: 93568 | D12: ENGENHEIRO CIVIL DE OBRA SENIOR COM ENCARGOS COMPLEMENTARES | E12: MES | F12: =IFERROR(VLOOKUP(A12,'ANEXO I - MEM. CÁLC'!$A:$O,4,0),0) -> 20 | G12: =VLOOKUP(C12,'TABELA_CPU ADM-CANTEIRO-SERVICO'!B:K,9,0) -> 24274.91 | H12: =$J$3 -> 0.2256 | I12: =IFERROR(TRUNC((G12*(1+H12)),2),"") -> 29751.32 | J12: =IFERROR(TRUNC((F12*I12),2),"") -> 595026.4 | K12: 0.004889227929
A13: 1.1.1.2 | B13: SINAPI | C13: 93572 | D13: ENCARREGADO GERAL DE OBRAS COM ENCARGOS COMPLEMENTARES | E13: MES | F13: =IFERROR(VLOOKUP(A13,'ANEXO I - MEM. CÁLC'!$A:$O,4,0),0) -> 20 | G13: =VLOOKUP(C13,'TABELA_CPU ADM-CANTEIRO-SERVICO'!B:K,9,0) -> 6778.92 | H13: 0.2256 | I13: =IFERROR(TRUNC((G13*(1+H13)),2),"") -> 8308.24 | J13: =IFERROR(TRUNC((F13*I13),2),"") -> 166164.8 | K13: 0.001365347119
A14: 1.1.1.3 | B14: Próprio | C14: COMP-TEC-020 | D14: TÉCNICO DE MEIO AMBIENTE COM ENCARGOS COMPLEMENTARES E ENCARGOS SOCIAIS | E14: MÊS | F14: =IFERROR(VLOOKUP(A14,'ANEXO I - MEM. CÁLC'!$A:$O,4,0),0) -> 18 | G14: =VLOOKUP(C14,'TABELA_CPU ADM-CANTEIRO-SERVICO'!B:K,9,0) -> 6414.23 | H14: 0.2256 | I14: 7861.28 | J14: 141503.04 | K14: 0.001162705747
A15: 1.1.1.4 | B15: Próprio | C15: COMP-TEC-028 | D15: MOTORISTA DE ÔNIBUS COM ENCARGOS COMPLEMENTARES | E15: MÊS | F15: =IFERROR(VLOOKUP(A15,'ANEXO I - MEM. CÁLC'!$A:$O,4,0),0) -> 20 | G15: =VLOOKUP(C15,'TABELA_CPU ADM-CANTEIRO-SERVICO'!B:K,9,0) -> 6929.31 | H15: 0.2256 | I15: 8492.56 | J15: 169851.2 | K15: 0.001395637623
A16: 1.1.1.5 | B16: Próprio | C16: COMP-TEC-011 | D16: SECRETÁRIA COM ENCARGOS SOCIAIS E COMPLEMENTARES | E16: MÊS | F16: =IFERROR(VLOOKUP(A16,'ANEXO I - MEM. CÁLC'!$A:$O,4,0),0) -> 19 | G16: =VLOOKUP(C16,'TABELA_CPU ADM-CANTEIRO-SERVICO'!B:K,9,0) -> 5177.64 | H16: 0.2256 | I16: 6345.71 | J16: 120568.49 | K16: 0.0009906902091
A17: 1.1.2 | D17: GERÊNCIA TÉCNICA GERAL - VEÍCULOS | J17: 0 | K17: 0
A18: 1.1.2.1 | B18: Próprio | C18: E9684 MÊS | D18: VEÍCULO LEVE PICK UP 4X4 - 147 KW (SEM MOTORISTA) | E18: MÊS | F18: =IFERROR(VLOOKUP(A18,'ANEXO I - MEM. CÁLC'!$A:$O,4,0),0) -> 20 | G18: =VLOOKUP(C18,'TABELA_CPU ADM-CANTEIRO-SERVICO'!B:K,9,0) -> 7535.72 | H18: =$J$3 -> 0.2256 | I18: 9235.77 | J18: 184715.4 | K18: 0.001517774157
A19: 1.1.2.2 | B19: Próprio | C19: E9560-MÊS | D19: ÔNIBUS COM CAPACIDADE PARA 80 PASSAGEIROS - 175 KW | E19: MÊS | F19: =IFERROR(VLOOKUP(A19,'ANEXO I - MEM. CÁLC'!$A:$O,4,0),0) -> 20 | G19: =VLOOKUP(C19,'TABELA_CPU ADM-CANTEIRO-SERVICO'!B:K,9,0) -> 33858.43 | H19: 0.2256 | I19: 41496.89 | J19: 829937.8 | K19: 0.006819453844
A20: 1.1.3 | D20: GERÊNCIA TÉCNICA AUXILIAR - MÃO DE OBRA | F20: =IFERROR(VLOOKUP(A20,'ANEXO I - MEM. CÁLC'!$A:$O,4,0),0) -> 0 | I20: 0 | J20: 0 | K20: 0
A21: 1.1.3.1 | B21: SINAPI | C21: 101390 | D21: AUXILIAR TÉCNICO / ASSISTENTE DE ENGENHARIA COM ENCARGOS COMPLEMENTARES | E21: MES | F21: =IFERROR(VLOOKUP(A21,'ANEXO I - MEM. CÁLC'!$A:$O,4,0),0) -> 40 | G21: =VLOOKUP(C21,'TABELA_CPU ADM-CANTEIRO-SERVICO'!B:K,9,0) -> 7705.77 | H21: =$J$3 -> 0.2256 | I21: 9444.19 | J21: 377767.6 | K21: 0.003104050342
A22: 1.1.4 | D22: GERÊNCIA ADMINISTRATIVA GERAL - MÃO DE OBRA | K22: 0
A23: 1.1.4.1 | B23: Próprio | C23: COMP-TEC-029 | D23: CHEFE DO SETOR ADMINISTRATIVO COM ENCARGOS SOCIAIS E COMPLEMENTARES | E23: MÊS | F23: =IFERROR(VLOOKUP(A23,'ANEXO I - MEM. CÁLC'!$A:$O,4,0),0) -> 19 | G23: =VLOOKUP(C23,'TABELA_CPU ADM-CANTEIRO-SERVICO'!B:K,9,0) -> 6979.82 | H23: =$J$3 -> 0.2256 | I23: 8554.46 | J23: 162534.74 | K23: 0.00133551955
A24: 1.1.4.2 | B24: Próprio | C24: COMP-TEC-012 | D24: PORTEIRO COM ENCARGOS SOCIAIS E COMPLEMENTARES | E24: MÊS | F24: =IFERROR(VLOOKUP(A24,'ANEXO I - MEM. CÁLC'!$A:$O,4,0),0) -> 38 | G24: =VLOOKUP(C24,'TABELA_CPU ADM-CANTEIRO-SERVICO'!B:K,9,0) -> 4131.04 | H24: 0.2256 | I24: 5063 | J24: 192394 | K24: 0.001580867871
A25: 1.1.4.3 | B25: Próprio | C25: COMP-TEC-013 | D25: VIGIA COM ENCARGOS COMPLEMENTARES E ADICIONAL DE PERICULOSIDADE | E25: MÊS | F25: =IFERROR(VLOOKUP(A25,'ANEXO I - MEM. CÁLC'!$A:$O,4,0),0) -> 40 | G25: =VLOOKUP(C25,'TABELA_CPU ADM-CANTEIRO-SERVICO'!B:K,9,0) -> 5010.46 | H25: 0.2256 | I25: 6140.81 | J25: 245632.4 | K25: 0.002018318499
A26: 1.1.5 | D26: GERÊNCIA ADMINISTRATIVA GERAL - VEÍCULOS | K26: 0
A27: 1.1.5.1 | B27: Próprio | C27: E9093 MÊS | D27: VEICULO LEVE - 53 KW SEM MOTORISTA | E27: MÊS | F27: =IFERROR(VLOOKUP(A27,'ANEXO I - MEM. CÁLC'!$A:$O,4,0),0) -> 19 | G27: =VLOOKUP(C27,'TABELA_CPU ADM-CANTEIRO-SERVICO'!B:K,9,0) -> 2583.39 | H27: =$J$3 -> 0.2256 | I27: 3166.2 | J27: 60157.8 | K27: 0.0004943061281
A28: 1.1.6 | D28: GERÊNCIA ADMINISTRATIVA AUXILIAR - MÃO DE OBRA | I28: 0 | J28: 0 | K28: 0
A29: 1.1.6.1 | B29: Próprio | C29: COMP-TEC-014 | D29: AUXILIAR ADMINISTRATIVO COM ENCARGOS SOCIAIS E COMPLEMENTARES | E29: MÊS | F29: =IFERROR(VLOOKUP(A29,'ANEXO I - MEM. CÁLC'!$A:$O,4,0),0) -> 38 | G29: =VLOOKUP(C29,'TABELA_CPU ADM-CANTEIRO-SERVICO'!B:K,9,0) -> 4478.32 | H29: =$J$3 -> 0.2256 | I29: 5488.62 | J29: 208567.56 | K29: 0.001713763187
A30: 1.1.6.2 | B30: Próprio | C30: COMP-TEC-015 | D30: FAXINEIRO COM ENCARGOS SOCIAIS E COMPLEMENTARES | E30: MÊS | F30: =IFERROR(VLOOKUP(A30,'ANEXO I - MEM. CÁLC'!$A:$O,4,0),0) -> 19 | G30: =VLOOKUP(C30,'TABELA_CPU ADM-CANTEIRO-SERVICO'!B:K,9,0) -> 2914.74 | H30: 0.2256 | I30: 3572.3 | J30: 67873.7 | K30: 0.0005577063298
A31: 1.2 | D31: PARCELA VINCULADA DA ADMINISTRAÇÃO LOCAL | K31: 0
A32: 1.2.1 | D32: TERRAPLENAGEM - MÃO DE OBRA | K32: 0
A33: 1.2.1.1 | B33: Próprio | C33: COMP-TEC-018 | D33: ENCARREGADO DE TERRAPLENAGEM COM ENCARGOS COMPLEMENTARES | E33: MÊS | F33: =IFERROR(VLOOKUP(A33,'ANEXO I - MEM. CÁLC'!$A:$O,4,0),0) -> 18 | G33: =VLOOKUP(C33,'TABELA_CPU ADM-CANTEIRO-SERVICO'!B:K,9,0) -> 7477.97 | H33: =$J$3 -> 0.2256 | I33: 9165 | J33: 164970 | K33: 0.001355529656
A34: 1.2.2 | D34: TOPOGRAFIA - MÃO DE OBRA | I34: 0 | J34: 0 | K34: 0
A35: 1.2.2.1 | B35: SINAPI | C35: 94296 | D35: TOPOGRAFO COM ENCARGOS COMPLEMENTARES | E35: MES | F35: =IFERROR(VLOOKUP(A35,'ANEXO I - MEM. CÁLC'!$A:$O,4,0),0) -> 19 | G35: =VLOOKUP(C35,'TABELA_CPU ADM-CANTEIRO-SERVICO'!B:K,9,0) -> 6803.05 | H35: =$J$3 -> 0.2256 | I35: 8337.81 | J35: 158418.39 | K35: 0.001301696222
A36: 1.2.2.2 | B36: SINAPI | C36: 101389 | D36: AUXILIAR DE TOPÓGRAFO COM ENCARGOS COMPLEMENTARES | E36: MES | F36: =IFERROR(VLOOKUP(A36,'ANEXO I - MEM. CÁLC'!$A:$O,4,0),0) -> 57 | G36: =VLOOKUP(C36,'TABELA_CPU ADM-CANTEIRO-SERVICO'!B:K,9,0) -> 3284.36 | H36: 0.2256 | I36: 4025.31 | J36: 229442.67 | K36: 0.001885290317
A37: 1.2.3 | D37: MEDICINA E SEGURANÇA DO TRABALHO | K37: 0
A38: 1.2.3.1 | B38: SINAPI | C38: 100321 | D38: TÉCNICO EM SEGURANÇA DO TRABALHO COM ENCARGOS COMPLEMENTARES | E38: MES | F38: =IFERROR(VLOOKUP(A38,'ANEXO I - MEM. CÁLC'!$A:$O,4,0),0) -> 40 | G38: =VLOOKUP(C38,'TABELA_CPU ADM-CANTEIRO-SERVICO'!B:K,9,0) -> 7926.08 | H38: =$J$3 -> 0.2256 | I38: 9714.2 | J38: 388568 | K38: 0.003192795341
A39: 1.2.3.2 | B39: Próprio | C39: COMP-TEC-021 | D39: ENGENHEIRO DE SEGURANÇA DO TRABALHO COM ENCARGOS COMPLEMENTARES E SOCIAIS | E39: MÊS | F39: =IFERROR(VLOOKUP(A39,'ANEXO I - MEM. CÁLC'!$A:$O,4,0),0) -> 9 | G39: =VLOOKUP(C39,'TABELA_CPU ADM-CANTEIRO-SERVICO'!B:K,9,0) -> 21005.74 | H39: 0.2256 | I39: 25744.63 | J39: 231701.67 | K39: 0.001903852125
A40: 1.2.3.3 | B40: Próprio | C40: COMP-TEC-022 | D40: MÉDICO DE SEGURANÇA DO TRABALHO COM ENCARGOS COMPLEMENTARES E SOCIAIS | E40: MÊS | F40: =IFERROR(VLOOKUP(A40,'ANEXO I - MEM. CÁLC'!$A:$O,4,0),0) -> 9 | G40: =VLOOKUP(C40,'TABELA_CPU ADM-CANTEIRO-SERVICO'!B:K,9,0) -> 16959.84 | H40: 0.2256 | I40: 20785.97 | J40: 187073.73 | K40: 0.001537152142
A41: 1.2.4 | D41: ESPECIALISTAS / CONSULTORES | K41: 0
A42: 1.2.4.1 | B42: Próprio | C42: COMP-TEC-032 | D42: ENGENHEIRO MECÂNICO DE OBRA PLENO COM ENCARGOS COMPLEMENTARES | E42: MÊS | F42: =IFERROR(VLOOKUP(A42,'ANEXO I - MEM. CÁLC'!$A:$O,4,0),0) -> 3 | G42: =VLOOKUP(C42,'TABELA_CPU ADM-CANTEIRO-SERVICO'!B:K,9,0) -> 21998.41 | H42: =$J$3 -> 0.2256 | I42: 26961.25 | J42: 80883.75 | K42: 0.0006646076367
A43: 1.2.4.2 | B43: Próprio | C43: COMP-TEC-033 | D43: ENGENHEIRO ELETRICISTA DE OBRA PLENO COM ENCARGOS COMPLEMENTARES | E43: MÊS | F43: =IFERROR(VLOOKUP(A43,'ANEXO I - MEM. CÁLC'!$A:$O,4,0),0) -> 3 | G43: =VLOOKUP(C43,'TABELA_CPU ADM-CANTEIRO-SERVICO'!B:K,9,0) -> 21998.41 | H43: 0.2256 | I43: 26961.25 | J43: 80883.75 | K43: 0.0006646076367
A44: 1.2.4.3 | B44: Próprio | C44: COMP-TEC-017 | D44: GEOTECNICO COM ENCARGOS SOCIAIS E COMPLEMENTARES | E44: MÊS | F44: =IFERROR(VLOOKUP(A44,'ANEXO I - MEM. CÁLC'!$A:$O,4,0),0) -> 18 | G44: =VLOOKUP(C44,'TABELA_CPU ADM-CANTEIRO-SERVICO'!B:K,9,0) -> 12092.81 | H44: 0.2256 | I44: 14820.94 | J44: 266776.92 | K44: 0.002192059324
A45: 1.2.4.4 | B45: Próprio | C45: COMP-TEC-016 | D45: GEÓLOGO COM ENCARGOS SOCIAIS E COMPLEMENTARES | E45: MÊS | F45: =IFERROR(VLOOKUP(A45,'ANEXO I - MEM. CÁLC'!$A:$O,4,0),0) -> 18 | G45: =VLOOKUP(C45,'TABELA_CPU ADM-CANTEIRO-SERVICO'!B:K,9,0) -> 20852.37 | H45: 0.2256 | I45: 25556.66 | J45: 460019.88 | K45: 0.003779902951
A46: 1.2.4.5 | B46: Próprio | C46: COMP-CANT-01 | D46: ENGENHEIRO DE MINAS COM ENCARGOS SOCIAIS E COMPLEMENTARES | E46: MÊS | F46: =IFERROR(VLOOKUP(A46,'ANEXO I - MEM. CÁLC'!$A:$O,4,0),0) -> 9 | G46: =VLOOKUP(C46,'TABELA_CPU ADM-CANTEIRO-SERVICO'!B:K,9,0) -> 22097.82 | H46: 0.2256 | I46: 27083.08 | J46: 243747.72 | K46: 0.002002832413
A47: 1.2.4.6 | B47: SINAPI | C47: 93567 | D47: ENGENHEIRO CIVIL DE OBRA PLENO COM ENCARGOS COMPLEMENTARES | E47: MES | F47: =IFERROR(VLOOKUP(A47,'ANEXO I - MEM. CÁLC'!$A:$O,4,0),0) -> 18 | G47: =VLOOKUP(C47,'TABELA_CPU ADM-CANTEIRO-SERVICO'!B:K,9,0) -> 21998.41 | H47: 0.2256 | I47: 26961.25 | J47: 485302.5 | K47: 0.00398764582
A48: 1.2.5 | D48: ALMOXARIFADO | K48: 0
A49: 1.2.5.1 | B49: SINAPI | C49: 93563 | D49: ALMOXARIFE COM ENCARGOS COMPLEMENTARES | E49: MES | F49: =IFERROR(VLOOKUP(A49,'ANEXO I - MEM. CÁLC'!$A:$O,4,0),0) -> 20 | G49: =VLOOKUP(C49,'TABELA_CPU ADM-CANTEIRO-SERVICO'!B:K,9,0) -> 5501.31 | H49: 0.2256 | I49: 6742.4 | J49: 134848 | K49: 0.001108022447
A50: 1.2.5.2 | B50: SINAPI | C50: 100316 | D50: AUXILIAR DE ALMOXARIFE COM ENCARGOS COMPLEMENTARES | E50: MÊS | F50: =IFERROR(VLOOKUP(A50,'ANEXO I - MEM. CÁLC'!$A:$O,4,0),0) -> 20 | G50: =VLOOKUP(C50,'TABELA_CPU ADM-CANTEIRO-SERVICO'!B:K,9,0) -> 3447.87 | H50: 0.2256 | I50: 4225.7 | J50: 84514 | K50: 0.0006944367665
A51: 1.2.6 | D51: VEÍCULOS | I51: 0 | J51: 0 | K51: 0
A52: 1.2.6.1 | B52: Próprio | C52: E9093 MÊS | D52: VEICULO LEVE - 53 KW SEM MOTORISTA | E52: MÊS | F52: =IFERROR(VLOOKUP(A52,'ANEXO I - MEM. CÁLC'!$A:$O,4,0),0) -> 90 | G52: =VLOOKUP(C52,'TABELA_CPU ADM-CANTEIRO-SERVICO'!B:K,9,0) -> 2583.39 | H52: =$J$3 -> 0.2256 | I52: 3166.2 | J52: 284958 | K52: 0.00234145008
A53: 1.3 | D53: PARCELA VARIÁVEL DA ADMINISTRAÇÃO LOCAL | K53: 0
A54: 1.3.1 | D54: ACOMPANHAMENTOS DAS FRENTES DE SERVIÇO | K54: 0
A55: 1.3.1.1 | B55: SINAPI | C55: 93567 | D55: ENGENHEIRO CIVIL DE OBRA PLENO COM ENCARGOS COMPLEMENTARES | E55: MES | F55: =IFERROR(VLOOKUP(A55,'ANEXO I - MEM. CÁLC'!$A:$O,4,0),0) -> 18 | G55: =VLOOKUP(C55,'TABELA_CPU ADM-CANTEIRO-SERVICO'!B:K,9,0) -> 21998.41 | H55: 0.2256 | I55: 26961.25 | J55: 485302.5 | K55: 0.00398764582
A56: 1.3.1.2 | B56: Próprio | C56: COMP-TEC-040 | D56: ENCARREGADO DE TURMA COM ENCARGOS COMPLEMENTARES | E56: MÊS | F56: =IFERROR(VLOOKUP(A56,'ANEXO I - MEM. CÁLC'!$A:$O,4,0),0) -> 36 | G56: =VLOOKUP(C56,'TABELA_CPU ADM-CANTEIRO-SERVICO'!B:K,9,0) -> 4718.4 | H56: 0.2256 | I56: 5782.87 | J56: 208183.32 | K56: 0.001710605954
A57: 1.3.2 | D57: CONTROLE TECNOLÓGICO / SOLOS - MÃO DE OBRA | K57: 0
A58: 1.3.2.1 | B58: SINAPI | C58: 101456 | D58: TÉCNICO DE LABORATÓRIO E CAMPO DE CONSTRUÇÃO COM ENCARGOS COMPLEMENTARES | E58: MES | F58: =IFERROR(VLOOKUP(A58,'ANEXO I - MEM. CÁLC'!$A:$O,4,0),0) -> 18 | G58: =VLOOKUP(C58,'TABELA_CPU ADM-CANTEIRO-SERVICO'!B:K,9,0) -> 7864.49 | H58: 0.2256 | I58: 9638.71 | J58: 173496.78 | K58: 0.001425592717
A59: 1.3.2.2 | B59: SINAPI | C59: 101385 | D59: AUXILIAR DE LABORATORISTA DE SOLOS E DE CONCRETO COM ENCARGOS COMPLEMENTARES | E59: MES | F59: =IFERROR(VLOOKUP(A59,'ANEXO I - MEM. CÁLC'!$A:$O,4,0),0) -> 18 | G59: =VLOOKUP(C59,'TABELA_CPU ADM-CANTEIRO-SERVICO'!B:K,9,0) -> 5583.61 | H59: 0.2256 | I59: 6843.27 | J59: 123178.86 | K59: 0.001012139163
A60: 1.3.3 | D60: CONTROLE TECNOLÓGICO / CONCRETO - MÃO DE OBRA | I60: 0 | J60: 0 | K60: 0
A61: 1.3.3.1 | B61: SINAPI | C61: 101456 | D61: TÉCNICO DE LABORATÓRIO E CAMPO DE CONSTRUÇÃO COM ENCARGOS COMPLEMENTARES | E61: MES | F61: =IFERROR(VLOOKUP(A61,'ANEXO I - MEM. CÁLC'!$A:$O,4,0),0) -> 18 | G61: =VLOOKUP(C61,'TABELA_CPU ADM-CANTEIRO-SERVICO'!B:K,9,0) -> 7864.49 | H61: 0.2256 | I61: 9638.71 | J61: 173496.78 | K61: 0.001425592717
A62: 1.3.3.2 | B62: SINAPI | C62: 101385 | D62: AUXILIAR DE LABORATORISTA DE SOLOS E DE CONCRETO COM ENCARGOS COMPLEMENTARES | E62: MES | F62: =IFERROR(VLOOKUP(A62,'ANEXO I - MEM. CÁLC'!$A:$O,4,0),0) -> 18 | G62: =VLOOKUP(C62,'TABELA_CPU ADM-CANTEIRO-SERVICO'!B:K,9,0) -> 5583.61 | H62: 0.2256 | I62: 6843.27 | J62: 123178.86 | K62: 0.001012139163
A63: 1.3.4 | D63: MANEJO FLORESTAL - MÃO DE OBRA | K63: 0
A64: 1.3.4.1 | B64: Próprio | C64: COMP-TEC-019 | D64: TÉCNICO FLORESTAL COM ENCARGOS COMPLEMENTARES | E64: MÊS | F64: =IFERROR(VLOOKUP(A64,'ANEXO I - MEM. CÁLC'!$A:$O,4,0),0) -> 6.66 | G64: =VLOOKUP(C64,'TABELA_CPU ADM-CANTEIRO-SERVICO'!B:K,9,0) -> 6476.86 | H64: =$J$3 -> 0.2256 | I64: 7938.03 | J64: 52867.27 | K64: 0.0004344011173
A65: 1.3.5 | D65: VEÍCULOS | K65: 0
A66: 1.3.5.1 | B66: Próprio | C66: 13617 - MÊS | D66: CAMINHONETE CABINE SIMPLES COM MOTOR 1.6 FLEX, CÂMBIO MANUAL, POTÊNCIA 101/104 CV, 2 PORTAS (SEM MOTORISTA) | E66: MÊS | F66: =IFERROR(VLOOKUP(A66,'ANEXO I - MEM. CÁLC'!$A:$O,4,0),0) -> 19 | G66: =VLOOKUP(C66,'TABELA_CPU ADM-CANTEIRO-SERVICO'!B:K,9,0) -> 3607.56 | H66: 0.2256 | I66: 4421.42 | J66: 84006.98 | K66: 0.0006902706717
A67: 1.3.5.2 | B67: Próprio | C67: E9093 MÊS | D67: VEICULO LEVE - 53 KW SEM MOTORISTA | E67: MÊS | F67: =IFERROR(VLOOKUP(A67,'ANEXO I - MEM. CÁLC'!$A:$O,4,0),0) -> 19 | G67: =VLOOKUP(C67,'TABELA_CPU ADM-CANTEIRO-SERVICO'!B:K,9,0) -> 2583.39 | H67: 0.2256 | I67: 3166.2 | J67: 60157.8 | K67: 0.0004943061281
A68: 1.4 | D68: DESPESAS COM RESIDÊNCIA | K68: 0
A69: 1.4.1 | B69: Próprio | C69: B8952 JAN/24 | D69: IMÓVEL RESIDENCIAL (1,70% DO CMCC - SINAPI) | E69: M²XMÊS | F69: =IFERROR(VLOOKUP(A69,'ANEXO I - MEM. CÁLC'!$A:$O,4,0),0) -> 5214.43 | G69: =VLOOKUP(C69,'TABELA_CPU ADM-CANTEIRO-SERVICO'!B:K,9,0) -> 31.22 | H69: =$J$4 -> 0.14015 | I69: 35.59 | J69: 185581.56 | K69: 0.001524891242
A70: 1.4.2 | B70: Próprio | C70: B8954 JAN/24 | D70: MOBILIÁRIO DE RESIDÊNCIA | E70: OCUPANTEXMÊS | F70: =IFERROR(VLOOKUP(A70,'ANEXO I - MEM. CÁLC'!$A:$O,4,0),0) -> 550.36 | G70: =VLOOKUP(C70,'TABELA_CPU ADM-CANTEIRO-SERVICO'!B:K,9,0) -> 43.98 | H70: =$J$4 -> 0.14015 | I70: 50.14 | J70: 27595.05 | K70: 0.0002267437027
A71: 1.4.3 | B71: Próprio | C71: B8960 JAN/24 | D71: CUSTOS DIVEROS DA RESIDÊNCIA | E71: OCUPANTEXMÊS | F71: =IFERROR(VLOOKUP(A71,'ANEXO I - MEM. CÁLC'!$A:$O,4,0),0) -> 550.36 | G71: =VLOOKUP(C71,'TABELA_CPU ADM-CANTEIRO-SERVICO'!B:K,9,0) -> 206.13 | H71: 0.14015 | I71: 235.01 | J71: 129340.1 | K71: 0.001062764995
A72: 1.5 | D72: DESPESAS COM ESCRITÓRIO | K72: 0
A73: 1.5.1 | B73: Próprio | C73: B8953 JAN/24 | D73: MOBILIÁRIO DE ESCRITÓRIO | E73: OCUPANTEXMÊS | F73: =IFERROR(VLOOKUP(A73,'ANEXO I - MEM. CÁLC'!$A:$O,4,0),0) -> 331 | G73: =VLOOKUP(C73,'TABELA_CPU ADM-CANTEIRO-SERVICO'!B:K,9,0) -> 490.4 | H73: =$J$4 -> 0.14015 | I73: 559.12 | J73: 185068.72 | K73: 0.001520677326
A74: 1.5.2 | B74: Próprio | C74: B8959 JAN/24 | D74: CUSTOS DIVERSOS DO ESCRITÓRIO | E74: OCUPANTEXMÊS | F74: =IFERROR(VLOOKUP(A74,'ANEXO I - MEM. CÁLC'!$A:$O,4,0),0) -> 331 | G74: =VLOOKUP(C74,'TABELA_CPU ADM-CANTEIRO-SERVICO'!B:K,9,0) -> 135.22 | H74: 0.14015 | I74: 154.17 | J74: 51030.27 | K74: =J74/$J$1093 -> 0.0004193068094
A75: 1.6 | D75: DESPESAS COM LABORATÓRIOS E TOPOGRAFIA | I75: 0 | J75: 0 | K75: 0
A76: 1.6.1 | B76: Próprio | C76: B8958 JAN/24 | D76: CESTAS DAS INSTALAÇÕES DA TOPOGRAFIA | E76: MÊS | F76: =IFERROR(VLOOKUP(A76,'ANEXO I - MEM. CÁLC'!$A:$O,4,0),0) -> 19 | G76: =VLOOKUP(C76,'TABELA_CPU ADM-CANTEIRO-SERVICO'!B:K,9,0) -> 3020.19 | H76: =$J$4 -> 0.14015 | I76: 3443.46 | J76: 65425.74 | K76: 0.0005375918703
A77: 1.6.2 | B77: Próprio | C77: B8953 JAN/24 | D77: MOBILIÁRIO DE ESCRITÓRIO | E77: OCUPANTEXMÊS | F77: =IFERROR(VLOOKUP(A77,'ANEXO I - MEM. CÁLC'!$A:$O,4,0),0) -> 148 | G77: =VLOOKUP(C77,'TABELA_CPU ADM-CANTEIRO-SERVICO'!B:K,9,0) -> 490.4 | H77: 0.14015 | I77: =IFERROR(TRUNC((G77*(1+H77)),2),"") -> 559.12 | J77: =IFERROR(TRUNC((F77*I77),2),"") -> 82749.76 | K77: 0.0006799403147
A78: 1.6.3 | B78: Próprio | C78: B8959 JAN/24 | D78: CUSTOS DIVERSOS DO ESCRITÓRIO | E78: OCUPANTEXMÊS | F78: =IFERROR(VLOOKUP(A78,'ANEXO I - MEM. CÁLC'!$A:$O,4,0),0) -> 148 | G78: =VLOOKUP(C78,'TABELA_CPU ADM-CANTEIRO-SERVICO'!B:K,9,0) -> 135.22 | H78: 0.14015 | I78: 154.17 | J78: 22817.16 | K78: 0.0001874846157
A79: 1.6.4 | B79: Próprio | C79: B8957 JAN/24 | D79: CESTAS DAS INSTALAÇÕES DE LABORATÓRIO DE SOLOS | E79: MÊS | F79: =IFERROR(VLOOKUP(A79,'ANEXO I - MEM. CÁLC'!$A:$O,4,0),0) -> 18 | G79: =VLOOKUP(C79,'TABELA_CPU ADM-CANTEIRO-SERVICO'!B:K,9,0) -> 4145.63 | H79: 0.14015 | I79: 4726.64 | J79: 85079.52 | K79: 0.0006990835455
A80: 1.6.5 | B80: Próprio | C80: B8956 JAN/24 | D80: CESTAS DAS INSTALAÇÕES DO LABORATÓRIO DE CONCRETO | E80: MÊS | F80: =IFERROR(VLOOKUP(A80,'ANEXO I - MEM. CÁLC'!$A:$O,4,0),0) -> 18 | G80: =VLOOKUP(C80,'TABELA_CPU ADM-CANTEIRO-SERVICO'!B:K,9,0) -> 4394.12 | H80: 0.14015 | I80: 5009.95 | J80: 90179.1 | K80: 0.000740985903
A81: 1.7 | D81: COMBATE A INCÊNDIO | K81: 0
A82: 1.7.1 | B82: SINAPI | C82: 101907 | D82: EXTINTOR DE INCÊNDIO PORTÁTIL COM CARGA DE CO2 DE 6 KG, CLASSE BC - FORNECIMENTO E INSTALAÇÃO. AF_10/2020_PE | E82: UN | F82: =IFERROR(VLOOKUP(A82,'ANEXO I - MEM. CÁLC'!$A:$O,4,0),0) -> 8 | G82: =VLOOKUP(C82,'TABELA_CPU ADM-CANTEIRO-SERVICO'!B:K,9,0) -> 746.54 | H82: =$J$3 -> 0.2256 | I82: 914.95 | J82: 7319.6 | K82: 6.014387386e-05
A83: 1.8 | D83: MANUTENÇÃO DO CANTEIRO DE OBRAS | K83: 0
A84: 1.8.1 | B84: Próprio | C84: COMP-TEC-030 | D84: MANUTENÇÃO DO CANTEIRO DE OBRAS, PEDREIRO, SERVENTE, ELETRICISTA, EQUIPAMENTOS | E84: MÊS | F84: =IFERROR(VLOOKUP(A84,'ANEXO I - MEM. CÁLC'!$A:$O,4,0),0) -> 20 | G84: =VLOOKUP(C84,'TABELA_CPU ADM-CANTEIRO-SERVICO'!B:K,9,0) -> 21562.4 | H84: =$J$3 -> 0.2256 | I84: 26426.87 | J84: 528537.4 | K84: 0.004342899437
A85: 2 | D85: MOBILIZAÇÃO E DESMOBILIZAÇÃO | J85: =SUM(J86:J128) -> 625434.94 | K85: 0.005139089587
A86: 2.1 | D86: MOBILIZAÇÃO E DESMOBILIZAÇÃO DE EQUIPAMENTO | K86: 0
A87: 2.1.1 | B87: Próprio | C87: MOB 92 | D87: MOBILIZAÇÃO E DESMOBILIZAÇÃO DE CAMINHÃO BASCULANTE COM CAÇAMBA ESTANQUE COM CAPACIDADE DE 14 M³ - 188 KW | E87: KM | F87: =IFERROR(VLOOKUP(A87,'ANEXO I - MEM. CÁLC'!$A:$O,4,0),0) -> 3792 | G87: =VLOOKUP(C87,'TABELA_CPU ADM-CANTEIRO-SERVICO'!B:K,9,0) -> 4.96 | H87: =$J$3 -> 0.2256 | I87: 6.07 | J87: 23017.44 | K87: 0.0001891302814
A88: 2.1.2 | B88: Próprio | C88: MOB 10 | D88: MOBILIZAÇÃO E DESMOBILIZAÇÃO DE CAMINHÃO BASCULANTE COM CAPACIDADE DE 10 M³ - 188 KW | E88: KM | F88: =IFERROR(VLOOKUP(A88,'ANEXO I - MEM. CÁLC'!$A:$O,4,0),0) -> 1896 | G88: =VLOOKUP(C88,'TABELA_CPU ADM-CANTEIRO-SERVICO'!B:K,9,0) -> 4.93 | H88: 0.2256 | I88: 6.04 | J88: 11451.84 | K88: 9.40977677e-05
A89: 2.1.3 | B89: Próprio | C89: MOB 70 | D89: MOBILIZAÇÃO E DESMOBILIZAÇÃO DE CAMINHÃO BASCULANTE COM CAPACIDADE DE 14 M³ - 188 KW | E89: KM | F89: =IFERROR(VLOOKUP(A89,'ANEXO I - MEM. CÁLC'!$A:$O,4,0),0) -> 10428 | G89: =VLOOKUP(C89,'TABELA_CPU ADM-CANTEIRO-SERVICO'!B:K,9,0) -> 4.95 | H89: 0.2256 | I89: 6.06 | J89: 63193.68 | K89: 0.0005192514234
A90: 2.1.4 | B90: Próprio | C90: MOB 15 | D90: MOBILIZAÇÃO E DESMOBILIZAÇÃO DE CAMINHÃO BASCULANTE COM CAPACIDADE DE 6 M³ - 136 KW | E90: KM | F90: =IFERROR(VLOOKUP(A90,'ANEXO I - MEM. CÁLC'!$A:$O,4,0),0) -> 948 | G90: =VLOOKUP(C90,'TABELA_CPU ADM-CANTEIRO-SERVICO'!B:K,9,0) -> 3.06 | H90: 0.2256 | I90: 3.75 | J90: 3555 | K90: 2.921081365e-05
A91: 2.1.5 | B91: Próprio | C91: MOB 74 | D91: MOBILIZAÇÃO E DESMOBILIZAÇÃO DE CAMINHÃO BASCULANTE PARA ROCHA COM CAPACIDADE DE 12 M³ - 188 KW | E91: KM | F91: =IFERROR(VLOOKUP(A91,'ANEXO I - MEM. CÁLC'!$A:$O,4,0),0) -> 7584 | G91: =VLOOKUP(C91,'TABELA_CPU ADM-CANTEIRO-SERVICO'!B:K,9,0) -> 5.16 | H91: 0.2256 | I91: 6.32 | J91: 47930.88 | K91: 0.0003938396635
A92: 2.1.6 | B92: Próprio | C92: MOB 52 | D92: MOBILIZAÇÃO DE CENTRAL DE CONCRETO COM CAPACIDADE DE 30 M³/H - DOSADORA RS | E92: KM | F92: =IFERROR(VLOOKUP(A92,'ANEXO I - MEM. CÁLC'!$A:$O,4,0),0) -> 948 | G92: =VLOOKUP(C92,'TABELA_CPU ADM-CANTEIRO-SERVICO'!B:K,9,0) -> 12.96 | H92: 0.2256 | I92: 15.88 | J92: 15054.24 | K92: 0.0001236980589
A93: 2.1.7 | B93: Próprio | C93: MOB 72 | D93: MOBILIZAÇÃO E DESMOBILIZAÇÃO DE CAMINHÃO BASCULANTE PARA ROCHA COM CAPACIDADE DE 8 M³ - 210 KW | E93: KM | F93: =IFERROR(VLOOKUP(A93,'ANEXO I - MEM. CÁLC'!$A:$O,4,0),0) -> 3792 | G93: =VLOOKUP(C93,'TABELA_CPU ADM-CANTEIRO-SERVICO'!B:K,9,0) -> 4.95 | H93: 0.2256 | I93: 6.06 | J93: 22979.52 | K93: 0.0001888186994
A94: 2.1.8 | B94: Próprio | C94: MOB 42 | D94: MOBILIZAÇÃO DE CAMINHÃO BETONEIRA COM CAPACIDADE DE 8 M³ - 188 KW | E94: KM | F94: =IFERROR(VLOOKUP(A94,'ANEXO I - MEM. CÁLC'!$A:$O,4,0),0) -> 948 | G94: =VLOOKUP(C94,'TABELA_CPU ADM-CANTEIRO-SERVICO'!B:K,9,0) -> 5.12 | H94: 0.2256 | I94: 6.27 | J94: 5943.96 | K94: 4.884048042e-05
A95: 2.1.9 | B95: Próprio | C95: MOB 9 | D95: MOBILIZAÇÃO E DESMOBILIZAÇÃO DE CAMINHÃO CARROCERIA COM CAPACIDADE DE 15 T - 188 KW | E95: KM | F95: =IFERROR(VLOOKUP(A95,'ANEXO I - MEM. CÁLC'!$A:$O,4,0),0) -> 948 | G95: =VLOOKUP(C95,'TABELA_CPU ADM-CANTEIRO-SERVICO'!B:K,9,0) -> 4.39 | H95: 0.2256 | I95: 5.38 | J95: 5100.24 | K95: 4.190778065e-05
A96: 2.1.10 | B96: Próprio | C96: MOB 44 | D96: MOBILIZAÇÃO E DESMOBILIZAÇÃO DE CAMINHÃO CARROCERIA COM CAPACIDADE DE 5 T - 115 KW | E96: KM | F96: =IFERROR(VLOOKUP(A96,'ANEXO I - MEM. CÁLC'!$A:$O,4,0),0) -> 948 | G96: =VLOOKUP(C96,'TABELA_CPU ADM-CANTEIRO-SERVICO'!B:K,9,0) -> 2.51 | H96: 0.2256 | I96: 3.07 | J96: 2910.36 | K96: 2.391391944e-05
A97: 2.1.11 | B97: Próprio | C97: MOB 43 | D97: MOBILIZAÇÃO E DESMOBILIZAÇÃO DE CAMINHÃO CARROCERIA COM GUINDAUTO COM CAPACIDADE DE 20 T.M - 136 KW | E97: KM | F97: =IFERROR(VLOOKUP(A97,'ANEXO I - MEM. CÁLC'!$A:$O,4,0),0) -> 948 | G97: =VLOOKUP(C97,'TABELA_CPU ADM-CANTEIRO-SERVICO'!B:K,9,0) -> 5.23 | H97: 0.2256 | I97: 6.4 | J97: 6067.2 | K97: 4.985312196e-05
A98: 2.1.12 | B98: Próprio | C98: MOB 46 | D98: MOBILIZAÇÃO E DESMOBILIZAÇÃO DE CAMINHÃO TANQUE COM CAPACIDADE DE 10.000 L - 188 KW | E98: KM | F98: =IFERROR(VLOOKUP(A98,'ANEXO I - MEM. CÁLC'!$A:$O,4,0),0) -> 948 | G98: =VLOOKUP(C98,'TABELA_CPU ADM-CANTEIRO-SERVICO'!B:K,9,0) -> 5.36 | H98: 0.2256 | I98: 6.56 | J98: 6218.88 | K98: 5.109945001e-05
A99: 2.1.13 | B99: Próprio | C99: MOB 47 | D99: MOBILIZAÇÃO E DESMOBILIZAÇÃO DE CAMINHÃO TANQUE COM CAPACIDADE DE 6.000 L - 136 KW | E99: KM | F99: =IFERROR(VLOOKUP(A99,'ANEXO I - MEM. CÁLC'!$A:$O,4,0),0) -> 948 | G99: =VLOOKUP(C99,'TABELA_CPU ADM-CANTEIRO-SERVICO'!B:K,9,0) -> 4.1 | H99: 0.2256 | I99: 5.02 | J99: 4758.96 | K99: 3.910354254e-05
A100: 2.1.14 | B100: Próprio | C100: MOB 48 | D100: MOBILIZAÇÃO E DESMOBILIZAÇÃO DE CARREGADEIRA DE PNEUS COM CAPACIDADE DE 1,72 M³ - 113 KW | E100: KM | F100: =IFERROR(VLOOKUP(A100,'ANEXO I - MEM. CÁLC'!$A:$O,4,0),0) -> 948 | G100: =VLOOKUP(C100,'TABELA_CPU ADM-CANTEIRO-SERVICO'!B:K,9,0) -> 6.48 | H100: 0.2256 | I100: 7.94 | J100: 7527.12 | K100: 6.184902943e-05
A101: 2.1.15 | B101: Próprio | C101: MOB 49 | D101: MOBILIZAÇÃO E DESMOBILIZAÇÃO DE CARREGADEIRA DE PNEUS COM CAPACIDADE DE 3,40 M³ - 195 KW | E101: KM | F101: =IFERROR(VLOOKUP(A101,'ANEXO I - MEM. CÁLC'!$A:$O,4,0),0) -> 948 | G101: =VLOOKUP(C101,'TABELA_CPU ADM-CANTEIRO-SERVICO'!B:K,9,0) -> 6.48 | H101: 0.2256 | I101: 7.94 | J101: 7527.12 | K101: 6.184902943e-05
A102: 2.1.16 | B102: Próprio | C102: MOB 50 | D102: MOBILIZAÇÃO E DESMOBILIZAÇÃO DE CARREGADEIRA DE PNEUS PARA ROCHA COM CAPACIDADE DE 2,50 M³ - 105 KW | E102: KM | F102: =IFERROR(VLOOKUP(A102,'ANEXO I - MEM. CÁLC'!$A:$O,4,0),0) -> 2844 | G102: =VLOOKUP(C102,'TABELA_CPU ADM-CANTEIRO-SERVICO'!B:K,9,0) -> 6.48 | H102: 0.2256 | I102: 7.94 | J102: 22581.36 | K102: 0.0001855470883
A103: 2.1.17 | B103: Próprio | C103: MOB 51 | D103: MOBILIZAÇÃO DE CONJUNTO DE BRITAGEM COM CAPACIDADE DE 80 M³/H - 313 KW | E103: KM | F103: =IFERROR(VLOOKUP(A103,'ANEXO I - MEM. CÁLC'!$A:$O,4,0),0) -> 948 | G103: =VLOOKUP(C103,'TABELA_CPU ADM-CANTEIRO-SERVICO'!B:K,9,0) -> 12.96 | H103: 0.2256 | I103: 15.88 | J103: 15054.24 | K103: 0.0001236980589
A104: 2.1.18 | B104: Próprio | C104: MOB 20 | D104: MOBILIZAÇÃO E DESMOBILIZAÇÃO DE CAVALO MECANICO TRACAO 4X2, PESO BRUTO TOTAL 16000 KG, CAPACIDADE MAXIMA DE TRACAO *36000* KG, DISTANCIA ENTRE EIXOS *3,56* M, POTENCIA *286* CV (INCLUI CABINE E CHASSI, NAO INCLUI SEMIRREBOQUE) | E104: KM | F104: =IFERROR(VLOOKUP(A104,'ANEXO I - MEM. CÁLC'!$A:$O,4,0),0) -> 948 | G104: =VLOOKUP(C104,'TABELA_CPU ADM-CANTEIRO-SERVICO'!B:K,9,0) -> 5.39 | H104: 0.2256 | I104: 6.6 | J104: 6256.8 | K104: 5.141103202e-05
A105: 2.1.19 | B105: Próprio | C105: MOB 71 | D105: MOBILIZAÇÃO E DESMOBILIZAÇÃO DE ESCAVADEIRA HIDRÁULICA COM MARTELO HIDRÁULICO DE 1.700 KG - 103 KW | E105: KM | F105: =IFERROR(VLOOKUP(A105,'ANEXO I - MEM. CÁLC'!$A:$O,4,0),0) -> 1896 | G105: =VLOOKUP(C105,'TABELA_CPU ADM-CANTEIRO-SERVICO'!B:K,9,0) -> 12.95 | H105: 0.2256 | I105: 15.87 | J105: 30089.52 | K105: 0.0002472403267
A106: 2.1.20 | B106: Próprio | C106: MOB 53 | D106: MOBILIZAÇÃO E DESMOBILIZAÇÃO DE ESCAVADEIRA HIDRÁULICA COM MARTELO HIDRÁULICO DE 520 KG - 75 KW | E106: KM | F106: =IFERROR(VLOOKUP(A106,'ANEXO I - MEM. CÁLC'!$A:$O,4,0),0) -> 948 | G106: =VLOOKUP(C106,'TABELA_CPU ADM-CANTEIRO-SERVICO'!B:K,9,0) -> 12.96 | H106: 0.2256 | I106: 15.88 | J106: 15054.24 | K106: 0.0001236980589
A107: 2.1.21 | B107: Próprio | C107: MOB 96 | D107: MOBILIZAÇÃO E DESMOBILIZAÇÃO DE ESCAVADEIRA HIDRÁULICA SOBRE ESTEIRA COM CAPACIDADE DE 0,4 M³ - 64 KW | E107: KM | F107: =IFERROR(VLOOKUP(A107,'ANEXO I - MEM. CÁLC'!$A:$O,4,0),0) -> 948 | G107: =VLOOKUP(C107,'TABELA_CPU ADM-CANTEIRO-SERVICO'!B:K,9,0) -> 6.47 | H107: 0.2256 | I107: 7.92 | J107: 7508.16 | K107: 6.169323843e-05
A108: 2.1.22 | B108: Próprio | C108: MOB 55 | D108: MOBILIZAÇÃO E DESMOBILIZAÇÃO DE ESCAVADEIRA HIDRÁULICA SOBRE ESTEIRAS COM CAÇAMBA COM CAPACIDADE DE 1,56 M³ - 118 KW | E108: KM | F108: =IFERROR(VLOOKUP(A108,'ANEXO I - MEM. CÁLC'!$A:$O,4,0),0) -> 1896 | G108: =VLOOKUP(C108,'TABELA_CPU ADM-CANTEIRO-SERVICO'!B:K,9,0) -> 12.96 | H108: 0.2256 | I108: 15.88 | J108: 30108.48 | K108: 0.0002473961177
A109: 2.1.23 | B109: Próprio | C109: MOB 24 | D109: MOBILIZAÇÃO E DESMOBILIZAÇÃO DE ESCAVADEIRA HIDRAULICA SOBRE ESTEIRAS, CACAMBA 0,80M3, PESO OPERACIONAL 17T, POTENCIA BRUTA 111HP | E109: KM | F109: =IFERROR(VLOOKUP(A109,'ANEXO I - MEM. CÁLC'!$A:$O,4,0),0) -> 948 | G109: =VLOOKUP(C109,'TABELA_CPU ADM-CANTEIRO-SERVICO'!B:K,9,0) -> 3.22 | H109: 0.2256 | I109: 3.94 | J109: 3735.12 | K109: 3.069082821e-05
A110: 2.1.24 | B110: Próprio | C110: MOB 12 | D110: MOBILIZAÇÃO E DESMOBILIZAÇÃO DE MOTONIVELADORA - 93 KW | E110: KM | F110: =IFERROR(VLOOKUP(A110,'ANEXO I - MEM. CÁLC'!$A:$O,4,0),0) -> 948 | G110: =VLOOKUP(C110,'TABELA_CPU ADM-CANTEIRO-SERVICO'!B:K,9,0) -> 6.48 | H110: 0.2256 | I110: 7.94 | J110: 7527.12 | K110: 6.184902943e-05
A111: 2.1.25 | B111: Próprio | C111: MOB 97 | D111: MOBILIZAÇÃO E DESMOBILIZAÇÃO DE MOTONIVELADORA 15000 KG COM ESCARIFICADOR (CAT - 140M - 185,0 HP OU EQUIVALENTE) | E111: KM | F111: =IFERROR(VLOOKUP(A111,'ANEXO I - MEM. CÁLC'!$A:$O,4,0),0) -> 948 | G111: =VLOOKUP(C111,'TABELA_CPU ADM-CANTEIRO-SERVICO'!B:K,9,0) -> 6.48 | H111: 0.2256 | I111: 7.94 | J111: 7527.12 | K111: 6.184902943e-05
A112: 2.1.26 | B112: Próprio | C112: MOB 77 | D112: MOBILIZAÇÃO E DESMOBILIZAÇÃO DE PERFURATRIZ DE SUPERFÍCIE SOBRE PNEUS COM MARTELO DE TOPO E CONTROLE REMOTO VIA RÁDIO - 60 KW | E112: KM | F112: =IFERROR(VLOOKUP(A112,'ANEXO I - MEM. CÁLC'!$A:$O,4,0),0) -> 948 | G112: =VLOOKUP(C112,'TABELA_CPU ADM-CANTEIRO-SERVICO'!B:K,9,0) -> 4.27 | H112: 0.2256 | I112: 5.23 | J112: 4958.04 | K112: 4.07393481e-05
A113: 2.1.27 | B113: Próprio | C113: MOB 75 | D113: MOBILIZAÇÃO E DESMOBILIZAÇÃO DE PERFURATRIZ HIDRÁULICA ROTOPERCUSSIVA - 123 KW | E113: KM | F113: =IFERROR(VLOOKUP(A113,'ANEXO I - MEM. CÁLC'!$A:$O,4,0),0) -> 1896 | G113: =VLOOKUP(C113,'TABELA_CPU ADM-CANTEIRO-SERVICO'!B:K,9,0) -> 12.95 | H113: 0.2256 | I113: 15.87 | J113: 30089.52 | K113: 0.0002472403267
A114: 2.1.28 | B114: Próprio | C114: MOB 56 | D114: MOBILIZAÇÃO E DESMOBILIZAÇÃO DE PERFURATRIZ SOBRE ESTEIRAS - 145 KW | E114: KM | F114: =IFERROR(VLOOKUP(A114,'ANEXO I - MEM. CÁLC'!$A:$O,4,0),0) -> 1896 | G114: =VLOOKUP(C114,'TABELA_CPU ADM-CANTEIRO-SERVICO'!B:K,9,0) -> 6.48 | H114: 0.2256 | I114: 7.94 | J114: 15054.24 | K114: 0.0001236980589
A115: 2.1.29 | B115: Próprio | C115: MOB 13 | D115: MOBILIZAÇÃO E DESMOBILIZAÇÃO DE RETROESCAVADEIRA DE PNEUS COM CAPACIDADE DE 0,76 M³ - 58 KW | E115: KM | F115: =IFERROR(VLOOKUP(A115,'ANEXO I - MEM. CÁLC'!$A:$O,4,0),0) -> 1896 | G115: =VLOOKUP(C115,'TABELA_CPU ADM-CANTEIRO-SERVICO'!B:K,9,0) -> 3.23 | H115: 0.2256 | I115: 3.95 | J115: 7489.2 | K115: 6.153744742e-05
A116: 2.1.30 | B116: Próprio | C116: MOB 29 | D116: MOBILIZAÇÃO E DESMOBILIZAÇÃO DE RETROESCAVADEIRA SOBRE RODAS COM CARREGADEIRA, TRACAO 4 X 4, POTENCIA LIQUIDA 88 HP, PESO OPERACIONAL MINIMO DE 6674 KG, CAPACIDADE DA CARREGADEIRA DE 1,00 M3 E DA RETROESCAVADEIRA MINIMA DE 0,26 M3, PROFUNDIDADE DE ESCAVACAO MAXIMA DE 4,37 M | E116: KM | F116: =IFERROR(VLOOKUP(A116,'ANEXO I - MEM. CÁLC'!$A:$O,4,0),0) -> 948 | G116: =VLOOKUP(C116,'TABELA_CPU ADM-CANTEIRO-SERVICO'!B:K,9,0) -> 3.23 | H116: 0.2256 | I116: 3.95 | J116: 3744.6 | K116: 3.076872371e-05
A117: 2.1.31 | B117: Próprio | C117: MOB 98 | D117: MOBILIZAÇÃO E DESMOBILIZAÇÃO DE ROLO COMPACTADOR DE PNEUS AUTOPROPELIDO DE 27 T - 85 KW | E117: KM | F117: =IFERROR(VLOOKUP(A117,'ANEXO I - MEM. CÁLC'!$A:$O,4,0),0) -> 948 | G117: =VLOOKUP(C117,'TABELA_CPU ADM-CANTEIRO-SERVICO'!B:K,9,0) -> 12.96 | H117: 0.2256 | I117: 15.88 | J117: 15054.24 | K117: 0.0001236980589
A118: 2.1.32 | B118: Próprio | C118: MOB 58 | D118: MOBILIZAÇÃO E DESMOBILIZAÇÃO DE ROLO COMPACTADOR LISO VIBRATÓRIO AUTOPROPELIDO POR PNEUS DE 11 T - 97 KW | E118: KM | F118: =IFERROR(VLOOKUP(A118,'ANEXO I - MEM. CÁLC'!$A:$O,4,0),0) -> 948 | G118: =VLOOKUP(C118,'TABELA_CPU ADM-CANTEIRO-SERVICO'!B:K,9,0) -> 6.48 | H118: 0.2256 | I118: 7.94 | J118: 7527.12 | K118: 6.184902943e-05
A119: 2.1.33 | B119: Próprio | C119: MOB 59 | D119: MOBILIZAÇÃO E DESMOBILIZAÇÃO DE ROLO COMPACTADOR PÉ DE CARNEIRO VIBRATÓRIO AUTOPROPELIDO POR PNEUS DE 11,6 T - 82 KW | E119: KM | F119: =IFERROR(VLOOKUP(A119,'ANEXO I - MEM. CÁLC'!$A:$O,4,0),0) -> 948 | G119: =VLOOKUP(C119,'TABELA_CPU ADM-CANTEIRO-SERVICO'!B:K,9,0) -> 6.48 | H119: 0.2256 | I119: 7.94 | J119: 7527.12 | K119: 6.184902943e-05
A120: 2.1.34 | B120: Próprio | C120: MOB 35 | D120: MOBILIZAÇÃO DE TRATOR AGRÍCOLA SOBRE PNEUS - 77 KW | E120: KM | F120: =IFERROR(VLOOKUP(A120,'ANEXO I - MEM. CÁLC'!$A:$O,4,0),0) -> 948 | G120: =VLOOKUP(C120,'TABELA_CPU ADM-CANTEIRO-SERVICO'!B:K,9,0) -> 3.23 | H120: 0.2256 | I120: 3.95 | J120: 3744.6 | K120: 3.076872371e-05
A121: 2.1.35 | B121: Próprio | C121: MOB 37 | D121: MOBILIZAÇÃO E DESMOBILIZAÇÃO DE TRATOR DE ESTEIRAS, POTENCIA DE 150 HP, PESO OPERACIONAL DE 16,7 T, COM RODA MOTRIZ ELEVADA E LAMINA COM CONTATO DE 3,18M3 | E121: KM | F121: =IFERROR(VLOOKUP(A121,'ANEXO I - MEM. CÁLC'!$A:$O,4,0),0) -> 948 | G121: =VLOOKUP(C121,'TABELA_CPU ADM-CANTEIRO-SERVICO'!B:K,9,0) -> 6.48 | H121: 0.2256 | I121: 7.94 | J121: 7527.12 | K121: 6.184902943e-05
A122: 2.1.36 | B122: Próprio | C122: MOB 76 | D122: MOBILIZAÇÃO E DESMOBILIZAÇÃO DE TRATOR SOBRE ESTEIRAS COM LÂMINA - 127 KW | E122: KM | F122: =IFERROR(VLOOKUP(A122,'ANEXO I - MEM. CÁLC'!$A:$O,4,0),0) -> 2844 | G122: =VLOOKUP(C122,'TABELA_CPU ADM-CANTEIRO-SERVICO'!B:K,9,0) -> 6.47 | H122: 0.2256 | I122: 7.92 | J122: 22524.48 | K122: 0.0001850797153
A123: 2.1.37 | B123: Próprio | C123: MOB 11 | D123: MOBILIZAÇÃO E DESMOBILIZAÇÃO DE TRATOR SOBRE ESTEIRAS COM LÂMINA - 259 KW | E123: KM | F123: =IFERROR(VLOOKUP(A123,'ANEXO I - MEM. CÁLC'!$A:$O,4,0),0) -> 948 | G123: =VLOOKUP(C123,'TABELA_CPU ADM-CANTEIRO-SERVICO'!B:K,9,0) -> 12.95 | H123: 0.2256 | I123: 15.87 | J123: 15044.76 | K123: 0.0001236201634
A124: 2.1.38 | B124: Próprio | C124: MOB 63 | D124: MOBILIZAÇÃO E DESMOBILIZAÇÃO DE TRATOR SOBRE ESTEIRAS COM LÂMINA - 97 KW | E124: KM | F124: =IFERROR(VLOOKUP(A124,'ANEXO I - MEM. CÁLC'!$A:$O,4,0),0) -> 948 | G124: =VLOOKUP(C124,'TABELA_CPU ADM-CANTEIRO-SERVICO'!B:K,9,0) -> 6.47 | H124: 0.2256 | I124: 7.92 | J124: 7508.16 | K124: 6.169323843e-05
A125: 2.1.39 | B125: Próprio | C125: MOB 99 | D125: MOBILIZAÇÃO E DESMOBILIZAÇÃO DE TRATOR SOBRE ESTEIRAS COM LÂMINA E ESCARIFICADOR - 259 KW | E125: KM | F125: =IFERROR(VLOOKUP(A125,'ANEXO I - MEM. CÁLC'!$A:$O,4,0),0) -> 948 | G125: =VLOOKUP(C125,'TABELA_CPU ADM-CANTEIRO-SERVICO'!B:K,9,0) -> 12.95 | H125: 0.2256 | I125: 15.87 | J125: 15044.76 | K125: 0.0001236201634
A126: 2.1.40 | B126: Próprio | C126: MOB 1 | D126: MOBILIZAÇÃO DE EQUIPAMENTOS DE PEQUENO PORTE COM CAMINHÃO CARROCERIA COM CAPACIDADE DE 15 T - 188 KW | E126: KM | F126: =IFERROR(VLOOKUP(A126,'ANEXO I - MEM. CÁLC'!$A:$O,4,0),0) -> 1896 | G126: =VLOOKUP(C126,'TABELA_CPU ADM-CANTEIRO-SERVICO'!B:K,9,0) -> 8.79 | H126: 0.2256 | I126: 10.77 | J126: 20419.92 | K126: 0.0001677869136
A127: 2.2 | D127: MOBILIZAÇÃO E DESMOBILIZAÇÃO DE PESSOAL | I127: 0 | J127: 0 | K127: 0
A128: 2.2.1 | B128: Próprio | C128: COT.NETS-01 | D128: PASSAGEM TERRESTRE ARACAJU ATÉ JUAZEIRO | E128: UN | F128: =IFERROR(VLOOKUP(A128,'ANEXO I - MEM. CÁLC'!$A:$O,4,0),0) -> 358 | G128: =VLOOKUP(C128,'TABELA_CPU ADM-CANTEIRO-SERVICO'!B:K,9,0) -> 155.57 | H128: =$J$4 -> 0.14015 | I128: 177.37 | J128: 63498.46 | K128: 0.0005217557474
A129: 3 | D129: INSTALAÇÃO DA OBRA | J129: =SUM(J131:J163) -> 2677856.3 | K129: 0.02200347718
A130: 3.1 | D130: SERVIÇOS PRELIMINARES | K130: 0
A131: 3.1.1 | B131: SINAPI | C131: 99059 | D131: LOCAÇÃO CONVENCIONAL DE OBRA, UTILIZANDO GABARITO DE TÁBUAS CORRIDAS PONTALETADAS A CADA 2,00M - 2 UTILIZAÇÕES. AF_03/2024 | E131: M | F131: =IFERROR(VLOOKUP(A131,'ANEXO I - MEM. CÁLC'!$A:$O,4,0),0) -> 9964.34 | G131: =VLOOKUP(C131,'TABELA_CPU ADM-CANTEIRO-SERVICO'!B:K,9,0) -> 68.85 | H131: =$J$3 -> 0.2256 | I131: 84.38 | J131: 840791 | K131: 0.006908632692
A132: 3.1.2 | B132: SINAPI | C132: 98525 | D132: LIMPEZA MECANIZADA DE CAMADA VEGETAL, VEGETAÇÃO E PEQUENAS ÁRVORES (DIÂMETRO DE TRONCO MENOR QUE 0,20 M), COM TRATOR DE ESTEIRAS. AF_03/2024 | E132: m² | F132: =IFERROR(VLOOKUP(A132,'ANEXO I - MEM. CÁLC'!$A:$O,4,0),0) -> 27466.43 | G132: =VLOOKUP(C132,'TABELA_CPU ADM-CANTEIRO-SERVICO'!B:K,9,0) -> 0.69 | H132: 0.2256 | I132: 0.84 | J132: 23071.8 | K132: 0.0001895769481
A133: 3.1.3 | B133: SINAPI | C133: 100575 | D133: REGULARIZAÇÃO DE SUPERFÍCIES COM MOTONIVELADORA. AF_11/2019 | E133: m² | F133: =IFERROR(VLOOKUP(A133,'ANEXO I - MEM. CÁLC'!$A:$O,4,0),0) -> 27466.43 | G133: =VLOOKUP(C133,'TABELA_CPU ADM-CANTEIRO-SERVICO'!B:K,9,0) -> 0.18 | H133: 0.2256 | I133: 0.22 | J133: 6042.61 | K133: 4.965107023e-05
A134: 3.1.4 | B134: SINAPI | C134: 101205 | D134: PORTÃO COM MOURÕES DE MADEIRA ROLIÇA, DIÂMETRO 11 CM, COM 5 FIOS DE ARAME FARPADO Nº 14 CLASSE 250, SEM DOBRADIÇAS - FORNECIMENTO E INSTALAÇÃO. AF_05/2020 | E134: M | F134: =IFERROR(VLOOKUP(A134,'ANEXO I - MEM. CÁLC'!$A:$O,4,0),0) -> 12 | G134: =VLOOKUP(C134,'TABELA_CPU ADM-CANTEIRO-SERVICO'!B:K,9,0) -> 45.96 | H134: 0.2256 | I134: 56.32 | J134: 675.84 | K134: 5.553259155e-06
A135: 3.1.5 | B135: SICRO3 | C135: 3713608 | D135: Cerca com 4 fios de arame farpado e mourão de madeira a cada 2,5 m e esticador a cada 50 m | E135: m | F135: =IFERROR(VLOOKUP(A135,'ANEXO I - MEM. CÁLC'!$A:$O,4,0),0) -> 401.04 | G135: =VLOOKUP(C135,'TABELA_CPU ADM-CANTEIRO-SERVICO'!B:K,9,0) -> 21.88 | H135: 0.2256 | I135: 26.81 | J135: 10751.88 | K135: 8.834631872e-05
A136: 3.1.6 | B136: SICRO3 | C136: 903804 | D136: INSTALAÇÃO DA CENTRAL DE CONCRETO COM CAPACIDADE DE 30 M³/H | E136: UN | F136: =IFERROR(VLOOKUP(A136,'ANEXO I - MEM. CÁLC'!$A:$O,4,0),0) -> 1 | G136: =VLOOKUP(C136,'TABELA_CPU ADM-CANTEIRO-SERVICO'!B:K,9,0) -> 65698.77 | H136: 0.2256 | I136: 80520.41 | J136: 80520.41 | K136: 0.0006616221354
A137: 3.1.7 | B137: SICRO3 | C137: 903807 | D137: INSTALAÇÃO DA CENTRAL DE BRITAGEM COM CAPACIDADE DE 80 M³/H | E137: UN | F137: =IFERROR(VLOOKUP(A137,'ANEXO I - MEM. CÁLC'!$A:$O,4,0),0) -> 1 | G137: =VLOOKUP(C137,'TABELA_CPU ADM-CANTEIRO-SERVICO'!B:K,9,0) -> 105309.04 | H137: 0.2256 | I137: 129066.75 | J137: 129066.75 | K137: 0.001060518926
A138: 3.2 | D138: CANTEIRO | K138: =J138/$J$1093 -> 0
A139: 3.2.1 | B139: ORSE | C139: 9416 | D139: Instalação provisória de energia elétrica, aerea, trifasica, em poste galvanizado, exclusive fornecimento do medidor | E139: un | F139: =IFERROR(VLOOKUP(A139,'ANEXO I - MEM. CÁLC'!$A:$O,4,0),0) -> 1 | G139: =VLOOKUP(C139,'TABELA_CPU ADM-CANTEIRO-SERVICO'!B:K,9,0) -> 1642.85 | H139: =$J$3 -> 0.2256 | I139: 2013.47 | J139: 2013.47 | K139: 1.654433107e-05
A140: 3.2.2 | B140: SINAPI | C140: 95637 | D140: KIT CAVALETE PARA MEDIÇÃO DE ÁGUA - ENTRADA PRINCIPAL, EM AÇO GALVANIZADO DN 32 MM (1 1/4") - FORNECIMENTO E INSTALAÇÃO (EXCLUSIVE HIDRÔMETRO). AF_03/2024 | E140: UN | F140: =IFERROR(VLOOKUP(A140,'ANEXO I - MEM. CÁLC'!$A:$O,4,0),0) -> 1 | G140: =VLOOKUP(C140,'TABELA_CPU ADM-CANTEIRO-SERVICO'!B:K,9,0) -> 529.55 | H140: 0.2256 | I140: 649.01 | J140: 649.01 | K140: 5.332801735e-06
A141: 3.2.3 | B141: SINAPI | C141: 98054 | D141: TANQUE SÉPTICO CIRCULAR, EM CONCRETO PRÉ-MOLDADO, DIÂMETRO INTERNO = 1,88 M, ALTURA INTERNA = 2,50 M, VOLUME ÚTIL: 6245,8 L (PARA 32 CONTRIBUINTES). AF_12/2020_PA | E141: UN | F141: =IFERROR(VLOOKUP(A141,'ANEXO I - MEM. CÁLC'!$A:$O,4,0),0) -> 1 | G141: =VLOOKUP(C141,'TABELA_CPU ADM-CANTEIRO-SERVICO'!B:K,9,0) -> 5141.92 | H141: 0.2256 | I141: =IFERROR(TRUNC((G141*(1+H141)),2),"") -> 6301.93 | J141: =IFERROR(TRUNC((F141*I141),2),"") -> 6301.93 | K141: 5.178185735e-05
A142: 3.2.4 | B142: SINAPI | C142: 98100 | D142: SUMIDOURO RETANGULAR, EM ALVENARIA COM BLOCOS DE CONCRETO, DIMENSÕES INTERNAS: 1,6 X 3,4 X H=3,0 M, ÁREA DE INFILTRAÇÃO: 32,9 M² (PARA 13 CONTRIBUINTES). . AF_12/2020 | E142: UN | F142: =IFERROR(VLOOKUP(A142,'ANEXO I - MEM. CÁLC'!$A:$O,4,0),0) -> 3 | G142: =VLOOKUP(C142,'TABELA_CPU ADM-CANTEIRO-SERVICO'!B:K,9,0) -> 5949.88 | H142: 0.2256 | I142: 7292.17 | J142: 21876.51 | K142: 0.000179755459
A143: 3.2.5 | B143: EMBASA | C143: 03.01.10 | D143: PLACA DE IDENTIFICACAO DA OBRA PADRAO EMBASA,INCL.FORNEC.,TRANSP. E INST. (DP0301-04) | E143: m² | F143: =IFERROR(VLOOKUP(A143,'ANEXO I - MEM. CÁLC'!$A:$O,4,0),0) -> 8 | G143: =VLOOKUP(C143,'TABELA_CPU ADM-CANTEIRO-SERVICO'!B:K,9,0) -> 322.42 | H143: 0.2256 | I143: 395.15 | J143: 3161.2 | K143: 2.597502788e-05
A144: 3.2.6 | B144: SINAPI | C144: 98458 | D144: TAPUME COM COMPENSADO DE MADEIRA. AF_03/2024 | E144: m² | F144: =IFERROR(VLOOKUP(A144,'ANEXO I - MEM. CÁLC'!$A:$O,4,0),0) -> 882.28 | G144: =VLOOKUP(C144,'TABELA_CPU ADM-CANTEIRO-SERVICO'!B:K,9,0) -> 94.01 | H144: 0.2256 | I144: 115.21 | J144: 101647.47 | K144: 0.0008352194948
A145: 3.2.7 | B145: EMBASA | C145: 55.04.09 | D145: GUARITA | E145: m² | F145: =IFERROR(VLOOKUP(A145,'ANEXO I - MEM. CÁLC'!$A:$O,4,0),0) -> 6.1 | G145: =VLOOKUP(C145,'TABELA_CPU ADM-CANTEIRO-SERVICO'!B:K,9,0) -> 354.88 | H145: 0.2256 | I145: 434.94 | J145: 2653.13 | K145: 2.180030549e-05
A146: 3.2.8 | B146: SINAPI | C146: 93207 | D146: EXECUÇÃO DE ESCRITÓRIO EM CANTEIRO DE OBRA EM CHAPA DE MADEIRA COMPENSADA, NÃO INCLUSO MOBILIÁRIO E EQUIPAMENTOS. AF_02/2016 | E146: M² | F146: =IFERROR(VLOOKUP(A146,'ANEXO I - MEM. CÁLC'!$A:$O,4,0),0) -> 154.02 | G146: =VLOOKUP(C146,'TABELA_CPU ADM-CANTEIRO-SERVICO'!B:K,9,0) -> 1030.02 | H146: 0.2256 | I146: 1262.39 | J146: 194433.3 | K146: 0.001597624443
A147: 3.2.9 | B147: EMBASA | C147: 55.04.15 | D147: COZINHA E REFEITORIO | E147: m² | F147: =IFERROR(VLOOKUP(A147,'ANEXO I - MEM. CÁLC'!$A:$O,4,0),0) -> 257.15 | G147: =VLOOKUP(C147,'TABELA_CPU ADM-CANTEIRO-SERVICO'!B:K,9,0) -> 423.24 | H147: 0.2256 | I147: 518.72 | J147: 133388.84 | K147: 0.001096032784
A148: 3.2.10 | B148: SEINFRA | C148: C0043 | D148: ALOJAMENTO | E148: m² | F148: =IFERROR(VLOOKUP(A148,'ANEXO I - MEM. CÁLC'!$A:$O,4,0),0) -> 468.06 | G148: =VLOOKUP(C148,'TABELA_CPU ADM-CANTEIRO-SERVICO'!B:K,9,0) -> 375.57 | H148: 0.2256 | I148: 460.29 | J148: 215443.33 | K148: 0.001770260187
A149: 3.2.11 | B149: SINAPI | C149: 93212 | D149: EXECUÇÃO DE SANITÁRIO E VESTIÁRIO EM CANTEIRO DE OBRA EM CHAPA DE MADEIRA COMPENSADA, NÃO INCLUSO MOBILIÁRIO. AF_02/2016 | E149: M² | F149: =IFERROR(VLOOKUP(A149,'ANEXO I - MEM. CÁLC'!$A:$O,4,0),0) -> 231.77 | G149: =VLOOKUP(C149,'TABELA_CPU ADM-CANTEIRO-SERVICO'!B:K,9,0) -> 965.41 | H149: 0.2256 | I149: 1183.2 | J149: 274230.26 | K149: 0.002253302116
A150: 3.2.12 | B150: SINAPI | C150: 93208 | D150: EXECUÇÃO DE ALMOXARIFADO EM CANTEIRO DE OBRA EM CHAPA DE MADEIRA COMPENSADA, INCLUSO PRATELEIRAS. AF_02/2016 | E150: M² | F150: =IFERROR(VLOOKUP(A150,'ANEXO I - MEM. CÁLC'!$A:$O,4,0),0) -> 104.88 | G150: =VLOOKUP(C150,'TABELA_CPU ADM-CANTEIRO-SERVICO'!B:K,9,0) -> 831.45 | H150: 0.2256 | I150: 1019.02 | J150: 106874.81 | K150: 0.000878171634
A151: 3.2.13 | B151: EMBASA | C151: 55.04.08 | D151: AMBULATORIO | E151: m² | F151: =IFERROR(VLOOKUP(A151,'ANEXO I - MEM. CÁLC'!$A:$O,4,0),0) -> 83 | G151: =VLOOKUP(C151,'TABELA_CPU ADM-CANTEIRO-SERVICO'!B:K,9,0) -> 499.15 | H151: 0.2256 | I151: 611.75 | J151: 50775.25 | K151: 0.0004172113546
A152: 3.2.14 | B152: EMBASA | C152: 55.04.14 | D152: CANTINA | E152: m² | F152: =IFERROR(VLOOKUP(A152,'ANEXO I - MEM. CÁLC'!$A:$O,4,0),0) -> 135.75 | G152: =VLOOKUP(C152,'TABELA_CPU ADM-CANTEIRO-SERVICO'!B:K,9,0) -> 420.58 | H152: 0.2256 | I152: 515.46 | J152: 69973.69 | K152: 0.0005749615806
A153: 3.2.15 | B153: EMBASA | C153: 55.04.23 | D153: OFICINA MECANICA | E153: m² | F153: =IFERROR(VLOOKUP(A153,'ANEXO I - MEM. CÁLC'!$A:$O,4,0),0) -> 215.14 | G153: =VLOOKUP(C153,'TABELA_CPU ADM-CANTEIRO-SERVICO'!B:K,9,0) -> 312.84 | H153: 0.2256 | I153: 383.41 | J153: 82486.82 | K153: 0.0006777797827
A154: 3.2.16 | B154: EMBASA | C154: 55.04.19 | D154: DEPOSITO DE CIMENTO | E154: m² | F154: =IFERROR(VLOOKUP(A154,'ANEXO I - MEM. CÁLC'!$A:$O,4,0),0) -> 111.45 | G154: =VLOOKUP(C154,'TABELA_CPU ADM-CANTEIRO-SERVICO'!B:K,9,0) -> 535.2 | H154: 0.2256 | I154: 655.94 | J154: 73104.51 | K154: 0.0006006869813
A155: 3.2.17 | B155: EMBASA | C155: 55.04.17 | D155: CENTRAL DE FORMA | E155: m² | F155: =IFERROR(VLOOKUP(A155,'ANEXO I - MEM. CÁLC'!$A:$O,4,0),0) -> 111.3 | G155: =VLOOKUP(C155,'TABELA_CPU ADM-CANTEIRO-SERVICO'!B:K,9,0) -> 186.98 | H155: 0.2256 | I155: 229.16 | J155: 25505.5 | K155: 0.0002095742356
A156: 3.2.18 | B156: EMBASA | C156: 55.04.18 | D156: CENTRAL DE ARMACAO | E156: m² | F156: =IFERROR(VLOOKUP(A156,'ANEXO I - MEM. CÁLC'!$A:$O,4,0),0) -> 84.79 | G156: =VLOOKUP(C156,'TABELA_CPU ADM-CANTEIRO-SERVICO'!B:K,9,0) -> 186.98 | H156: 0.2256 | I156: 229.16 | J156: 19430.47 | K156: 0.0001596567759
A157: 3.2.19 | B157: EMBASA | C157: 55.04.24 | D157: POSTO P/COMBUSTIVEL E LUBRIFICANTE | E157: m² | F157: =IFERROR(VLOOKUP(A157,'ANEXO I - MEM. CÁLC'!$A:$O,4,0),0) -> 7.69 | G157: =VLOOKUP(C157,'TABELA_CPU ADM-CANTEIRO-SERVICO'!B:K,9,0) -> 312.84 | H157: 0.2256 | I157: 383.41 | J157: 2948.42 | K157: 2.422665181e-05
A158: 3.2.20 | B158: EMBASA | C158: 55.04.25 | D158: POSTO P/LAVAGEM DE VEICULOS E EQUIPAMENTOS | E158: m² | F158: =IFERROR(VLOOKUP(A158,'ANEXO I - MEM. CÁLC'!$A:$O,4,0),0) -> 59.9 | G158: =VLOOKUP(C158,'TABELA_CPU ADM-CANTEIRO-SERVICO'!B:K,9,0) -> 225.38 | H158: 0.2256 | I158: 276.22 | J158: 16545.57 | K158: 0.0001359520568
A159: 3.2.21 | B159: EMBASA | C159: 55.04.21 | D159: LABORATORIOS | E159: m² | F159: =IFERROR(VLOOKUP(A159,'ANEXO I - MEM. CÁLC'!$A:$O,4,0),0) -> 22.34 | G159: =VLOOKUP(C159,'TABELA_CPU ADM-CANTEIRO-SERVICO'!B:K,9,0) -> 499.15 | H159: 0.2256 | I159: 611.75 | J159: 13666.49 | K159: 0.0001122951597
A160: 3.2.22 | B160: EMOP | C160: 17.040.0021-0 | D160: MARCACAO DE QUADRA DE ESPORTE OU VAGA DE GARAGEM COM TINTA A CRILICA PROPRIA PARA PINTURA DE PISOS,COM UTILIZACAO DE SELA DOR E SOLVENTE PROPRIO E FITA CREPE COMO LIMITADOR DE LINHAS ,MEDIDA PELA AREA REAL DE PINTURA | E160: m² | F160: =IFERROR(VLOOKUP(A160,'ANEXO I - MEM. CÁLC'!$A:$O,4,0),0) -> 451.01 | G160: =VLOOKUP(C160,'TABELA_CPU ADM-CANTEIRO-SERVICO'!B:K,9,0) -> 76.56 | H160: 0.2256 | I160: 93.83 | J160: 42318.26 | K160: 0.0003477217459
A161: 3.2.23 | B161: COMPESA | C161: 01.08.04U | D161: EXECUÇÃO DE RESERVATÓRIO ELEVADO DE ÁGUA (3000 LITROS) EM CANTEIRO DE OBRA, APOIADO EM ESTRUTURA DE MADEIRA (FORNECIMENTO E INSTALAÇÃO). (EM PROCESSO DE DESCONTINUAÇÃO). | E161: UN | F161: =IFERROR(VLOOKUP(A161,'ANEXO I - MEM. CÁLC'!$A:$O,4,0),0) -> 7 | G161: =VLOOKUP(C161,'TABELA_CPU ADM-CANTEIRO-SERVICO'!B:K,9,0) -> 2572.84 | H161: 0.2256 | I161: 3153.27 | J161: 22072.89 | K161: 0.0001813690792
A162: 3.2.24 | B162: COMPESA | C162: 01.08.42U | D162: CANTEIRO ITINERANTE COMPOSTO DE TOLDO, CONJUNTO DE MESA E CADEIRAS E BANHEIRO QUÍMICO COM LIMPEZA DIÁRIA INCLUSO COLETA E DESTINAÇÃO FINAL DE EFLUENTES | E162: MÊS | F162: =IFERROR(VLOOKUP(A162,'ANEXO I - MEM. CÁLC'!$A:$O,4,0),0) -> 36 | G162: =VLOOKUP(C162,'TABELA_CPU ADM-CANTEIRO-SERVICO'!B:K,9,0) -> 1924.35 | H162: 0.2256 | I162: 2358.48 | J162: 84905.28 | K162: 0.0006976518458
A163: 3.2.25 | B163: EMBASA | C163: F020000013 | D163: LOCAÇÃO DE BANHEIRO QUIMICO COM 3 LIMPEZAS SEMANAIS | E163: MES | F163: =IFERROR(VLOOKUP(A163,'ANEXO I - MEM. CÁLC'!$A:$O,4,0),0) -> 42 | G163: =VLOOKUP(C163,'TABELA_CPU ADM-CANTEIRO-SERVICO'!B:K,9,0) -> 428.72 | H163: =$J$4 -> 0.14015 | I163: 488.8 | J163: 20529.6 | K163: 0.000168688135
A164: 4 | D164: ENSECADEIRA PROVISÓRIA | J164: =J165+J169+J176+J178 -> 1219600.63 | K164: 0.01002124521
A165: 4.1 | D165: ENROCAMENTO DE PEDRA RACHÃO LANÇADA | J165: =SUM(J166:J168) -> 900984.07 | K165: 0.007403228627
A166: 4.1.1 | B166: SICRO3 | C166: 5914657 | D166: Carga, manobra e descarga de blocos de rocha em caminhão basculante de 8 m³ - carga com retroescavadeira de 0,29 m³ e descarga livre | E166: t | F166: =IFERROR(VLOOKUP(A166,'ANEXO I - MEM. CÁLC'!$A:$O,4,0),0) -> 31466.96578 | G166: =VLOOKUP(C166,'TABELA_CPU ADM-CANTEIRO-SERVICO'!B:K,9,0) -> 17.6 | H166: =$J$3 -> 0.2256 | I166: 21.57 | J166: 678742.45 | K166: 0.00557710808
A167: 4.1.2 | B167: SICRO3 | C167: 5914346 | D167: Transporte de material de 3ª categoria com caminhão basculante de 8 m³ para rocha - rodovia em leito natural | E167: tkm | F167: =IFERROR(VLOOKUP(A167,'ANEXO I - MEM. CÁLC'!$A:$O,4,0),0) -> 99120.94222 | G167: =VLOOKUP(C167,'TABELA_CPU ADM-CANTEIRO-SERVICO'!B:K,9,0) -> 1.68 | H167: 0.2256 | I167: 2.05 | J167: 203197.93 | K167: 0.001669641875
A168: 4.1.3 | B168: SINAPI | C168: 100574 | D168: ESPALHAMENTO DE MATERIAL COM TRATOR DE ESTEIRAS. AF_11/2019 | E168: m³ | F168: =IFERROR(VLOOKUP(A168,'ANEXO I - MEM. CÁLC'!$A:$O,4,0),0) -> 9970.52 | G168: =VLOOKUP(C168,'TABELA_CPU ADM-CANTEIRO-SERVICO'!B:K,9,0) -> 1.56 | H168: 0.2256 | I168: 1.91 | J168: 19043.69 | K168: 0.0001564786722
A169: 4.2 | D169: BRITA GRADUADA LANÇADA | J169: =SUM(J170:J175) -> 266485.29 | K169: 0.002189663051
A170: 4.2.1 | B170: SICRO3 | C170: 5914657 | D170: Carga, manobra e descarga de blocos de rocha em caminhão basculante de 8 m³ - carga com retroescavadeira de 0,29 m³ e descarga livre | E170: t | F170: =IFERROR(VLOOKUP(A170,'ANEXO I - MEM. CÁLC'!$A:$O,4,0),0) -> 3431.998074 | G170: =VLOOKUP(C170,'TABELA_CPU ADM-CANTEIRO-SERVICO'!B:K,9,0) -> 17.6 | H170: 0.2256 | I170: 21.57 | J170: 74028.19 | K170: 0.0006082766984
A171: 4.2.2 | B171: SICRO3 | C171: 5914346 | D171: Transporte de material de 3ª categoria com caminhão basculante de 8 m³ para rocha - rodovia em leito natural | E171: tkm | F171: =IFERROR(VLOOKUP(A171,'ANEXO I - MEM. CÁLC'!$A:$O,4,0),0) -> 10810.79393 | G171: =VLOOKUP(C171,'TABELA_CPU ADM-CANTEIRO-SERVICO'!B:K,9,0) -> 1.68 | H171: 0.2256 | I171: 2.05 | J171: 22162.12 | K171: 0.0001821022665
A172: 4.2.3 | B172: SICRO3 | C172: 4816012 | D172: Brita produzida em central de britagem de 80 m³/h | E172: m³ | F172: =IFERROR(VLOOKUP(A172,'ANEXO I - MEM. CÁLC'!$A:$O,4,0),0) -> 2289.372 | G172: =VLOOKUP(C172,'TABELA_CPU ADM-CANTEIRO-SERVICO'!B:K,9,0) -> 53.94 | H172: 0.2256 | I172: 66.1 | J172: 151327.48 | K172: 0.001243431454
A173: 4.2.4 | B173: SICRO3 | C173: 5914351 | D173: Carga, manobra e descarga de agregados ou solos em caminhão basculante de 14 m³ - carga com carregadeira de 3,40 m³ e descarga livre | E173: t | F173: =IFERROR(VLOOKUP(A173,'ANEXO I - MEM. CÁLC'!$A:$O,4,0),0) -> 3434.074635 | G173: =VLOOKUP(C173,'TABELA_CPU ADM-CANTEIRO-SERVICO'!B:K,9,0) -> 2.61 | H173: 0.2256 | I173: 3.19 | J173: 10954.69 | K173: 9.001277305e-05
A174: 4.2.5 | B174: SICRO3 | C174: 5901639 | D174: Transporte com caminhão basculante com caçamba estanque com capacidade de 14 m³ - rodovia em leito natural | E174: tkm | F174: =IFERROR(VLOOKUP(A174,'ANEXO I - MEM. CÁLC'!$A:$O,4,0),0) -> 3434.074635 | G174: =VLOOKUP(C174,'TABELA_CPU ADM-CANTEIRO-SERVICO'!B:K,9,0) -> 0.87 | H174: 0.2256 | I174: 1.06 | J174: 3640.11 | K174: 2.991014764e-05
A175: 4.2.6 | B175: SINAPI | C175: 100574 | D175: ESPALHAMENTO DE MATERIAL COM TRATOR DE ESTEIRAS. AF_11/2019 | E175: m³ | F175: =IFERROR(VLOOKUP(A175,'ANEXO I - MEM. CÁLC'!$A:$O,4,0),0) -> 2289.372 | G175: =VLOOKUP(C175,'TABELA_CPU ADM-CANTEIRO-SERVICO'!B:K,9,0) -> 1.56 | H175: 0.2256 | I175: 1.91 | J175: 4372.7 | K175: 3.592971163e-05
A176: 4.3 | D176: ATERRO LANÇADO NO SELO DA ENSECADEIRA | J176: =SUM(J177) -> 47929.99 | K176: 0.0003938323505
A177: 4.3.1 | B177: ORSE | C177: 2531 | D177: Aterro de áreas sem aquisição de material, com espalhamento mecânico, sem compactação e sem transporte | E177: m³ | F177: =IFERROR(VLOOKUP(A177,'ANEXO I - MEM. CÁLC'!$A:$O,4,0),0) -> 4657.92 | G177: =VLOOKUP(C177,'TABELA_CPU ADM-CANTEIRO-SERVICO'!B:K,9,0) -> 8.4 | H177: 0.2256 | I177: 10.29 | J177: 47929.99 | K177: 0.0003938323505
A178: 4.4 | D178: ESGOTAMENTO | F178: =IFERROR(VLOOKUP(A178,'ANEXO I - MEM. CÁLC'!$A:$O,4,0),0) -> 0 | I178: 0 | J178: =SUM(J179) -> 4201.28 | K178: 3.452118345e-05
A179: 4.4.1 | B179: SICRO3 | C179: 2003864 | D179: Esgotamento de água com bomba submersa | E179: h | F179: =IFERROR(VLOOKUP(A179,'ANEXO I - MEM. CÁLC'!$A:$O,4,0),0) -> 263.9 | G179: =VLOOKUP(C179,'TABELA_CPU ADM-CANTEIRO-SERVICO'!B:K,9,0) -> 12.99 | H179: 0.2256 | I179: 15.92 | J179: 4201.28 | K179: 3.452118345e-05
A180: 5 | D180: ESTRUTURA DE TOMADA D'ÁGUA DO RC-500 | J180: =J181+J186+J194+J258+J451+J458 -> 4303174.77 | K180: 0.03535843497
A181: 5.1 | D181: SEVIÇOS PRELIMINARES | J181: =SUM(J182:J185) -> 12061.34 | K181: 9.910592267e-05
A182: 5.1.1 | B182: SICRO3 | C182: 5501700 | D182: Desmatamento, destocamento e limpeza de área com árvores de diâmetro até 0,15 m | E182: m² | F182: =IFERROR(VLOOKUP(A182,'ANEXO I - MEM. CÁLC'!$A:$O,4,0),0) -> 4114.542 | G182: =VLOOKUP(C182,'TABELA_CPU ADM-CANTEIRO-SERVICO'!B:K,9,0) -> 0.53 | H182: =$J$3 -> 0.2256 | I182: 0.64 | J182: 2633.3 | K182: 2.163736585e-05
A183: 5.1.2 | B183: SINAPI | C183: 100983 | D183: CARGA, MANOBRA E DESCARGA DE ENTULHO EM CAMINHÃO BASCULANTE 14 M³ - CARGA COM ESCAVADEIRA HIDRÁULICA (CAÇAMBA DE 0,80 M³ / 111 HP) E DESCARGA LIVRE (UNIDADE: M3). AF_07/2020 | E183: m³ | F183: =IFERROR(VLOOKUP(A183,'ANEXO I - MEM. CÁLC'!$A:$O,4,0),0) -> 617.1813 | G183: =VLOOKUP(C183,'TABELA_CPU ADM-CANTEIRO-SERVICO'!B:K,9,0) -> 9.12 | H183: 0.2256 | I183: 11.17 | J183: 6893.91 | K183: 5.664605354e-05
A184: 5.1.3 | B184: SICRO3 | C184: 5901639 | D184: Transporte com caminhão basculante com caçamba estanque com capacidade de 14 m³ - rodovia em leito natural | E184: tkm | F184: =IFERROR(VLOOKUP(A184,'ANEXO I - MEM. CÁLC'!$A:$O,4,0),0) -> 987.49008 | G184: =VLOOKUP(C184,'TABELA_CPU ADM-CANTEIRO-SERVICO'!B:K,9,0) -> 0.87 | H184: 0.2256 | I184: 1.06 | J184: 1046.73 | K184: 8.60079746e-06
A185: 5.1.4 | B185: SICRO3 | C185: 4413942 | D185: Espalhamento de material em bota-fora | E185: m³ | F185: =IFERROR(VLOOKUP(A185,'ANEXO I - MEM. CÁLC'!$A:$O,4,0),0) -> 617.1813 | G185: =VLOOKUP(C185,'TABELA_CPU ADM-CANTEIRO-SERVICO'!B:K,9,0) -> 1.97 | H185: 0.2256 | I185: 2.41 | J185: 1487.4 | K185: 1.222170583e-05
A186: 5.2 | D186: MOVIMENTO DE TERRA | J186: =SUM(J187:J193) -> 74524.22 | K186: 0.0006123524902
A187: 5.2.1 | D187: CORTE | K187: 0
A188: 5.2.1.1 | B188: SICRO3 | C188: 5502113 | D188: Escavação, carga e transporte de material de 1ª categoria - DMT de 800 a 1.000 m - caminho de serviço em leito natural - com escavadeira e caminhão basculante de 14 m³ | E188: m³ | F188: =IFERROR(VLOOKUP(A188,'ANEXO I - MEM. CÁLC'!$A:$O,4,0),0) -> 3811.29 | G188: =VLOOKUP(C188,'TABELA_CPU ADM-CANTEIRO-SERVICO'!B:K,9,0) -> 7.46 | H188: =$J$3 -> 0.2256 | I188: 9.14 | J188: 34835.19 | K188: 0.0002862346677
A189: 5.2.1.2 | B189: SICRO3 | C189: 5502589 | D189: Escavação, carga e transporte de material de 2ª categoria - DMT de 800 a 1.000 m - caminho de serviço em leito natural - com escavadeira e caminhão basculante de 14 m³ | E189: m³ | F189: =IFERROR(VLOOKUP(A189,'ANEXO I - MEM. CÁLC'!$A:$O,4,0),0) -> 627.505 | G189: =VLOOKUP(C189,'TABELA_CPU ADM-CANTEIRO-SERVICO'!B:K,9,0) -> 10.24 | H189: 0.2256 | I189: 12.55 | J189: 7875.18 | K189: 6.470897762e-05
A190: 5.2.2 | D190: ATERRO | F190: =IFERROR(VLOOKUP(A190,'ANEXO I - MEM. CÁLC'!$A:$O,4,0),0) -> 0 | I190: 0 | J190: 0 | K190: 0
A191: 5.2.2.1 | B191: SICRO3 | C191: 4016096 | D191: Escavação e carga de material de jazida com escavadeira hidráulica de 1,56 m³ | E191: m³ | F191: =IFERROR(VLOOKUP(A191,'ANEXO I - MEM. CÁLC'!$A:$O,4,0),0) -> 485.993 | G191: =VLOOKUP(C191,'TABELA_CPU ADM-CANTEIRO-SERVICO'!B:K,9,0) -> 1.36 | H191: =$J$3 -> 0.2256 | I191: 1.66 | J191: 806.74 | K191: 6.628841576e-06
A192: 5.2.2.2 | B192: SICRO3 | C192: 5901639 | D192: Transporte com caminhão basculante com caçamba estanque com capacidade de 14 m³ - rodovia em leito natural | E192: tkm | F192: =IFERROR(VLOOKUP(A192,'ANEXO I - MEM. CÁLC'!$A:$O,4,0),0) -> 911.2376643 | G192: =VLOOKUP(C192,'TABELA_CPU ADM-CANTEIRO-SERVICO'!B:K,9,0) -> 0.87 | H192: 0.2256 | I192: 1.06 | J192: 965.91 | K192: 7.936713646e-06
A193: 5.2.2.3 | B193: SICRO3 | C193: 5502978 | D193: Compactação de aterros a 100% do Proctor normal | E193: m³ | F193: =IFERROR(VLOOKUP(A193,'ANEXO I - MEM. CÁLC'!$A:$O,4,0),0) -> 4924.788 | G193: =VLOOKUP(C193,'TABELA_CPU ADM-CANTEIRO-SERVICO'!B:K,9,0) -> 4.98 | H193: 0.2256 | I193: 6.1 | J193: 30041.2 | K193: 0.0002468432897
A194: 5.3 | D194: ESTRUTURAS EM CONCRETO | J194: =SUM(J195:J257) -> 1328649.47 | K194: 0.01091728047
A195: 5.3.1 | D195: TRANSIÇÃO MONTANTE | K195: 0
A196: 5.3.1.1 | B196: SICRO3 | C196: 1106382 | D196: Concreto para bombeamento fck = 35 MPa - confecção em central dosadora de 30 m³/h - areia extraída e brita produzida | E196: m³ | F196: =IFERROR(VLOOKUP(A196,'ANEXO I - MEM. CÁLC'!$A:$O,4,0),0) -> 66.14 | G196: =VLOOKUP(C196,'TABELA_CPU ADM-CANTEIRO-SERVICO'!B:K,9,0) -> 373.41 | H196: =$J$3 -> 0.2256 | I196: 457.65 | J196: 30268.97 | K196: 0.000248714836
A197: 5.3.1.2 | B197: SICRO3 | C197: 1106058 | D197: Concreto magro - confecção em betoneira e lançamento manual - areia extraída e brita produzida | E197: m³ | F197: =IFERROR(VLOOKUP(A197,'ANEXO I - MEM. CÁLC'!$A:$O,4,0),0) -> 5.25 | G197: =VLOOKUP(C197,'TABELA_CPU ADM-CANTEIRO-SERVICO'!B:K,9,0) -> 321.32 | H197: 0.2256 | I197: 393.8 | J197: 2067.45 | K197: 1.69878753e-05
A198: 5.3.1.3 | B198: SICRO3 | C198: 5914657 | D198: Carga, manobra e descarga de blocos de rocha em caminhão basculante de 8 m³ - carga com retroescavadeira de 0,29 m³ e descarga livre | E198: t | F198: =IFERROR(VLOOKUP(A198,'ANEXO I - MEM. CÁLC'!$A:$O,4,0),0) -> 42.18781378 | G198: =VLOOKUP(C198,'TABELA_CPU ADM-CANTEIRO-SERVICO'!B:K,9,0) -> 17.6 | H198: 0.2256 | I198: 21.57 | J198: 909.99 | K198: 7.47722878e-06
A199: 5.3.1.4 | B199: SICRO3 | C199: 5914346 | D199: Transporte de material de 3ª categoria com caminhão basculante de 8 m³ para rocha - rodovia em leito natural | E199: tkm | F199: =IFERROR(VLOOKUP(A199,'ANEXO I - MEM. CÁLC'!$A:$O,4,0),0) -> 558.1447763 | G199: =VLOOKUP(C199,'TABELA_CPU ADM-CANTEIRO-SERVICO'!B:K,9,0) -> 1.68 | H199: 0.2256 | I199: 2.05 | J199: 1144.19 | K199: 9.401609246e-06
A200: 5.3.1.5 | B200: SICRO3 | C200: 5914351 | D200: Carga, manobra e descarga de agregados ou solos em caminhão basculante de 14 m³ - carga com carregadeira de 3,40 m³ e descarga livre | E200: t | F200: =IFERROR(VLOOKUP(A200,'ANEXO I - MEM. CÁLC'!$A:$O,4,0),0) -> 133.1246498 | G200: =VLOOKUP(C200,'TABELA_CPU ADM-CANTEIRO-SERVICO'!B:K,9,0) -> 2.61 | H200: 0.2256 | I200: 3.19 | J200: 424.66 | K200: 3.489356997e-06
A201: 5.3.1.6 | B201: SICRO3 | C201: 5901639 | D201: Transporte com caminhão basculante com caçamba estanque com capacidade de 14 m³ - rodovia em leito natural | E201: tkm | F201: =IFERROR(VLOOKUP(A201,'ANEXO I - MEM. CÁLC'!$A:$O,4,0),0) -> 782.6717626 | G201: =VLOOKUP(C201,'TABELA_CPU ADM-CANTEIRO-SERVICO'!B:K,9,0) -> 0.87 | H201: 0.2256 | I201: 1.06 | J201: 829.63 | K201: 6.816924706e-06
... 891 more rows

Sheet 3 - CRONOGRAMA
A1: ='2 - ORÇAMENTO'!A1 -> MINISTÉRIO DA INTEGRAÇÃO E DO DESENVOLVIMENTO REGIONAL – MIDR COMPANHIA DE DESENVOLVIMENTO DOS VALES DO SÃO FRANCISCO E DO PARAÍBA - CODEVASF
A2: CRONOGRAMA
A3: OBJETO: | B3: ='2 - ORÇAMENTO'!B3 -> ORÇAMENTO PROJETO BÁSICO DO CANAL DO SERTÃO BAIANO (CSB) - ETAPA 2A: PROJETO BÁSICO DO CANAL PRINCIPAL DO PIS - CANAL CP-500/2 | C3: BDI: SERV. | D3: ='2 - ORÇAMENTO'!J3 -> 0.2256
A4: LOCALIDADE: | B4: ='2 - ORÇAMENTO'!B4 -> ESTADO DA BAHIA | C4: BDI: MAT. EQUIP. | D4: ='2 - ORÇAMENTO'!J4 -> 0.14015
A5: TAB. DE REFER. | B5: ='2 - ORÇAMENTO'!B5 -> SICRO3 BA 04/2024, SINAPI BA 07/2024, DNIT 04/2024, AGESUL 06/2024, AGETOP 04/2024, COMPESA 07/2023, CPOS 06/2024, EMBASA 05/2024, EMOP 07/2024, FDE 04/2024, IOPES 06/2024, ORSE 06/2024, SBC 08/2024, SEDOP 05/2024, SEINFRA 028, SETOP 04/2024, SIURB 01/2024, SUDECAP 04/2024 | C5: DATA BASE: | D5: ='2 - ORÇAMENTO'!J6 -> 2024-09-01
A6: ITEM | B6: ETAPA | D6: TOTAL | E6: 1º MÊS | F6: 2º MÊS | G6: 3º MÊS | H6: 4º MÊS | I6: 5º MÊS | J6: 6º MÊS | K6: 7º MÊS | L6: 8º MÊS | M6: 9º MÊS | N6: 10º MÊS | O6: 11º MÊS | P6: 12º MÊS | Q6: 13º MÊS | R6: 14º MÊS | S6: 15º MÊS | T6: 16º MÊS | U6: 17º MÊS | V6: 18º MÊS | W6: 19º MÊS | X6: 20º MÊS | Y6: TOTAL GERAL
A8: 1 | B8: =VLOOKUP(A8,'2 - ORÇAMENTO'!A:J,4,0) -> ADMINISTRAÇÃO DE OBRAS | D8: =VLOOKUP(A8,'2 - ORÇAMENTO'!A:J,10,0) -> 9949397.04 | E8: =$D$8*E9 -> 198141.4879 | F8: =$D$8*F9 -> 344634.3764 | G8: =$D$8*G9 -> 506330.0717 | H8: 517611.3898 | I8: 528585.1851 | J8: 491875.2585 | K8: 491875.2585 | L8: 480593.9405 | M8: 552659.5795 | N8: 675758.5598 | O8: 686766.3433 | P8: 646317.3768 | Q8: 591312.4474 | R8: 578395.7107 | S8: 517795.252 | T8: 526972.7337 | U8: 533852.4523 | V8: 524674.9707 | W8: 490954.677 | X8: 64289.96829 | Y8: =SUM(E8:X8) -> 9949397.04
D9: =SUM(E9:X9) -> 1 | E9: 0.01991492421 | F9: 0.03463871982 | G9: 0.05089052831 | H9: 0.05202439783 | I9: 0.05312735867 | J9: 0.04943769522 | K9: 0.04943769522 | L9: 0.0483038257 | M9: 0.05554704242 | N9: 0.067919549 | O9: 0.06902592595 | P9: 0.06496045682 | Q9: 0.0594319882 | R9: 0.05813374503 | S9: 0.05204287757 | T9: 0.05296529343 | U9: 0.05365676434 | V9: 0.05273434848 | W9: 0.04934516886 | X9: 0.006461694918 | Y9: =SUM(E9:X9) -> 1
A11: 2 | B11: =VLOOKUP(A11,'2 - ORÇAMENTO'!A:J,4,0) -> MOBILIZAÇÃO E DESMOBILIZAÇÃO | D11: =VLOOKUP(A11,'2 - ORÇAMENTO'!A:J,10,0) -> 625434.94 | E11: =$D$11*E12 -> 312717.47 | X11: =$D$11*X12 -> 312717.47 | Y11: =SUM(E11:X11) -> 625434.94
D12: =SUM(E12:X12) -> 1 | E12: 0.5 | X12: 0.5 | Y12: =SUM(E12:X12) -> 1
A14: 3 | B14: =VLOOKUP(A14,'2 - ORÇAMENTO'!A:J,4,0) -> INSTALAÇÃO DA OBRA | D14: =VLOOKUP(A14,'2 - ORÇAMENTO'!A:J,10,0) -> 2677856.3 | E14: =$D$14*E15 -> 1874499.41 | F14: 26778.563 | G14: 26778.563 | H14: 26778.563 | I14: 26778.563 | J14: 26778.563 | K14: 26778.563 | L14: 26778.563 | M14: 26778.563 | N14: 26778.563 | O14: 26778.563 | P14: 26778.563 | Q14: 26778.563 | R14: 26778.563 | S14: 26778.563 | T14: 26778.563 | U14: 26778.563 | V14: 26778.563 | W14: 26778.563 | X14: =$D$14*X15 -> 321342.756 | Y14: =SUM(E14:X14) -> 2677856.3
D15: =SUM(E15:X15) -> 1 | E15: 0.7 | F15: 0.01 | G15: 0.01 | H15: 0.01 | I15: 0.01 | J15: 0.01 | K15: 0.01 | L15: 0.01 | M15: 0.01 | N15: 0.01 | O15: 0.01 | P15: 0.01 | Q15: 0.01 | R15: 0.01 | S15: 0.01 | T15: 0.01 | U15: 0.01 | V15: 0.01 | W15: 0.01 | X15: 0.12 | Y15: =SUM(E15:X15) -> 1
A18: 4 | B18: =VLOOKUP(A18,'2 - ORÇAMENTO'!A:J,4,0) -> ENSECADEIRA PROVISÓRIA | D18: =VLOOKUP(A18,'2 - ORÇAMENTO'!A:J,10,0) -> 1219600.63 | G18: =$D$18*G19 -> 121960.063 | H18: 243920.126 | I18: 243920.126 | J18: =$D$18*J19 -> 243920.126 | K18: =$D$18*K19 -> 243920.126 | L18: 121960.063 | Y18: =SUM(E18:X18) -> 1219600.63
D19: =SUM(E19:X19) -> 1 | G19: 0.1 | H19: 0.2 | I19: 0.2 | J19: 0.2 | K19: 0.2 | L19: 0.1 | Y19: =SUM(E19:X19) -> 1
A21: 5 | B21: =VLOOKUP(A21,'2 - ORÇAMENTO'!A:J,4,0) -> ESTRUTURA DE TOMADA D'ÁGUA DO RC-500 | D21: =VLOOKUP(A21,'2 - ORÇAMENTO'!A:J,10,0) -> 4303174.77 | M21: =$D$21*M22 -> 430317.477 | N21: 860634.954 | O21: 860634.954 | P21: 860634.954 | Q21: 860634.954 | R21: 430317.477 | Y21: =SUM(E21:X21) -> 4303174.77
D22: =SUM(E22:X22) -> 1 | M22: 0.1 | N22: 0.2 | O22: 0.2 | P22: 0.2 | Q22: 0.2 | R22: 0.1 | Y22: =SUM(E22:X22) -> 1
A24: 6 | B24: =VLOOKUP(A24,'2 - ORÇAMENTO'!A:J,4,0) -> CANAL PRINCIPAL PIS - CP500-2 | D24: =VLOOKUP(A24,'2 - ORÇAMENTO'!A:J,10,0) -> 68042229.62 | F24: =$D$24*F25 -> 3742322.629 | G24: 3742322.629 | H24: =$D$24*H25 -> 3742322.629 | I24: =$D$24*I25 -> 3742322.629 | J24: 3742322.629 | K24: 3742322.629 | L24: 3742322.629 | M24: 3742322.629 | N24: 4082533.777 | O24: 4082533.777 | P24: 3742322.629 | Q24: 3742322.629 | R24: 3742322.629 | S24: 3742322.629 | T24: 3742322.629 | U24: 3742322.629 | V24: 3742322.629 | W24: 3742322.629 | Y24: =SUM(E24:X24) -> 68042229.62
D25: =SUM(E25:X25) -> 1 | F25: 0.055 | G25: 0.055 | H25: 0.055 | I25: 0.055 | J25: 0.055 | K25: 0.055 | L25: 0.055 | M25: 0.055 | N25: 0.06 | O25: 0.06 | P25: 0.055 | Q25: 0.055 | R25: 0.055 | S25: 0.055 | T25: 0.055 | U25: 0.055 | V25: 0.055 | W25: 0.055 | Y25: =SUM(E25:X25) -> 1
A27: 7 | B27: =VLOOKUP(A27,'2 - ORÇAMENTO'!A:J,4,0) -> SISTEMA DE DRENAGEM DO SISTEMA ADUTOR | D27: =VLOOKUP(A27,'2 - ORÇAMENTO'!A:J,10,0) -> 24573414.72 | G27: =$D$27*G28 -> 1351537.81 | H27: 1351537.81 | I27: 1351537.81 | J27: 1351537.81 | K27: 1351537.81 | L27: =$D$27*L28 -> 1351537.81 | M27: 1351537.81 | N27: 1843006.104 | O27: 1965873.178 | P27: 1843006.104 | Q27: 1351537.81 | R27: 1351537.81 | S27: 1351537.81 | T27: 1351537.81 | U27: 1351537.81 | V27: 1351537.81 | W27: 1351537.81 | Y27: =SUM(E27:X27) -> 24573414.72
D28: =SUM(E28:X28) -> 1 | G28: 0.055 | H28: 0.055 | I28: 0.055 | J28: 0.055 | K28: 0.055 | L28: 0.055 | M28: 0.055 | N28: 0.075 | O28: 0.08 | P28: 0.075 | Q28: 0.055 | R28: 0.055 | S28: 0.055 | T28: 0.055 | U28: 0.055 | V28: 0.055 | W28: 0.055 | Y28: =SUM(E28:X28) -> 1
A30: 8 | B30: =VLOOKUP(A30,'2 - ORÇAMENTO'!A:J,4,0) -> SISTEMA VIÁRIO DO SISTEMA ADUTOR | D30: =VLOOKUP(A30,'2 - ORÇAMENTO'!A:J,10,0) -> 2461800.9 | G30: =$D$30*G31 -> 123090.045 | H30: 123090.045 | I30: 246180.09 | J30: 246180.09 | K30: 246180.09 | L30: 246180.09 | M30: 246180.09 | N30: 246180.09 | O30: 246180.09 | P30: 246180.09 | Q30: 123090.045 | R30: 123090.045 | Y30: =SUM(E30:X30) -> 2461800.9
D31: =SUM(E31:X31) -> 1 | G31: 0.05 | H31: 0.05 | I31: 0.1 | J31: 0.1 | K31: 0.1 | L31: 0.1 | M31: 0.1 | N31: 0.1 | O31: 0.1 | P31: 0.1 | Q31: 0.05 | R31: 0.05 | Y31: =SUM(E31:X31) -> 1
A33: 9 | B33: =VLOOKUP(A33,'2 - ORÇAMENTO'!A:J,4,0) -> OBRAS DE ARTES ESPECIAIS | D33: =VLOOKUP(A33,'2 - ORÇAMENTO'!A:J,10,0) -> 3681329.56 | M33: =$D$33*M34 -> 368132.956 | N33: 368132.956 | O33: 368132.956 | P33: 368132.956 | Q33: 368132.956 | R33: 368132.956 | S33: =$D$33*S34 -> 368132.956 | T33: =$D$33*T34 -> 368132.956 | U33: 368132.956 | V33: 368132.956 | Y33: =SUM(E33:X33) -> 3681329.56
D34: =SUM(E34:X34) -> 1 | M34: 0.1 | N34: 0.1 | O34: 0.1 | P34: 0.1 | Q34: 0.1 | R34: 0.1 | S34: 0.1 | T34: 0.1 | U34: 0.1 | V34: 0.1 | Y34: =SUM(E34:X34) -> 1
A36: 10 | B36: =VLOOKUP(A36,'2 - ORÇAMENTO'!A:J,4,0) -> SERVIÇOS COMPLEMENTARES | D36: =VLOOKUP(A36,'2 - ORÇAMENTO'!A:J,10,0) -> 3865989.65 | F36: =F37*$D$36 -> 193299.4825 | G36: 386598.965 | H36: 386598.965 | I36: 386598.965 | R36: 386598.965 | S36: 386598.965 | T36: 483248.7063 | U36: 483248.7063 | V36: 386598.965 | W36: =W37*$D$36 -> 386598.965 | Y36: =SUM(E36:X36) -> 3865989.65
D37: =SUM(E37:X37) -> 1 | F37: 0.05 | G37: 0.1 | H37: 0.1 | I37: 0.1 | R37: 0.1 | S37: 0.1 | T37: 0.125 | U37: 0.125 | V37: 0.1 | W37: 0.1 | Y37: =SUM(E37:X37) -> 1
A39: 11 | B39: =VLOOKUP(A39,'2 - ORÇAMENTO'!A:J,4,0) -> FINALIZAÇÃO DA OBRA | D39: =VLOOKUP(A39,'2 - ORÇAMENTO'!A:J,10,0) -> 301275.66 | U39: =$D$39*U40 -> 75318.915 | V39: 75318.915 | W39: 75318.915 | X39: 75318.915 | Y39: =SUM(E39:X39) -> 301275.66
D40: =SUM(E40:X40) -> 1 | U40: 0.25 | V40: 0.25 | W40: 0.25 | X40: 0.25 | Y40: =SUM(E40:X40) -> 1
B42: TOTAL GERAL | D42: =D27+D24+D8+D11+D18+D21+D30+D33+D36+D14+D39 -> 121701503.8
B43: PORCENTAGEM POR MÊS | E43: =E45/$D$42 -> 0.01960007308 | F43: 0.03539015474 | G43: 0.05142597217 | H43: 0.05252079332 | I43: 0.05362237248 | J43: 0.05014411726 | K43: 0.05014411726 | L43: 0.0490492961 | M43: 0.05520005008 | N43: 0.06658114117 | O43: 0.06768116748 | P43: 0.06354377253 | Q43: 0.05804208809 | R43: 0.05757672615 | S43: 0.05253152981 | T43: 0.05340109362 | U43: 0.05407650544 | V43: 0.05320694163 | W43: 0.04990498367 | X43: 0.00635710394
B44: PORCENTAGEM ACUMULADA | E44: =E43 -> 0.01960007308 | F44: =E44+F43 -> 0.05499022782 | G44: 0.1064162 | H44: 0.1589369933 | I44: 0.2125593658 | J44: 0.262703483 | K44: 0.3128476003 | L44: 0.3618968964 | M44: 0.4170969465 | N44: 0.4836780876 | O44: 0.5513592551 | P44: 0.6149030277 | Q44: 0.6729451157 | R44: 0.7305218419 | S44: 0.7830533717 | T44: =S44+T43 -> 0.8364544653 | U44: =T44+U43 -> 0.8905309708 | V44: =U44+V43 -> 0.9437379124 | W44: =V44+W43 -> 0.9936428961 | X44: =W44+X43 -> 1
B45: TOTAL POR MÊS | E45: =E8+E24+E27+E21+E18+E11+E30+E33+E36+E14+E39 -> 2385358.368 | F45: =F8+F24+F27+F21+F18+F11+F30+F33+F36+F14+F39 -> 4307035.051 | G45: =G8+G24+G27+G21+G18+G11+G30+G33+G36+G14+G39 -> 6258618.146 | H45: 6391859.527 | I45: 6525923.368 | J45: 6102614.476 | K45: 6102614.476 | L45: 5969373.095 | M45: 6717929.104 | N45: 8103025.004 | O45: 8236899.861 | P45: 7733372.673 | Q45: 7063809.404 | R45: 7007174.155 | S45: 6393166.175 | T45: =T8+T24+T27+T21+T18+T11+T30+T33+T36+T14+T39 -> 6498993.398 | U45: 6581192.031 | V45: 6475364.808 | W45: 6073511.559 | X45: 773669.1093
B46: TOTAL ACUMULADO | E46: =E45 -> 2385358.368 | F46: =E46+F45 -> 6692393.419 | G46: 12951011.57 | H46: 19342871.09 | I46: 25868794.46 | J46: 31971408.94 | K46: 38074023.41 | L46: 44043396.51 | M46: 50761325.61 | N46: 58864350.62 | O46: 67101250.48 | P46: 74834623.15 | Q46: 81898432.55 | R46: 88905606.71 | S46: 95298772.88 | T46: =S46+T45 -> 101797766.3 | U46: =T46+U45 -> 108378958.3 | V46: =U46+V45 -> 114854323.1 | W46: =V46+W45 -> 120927834.7 | X46: =W46+X45 -> 121701503.8

Sheet CURVA S
A1: ='2 - ORÇAMENTO'!A1 -> MINISTÉRIO DA INTEGRAÇÃO E DO DESENVOLVIMENTO REGIONAL – MIDR COMPANHIA DE DESENVOLVIMENTO DOS VALES DO SÃO FRANCISCO E DO PARAÍBA - CODEVASF
A2: CURVA S

Sheet TABELA_CPU ADM-CANTEIRO-SERVICO
C1: Obra | E1: Bancos | G1: B.D.I. | I1: Encargos Sociais
C2: Orçamento CPU ADM , MOBILIZAÇÃO, CANTEIRO E SERVIÇOS - Canal Sertão Baiano | E2: SINAPI - 07/2024 - Bahia SBC - 08/2024 - Bahia SICRO3 - 04/2024 - Bahia ORSE - 06/2024 - Sergipe SEDOP - 05/2024 - Pará SEINFRA - 028 - Ceará SETOP - 04/2024 - Minas Gerais IOPES - 06/2024 - Espírito Santo SIURB - 01/2024 - São Paulo SIURB INFRA - 01/2024 - São Paulo SUDECAP - 04/2024 - Minas Gerais CPOS/CDHU - 06/2024 - São Paulo FDE - 04/2024 - São Paulo AGESUL - 06/2024 - Mato Grosso do Sul AGETOP CIVIL - 04/2024 - Goiás AGETOP RODOVIARIA - 04/2024 - Goiás CAEMA - 12/2019 - Maranhão EMBASA - 05/2024 - Bahia CAERN - 11/2023 - Rio Grande do Norte COMPESA - 07/2023 - Pernambuco EMOP - 07/2024 - Rio de Janeiro DERPR - 04/2024 - Paraná SCO - 07/2024 - Rio de Janeiro | G2: 22,56% | I2: Não Desonerado: embutido nos preços unitário dos insumos de mão de obra, de acordo com as bases.
A3: Planilha Orçamentária Analítica
A4: 1 | D4: ADMINISTRAÇÃO DE OBRAS | K4: 9949427.51
A5: 1.1 | D5: PARCELA FIXA DA ADMINISTRAÇÃO LOCAL | K5: 3522694.93
A6: 1.1.1 | D6: GERÊNCIA TÉCNICA GERAL - MÃO DE OBRA | K6: 1193113.93
A7: 1.1.1.1 | B7: Código | C7: Banco | D7: Descrição | E7: Tipo | G7: Und | H7: Quant. | I7: Porcent. | J7: Valor Unit | K7: Total
A8: Composição | B8: 93568 | C8: SINAPI | D8: ENGENHEIRO CIVIL DE OBRA SENIOR COM ENCARGOS COMPLEMENTARES | E8: SEDI - SERVIÇOS DIVERSOS | G8: MES | H8: 1 | J8: 24274.91 | K8: 24274.91
A9: Composição Auxiliar | B9: 95418 | C9: SINAPI | D9: CURSO DE CAPACITAÇÃO PARA ENGENHEIRO CIVIL DE OBRA SÊNIOR (ENCARGOS COMPLEMENTARES) - MENSALISTA | E9: SEDI - SERVIÇOS DIVERSOS | G9: MES | H9: 1 | J9: 299.61 | K9: 299.61
A10: Insumo | B10: 40814 | C10: SINAPI | D10: ENGENHEIRO CIVIL DE OBRA SENIOR (MENSALISTA) | E10: Mão de Obra | G10: MES | H10: 1 | J10: 23573.39 | K10: 23573.39
A11: Insumo | B11: 40863 | C11: SINAPI | D11: EXAMES - MENSALISTA (COLETADO CAIXA - ENCARGOS COMPLEMENTARES) | E11: Material | G11: MES | H11: 1 | J11: 252.08 | K11: 252.08
A12: Insumo | B12: 40864 | C12: SINAPI | D12: SEGURO - MENSALISTA (COLETADO CAIXA - ENCARGOS COMPLEMENTARES) | E12: Material | G12: MES | H12: 1 | J12: 7.31 | K12: 7.31
A13: Insumo | B13: 43474 | C13: SINAPI | D13: FERRAMENTAS - FAMILIA ENGENHEIRO CIVIL - MENSALISTA (ENCARGOS COMPLEMENTARES - COLETADO CAIXA) | E13: Material | G13: MES | H13: 1 | J13: 2.29 | K13: 2.29
A14: Insumo | B14: 43498 | C14: SINAPI | D14: EPI - FAMILIA ENGENHEIRO CIVIL - MENSALISTA (ENCARGOS COMPLEMENTARES - COLETADO CAIXA) | E14: Material | G14: MES | H14: 1 | J14: 140.23 | K14: 140.23
E15: MO sem LS => | F15: 23873 | G15: LS => | H15: 0 | I15: MO com LS => | J15: 23873
E16: Valor do BDI => | F16: 5476.41 | H16: Valor com BDI => | J16: 29751.32
G17: Quant. => | H17: 20 | I17: Preço Total => | J17: 595026.4
A19: 1.1.1.2 | B19: Código | C19: Banco | D19: Descrição | E19: Tipo | G19: Und | H19: Quant. | I19: Porcent. | J19: Valor Unit | K19: Total
A20: Composição | B20: 93572 | C20: SINAPI | D20: ENCARREGADO GERAL DE OBRAS COM ENCARGOS COMPLEMENTARES | E20: SEDI - SERVIÇOS DIVERSOS | G20: MES | H20: 1 | J20: 6778.92 | K20: 6778.92
A21: Composição Auxiliar | B21: 95422 | C21: SINAPI | D21: CURSO DE CAPACITAÇÃO PARA ENCARREGADO GERAL DE OBRAS (ENCARGOS COMPLEMENTARES) - MENSALISTA | E21: SEDI - SERVIÇOS DIVERSOS | G21: MES | H21: 1 | J21: 112.34 | K21: 112.34
A22: Insumo | B22: 40818 | C22: SINAPI | D22: ENCARREGADO GERAL DE OBRAS (MENSALISTA) | E22: Mão de Obra | G22: MES | H22: 1 | J22: 6152.3 | K22: 6152.3
A23: Insumo | B23: 40863 | C23: SINAPI | D23: EXAMES - MENSALISTA (COLETADO CAIXA - ENCARGOS COMPLEMENTARES) | E23: Material | G23: MES | H23: 1 | J23: 252.08 | K23: 252.08
A24: Insumo | B24: 40864 | C24: SINAPI | D24: SEGURO - MENSALISTA (COLETADO CAIXA - ENCARGOS COMPLEMENTARES) | E24: Material | G24: MES | H24: 1 | J24: 7.31 | K24: 7.31
A25: Insumo | B25: 43475 | C25: SINAPI | D25: FERRAMENTAS - FAMILIA ENCARREGADO GERAL - MENSALISTA (ENCARGOS COMPLEMENTARES - COLETADO CAIXA) | E25: Material | G25: MES | H25: 1 | J25: 18.73 | K25: 18.73
A26: Insumo | B26: 43499 | C26: SINAPI | D26: EPI - FAMILIA ENCARREGADO GERAL - MENSALISTA (ENCARGOS COMPLEMENTARES - COLETADO CAIXA) | E26: Material | G26: MES | H26: 1 | J26: 236.16 | K26: 236.16
E27: MO sem LS => | F27: 6264.64 | G27: LS => | H27: 0 | I27: MO com LS => | J27: 6264.64
E28: Valor do BDI => | F28: 1529.32 | H28: Valor com BDI => | J28: 8308.24
G29: Quant. => | H29: 20 | I29: Preço Total => | J29: 166164.8
A31: 1.1.1.3 | B31: Código | C31: Banco | D31: Descrição | E31: Tipo | G31: Und | H31: Quant. | I31: Porcent. | J31: Valor Unit | K31: Total
A32: Composição | B32: COMP-TEC-020 | C32: Próprio | D32: TÉCNICO DE MEIO AMBIENTE COM ENCARGOS COMPLEMENTARES E ENCARGOS SOCIAIS | E32: SEDI - SERVIÇOS DIVERSOS | G32: MÊS | H32: 1 | J32: 6414.23 | K32: 6414.23
A33: Insumo | B33: P9897 JAN/24 | C33: Próprio | D33: TÉCNICO DE MEIO AMBIENTE SEM ENCARGOS | E33: Mão de Obra | G33: MÊS | H33: 1.7027 | J33: 3529.18 | K33: 6009.13
A34: Insumo | B34: 43505 | C34: SINAPI | D34: EPI - FAMILIA TOPOGRAFO - MENSALISTA (ENCARGOS COMPLEMENTARES - COLETADO CAIXA) | E34: Material | G34: MES | H34: 1 | J34: 132.94 | K34: 132.94
A35: Insumo | B35: 43481 | C35: SINAPI | D35: FERRAMENTAS - FAMILIA TOPOGRAFO - MENSALISTA (ENCARGOS COMPLEMENTARES - COLETADO CAIXA) | E35: Material | G35: MES | H35: 1 | J35: 12.77 | K35: 12.77
A36: Insumo | B36: 40863 | C36: SINAPI | D36: EXAMES - MENSALISTA (COLETADO CAIXA - ENCARGOS COMPLEMENTARES) | E36: Material | G36: MES | H36: 1 | J36: 252.08 | K36: 252.08
A37: Insumo | B37: 40864 | C37: SINAPI | D37: SEGURO - MENSALISTA (COLETADO CAIXA - ENCARGOS COMPLEMENTARES) | E37: Material | G37: MES | H37: 1 | J37: 7.31 | K37: 7.31
E38: MO sem LS => | F38: 6009.13 | G38: LS => | H38: 0 | I38: MO com LS => | J38: 6009.13
E39: Valor do BDI => | F39: 1447.05 | H39: Valor com BDI => | J39: 7861.28
G40: Quant. => | H40: 18 | I40: Preço Total => | J40: 141503.04
A42: 1.1.1.4 | B42: Código | C42: Banco | D42: Descrição | E42: Tipo | G42: Und | H42: Quant. | I42: Porcent. | J42: Valor Unit | K42: Total
A43: Composição | B43: COMP-TEC-028 | C43: Próprio | D43: MOTORISTA DE ÔNIBUS COM ENCARGOS COMPLEMENTARES | E43: SEDI - SERVIÇOS DIVERSOS | G43: MES | H43: 1 | J43: 6929.31 | K43: 6929.31
A44: Composição Auxiliar | B44: 101328 | C44: SINAPI | D44: CURSO DE CAPACITAÇÃO PARA MOTORISTA DE CAMINHAO-CARRETA (ENCARGOS COMPLEMENTARES) - MENSALISTA | E44: SEDI - SERVIÇOS DIVERSOS | G44: MES | H44: 1 | J44: 23.97 | K44: 23.97
A45: Insumo | B45: 40861 | C45: SINAPI | D45: TRANSPORTE - MENSALISTA (COLETADO CAIXA - ENCARGOS COMPLEMENTARES) | E45: Material | G45: MES | H45: 1 | J45: 150.72 | K45: 150.72
A46: Insumo | B46: 40862 | C46: SINAPI | D46: ALIMENTACAO - MENSALISTA (COLETADO CAIXA - ENCARGOS COMPLEMENTARES) | E46: Material | G46: MES | H46: 1 | J46: 859.55 | K46: 859.55
A47: Insumo | B47: 40863 | C47: SINAPI | D47: EXAMES - MENSALISTA (COLETADO CAIXA - ENCARGOS COMPLEMENTARES) | E47: Material | G47: MES | H47: 1 | J47: 252.08 | K47: 252.08
A48: Insumo | B48: 40864 | C48: SINAPI | D48: SEGURO - MENSALISTA (COLETADO CAIXA - ENCARGOS COMPLEMENTARES) | E48: Material | G48: MES | H48: 1 | J48: 7.31 | K48: 7.31
A49: Insumo | B49: 40988 | C49: SINAPI | D49: MOTORISTA DE CAMINHAO-CARRETA (MENSALISTA) | E49: Mão de Obra | G49: MES | H49: 1 | J49: 5472.7 | K49: 5472.7
A50: Insumo | B50: 43476 | C50: SINAPI | D50: FERRAMENTAS - FAMILIA OPERADOR ESCAVADEIRA - MENSALISTA (ENCARGOS COMPLEMENTARES - COLETADO CAIXA) | E50: Material | G50: MES | H50: 1 | J50: 0.01 | K50: 0.01
A51: Insumo | B51: 43500 | C51: SINAPI | D51: EPI - FAMILIA OPERADOR ESCAVADEIRA - MENSALISTA (ENCARGOS COMPLEMENTARES - COLETADO CAIXA) | E51: Material | G51: MES | H51: 1 | J51: 162.97 | K51: 162.97
E52: MO sem LS => | F52: 5496.67 | G52: LS => | H52: 0 | I52: MO com LS => | J52: 5496.67
E53: Valor do BDI => | F53: 1563.25 | H53: Valor com BDI => | J53: 8492.56
G54: Quant. => | H54: 20 | I54: Preço Total => | J54: 169851.2
A56: 1.1.1.5 | B56: Código | C56: Banco | D56: Descrição | E56: Tipo | G56: Und | H56: Quant. | I56: Porcent. | J56: Valor Unit | K56: Total
A57: Composição | B57: COMP-TEC-011 | C57: Próprio | D57: SECRETÁRIA COM ENCARGOS SOCIAIS E COMPLEMENTARES | E57: SEDI - SERVIÇOS DIVERSOS | G57: MES | H57: 1 | J57: 5177.64 | K57: 5177.64
A58: Insumo | B58: 40863 | C58: SINAPI | D58: EXAMES - MENSALISTA (COLETADO CAIXA - ENCARGOS COMPLEMENTARES) | E58: Material | G58: MES | H58: 1 | J58: 252.08 | K58: 252.08
A59: Insumo | B59: 40864 | C59: SINAPI | D59: SEGURO - MENSALISTA (COLETADO CAIXA - ENCARGOS COMPLEMENTARES) | E59: Material | G59: MES | H59: 1 | J59: 7.31 | K59: 7.31
A60: Insumo | B60: 43470 | C60: SINAPI | D60: FERRAMENTAS - FAMILIA ALMOXARIFE - MENSALISTA (ENCARGOS COMPLEMENTARES - COLETADO CAIXA) | E60: Material | G60: MES | H60: 1 | J60: 10.89 | K60: 10.89
A61: Insumo | B61: 43494 | C61: SINAPI | D61: EPI - FAMILIA ALMOXARIFE - MENSALISTA (ENCARGOS COMPLEMENTARES - COLETADO CAIXA) | E61: Material | G61: MES | H61: 1 | J61: 148.04 | K61: 148.04
A62: Insumo | B62: P9878 JAN/24 | C62: Próprio | D62: SECRETÁRIA SEM ENCARGOS | E62: Mão de Obra | G62: MÊS | H62: 1.7167 | J62: 2772.37 | K62: 4759.32
E63: MO sem LS => | F63: 4759.32 | G63: LS => | H63: 0 | I63: MO com LS => | J63: 4759.32
E64: Valor do BDI => | F64: 1168.07 | H64: Valor com BDI => | J64: 6345.71
G65: Quant. => | H65: 19 | I65: Preço Total => | J65: 120568.49
A67: 1.1.2 | D67: GERÊNCIA TÉCNICA GERAL - VEÍCULOS | K67: 1014653.2
A68: 1.1.2.1 | B68: Código | C68: Banco | D68: Descrição | E68: Tipo | G68: Und | H68: Quant. | I68: Porcent. | J68: Valor Unit | K68: Total
A69: Composição | B69: E9684 MÊS | C69: Próprio | D69: VEÍCULO LEVE PICK UP 4X4 - 147 KW (SEM MOTORISTA) | E69: SEOP - SERVIÇOS OPERACIONAIS | G69: MÊS | H69: 1 | J69: 7535.72 | K69: 7535.72
A70: A | B70: Código | C70: Banco | D70: Equipamentos | E70: Quantidade | F70: Utilização | H70: Custo Operacional | J70: Custo Horário
F71: Operativa | G71: Improdutiva | H71: Operativa | I71: Improdutiva
A72: Insumo | B72: E9684 | C72: SICRO3 | D72: Veículo leve picape 4 x 4 com capacidade de 1,10 t - 147 kW | E72: 1 | F72: 44 | G72: 176 | H72: 107.6198 | I72: 53.339 | J72: 14122.9352
F73: Custo Horário de Equipamentos => | J73: 14122.9352
A74: B | B74: Código | C74: Banco | D74: Mão de Obra | E74: Quantidade | F74: Salário Hora | J74: Custo Horário
A75: Insumo | B75: P9870 | C75: SICRO3 | D75: Motorista de veículo leve | E75: -220 | I75: 29.9419 | J75: -6587.218
F76: Custo Horário da Mão de Obra => | J76: -6587.218
F77: Custo Horário de Execução => | J77: 7535.7172
F78: Fator de Influencia da Chuva - FIC => | J78: 0
F79: Custo do FIC => | J79: 0
F80: Produção de Equipe => | J80: 1
F81: Custo Unitário de Execução => | J81: 7535.7172
E82: MO sem LS => | F82: -6587.218 | G82: LS => | H82: 0 | I82: MO com LS => | J82: -6587.218
E83: Valor do BDI => | F83: 1700.05 | H83: Valor com BDI => | J83: 9235.77
G84: Quant. => | H84: 20 | I84: Preço Total => | J84: 184715.4
A86: 1.1.2.2 | B86: Código | C86: Banco | D86: Descrição | E86: Tipo | G86: Und | H86: Quant. | I86: Porcent. | J86: Valor Unit | K86: Total
A87: Composição | B87: E9560-MÊS | C87: Próprio | D87: ÔNIBUS COM CAPACIDADE PARA 80 PASSAGEIROS - 175 KW | E87: CHOR - CUSTOS HORÁRIOS DE MÁQUINAS E EQUIPAMENTOS | G87: MÊS | H87: 1 | J87: 33858.43 | K87: 33858.43
A88: A | B88: Código | C88: Banco | D88: Equipamentos | E88: Quantidade | F88: Utilização | H88: Custo Operacional | J88: Custo Horário
F89: Operativa | G89: Improdutiva | H89: Operativa | I89: Improdutiva
A90: Insumo | B90: E9560 | C90: SICRO3 | D90: Ônibus com capacidade para 80 passageiros - 175 kW | E90: 1 | F90: 44 | G90: 176 | H90: 346.961 | I90: 105.6372 | J90: 33858.4312
F91: Custo Horário de Equipamentos => | J91: 33858.4312
F92: Custo Horário de Execução => | J92: 33858.4312
F93: Fator de Influencia da Chuva - FIC => | J93: 0
F94: Custo do FIC => | J94: 0
F95: Produção de Equipe => | J95: 1
F96: Custo Unitário de Execução => | J96: 33858.4312
E97: MO sem LS => | F97: 0 | G97: LS => | H97: 0 | I97: MO com LS => | J97: 0
E98: Valor do BDI => | F98: 7638.46 | H98: Valor com BDI => | J98: 41496.89
G99: Quant. => | H99: 20 | I99: Preço Total => | J99: 829937.8
A101: 1.1.3 | D101: GERÊNCIA TÉCNICA AUXILIAR - MÃO DE OBRA | K101: 377767.6
A102: 1.1.3.1 | B102: Código | C102: Banco | D102: Descrição | E102: Tipo | G102: Und | H102: Quant. | I102: Porcent. | J102: Valor Unit | K102: Total
A103: Composição | B103: 101390 | C103: SINAPI | D103: AUXILIAR TÉCNICO / ASSISTENTE DE ENGENHARIA COM ENCARGOS COMPLEMENTARES | E103: SEDI - SERVIÇOS DIVERSOS | G103: MES | H103: 1 | J103: 7705.77 | K103: 7705.77
A104: Composição Auxiliar | B104: 101302 | C104: SINAPI | D104: CURSO DE CAPACITAÇÃO PARA AUXILIAR TÉCNICO DE ENGENHARIA (ENCARGOS COMPLEMENTARES) - MENSALISTA | E104: SEDI - SERVIÇOS DIVERSOS | G104: MES | H104: 1 | J104: 51.92 | K104: 51.92
A105: Insumo | B105: 40863 | C105: SINAPI | D105: EXAMES - MENSALISTA (COLETADO CAIXA - ENCARGOS COMPLEMENTARES) | E105: Material | G105: MES | H105: 1 | J105: 252.08 | K105: 252.08
A106: Insumo | B106: 40864 | C106: SINAPI | D106: SEGURO - MENSALISTA (COLETADO CAIXA - ENCARGOS COMPLEMENTARES) | E106: Material | G106: MES | H106: 1 | J106: 7.31 | K106: 7.31
A107: Insumo | B107: 40931 | C107: SINAPI | D107: AUXILIAR TECNICO / ASSISTENTE DE ENGENHARIA (MENSALISTA) | E107: Mão de Obra | G107: MES | H107: 1 | J107: 7251.94 | K107: 7251.94
A108: Insumo | B108: 43474 | C108: SINAPI | D108: FERRAMENTAS - FAMILIA ENGENHEIRO CIVIL - MENSALISTA (ENCARGOS COMPLEMENTARES - COLETADO CAIXA) | E108: Material | G108: MES | H108: 1 | J108: 2.29 | K108: 2.29
A109: Insumo | B109: 43498 | C109: SINAPI | D109: EPI - FAMILIA ENGENHEIRO CIVIL - MENSALISTA (ENCARGOS COMPLEMENTARES - COLETADO CAIXA) | E109: Material | G109: MES | H109: 1 | J109: 140.23 | K109: 140.23
E110: MO sem LS => | F110: 7303.86 | G110: LS => | H110: 0 | I110: MO com LS => | J110: 7303.86
E111: Valor do BDI => | F111: 1738.42 | H111: Valor com BDI => | J111: 9444.19
G112: Quant. => | H112: 40 | I112: Preço Total => | J112: 377767.6
A114: 1.1.4 | D114: GERÊNCIA ADMINISTRATIVA GERAL - MÃO DE OBRA | K114: 600561.14
A115: 1.1.4.1 | B115: Código | C115: Banco | D115: Descrição | E115: Tipo | G115: Und | H115: Quant. | I115: Porcent. | J115: Valor Unit | K115: Total
A116: Composição | B116: COMP-TEC-029 | C116: Próprio | D116: CHEFE DO SETOR ADMINISTRATIVO COM ENCARGOS SOCIAIS E COMPLEMENTARES E.S. 71,67% | E116: SEDI - SERVIÇOS DIVERSOS | G116: MES | H116: 1 | J116: 6979.82 | K116: 6979.82
A117: Insumo | B117: 40863 | C117: SINAPI | D117: EXAMES - MENSALISTA (COLETADO CAIXA - ENCARGOS COMPLEMENTARES) | E117: Material | G117: MES | H117: 1 | J117: 252.08 | K117: 252.08
A118: Insumo | B118: 40864 | C118: SINAPI | D118: SEGURO - MENSALISTA (COLETADO CAIXA - ENCARGOS COMPLEMENTARES) | E118: Material | G118: MES | H118: 1 | J118: 7.31 | K118: 7.31
A119: Insumo | B119: 43470 | C119: SINAPI | D119: FERRAMENTAS - FAMILIA ALMOXARIFE - MENSALISTA (ENCARGOS COMPLEMENTARES - COLETADO CAIXA) | E119: Material | G119: MES | H119: 1 | J119: 10.89 | K119: 10.89
A120: Insumo | B120: 43494 | C120: SINAPI | D120: EPI - FAMILIA ALMOXARIFE - MENSALISTA (ENCARGOS COMPLEMENTARES - COLETADO CAIXA) | E120: Material | G120: MES | H120: 1 | J120: 148.04 | K120: 148.04
A121: Insumo | B121: P9883 JAN/24 | C121: Próprio | D121: CHEFE DO SETOR ADMINISTRATIVO SEM ENCARGOS | E121: Mão de Obra | G121: MÊS | H121: 1 | J121: 3812.44 | K121: 3812.44
A122: Insumo | B122: P9883 JAN/24 | C122: Próprio | D122: CHEFE DO SETOR ADMINISTRATIVO SEM ENCARGOS | E122: Mão de Obra | G122: MÊS | H122: 0.7167 | J122: 3812.44 | K122: 2732.37
A123: Insumo | B123: P9883 JAN/24 | C123: Próprio | D123: CHEFE DO SETOR ADMINISTRATIVO SEM ENCARGOS | E123: Mão de Obra | G123: MÊS | H123: 0.00438 | J123: 3812.44 | K123: 16.69
E124: MO sem LS => | F124: 6561.5 | G124: LS => | H124: 0 | I124: MO com LS => | J124: 6561.5
E125: Valor do BDI => | F125: 1574.64 | H125: Valor com BDI => | J125: 8554.46
G126: Quant. => | H126: 19 | I126: Preço Total => | J126: 162534.74
A128: 1.1.4.2 | B128: Código | C128: Banco | D128: Descrição | E128: Tipo | G128: Und | H128: Quant. | I128: Porcent. | J128: Valor Unit | K128: Total
A129: Composição | B129: COMP-TEC-012 | C129: Próprio | D129: PORTEIRO COM ENCARGOS SOCIAIS E COMPLEMENTARES | E129: SEDI - SERVIÇOS DIVERSOS | G129: MES | H129: 1 | J129: 4131.04 | K129: 4131.04
A130: Insumo | B130: 40863 | C130: SINAPI | D130: EXAMES - MENSALISTA (COLETADO CAIXA - ENCARGOS COMPLEMENTARES) | E130: Material | G130: MES | H130: 1 | J130: 252.08 | K130: 252.08
A131: Insumo | B131: 40864 | C131: SINAPI | D131: SEGURO - MENSALISTA (COLETADO CAIXA - ENCARGOS COMPLEMENTARES) | E131: Material | G131: MES | H131: 1 | J131: 7.31 | K131: 7.31
A132: Insumo | B132: 40861 | C132: SINAPI | D132: TRANSPORTE - MENSALISTA (COLETADO CAIXA - ENCARGOS COMPLEMENTARES) | E132: Material | G132: MES | H132: 1 | J132: 150.72 | K132: 150.72
A133: Insumo | B133: 40862 | C133: SINAPI | D133: ALIMENTACAO - MENSALISTA (COLETADO CAIXA - ENCARGOS COMPLEMENTARES) | E133: Material | G133: MES | H133: 1 | J133: 859.55 | K133: 859.55
A134: Insumo | B134: 43479 | C134: SINAPI | D134: FERRAMENTAS - FAMILIA SERVENTE - MENSALISTA (ENCARGOS COMPLEMENTARES - COLETADO CAIXA) | E134: Material | G134: MES | H134: 1 | J134: 114.72 | K134: 114.72
A135: Insumo | B135: 43503 | C135: SINAPI | D135: EPI - FAMILIA SERVENTE - MENSALISTA (ENCARGOS COMPLEMENTARES - COLETADO CAIXA) | E135: Material | G135: MES | H135: 1 | J135: 250.24 | K135: 250.24
A136: Insumo | B136: P9896 JAN/24 | C136: Próprio | D136: PORTEIRO SEM ENCARGOS | E136: Mão de Obra | G136: MÊS | H136: 1.7167 | J136: 1454.2 | K136: 2496.42
E137: MO sem LS => | F137: 2496.42 | G137: LS => | H137: 0 | I137: MO com LS => | J137: 2496.42
E138: Valor do BDI => | F138: 931.96 | H138: Valor com BDI => | J138: 5063
G139: Quant. => | H139: 38 | I139: Preço Total => | J139: 192394
A141: 1.1.4.3 | B141: Código | C141: Banco | D141: Descrição | E141: Tipo | G141: Und | H141: Quant. | I141: Porcent. | J141: Valor Unit | K141: Total
A142: Composição | B142: COMP-TEC-013 | C142: Próprio | D142: VIGIA COM ENCARGOS COMPLEMENTARES E ADICIONAL DE PERICULOSIDADE | E142: SEDI - SERVIÇOS DIVERSOS | G142: MES | H142: 1 | J142: 5010.46 | K142: 5010.46
A143: Composição Auxiliar | B143: 101372 | C143: SINAPI | D143: CURSO DE CAPACITAÇÃO PARA VIGIA DIURNO (ENCARGOS COMPLEMENTARES) - MENSALISTA | E143: SEDI - SERVIÇOS DIVERSOS | G143: MES | H143: 1 | J143: 11.33 | K143: 11.33
A144: Insumo | B144: 40861 | C144: SINAPI | D144: TRANSPORTE - MENSALISTA (COLETADO CAIXA - ENCARGOS COMPLEMENTARES) | E144: Material | G144: MES | H144: 1 | J144: 150.72 | K144: 150.72
A145: Insumo | B145: 40862 | C145: SINAPI | D145: ALIMENTACAO - MENSALISTA (COLETADO CAIXA - ENCARGOS COMPLEMENTARES) | E145: Material | G145: MES | H145: 1 | J145: 859.55 | K145: 859.55
A146: Insumo | B146: 40863 | C146: SINAPI | D146: EXAMES - MENSALISTA (COLETADO CAIXA - ENCARGOS COMPLEMENTARES) | E146: Material | G146: MES | H146: 1 | J146: 252.08 | K146: 252.08
A147: Insumo | B147: 40864 | C147: SINAPI | D147: SEGURO - MENSALISTA (COLETADO CAIXA - ENCARGOS COMPLEMENTARES) | E147: Material | G147: MES | H147: 1 | J147: 7.31 | K147: 7.31
A148: Insumo | B148: 41096 | C148: SINAPI | D148: VIGIA DIURNO (MENSALISTA) | E148: Mão de Obra | G148: MES | H148: 1 | J148: 2588.09 | K148: 2588.09
A149: Insumo | B149: 43479 | C149: SINAPI | D149: FERRAMENTAS - FAMILIA SERVENTE - MENSALISTA (ENCARGOS COMPLEMENTARES - COLETADO CAIXA) | E149: Material | G149: MES | H149: 1 | J149: 114.72 | K149: 114.72
A150: Insumo | B150: 43503 | C150: SINAPI | D150: EPI - FAMILIA SERVENTE - MENSALISTA (ENCARGOS COMPLEMENTARES - COLETADO CAIXA) | E150: Material | G150: MES | H150: 1 | J150: 250.24 | K150: 250.24
A151: Insumo | B151: 41096 | C151: SINAPI | D151: VIGIA DIURNO (MENSALISTA) | E151: Mão de Obra | G151: MES | H151: 0.3 | J151: 2588.09 | K151: 776.42
E152: MO sem LS => | F152: 3375.84 | G152: LS => | H152: 0 | I152: MO com LS => | J152: 3375.84
E153: Valor do BDI => | F153: 1130.35 | H153: Valor com BDI => | J153: 6140.81
G154: Quant. => | H154: 40 | I154: Preço Total => | J154: 245632.4
A156: 1.1.5 | D156: GERÊNCIA ADMINISTRATIVA GERAL - VEÍCULOS | K156: 60157.8
A157: 1.1.5.1 | B157: Código | C157: Banco | D157: Descrição | E157: Tipo | G157: Und | H157: Quant. | I157: Porcent. | J157: Valor Unit | K157: Total
A158: Composição | B158: E9093 MÊS | C158: Próprio | D158: VEICULO LEVE - 53 KW (SEM MOTORISTA) | E158: CHOR - CUSTOS HORÁRIOS DE MÁQUINAS E EQUIPAMENTOS | G158: MÊS | H158: 1 | J158: 2583.39 | K158: 2583.39
A159: A | B159: Código | C159: Banco | D159: Equipamentos | E159: Quantidade | F159: Utilização | H159: Custo Operacional | J159: Custo Horário
F160: Operativa | G160: Improdutiva | H160: Operativa | I160: Improdutiva
A161: Insumo | B161: E9093 | C161: SICRO3 | D161: Veículo leve - 53 kW (sem motorista) | E161: 1 | F161: 44 | G161: 176 | H161: 34.3798 | I161: 6.0834 | J161: 2583.3896
F162: Custo Horário de Equipamentos => | J162: 2583.3896
F163: Custo Horário de Execução => | J163: 2583.3896
F164: Fator de Influencia da Chuva - FIC => | J164: 0
F165: Custo do FIC => | J165: 0
F166: Produção de Equipe => | J166: 1
F167: Custo Unitário de Execução => | J167: 2583.3896
E168: MO sem LS => | F168: 0 | G168: LS => | H168: 0 | I168: MO com LS => | J168: 0
E169: Valor do BDI => | F169: 582.81 | H169: Valor com BDI => | J169: 3166.2
G170: Quant. => | H170: 19 | I170: Preço Total => | J170: 60157.8
A172: 1.1.6 | D172: GERÊNCIA ADMINISTRATIVA AUXILIAR - MÃO DE OBRA | K172: 276441.26
A173: 1.1.6.1 | B173: Código | C173: Banco | D173: Descrição | E173: Tipo | G173: Und | H173: Quant. | I173: Porcent. | J173: Valor Unit | K173: Total
A174: Composição | B174: COMP-TEC-014 | C174: Próprio | D174: AUXILIAR ADMINISTRATIVO COM ENCARGOS SOCIAIS E COMPLEMENTARES | E174: SEDI - SERVIÇOS DIVERSOS | G174: MES | H174: 1 | J174: 4478.32 | K174: 4478.32
A175: Insumo | B175: 00040863 | C175: SINAPI | D175: EXAMES - MENSALISTA (COLETADO CAIXA - ENCARGOS COMPLEMENTARES) | E175: Material | G175: MES | H175: 1 | J175: 252.08 | K175: 252.08
A176: Insumo | B176: 00040864 | C176: SINAPI | D176: SEGURO - MENSALISTA (COLETADO CAIXA - ENCARGOS COMPLEMENTARES) | E176: Material | G176: MES | H176: 1 | J176: 7.31 | K176: 7.31
A177: Insumo | B177: 00043470 | C177: SINAPI | D177: FERRAMENTAS - FAMILIA ALMOXARIFE - MENSALISTA (ENCARGOS COMPLEMENTARES - COLETADO CAIXA) | E177: Material | G177: MES | H177: 1 | J177: 10.89 | K177: 10.89
A178: Insumo | B178: 00043494 | C178: SINAPI | D178: EPI - FAMILIA ALMOXARIFE - MENSALISTA (ENCARGOS COMPLEMENTARES - COLETADO CAIXA) | E178: Material | G178: MES | H178: 1 | J178: 148.04 | K178: 148.04
A179: Insumo | B179: P9806 JAN/24 | C179: Próprio | D179: AUXILIAR ADMINISTRATIVO SEM ENCARGOS | E179: Mão de Obra | G179: MÊS | H179: 1 | J179: 2378.34 | K179: 2378.34
A180: Insumo | B180: P9806 JAN/24 | C180: Próprio | D180: AUXILIAR ADMINISTRATIVO SEM ENCARGOS | E180: Mão de Obra | G180: MÊS | H180: 0.7027 | J180: 2378.34 | K180: 1671.25
A181: Insumo | B181: P9806 JAN/24 | C181: Próprio | D181: AUXILIAR ADMINISTRATIVO SEM ENCARGOS | E181: Mão de Obra | G181: MÊS | H181: 0.00438 | J181: 2378.34 | K181: 10.41
E182: MO sem LS => | F182: 4060 | G182: LS => | H182: 0 | I182: MO com LS => | J182: 4060
E183: Valor do BDI => | F183: 1010.3 | H183: Valor com BDI => | J183: 5488.62
G184: Quant. => | H184: 38 | I184: Preço Total => | J184: 208567.56
A186: 1.1.6.2 | B186: Código | C186: Banco | D186: Descrição | E186: Tipo | G186: Und | H186: Quant. | I186: Porcent. | J186: Valor Unit | K186: Total
A187: Composição | B187: COMP-TEC-015 | C187: Próprio | D187: FAXINEIRO COM ENCARGOS SOCIAIS E COMPLEMENTARES | E187: SEDI - SERVIÇOS DIVERSOS | G187: MES | H187: 1 | J187: 2914.74 | K187: 2914.74
A188: Insumo | B188: 00040863 | C188: SINAPI | D188: EXAMES - MENSALISTA (COLETADO CAIXA - ENCARGOS COMPLEMENTARES) | E188: Material | G188: MES | H188: 1 | J188: 252.08 | K188: 252.08
A189: Insumo | B189: 00040864 | C189: SINAPI | D189: SEGURO - MENSALISTA (COLETADO CAIXA - ENCARGOS COMPLEMENTARES) | E189: Material | G189: MES | H189: 1 | J189: 7.31 | K189: 7.31
A190: Insumo | B190: 00043470 | C190: SINAPI | D190: FERRAMENTAS - FAMILIA ALMOXARIFE - MENSALISTA (ENCARGOS COMPLEMENTARES - COLETADO CAIXA) | E190: Material | G190: MES | H190: 1 | J190: 10.89 | K190: 10.89
A191: Insumo | B191: 00043494 | C191: SINAPI | D191: EPI - FAMILIA ALMOXARIFE - MENSALISTA (ENCARGOS COMPLEMENTARES - COLETADO CAIXA) | E191: Material | G191: MES | H191: 1 | J191: 148.04 | K191: 148.04
A192: Insumo | B192: P9842 JAN/24 | C192: Próprio | D192: FAXINEIRO SEM ENCARGOS | E192: Mão de Obra | G192: MÊS | H192: 1.7167 | J192: 1454.2 | K192: 2496.42
E193: MO sem LS => | F193: 2496.42 | G193: LS => | H193: 0 | I193: MO com LS => | J193: 2496.42
E194: Valor do BDI => | F194: 657.56 | H194: Valor com BDI => | J194: 3572.3
G195: Quant. => | H195: 19 | I195: Preço Total => | J195: 67873.7
A197: 1.2 | D197: PARCELA VINCULADA DA ADMINISTRAÇÃO LOCAL | K197: 3482108.98
A198: 1.2.1 | D198: TERRAPLENAGEM - MÃO DE OBRA | K198: 164970
A199: 1.2.1.1 | B199: Código | C199: Banco | D199: Descrição | E199: Tipo | G199: Und | H199: Quant. | I199: Porcent. | J199: Valor Unit | K199: Total
A200: Composição | B200: COMP-TEC-018 | C200: Próprio | D200: ENCARREGADO DE TERRAPLENAGEM COM ENCARGOS COMPLEMENTARES | E200: SEDI - SERVIÇOS DIVERSOS | G200: MES | H200: 1 | J200: 7477.97 | K200: 7477.97
A201: Insumo | B201: 00040863 | C201: SINAPI | D201: EXAMES - MENSALISTA (COLETADO CAIXA - ENCARGOS COMPLEMENTARES) | E201: Material | G201: MES | H201: 1 | J201: 252.08 | K201: 252.08
A202: Insumo | B202: 00040864 | C202: SINAPI | D202: SEGURO - MENSALISTA (COLETADO CAIXA - ENCARGOS COMPLEMENTARES) | E202: Material | G202: MES | H202: 1 | J202: 7.31 | K202: 7.31
A203: Insumo | B203: 00043475 | C203: SINAPI | D203: FERRAMENTAS - FAMILIA ENCARREGADO GERAL - MENSALISTA (ENCARGOS COMPLEMENTARES - COLETADO CAIXA) | E203: Material | G203: MES | H203: 1 | J203: 18.73 | K203: 18.73
A204: Insumo | B204: 00043499 | C204: SINAPI | D204: EPI - FAMILIA ENCARREGADO GERAL - MENSALISTA (ENCARGOS COMPLEMENTARES - COLETADO CAIXA) | E204: Material | G204: MES | H204: 1 | J204: 236.16 | K204: 236.16
A205: Insumo | B205: P9884 JAN/24 | C205: Próprio | D205: ENCARREGADO DE TERRAPLENAGEM SEM ENCARGOS | E205: Mão de Obra | G205: MÊS | H205: 1.7167 | J205: 4056.44 | K205: 6963.69
E206: MO sem LS => | F206: 6963.69 | G206: LS => | H206: 0 | I206: MO com LS => | J206: 6963.69
E207: Valor do BDI => | F207: 1687.03 | H207: Valor com BDI => | J207: 9165
G208: Quant. => | H208: 18 | I208: Preço Total => | J208: 164970
A210: 1.2.2 | D210: TOPOGRAFIA - MÃO DE OBRA | K210: 387861.06
A211: 1.2.2.1 | B211: Código | C211: Banco | D211: Descrição | E211: Tipo | G211: Und | H211: Quant. | I211: Porcent. | J211: Valor Unit | K211: Total
A212: Composição | B212: 94296 | C212: SINAPI | D212: TOPOGRAFO COM ENCARGOS COMPLEMENTARES | E212: SEDI - SERVIÇOS DIVERSOS | G212: MES | H212: 1 | J212: 6803.05 | K212: 6803.05
A213: Composição Auxiliar | B213: 95424 | C213: SINAPI | D213: CURSO DE CAPACITAÇÃO PARA TOPÓGRAFO (ENCARGOS COMPLEMENTARES) - MENSALISTA | E213: SEDI - SERVIÇOS DIVERSOS | G213: MES | H213: 1 | J213: 45.48 | K213: 45.48
A214: Insumo | B214: 40820 | C214: SINAPI | D214: TOPOGRAFO (MENSALISTA) | E214: Mão de Obra | G214: MES | H214: 1 | J214: 6352.47 | K214: 6352.47
A215: Insumo | B215: 40863 | C215: SINAPI | D215: EXAMES - MENSALISTA (COLETADO CAIXA - ENCARGOS COMPLEMENTARES) | E215: Material | G215: MES | H215: 1 | J215: 252.08 | K215: 252.08
... 3972 more rows

Sheet CPU ADM-CANTEIRO
C1: Obra | E1: Bancos | G1: B.D.I. | I1: Encargos Sociais
C2: Orçamento CPU ADM , MOBILIZAÇÃO E CANTEIRO - Canal Sertão Baiano | E2: SINAPI - 07/2024 - Bahia SBC - 08/2024 - Bahia SICRO3 - 04/2024 - Bahia ORSE - 06/2024 - Sergipe SEDOP - 05/2024 - Pará SEINFRA - 028 - Ceará SETOP - 04/2024 - Minas Gerais IOPES - 06/2024 - Espírito Santo SIURB - 01/2024 - São Paulo SIURB INFRA - 01/2024 - São Paulo SUDECAP - 04/2024 - Minas Gerais CPOS/CDHU - 06/2024 - São Paulo FDE - 04/2024 - São Paulo AGESUL - 06/2024 - Mato Grosso do Sul AGETOP CIVIL - 04/2024 - Goiás AGETOP RODOVIARIA - 04/2024 - Goiás CAEMA - 12/2019 - Maranhão EMBASA - 05/2024 - Bahia CAERN - 11/2023 - Rio Grande do Norte COMPESA - 07/2023 - Pernambuco EMOP - 07/2024 - Rio de Janeiro DERPR - 04/2024 - Paraná SCO - 07/2024 - Rio de Janeiro | G2: 22,56% | I2: Não Desonerado: embutido nos preços unitário dos insumos de mão de obra, de acordo com as bases.
A3: Planilha Orçamentária Analítica
A4: 1 | D4: ADMINISTRAÇÃO DE OBRAS | K4: 9949427.51
A5: 1.1 | D5: PARCELA FIXA DA ADMINISTRAÇÃO LOCAL | K5: 3522694.93
A6: 1.1.1 | D6: GERÊNCIA TÉCNICA GERAL - MÃO DE OBRA | K6: 1193113.93
A7: 1.1.1.1 | B7: Código | C7: Banco | D7: Descrição | E7: Tipo | G7: Und | H7: Quant. | I7: Porcent. | J7: Valor Unit | K7: Total
A8: Composição | B8: 93568 | C8: SINAPI | D8: ENGENHEIRO CIVIL DE OBRA SENIOR COM ENCARGOS COMPLEMENTARES | E8: SEDI - SERVIÇOS DIVERSOS | G8: MES | H8: 1 | J8: 24274.91 | K8: 24274.91
A9: Composição Auxiliar | B9: 95418 | C9: SINAPI | D9: CURSO DE CAPACITAÇÃO PARA ENGENHEIRO CIVIL DE OBRA SÊNIOR (ENCARGOS COMPLEMENTARES) - MENSALISTA | E9: SEDI - SERVIÇOS DIVERSOS | G9: MES | H9: 1 | J9: 299.61 | K9: 299.61
A10: Insumo | B10: 00040814 | C10: SINAPI | D10: ENGENHEIRO CIVIL DE OBRA SENIOR (MENSALISTA) | E10: Mão de Obra | G10: MES | H10: 1 | J10: 23573.39 | K10: 23573.39
A11: Insumo | B11: 00040863 | C11: SINAPI | D11: EXAMES - MENSALISTA (COLETADO CAIXA - ENCARGOS COMPLEMENTARES) | E11: Material | G11: MES | H11: 1 | J11: 252.08 | K11: 252.08
A12: Insumo | B12: 00040864 | C12: SINAPI | D12: SEGURO - MENSALISTA (COLETADO CAIXA - ENCARGOS COMPLEMENTARES) | E12: Material | G12: MES | H12: 1 | J12: 7.31 | K12: 7.31
A13: Insumo | B13: 00043474 | C13: SINAPI | D13: FERRAMENTAS - FAMILIA ENGENHEIRO CIVIL - MENSALISTA (ENCARGOS COMPLEMENTARES - COLETADO CAIXA) | E13: Material | G13: MES | H13: 1 | J13: 2.29 | K13: 2.29
A14: Insumo | B14: 00043498 | C14: SINAPI | D14: EPI - FAMILIA ENGENHEIRO CIVIL - MENSALISTA (ENCARGOS COMPLEMENTARES - COLETADO CAIXA) | E14: Material | G14: MES | H14: 1 | J14: 140.23 | K14: 140.23
E15: MO sem LS => | F15: 23873 | G15: LS => | H15: 0 | I15: MO com LS => | J15: 23873
E16: Valor do BDI => | F16: 5476.41 | H16: Valor com BDI => | J16: 29751.32
G17: Quant. => | H17: 20 | I17: Preço Total => | J17: 595026.4
A19: 1.1.1.2 | B19: Código | C19: Banco | D19: Descrição | E19: Tipo | G19: Und | H19: Quant. | I19: Porcent. | J19: Valor Unit | K19: Total
A20: Composição | B20: 93572 | C20: SINAPI | D20: ENCARREGADO GERAL DE OBRAS COM ENCARGOS COMPLEMENTARES | E20: SEDI - SERVIÇOS DIVERSOS | G20: MES | H20: 1 | J20: 6778.92 | K20: 6778.92
A21: Composição Auxiliar | B21: 95422 | C21: SINAPI | D21: CURSO DE CAPACITAÇÃO PARA ENCARREGADO GERAL DE OBRAS (ENCARGOS COMPLEMENTARES) - MENSALISTA | E21: SEDI - SERVIÇOS DIVERSOS | G21: MES | H21: 1 | J21: 112.34 | K21: 112.34
A22: Insumo | B22: 00040818 | C22: SINAPI | D22: ENCARREGADO GERAL DE OBRAS (MENSALISTA) | E22: Mão de Obra | G22: MES | H22: 1 | J22: 6152.3 | K22: 6152.3
A23: Insumo | B23: 00040863 | C23: SINAPI | D23: EXAMES - MENSALISTA (COLETADO CAIXA - ENCARGOS COMPLEMENTARES) | E23: Material | G23: MES | H23: 1 | J23: 252.08 | K23: 252.08
A24: Insumo | B24: 00040864 | C24: SINAPI | D24: SEGURO - MENSALISTA (COLETADO CAIXA - ENCARGOS COMPLEMENTARES) | E24: Material | G24: MES | H24: 1 | J24: 7.31 | K24: 7.31
A25: Insumo | B25: 00043475 | C25: SINAPI | D25: FERRAMENTAS - FAMILIA ENCARREGADO GERAL - MENSALISTA (ENCARGOS COMPLEMENTARES - COLETADO CAIXA) | E25: Material | G25: MES | H25: 1 | J25: 18.73 | K25: 18.73
A26: Insumo | B26: 00043499 | C26: SINAPI | D26: EPI - FAMILIA ENCARREGADO GERAL - MENSALISTA (ENCARGOS COMPLEMENTARES - COLETADO CAIXA) | E26: Material | G26: MES | H26: 1 | J26: 236.16 | K26: 236.16
E27: MO sem LS => | F27: 6264.64 | G27: LS => | H27: 0 | I27: MO com LS => | J27: 6264.64
E28: Valor do BDI => | F28: 1529.32 | H28: Valor com BDI => | J28: 8308.24
G29: Quant. => | H29: 20 | I29: Preço Total => | J29: 166164.8
A31: 1.1.1.3 | B31: Código | C31: Banco | D31: Descrição | E31: Tipo | G31: Und | H31: Quant. | I31: Porcent. | J31: Valor Unit | K31: Total
A32: Composição | B32: COMP-TEC-020 | C32: Próprio | D32: TÉCNICO DE MEIO AMBIENTE COM ENCARGOS COMPLEMENTARES E ENCARGOS SOCIAIS | E32: SEDI - SERVIÇOS DIVERSOS | G32: MÊS | H32: 1 | J32: 6414.23 | K32: 6414.23
A33: Insumo | B33: P9897 JAN/24 | C33: Próprio | D33: TÉCNICO DE MEIO AMBIENTE SEM ENCARGOS | E33: Mão de Obra | G33: MÊS | H33: 1.7027 | J33: 3529.18 | K33: 6009.13
A34: Insumo | B34: 00043505 | C34: SINAPI | D34: EPI - FAMILIA TOPOGRAFO - MENSALISTA (ENCARGOS COMPLEMENTARES - COLETADO CAIXA) | E34: Material | G34: MES | H34: 1 | J34: 132.94 | K34: 132.94
A35: Insumo | B35: 00043481 | C35: SINAPI | D35: FERRAMENTAS - FAMILIA TOPOGRAFO - MENSALISTA (ENCARGOS COMPLEMENTARES - COLETADO CAIXA) | E35: Material | G35: MES | H35: 1 | J35: 12.77 | K35: 12.77
A36: Insumo | B36: 00040863 | C36: SINAPI | D36: EXAMES - MENSALISTA (COLETADO CAIXA - ENCARGOS COMPLEMENTARES) | E36: Material | G36: MES | H36: 1 | J36: 252.08 | K36: 252.08
A37: Insumo | B37: 00040864 | C37: SINAPI | D37: SEGURO - MENSALISTA (COLETADO CAIXA - ENCARGOS COMPLEMENTARES) | E37: Material | G37: MES | H37: 1 | J37: 7.31 | K37: 7.31
E38: MO sem LS => | F38: 6009.13 | G38: LS => | H38: 0 | I38: MO com LS => | J38: 6009.13
E39: Valor do BDI => | F39: 1447.05 | H39: Valor com BDI => | J39: 7861.28
G40: Quant. => | H40: 18 | I40: Preço Total => | J40: 141503.04
A42: 1.1.1.4 | B42: Código | C42: Banco | D42: Descrição | E42: Tipo | G42: Und | H42: Quant. | I42: Porcent. | J42: Valor Unit | K42: Total
A43: Composição | B43: COMP-TEC-028 | C43: Próprio | D43: MOTORISTA DE ÔNIBUS COM ENCARGOS COMPLEMENTARES | E43: SEDI - SERVIÇOS DIVERSOS | G43: MES | H43: 1 | J43: 6929.31 | K43: 6929.31
A44: Composição Auxiliar | B44: 101328 | C44: SINAPI | D44: CURSO DE CAPACITAÇÃO PARA MOTORISTA DE CAMINHAO-CARRETA (ENCARGOS COMPLEMENTARES) - MENSALISTA | E44: SEDI - SERVIÇOS DIVERSOS | G44: MES | H44: 1 | J44: 23.97 | K44: 23.97
A45: Insumo | B45: 00040861 | C45: SINAPI | D45: TRANSPORTE - MENSALISTA (COLETADO CAIXA - ENCARGOS COMPLEMENTARES) | E45: Material | G45: MES | H45: 1 | J45: 150.72 | K45: 150.72
A46: Insumo | B46: 00040862 | C46: SINAPI | D46: ALIMENTACAO - MENSALISTA (COLETADO CAIXA - ENCARGOS COMPLEMENTARES) | E46: Material | G46: MES | H46: 1 | J46: 859.55 | K46: 859.55
A47: Insumo | B47: 00040863 | C47: SINAPI | D47: EXAMES - MENSALISTA (COLETADO CAIXA - ENCARGOS COMPLEMENTARES) | E47: Material | G47: MES | H47: 1 | J47: 252.08 | K47: 252.08
A48: Insumo | B48: 00040864 | C48: SINAPI | D48: SEGURO - MENSALISTA (COLETADO CAIXA - ENCARGOS COMPLEMENTARES) | E48: Material | G48: MES | H48: 1 | J48: 7.31 | K48: 7.31
A49: Insumo | B49: 00040988 | C49: SINAPI | D49: MOTORISTA DE CAMINHAO-CARRETA (MENSALISTA) | E49: Mão de Obra | G49: MES | H49: 1 | J49: 5472.7 | K49: 5472.7
A50: Insumo | B50: 00043476 | C50: SINAPI | D50: FERRAMENTAS - FAMILIA OPERADOR ESCAVADEIRA - MENSALISTA (ENCARGOS COMPLEMENTARES - COLETADO CAIXA) | E50: Material | G50: MES | H50: 1 | J50: 0.01 | K50: 0.01
A51: Insumo | B51: 00043500 | C51: SINAPI | D51: EPI - FAMILIA OPERADOR ESCAVADEIRA - MENSALISTA (ENCARGOS COMPLEMENTARES - COLETADO CAIXA) | E51: Material | G51: MES | H51: 1 | J51: 162.97 | K51: 162.97
E52: MO sem LS => | F52: 5496.67 | G52: LS => | H52: 0 | I52: MO com LS => | J52: 5496.67
E53: Valor do BDI => | F53: 1563.25 | H53: Valor com BDI => | J53: 8492.56
G54: Quant. => | H54: 20 | I54: Preço Total => | J54: 169851.2
A56: 1.1.1.5 | B56: Código | C56: Banco | D56: Descrição | E56: Tipo | G56: Und | H56: Quant. | I56: Porcent. | J56: Valor Unit | K56: Total
A57: Composição | B57: COMP-TEC-011 | C57: Próprio | D57: SECRETÁRIA COM ENCARGOS SOCIAIS E COMPLEMENTARES | E57: SEDI - SERVIÇOS DIVERSOS | G57: MES | H57: 1 | J57: 5177.64 | K57: 5177.64
A58: Insumo | B58: 00040863 | C58: SINAPI | D58: EXAMES - MENSALISTA (COLETADO CAIXA - ENCARGOS COMPLEMENTARES) | E58: Material | G58: MES | H58: 1 | J58: 252.08 | K58: 252.08
A59: Insumo | B59: 00040864 | C59: SINAPI | D59: SEGURO - MENSALISTA (COLETADO CAIXA - ENCARGOS COMPLEMENTARES) | E59: Material | G59: MES | H59: 1 | J59: 7.31 | K59: 7.31
A60: Insumo | B60: 00043470 | C60: SINAPI | D60: FERRAMENTAS - FAMILIA ALMOXARIFE - MENSALISTA (ENCARGOS COMPLEMENTARES - COLETADO CAIXA) | E60: Material | G60: MES | H60: 1 | J60: 10.89 | K60: 10.89
A61: Insumo | B61: 00043494 | C61: SINAPI | D61: EPI - FAMILIA ALMOXARIFE - MENSALISTA (ENCARGOS COMPLEMENTARES - COLETADO CAIXA) | E61: Material | G61: MES | H61: 1 | J61: 148.04 | K61: 148.04
A62: Insumo | B62: P9878 JAN/24 | C62: Próprio | D62: SECRETÁRIA SEM ENCARGOS | E62: Mão de Obra | G62: MÊS | H62: 1.7167 | J62: 2772.37 | K62: 4759.32
E63: MO sem LS => | F63: 4759.32 | G63: LS => | H63: 0 | I63: MO com LS => | J63: 4759.32
E64: Valor do BDI => | F64: 1168.07 | H64: Valor com BDI => | J64: 6345.71
G65: Quant. => | H65: 19 | I65: Preço Total => | J65: 120568.49
A67: 1.1.2 | D67: GERÊNCIA TÉCNICA GERAL - VEÍCULOS | K67: 1014653.2
A68: 1.1.2.1 | B68: Código | C68: Banco | D68: Descrição | E68: Tipo | G68: Und | H68: Quant. | I68: Porcent. | J68: Valor Unit | K68: Total
A69: Composição | B69: E9684 MÊS | C69: Próprio | D69: VEÍCULO LEVE PICK UP 4X4 - 147 KW (SEM MOTORISTA) | E69: SEOP - SERVIÇOS OPERACIONAIS | G69: MÊS | H69: 1 | J69: 7535.72 | K69: 7535.72
A70: A | B70: Código | C70: Banco | D70: Equipamentos | E70: Quantidade | F70: Utilização | H70: Custo Operacional | J70: Custo Horário
F71: Operativa | G71: Improdutiva | H71: Operativa | I71: Improdutiva
A72: Insumo | B72: E9684 | C72: SICRO3 | D72: Veículo leve picape 4 x 4 com capacidade de 1,10 t - 147 kW | E72: 1 | F72: 44 | G72: 176 | H72: 107.6198 | I72: 53.339 | J72: 14122.9352
F73: Custo Horário de Equipamentos => | J73: 14122.9352
A74: B | B74: Código | C74: Banco | D74: Mão de Obra | E74: Quantidade | F74: Salário Hora | J74: Custo Horário
A75: Insumo | B75: P9870 | C75: SICRO3 | D75: Motorista de veículo leve | E75: -220 | I75: 29.9419 | J75: -6587.218
F76: Custo Horário da Mão de Obra => | J76: -6587.218
F77: Custo Horário de Execução => | J77: 7535.7172
F78: Fator de Influencia da Chuva - FIC => | J78: 0
F79: Custo do FIC => | J79: 0
F80: Produção de Equipe => | J80: 1
F81: Custo Unitário de Execução => | J81: 7535.7172
E82: MO sem LS => | F82: -6587.218 | G82: LS => | H82: 0 | I82: MO com LS => | J82: -6587.218
E83: Valor do BDI => | F83: 1700.05 | H83: Valor com BDI => | J83: 9235.77
G84: Quant. => | H84: 20 | I84: Preço Total => | J84: 184715.4
A86: 1.1.2.2 | B86: Código | C86: Banco | D86: Descrição | E86: Tipo | G86: Und | H86: Quant. | I86: Porcent. | J86: Valor Unit | K86: Total
A87: Composição | B87: E9560-MÊS | C87: Próprio | D87: ÔNIBUS COM CAPACIDADE PARA 80 PASSAGEIROS - 175 KW | E87: CHOR - CUSTOS HORÁRIOS DE MÁQUINAS E EQUIPAMENTOS | G87: MÊS | H87: 1 | J87: 33858.43 | K87: 33858.43
A88: A | B88: Código | C88: Banco | D88: Equipamentos | E88: Quantidade | F88: Utilização | H88: Custo Operacional | J88: Custo Horário
F89: Operativa | G89: Improdutiva | H89: Operativa | I89: Improdutiva
A90: Insumo | B90: E9560 | C90: SICRO3 | D90: Ônibus com capacidade para 80 passageiros - 175 kW | E90: 1 | F90: 44 | G90: 176 | H90: 346.961 | I90: 105.6372 | J90: 33858.4312
F91: Custo Horário de Equipamentos => | J91: 33858.4312
F92: Custo Horário de Execução => | J92: 33858.4312
F93: Fator de Influencia da Chuva - FIC => | J93: 0
F94: Custo do FIC => | J94: 0
F95: Produção de Equipe => | J95: 1
F96: Custo Unitário de Execução => | J96: 33858.4312
E97: MO sem LS => | F97: 0 | G97: LS => | H97: 0 | I97: MO com LS => | J97: 0
E98: Valor do BDI => | F98: 7638.46 | H98: Valor com BDI => | J98: 41496.89
G99: Quant. => | H99: 20 | I99: Preço Total => | J99: 829937.8
A101: 1.1.3 | D101: GERÊNCIA TÉCNICA AUXILIAR - MÃO DE OBRA | K101: 377767.6
A102: 1.1.3.1 | B102: Código | C102: Banco | D102: Descrição | E102: Tipo | G102: Und | H102: Quant. | I102: Porcent. | J102: Valor Unit | K102: Total
A103: Composição | B103: 101390 | C103: SINAPI | D103: AUXILIAR TÉCNICO / ASSISTENTE DE ENGENHARIA COM ENCARGOS COMPLEMENTARES | E103: SEDI - SERVIÇOS DIVERSOS | G103: MES | H103: 1 | J103: 7705.77 | K103: 7705.77
A104: Composição Auxiliar | B104: 101302 | C104: SINAPI | D104: CURSO DE CAPACITAÇÃO PARA AUXILIAR TÉCNICO DE ENGENHARIA (ENCARGOS COMPLEMENTARES) - MENSALISTA | E104: SEDI - SERVIÇOS DIVERSOS | G104: MES | H104: 1 | J104: 51.92 | K104: 51.92
A105: Insumo | B105: 00040863 | C105: SINAPI | D105: EXAMES - MENSALISTA (COLETADO CAIXA - ENCARGOS COMPLEMENTARES) | E105: Material | G105: MES | H105: 1 | J105: 252.08 | K105: 252.08
A106: Insumo | B106: 00040864 | C106: SINAPI | D106: SEGURO - MENSALISTA (COLETADO CAIXA - ENCARGOS COMPLEMENTARES) | E106: Material | G106: MES | H106: 1 | J106: 7.31 | K106: 7.31
A107: Insumo | B107: 00040931 | C107: SINAPI | D107: AUXILIAR TECNICO / ASSISTENTE DE ENGENHARIA (MENSALISTA) | E107: Mão de Obra | G107: MES | H107: 1 | J107: 7251.94 | K107: 7251.94
A108: Insumo | B108: 00043474 | C108: SINAPI | D108: FERRAMENTAS - FAMILIA ENGENHEIRO CIVIL - MENSALISTA (ENCARGOS COMPLEMENTARES - COLETADO CAIXA) | E108: Material | G108: MES | H108: 1 | J108: 2.29 | K108: 2.29
A109: Insumo | B109: 00043498 | C109: SINAPI | D109: EPI - FAMILIA ENGENHEIRO CIVIL - MENSALISTA (ENCARGOS COMPLEMENTARES - COLETADO CAIXA) | E109: Material | G109: MES | H109: 1 | J109: 140.23 | K109: 140.23
E110: MO sem LS => | F110: 7303.86 | G110: LS => | H110: 0 | I110: MO com LS => | J110: 7303.86
E111: Valor do BDI => | F111: 1738.42 | H111: Valor com BDI => | J111: 9444.19
G112: Quant. => | H112: 40 | I112: Preço Total => | J112: 377767.6
A114: 1.1.4 | D114: GERÊNCIA ADMINISTRATIVA GERAL - MÃO DE OBRA | K114: 600561.14
A115: 1.1.4.1 | B115: Código | C115: Banco | D115: Descrição | E115: Tipo | G115: Und | H115: Quant. | I115: Porcent. | J115: Valor Unit | K115: Total
A116: Composição | B116: COMP-TEC-029 | C116: Próprio | D116: CHEFE DO SETOR ADMINISTRATIVO COM ENCARGOS SOCIAIS E COMPLEMENTARES E.S. 71,67% | E116: SEDI - SERVIÇOS DIVERSOS | G116: MES | H116: 1 | J116: 6979.82 | K116: 6979.82
A117: Insumo | B117: 00040863 | C117: SINAPI | D117: EXAMES - MENSALISTA (COLETADO CAIXA - ENCARGOS COMPLEMENTARES) | E117: Material | G117: MES | H117: 1 | J117: 252.08 | K117: 252.08
A118: Insumo | B118: 00040864 | C118: SINAPI | D118: SEGURO - MENSALISTA (COLETADO CAIXA - ENCARGOS COMPLEMENTARES) | E118: Material | G118: MES | H118: 1 | J118: 7.31 | K118: 7.31
A119: Insumo | B119: 00043470 | C119: SINAPI | D119: FERRAMENTAS - FAMILIA ALMOXARIFE - MENSALISTA (ENCARGOS COMPLEMENTARES - COLETADO CAIXA) | E119: Material | G119: MES | H119: 1 | J119: 10.89 | K119: 10.89
A120: Insumo | B120: 00043494 | C120: SINAPI | D120: EPI - FAMILIA ALMOXARIFE - MENSALISTA (ENCARGOS COMPLEMENTARES - COLETADO CAIXA) | E120: Material | G120: MES | H120: 1 | J120: 148.04 | K120: 148.04
A121: Insumo | B121: P9883 JAN/24 | C121: Próprio | D121: CHEFE DO SETOR ADMINISTRATIVO SEM ENCARGOS | E121: Mão de Obra | G121: MÊS | H121: 1 | J121: 3812.44 | K121: 3812.44
A122: Insumo | B122: P9883 JAN/24 | C122: Próprio | D122: CHEFE DO SETOR ADMINISTRATIVO SEM ENCARGOS | E122: Mão de Obra | G122: MÊS | H122: 0.7167 | J122: 3812.44 | K122: 2732.37
A123: Insumo | B123: P9883 JAN/24 | C123: Próprio | D123: CHEFE DO SETOR ADMINISTRATIVO SEM ENCARGOS | E123: Mão de Obra | G123: MÊS | H123: 0.00438 | J123: 3812.44 | K123: 16.69
E124: MO sem LS => | F124: 6561.5 | G124: LS => | H124: 0 | I124: MO com LS => | J124: 6561.5
E125: Valor do BDI => | F125: 1574.64 | H125: Valor com BDI => | J125: 8554.46
G126: Quant. => | H126: 19 | I126: Preço Total => | J126: 162534.74
A128: 1.1.4.2 | B128: Código | C128: Banco | D128: Descrição | E128: Tipo | G128: Und | H128: Quant. | I128: Porcent. | J128: Valor Unit | K128: Total
A129: Composição | B129: COMP-TEC-012 | C129: Próprio | D129: PORTEIRO COM ENCARGOS SOCIAIS E COMPLEMENTARES | E129: SEDI - SERVIÇOS DIVERSOS | G129: MES | H129: 1 | J129: 4131.04 | K129: 4131.04
A130: Insumo | B130: 00040863 | C130: SINAPI | D130: EXAMES - MENSALISTA (COLETADO CAIXA - ENCARGOS COMPLEMENTARES) | E130: Material | G130: MES | H130: 1 | J130: 252.08 | K130: 252.08
A131: Insumo | B131: 00040864 | C131: SINAPI | D131: SEGURO - MENSALISTA (COLETADO CAIXA - ENCARGOS COMPLEMENTARES) | E131: Material | G131: MES | H131: 1 | J131: 7.31 | K131: 7.31
A132: Insumo | B132: 00040861 | C132: SINAPI | D132: TRANSPORTE - MENSALISTA (COLETADO CAIXA - ENCARGOS COMPLEMENTARES) | E132: Material | G132: MES | H132: 1 | J132: 150.72 | K132: 150.72
A133: Insumo | B133: 00040862 | C133: SINAPI | D133: ALIMENTACAO - MENSALISTA (COLETADO CAIXA - ENCARGOS COMPLEMENTARES) | E133: Material | G133: MES | H133: 1 | J133: 859.55 | K133: 859.55
A134: Insumo | B134: 00043479 | C134: SINAPI | D134: FERRAMENTAS - FAMILIA SERVENTE - MENSALISTA (ENCARGOS COMPLEMENTARES - COLETADO CAIXA) | E134: Material | G134: MES | H134: 1 | J134: 114.72 | K134: 114.72
A135: Insumo | B135: 00043503 | C135: SINAPI | D135: EPI - FAMILIA SERVENTE - MENSALISTA (ENCARGOS COMPLEMENTARES - COLETADO CAIXA) | E135: Material | G135: MES | H135: 1 | J135: 250.24 | K135: 250.24
A136: Insumo | B136: P9896 JAN/24 | C136: Próprio | D136: PORTEIRO SEM ENCARGOS | E136: Mão de Obra | G136: MÊS | H136: 1.7167 | J136: 1454.2 | K136: 2496.42
E137: MO sem LS => | F137: 2496.42 | G137: LS => | H137: 0 | I137: MO com LS => | J137: 2496.42
E138: Valor do BDI => | F138: 931.96 | H138: Valor com BDI => | J138: 5063
G139: Quant. => | H139: 38 | I139: Preço Total => | J139: 192394
A141: 1.1.4.3 | B141: Código | C141: Banco | D141: Descrição | E141: Tipo | G141: Und | H141: Quant. | I141: Porcent. | J141: Valor Unit | K141: Total
A142: Composição | B142: COMP-TEC-013 | C142: Próprio | D142: VIGIA COM ENCARGOS COMPLEMENTARES E ADICIONAL DE PERICULOSIDADE | E142: SEDI - SERVIÇOS DIVERSOS | G142: MES | H142: 1 | J142: 5010.46 | K142: 5010.46
A143: Composição Auxiliar | B143: 101372 | C143: SINAPI | D143: CURSO DE CAPACITAÇÃO PARA VIGIA DIURNO (ENCARGOS COMPLEMENTARES) - MENSALISTA | E143: SEDI - SERVIÇOS DIVERSOS | G143: MES | H143: 1 | J143: 11.33 | K143: 11.33
A144: Insumo | B144: 00040861 | C144: SINAPI | D144: TRANSPORTE - MENSALISTA (COLETADO CAIXA - ENCARGOS COMPLEMENTARES) | E144: Material | G144: MES | H144: 1 | J144: 150.72 | K144: 150.72
A145: Insumo | B145: 00040862 | C145: SINAPI | D145: ALIMENTACAO - MENSALISTA (COLETADO CAIXA - ENCARGOS COMPLEMENTARES) | E145: Material | G145: MES | H145: 1 | J145: 859.55 | K145: 859.55
A146: Insumo | B146: 00040863 | C146: SINAPI | D146: EXAMES - MENSALISTA (COLETADO CAIXA - ENCARGOS COMPLEMENTARES) | E146: Material | G146: MES | H146: 1 | J146: 252.08 | K146: 252.08
A147: Insumo | B147: 00040864 | C147: SINAPI | D147: SEGURO - MENSALISTA (COLETADO CAIXA - ENCARGOS COMPLEMENTARES) | E147: Material | G147: MES | H147: 1 | J147: 7.31 | K147: 7.31
A148: Insumo | B148: 00041096 | C148: SINAPI | D148: VIGIA DIURNO (MENSALISTA) | E148: Mão de Obra | G148: MES | H148: 1 | J148: 2588.09 | K148: 2588.09
A149: Insumo | B149: 00043479 | C149: SINAPI | D149: FERRAMENTAS - FAMILIA SERVENTE - MENSALISTA (ENCARGOS COMPLEMENTARES - COLETADO CAIXA) | E149: Material | G149: MES | H149: 1 | J149: 114.72 | K149: 114.72
A150: Insumo | B150: 00043503 | C150: SINAPI | D150: EPI - FAMILIA SERVENTE - MENSALISTA (ENCARGOS COMPLEMENTARES - COLETADO CAIXA) | E150: Material | G150: MES | H150: 1 | J150: 250.24 | K150: 250.24
A151: Insumo | B151: 00041096 | C151: SINAPI | D151: VIGIA DIURNO (MENSALISTA) | E151: Mão de Obra | G151: MES | H151: 0.3 | J151: 2588.09 | K151: 776.42
E152: MO sem LS => | F152: 3375.84 | G152: LS => | H152: 0 | I152: MO com LS => | J152: 3375.84
E153: Valor do BDI => | F153: 1130.35 | H153: Valor com BDI => | J153: 6140.81
G154: Quant. => | H154: 40 | I154: Preço Total => | J154: 245632.4
A156: 1.1.5 | D156: GERÊNCIA ADMINISTRATIVA GERAL - VEÍCULOS | K156: 60157.8
A157: 1.1.5.1 | B157: Código | C157: Banco | D157: Descrição | E157: Tipo | G157: Und | H157: Quant. | I157: Porcent. | J157: Valor Unit | K157: Total
A158: Composição | B158: E9093 MÊS | C158: Próprio | D158: VEICULO LEVE - 53 KW (SEM MOTORISTA) | E158: CHOR - CUSTOS HORÁRIOS DE MÁQUINAS E EQUIPAMENTOS | G158: MÊS | H158: 1 | J158: 2583.39 | K158: 2583.39
A159: A | B159: Código | C159: Banco | D159: Equipamentos | E159: Quantidade | F159: Utilização | H159: Custo Operacional | J159: Custo Horário
F160: Operativa | G160: Improdutiva | H160: Operativa | I160: Improdutiva
A161: Insumo | B161: E9093 | C161: SICRO3 | D161: Veículo leve - 53 kW (sem motorista) | E161: 1 | F161: 44 | G161: 176 | H161: 34.3798 | I161: 6.0834 | J161: 2583.3896
F162: Custo Horário de Equipamentos => | J162: 2583.3896
F163: Custo Horário de Execução => | J163: 2583.3896
F164: Fator de Influencia da Chuva - FIC => | J164: 0
F165: Custo do FIC => | J165: 0
F166: Produção de Equipe => | J166: 1
F167: Custo Unitário de Execução => | J167: 2583.3896
E168: MO sem LS => | F168: 0 | G168: LS => | H168: 0 | I168: MO com LS => | J168: 0
E169: Valor do BDI => | F169: 582.81 | H169: Valor com BDI => | J169: 3166.2
G170: Quant. => | H170: 19 | I170: Preço Total => | J170: 60157.8
A172: 1.1.6 | D172: GERÊNCIA ADMINISTRATIVA AUXILIAR - MÃO DE OBRA | K172: 276441.26
A173: 1.1.6.1 | B173: Código | C173: Banco | D173: Descrição | E173: Tipo | G173: Und | H173: Quant. | I173: Porcent. | J173: Valor Unit | K173: Total
A174: Composição | B174: COMP-TEC-014 | C174: Próprio | D174: AUXILIAR ADMINISTRATIVO COM ENCARGOS SOCIAIS E COMPLEMENTARES | E174: SEDI - SERVIÇOS DIVERSOS | G174: MES | H174: 1 | J174: 4478.32 | K174: 4478.32
A175: Insumo | B175: 00040863 | C175: SINAPI | D175: EXAMES - MENSALISTA (COLETADO CAIXA - ENCARGOS COMPLEMENTARES) | E175: Material | G175: MES | H175: 1 | J175: 252.08 | K175: 252.08
A176: Insumo | B176: 00040864 | C176: SINAPI | D176: SEGURO - MENSALISTA (COLETADO CAIXA - ENCARGOS COMPLEMENTARES) | E176: Material | G176: MES | H176: 1 | J176: 7.31 | K176: 7.31
A177: Insumo | B177: 00043470 | C177: SINAPI | D177: FERRAMENTAS - FAMILIA ALMOXARIFE - MENSALISTA (ENCARGOS COMPLEMENTARES - COLETADO CAIXA) | E177: Material | G177: MES | H177: 1 | J177: 10.89 | K177: 10.89
A178: Insumo | B178: 00043494 | C178: SINAPI | D178: EPI - FAMILIA ALMOXARIFE - MENSALISTA (ENCARGOS COMPLEMENTARES - COLETADO CAIXA) | E178: Material | G178: MES | H178: 1 | J178: 148.04 | K178: 148.04
A179: Insumo | B179: P9806 JAN/24 | C179: Próprio | D179: AUXILIAR ADMINISTRATIVO SEM ENCARGOS | E179: Mão de Obra | G179: MÊS | H179: 1 | J179: 2378.34 | K179: 2378.34
A180: Insumo | B180: P9806 JAN/24 | C180: Próprio | D180: AUXILIAR ADMINISTRATIVO SEM ENCARGOS | E180: Mão de Obra | G180: MÊS | H180: 0.7027 | J180: 2378.34 | K180: 1671.25
A181: Insumo | B181: P9806 JAN/24 | C181: Próprio | D181: AUXILIAR ADMINISTRATIVO SEM ENCARGOS | E181: Mão de Obra | G181: MÊS | H181: 0.00438 | J181: 2378.34 | K181: 10.41
E182: MO sem LS => | F182: 4060 | G182: LS => | H182: 0 | I182: MO com LS => | J182: 4060
E183: Valor do BDI => | F183: 1010.3 | H183: Valor com BDI => | J183: 5488.62
G184: Quant. => | H184: 38 | I184: Preço Total => | J184: 208567.56
A186: 1.1.6.2 | B186: Código | C186: Banco | D186: Descrição | E186: Tipo | G186: Und | H186: Quant. | I186: Porcent. | J186: Valor Unit | K186: Total
A187: Composição | B187: COMP-TEC-015 | C187: Próprio | D187: FAXINEIRO COM ENCARGOS SOCIAIS E COMPLEMENTARES | E187: SEDI - SERVIÇOS DIVERSOS | G187: MES | H187: 1 | J187: 2914.74 | K187: 2914.74
A188: Insumo | B188: 00040863 | C188: SINAPI | D188: EXAMES - MENSALISTA (COLETADO CAIXA - ENCARGOS COMPLEMENTARES) | E188: Material | G188: MES | H188: 1 | J188: 252.08 | K188: 252.08
A189: Insumo | B189: 00040864 | C189: SINAPI | D189: SEGURO - MENSALISTA (COLETADO CAIXA - ENCARGOS COMPLEMENTARES) | E189: Material | G189: MES | H189: 1 | J189: 7.31 | K189: 7.31
A190: Insumo | B190: 00043470 | C190: SINAPI | D190: FERRAMENTAS - FAMILIA ALMOXARIFE - MENSALISTA (ENCARGOS COMPLEMENTARES - COLETADO CAIXA) | E190: Material | G190: MES | H190: 1 | J190: 10.89 | K190: 10.89
A191: Insumo | B191: 00043494 | C191: SINAPI | D191: EPI - FAMILIA ALMOXARIFE - MENSALISTA (ENCARGOS COMPLEMENTARES - COLETADO CAIXA) | E191: Material | G191: MES | H191: 1 | J191: 148.04 | K191: 148.04
A192: Insumo | B192: P9842 JAN/24 | C192: Próprio | D192: FAXINEIRO SEM ENCARGOS | E192: Mão de Obra | G192: MÊS | H192: 1.7167 | J192: 1454.2 | K192: 2496.42
E193: MO sem LS => | F193: 2496.42 | G193: LS => | H193: 0 | I193: MO com LS => | J193: 2496.42
E194: Valor do BDI => | F194: 657.56 | H194: Valor com BDI => | J194: 3572.3
G195: Quant. => | H195: 19 | I195: Preço Total => | J195: 67873.7
A197: 1.2 | D197: PARCELA VINCULADA DA ADMINISTRAÇÃO LOCAL | K197: 3482108.98
A198: 1.2.1 | D198: TERRAPLENAGEM - MÃO DE OBRA | K198: 164970
A199: 1.2.1.1 | B199: Código | C199: Banco | D199: Descrição | E199: Tipo | G199: Und | H199: Quant. | I199: Porcent. | J199: Valor Unit | K199: Total
A200: Composição | B200: COMP-TEC-018 | C200: Próprio | D200: ENCARREGADO DE TERRAPLENAGEM COM ENCARGOS COMPLEMENTARES | E200: SEDI - SERVIÇOS DIVERSOS | G200: MES | H200: 1 | J200: 7477.97 | K200: 7477.97
A201: Insumo | B201: 00040863 | C201: SINAPI | D201: EXAMES - MENSALISTA (COLETADO CAIXA - ENCARGOS COMPLEMENTARES) | E201: Material | G201: MES | H201: 1 | J201: 252.08 | K201: 252.08
A202: Insumo | B202: 00040864 | C202: SINAPI | D202: SEGURO - MENSALISTA (COLETADO CAIXA - ENCARGOS COMPLEMENTARES) | E202: Material | G202: MES | H202: 1 | J202: 7.31 | K202: 7.31
A203: Insumo | B203: 00043475 | C203: SINAPI | D203: FERRAMENTAS - FAMILIA ENCARREGADO GERAL - MENSALISTA (ENCARGOS COMPLEMENTARES - COLETADO CAIXA) | E203: Material | G203: MES | H203: 1 | J203: 18.73 | K203: 18.73
A204: Insumo | B204: 00043499 | C204: SINAPI | D204: EPI - FAMILIA ENCARREGADO GERAL - MENSALISTA (ENCARGOS COMPLEMENTARES - COLETADO CAIXA) | E204: Material | G204: MES | H204: 1 | J204: 236.16 | K204: 236.16
A205: Insumo | B205: P9884 JAN/24 | C205: Próprio | D205: ENCARREGADO DE TERRAPLENAGEM SEM ENCARGOS | E205: Mão de Obra | G205: MÊS | H205: 1.7167 | J205: 4056.44 | K205: 6963.69
E206: MO sem LS => | F206: 6963.69 | G206: LS => | H206: 0 | I206: MO com LS => | J206: 6963.69
E207: Valor do BDI => | F207: 1687.03 | H207: Valor com BDI => | J207: 9165
G208: Quant. => | H208: 18 | I208: Preço Total => | J208: 164970
A210: 1.2.2 | D210: TOPOGRAFIA - MÃO DE OBRA | K210: 387861.06
A211: 1.2.2.1 | B211: Código | C211: Banco | D211: Descrição | E211: Tipo | G211: Und | H211: Quant. | I211: Porcent. | J211: Valor Unit | K211: Total
A212: Composição | B212: 94296 | C212: SINAPI | D212: TOPOGRAFO COM ENCARGOS COMPLEMENTARES | E212: SEDI - SERVIÇOS DIVERSOS | G212: MES | H212: 1 | J212: 6803.05 | K212: 6803.05
A213: Composição Auxiliar | B213: 95424 | C213: SINAPI | D213: CURSO DE CAPACITAÇÃO PARA TOPÓGRAFO (ENCARGOS COMPLEMENTARES) - MENSALISTA | E213: SEDI - SERVIÇOS DIVERSOS | G213: MES | H213: 1 | J213: 45.48 | K213: 45.48
A214: Insumo | B214: 00040820 | C214: SINAPI | D214: TOPOGRAFO (MENSALISTA) | E214: Mão de Obra | G214: MES | H214: 1 | J214: 6352.47 | K214: 6352.47
A215: Insumo | B215: 00040863 | C215: SINAPI | D215: EXAMES - MENSALISTA (COLETADO CAIXA - ENCARGOS COMPLEMENTARES) | E215: Material | G215: MES | H215: 1 | J215: 252.08 | K215: 252.08
... 1214 more rows

Sheet CPU-SERVIÇO
C1: Obra | E1: Bancos | G1: B.D.I. | I1: Encargos Sociais
C2: Orçamento CPU Serviços - Canal Sertão Baiano | E2: SINAPI - 07/2024 - Bahia SBC - 08/2024 - Bahia SICRO3 - 04/2024 - Bahia ORSE - 06/2024 - Sergipe SEDOP - 05/2024 - Pará SEINFRA - 028 - Ceará SETOP - 04/2024 - Minas Gerais IOPES - 06/2024 - Espírito Santo SIURB - 01/2024 - São Paulo SIURB INFRA - 01/2024 - São Paulo SUDECAP - 04/2024 - Minas Gerais CPOS/CDHU - 06/2024 - São Paulo FDE - 04/2024 - São Paulo AGESUL - 06/2024 - Mato Grosso do Sul AGETOP CIVIL - 04/2024 - Goiás AGETOP RODOVIARIA - 04/2024 - Goiás CAEMA - 12/2019 - Maranhão EMBASA - 05/2024 - Bahia CAERN - 11/2023 - Rio Grande do Norte COMPESA - 07/2023 - Pernambuco EMOP - 07/2024 - Rio de Janeiro DERPR - 04/2024 - Paraná SCO - 07/2024 - Rio de Janeiro | G2: 22,56% | I2: Não Desonerado: embutido nos preços unitário dos insumos de mão de obra, de acordo com as bases.
A3: Planilha Orçamentária Analítica
A4: 4 | D4: ENSECADEIRA PROVISÓRIA | K4: 1219600.63
A5: 4.1 | D5: ENROCAMENTO DE PEDRA RACHÃO LANÇADA | K5: 900984.07
A6: 4.1.1 | B6: Código | C6: Banco | D6: Descrição | E6: Tipo | G6: Und | H6: Quant. | I6: Porcent. | J6: Valor Unit | K6: Total
A7: Composição | B7: 5914657 | C7: SICRO3 | D7: Carga, manobra e descarga de blocos de rocha em caminhão basculante de 8 m³ - carga com retroescavadeira de 0,29 m³ e descarga livre | G7: t | H7: 1 | J7: 17.6 | K7: 17.6
A8: A | B8: Código | C8: Banco | D8: Equipamentos | E8: Quantidade | F8: Utilização | H8: Custo Operacional | J8: Custo Horário
F9: Operativa | G9: Improdutiva | H9: Operativa | I9: Improdutiva
A10: Insumo | B10: E9604 | C10: SICRO3 | D10: Caminhão basculante para rocha com capacidade de 8 m³ - 210 kW | E10: 2 | F10: 0.57 | G10: 0.43 | H10: 297.1483 | I10: 90.4305 | J10: 416.5193
A11: Insumo | B11: E9526 | C11: SICRO3 | D11: Retroescavadeira de pneus - capacidade da caçamba da pá-carregadeira de 0,76 m³ e da | E11: 1 | F11: 1 | G11: 0 | H11: 151.1093 | I11: 79.6527 | J11: 151.1093
F12: Custo Horário de Equipamentos => | J12: 567.6286
F13: Custo Horário de Execução => | J13: 567.6286
F14: Fator de Influencia da Chuva - FIC => | J14: 0
F15: Custo do FIC => | J15: 0
F16: Produção de Equipe => | J16: 32.26
F17: Custo Unitário de Execução => | J17: 17.5954
E18: MO sem LS => | F18: 0 | G18: LS => | H18: 0 | I18: MO com LS => | J18: 0
E19: Valor do BDI => | F19: 3.97 | H19: Valor com BDI => | J19: 21.57
G20: Quant. => | H20: 31466.96578 | I20: Preço Total => | J20: 678742.45
A22: 4.1.2 | B22: Código | C22: Banco | D22: Descrição | E22: Tipo | G22: Und | H22: Quant. | I22: Porcent. | J22: Valor Unit | K22: Total
A23: Composição | B23: 5914346 | C23: SICRO3 | D23: Transporte de material de 3ª categoria com caminhão basculante de 8 m³ para rocha - rodovia em leito natural | G23: tkm | H23: 1 | J23: 1.68 | K23: 1.68
A24: A | B24: Código | C24: Banco | D24: Equipamentos | E24: Quantidade | F24: Utilização | H24: Custo Operacional | J24: Custo Horário
F25: Operativa | G25: Improdutiva | H25: Operativa | I25: Improdutiva
A26: Insumo | B26: E9604 | C26: SICRO3 | D26: Caminhão basculante para rocha com capacidade de 8 m³ - 210 kW | E26: 1 | F26: 1 | G26: 0 | H26: 297.1483 | I26: 90.4305 | J26: 297.1483
F27: Custo Horário de Equipamentos => | J27: 297.1483
F28: Custo Horário de Execução => | J28: 297.1483
F29: Fator de Influencia da Chuva - FIC => | J29: 0.0143
F30: Custo do FIC => | J30: 0.0236
F31: Produção de Equipe => | J31: 179.28
F32: Custo Unitário de Execução => | J32: 1.6575
E33: MO sem LS => | F33: 0 | G33: LS => | H33: 0 | I33: MO com LS => | J33: 0
E34: Valor do BDI => | F34: 0.37 | H34: Valor com BDI => | J34: 2.05
G35: Quant. => | H35: 99120.94222 | I35: Preço Total => | J35: 203197.93
A37: 4.1.3 | B37: Código | C37: Banco | D37: Descrição | E37: Tipo | G37: Und | H37: Quant. | I37: Porcent. | J37: Valor Unit | K37: Total
A38: Composição | B38: 100574 | C38: SINAPI | D38: ESPALHAMENTO DE MATERIAL COM TRATOR DE ESTEIRAS. AF_11/2019 | E38: PAVI - PAVIMENTAÇÃO | G38: m³ | H38: 1 | J38: 1.56 | K38: 1.56
A39: Composição Auxiliar | B39: 5851 | C39: SINAPI | D39: TRATOR DE ESTEIRAS, POTÊNCIA 150 HP, PESO OPERACIONAL 16,7 T, COM RODA MOTRIZ ELEVADA E LÂMINA 3,18 M3 - CHP DIURNO. AF_06/2014 | E39: CHOR - CUSTOS HORÁRIOS DE MÁQUINAS E EQUIPAMENTOS | G39: CHP | H39: 0.003 | J39: 261.35 | K39: 0.78
A40: Composição Auxiliar | B40: 5853 | C40: SINAPI | D40: TRATOR DE ESTEIRAS, POTÊNCIA 150 HP, PESO OPERACIONAL 16,7 T, COM RODA MOTRIZ ELEVADA E LÂMINA 3,18 M3 - CHI DIURNO. AF_06/2014 | E40: CHOR - CUSTOS HORÁRIOS DE MÁQUINAS E EQUIPAMENTOS | G40: CHI | H40: 0.006 | J40: 97 | K40: 0.58
A41: Composição Auxiliar | B41: 88316 | C41: SINAPI | D41: SERVENTE COM ENCARGOS COMPLEMENTARES | E41: SEDI - SERVIÇOS DIVERSOS | G41: H | H41: 0.009 | J41: 23.23 | K41: 0.2
E42: MO sem LS => | F42: 0.41 | G42: LS => | H42: 0 | I42: MO com LS => | J42: 0.41
E43: Valor do BDI => | F43: 0.35 | H43: Valor com BDI => | J43: 1.91
G44: Quant. => | H44: 9970.52 | I44: Preço Total => | J44: 19043.69
A46: 4.2 | D46: BRITA GRADUADA LANÇADA | K46: 266485.29
A47: 4.2.1 | B47: Código | C47: Banco | D47: Descrição | E47: Tipo | G47: Und | H47: Quant. | I47: Porcent. | J47: Valor Unit | K47: Total
A48: Composição | B48: 5914657 | C48: SICRO3 | D48: CARGA, MANOBRA E DESCARGA DE BLOCOS DE ROCHA EM CAMINHÃO BASCULANTE DE 8 M³ - CARGA COM RETROESCAVADEIRA DE 0,29 M³ E DESCARGA LIVRE. | G48: t | H48: 1 | J48: 17.6 | K48: 17.6
A49: A | B49: Código | C49: Banco | D49: Equipamentos | E49: Quantidade | F49: Utilização | H49: Custo Operacional | J49: Custo Horário
F50: Operativa | G50: Improdutiva | H50: Operativa | I50: Improdutiva
A51: Insumo | B51: E9604 | C51: SICRO3 | D51: Caminhão basculante para rocha com capacidade de 8 m³ - 210 kW | E51: 2 | F51: 0.57 | G51: 0.43 | H51: 297.1483 | I51: 90.4305 | J51: 416.5193
A52: Insumo | B52: E9526 | C52: SICRO3 | D52: Retroescavadeira de pneus - capacidade da caçamba da pá-carregadeira de 0,76 m³ e da | E52: 1 | F52: 1 | G52: 0 | H52: 151.1093 | I52: 79.6527 | J52: 151.1093
F53: Custo Horário de Equipamentos => | J53: 567.6286
F54: Custo Horário de Execução => | J54: 567.6286
F55: Fator de Influencia da Chuva - FIC => | J55: 0
F56: Custo do FIC => | J56: 0
F57: Produção de Equipe => | J57: 32.26
F58: Custo Unitário de Execução => | J58: 17.5954
E59: MO sem LS => | F59: 0 | G59: LS => | H59: 0 | I59: MO com LS => | J59: 0
E60: Valor do BDI => | F60: 3.97 | H60: Valor com BDI => | J60: 21.57
G61: Quant. => | H61: 3431.998074 | I61: Preço Total => | J61: 74028.19
A63: 4.2.2 | B63: Código | C63: Banco | D63: Descrição | E63: Tipo | G63: Und | H63: Quant. | I63: Porcent. | J63: Valor Unit | K63: Total
A64: Composição | B64: 5914346 | C64: SICRO3 | D64: TRANSPORTE DE MATERIAL DE 3ª CATEGORIA COM CAMINHÃO BASCULANTE DE 8 M³ PARA ROCHA - RODOVIA EM LEITO NATURAL | G64: tkm | H64: 1 | J64: 1.68 | K64: 1.68
A65: A | B65: Código | C65: Banco | D65: Equipamentos | E65: Quantidade | F65: Utilização | H65: Custo Operacional | J65: Custo Horário
F66: Operativa | G66: Improdutiva | H66: Operativa | I66: Improdutiva
A67: Insumo | B67: E9604 | C67: SICRO3 | D67: Caminhão basculante para rocha com capacidade de 8 m³ - 210 kW | E67: 1 | F67: 1 | G67: 0 | H67: 297.1483 | I67: 90.4305 | J67: 297.1483
F68: Custo Horário de Equipamentos => | J68: 297.1483
F69: Custo Horário de Execução => | J69: 297.1483
F70: Fator de Influencia da Chuva - FIC => | J70: 0.0143
F71: Custo do FIC => | J71: 0.0236
F72: Produção de Equipe => | J72: 179.28
F73: Custo Unitário de Execução => | J73: 1.6575
E74: MO sem LS => | F74: 0 | G74: LS => | H74: 0 | I74: MO com LS => | J74: 0
E75: Valor do BDI => | F75: 0.37 | H75: Valor com BDI => | J75: 2.05
G76: Quant. => | H76: 10810.79393 | I76: Preço Total => | J76: 22162.12
A78: 4.2.3 | B78: Código | C78: Banco | D78: Descrição | E78: Tipo | G78: Und | H78: Quant. | I78: Porcent. | J78: Valor Unit | K78: Total
A79: Composição | B79: 4816012 | C79: SICRO3 | D79: Brita produzida em central de britagem de 80 m³/h | G79: m³ | H79: 1 | J79: 53.94 | K79: 53.94
A80: A | B80: Código | C80: Banco | D80: Equipamentos | E80: Quantidade | F80: Utilização | H80: Custo Operacional | J80: Custo Horário
F81: Operativa | G81: Improdutiva | H81: Operativa | I81: Improdutiva
A82: Insumo | B82: E9117 | C82: SICRO3 | D82: Carregadeira de pneus para rocha com capacidade de 2,50 m³ - 105 kW | E82: 1 | F82: 0.46 | G82: 0.54 | H82: 359.7347 | I82: 157.4614 | J82: 250.5071
A83: Insumo | B83: E9611 | C83: SICRO3 | D83: Conjunto de britagem com capacidade de 80 m³/h - 313 kW | E83: 1 | F83: 1 | G83: 0 | H83: 995.7129 | I83: 648.6475 | J83: 995.7129
A84: Insumo | B84: E9765 | C84: SICRO3 | D84: Grupo gerador - 569 kVA | E84: 1 | F84: 1 | G84: 0 | H84: 490.9202 | I84: 29.088 | J84: 490.9202
F85: Custo Horário de Equipamentos => | J85: 1737.1402
A86: B | B86: Código | C86: Banco | D86: Mão de Obra | E86: Quantidade | F86: Salário Hora | J86: Custo Horário
A87: Insumo | B87: P9824 | C87: SICRO3 | D87: Servente | E87: 8 | I87: 21.4657 | J87: 171.7256
F88: Custo Horário da Mão de Obra => | J88: 171.7256
F89: Adc.M.O. - Ferramentas (0,0%) => | J89: 0
F90: Custo Horário de Execução => | J90: 1908.8658
F91: Fator de Influencia da Chuva - FIC => | J91: 0.0024
F92: Custo do FIC => | J92: 0.0681
F93: Produção de Equipe => | J93: 66.4
F94: Custo Unitário de Execução => | J94: 28.748
A95: C | B95: Banco | C95: Código | D95: Material | E95: Quantidade | F95: Unidade | G95: Preço Unitário | J95: Custo Horário
A96: Insumo | B96: SICRO3 | C96: M2115 | D96: Cunha lateral inferior para britador | E96: 2e-05 | F96: un | G96: 1906.0085 | J96: 0.0381
A97: Insumo | B97: SICRO3 | C97: M2114 | D97: Cunha lateral superior para britador | E97: 1e-05 | F97: un | G97: 2444.7143 | J97: 0.0244
A98: Insumo | B98: SICRO3 | C98: M2111 | D98: Mandíbula fixa para britador - abertura de alimentação com L = 930 mm | E98: 6e-05 | F98: un | G98: 32034.5798 | J98: 1.9221
A99: Insumo | B99: SICRO3 | C99: M2110 | D99: Mandíbula móvel para britador - abertura de alimentação com L = 930 mm | E99: 4e-05 | F99: un | G99: 24230.054 | J99: 0.9692
A100: Insumo | B100: SICRO3 | C100: M2112 | D100: Manta do britador cônico HP200 ou similar | E100: 3e-05 | F100: un | G100: 21230.4134 | J100: 0.6369
A101: Insumo | B101: SICRO3 | C101: M2113 | D101: Revestimento do bojo interno do britador cônico HP200 ou similar | E101: 4e-05 | F101: un | G101: 24245.3821 | J101: 0.9698
F102: Custo Total do Material => | J102: 4.5605
A103: D | B103: Banco | C103: Código | D103: Atividades Auxiliares | E103: Quantidade | F103: Unidade | G103: Preço Unitário | J103: Custo Horário
A104: Atividade Auxiliar | B104: SICRO3 | C104: 4816010 | D104: Rocha para britagem com perfuratriz sobre esteira | E104: 0.57 | F104: m³ | G104: 36.08 | J104: 20.5656
F105: Custo Total das Atividades => | J105: 20.5656
E106: MO sem LS => | F106: 3.325377516 | G106: LS => | H106: 0 | I106: MO com LS => | J106: 3.325377539
E107: Valor do BDI => | F107: 12.16 | H107: Valor com BDI => | J107: 66.1
G108: Quant. => | H108: 2289.372 | I108: Preço Total => | J108: 151327.48
A110: 4.2.4 | B110: Código | C110: Banco | D110: Descrição | E110: Tipo | G110: Und | H110: Quant. | I110: Porcent. | J110: Valor Unit | K110: Total
A111: Composição | B111: 5914351 | C111: SICRO3 | D111: Carga, manobra e descarga de agregados ou solos em caminhão basculante de 14 m³ - carga com carregadeira de 3,40 m³ e descarga livre | G111: t | H111: 1 | J111: 2.61 | K111: 2.61
A112: A | B112: Código | C112: Banco | D112: Equipamentos | E112: Quantidade | F112: Utilização | H112: Custo Operacional | J112: Custo Horário
F113: Operativa | G113: Improdutiva | H113: Operativa | I113: Improdutiva
A114: Insumo | B114: E9667 | C114: SICRO3 | D114: Caminhão basculante com capacidade de 14 m³ - 188 kW | E114: 3 | F114: 0.77 | G114: 0.23 | H114: 297.32 | I114: 90.5677 | J114: 749.3009
A115: Insumo | B115: E9511 | C115: SICRO3 | D115: Carregadeira de pneus com capacidade de 3,40 m³ - 195 kW | E115: 1 | F115: 1 | G115: 0 | H115: 442.03 | I115: 218.8558 | J115: 442.03
F116: Custo Horário de Equipamentos => | J116: 1191.3309
F117: Custo Horário de Execução => | J117: 1191.3309
F118: Fator de Influencia da Chuva - FIC => | J118: 0
F119: Custo do FIC => | J119: 0
F120: Produção de Equipe => | J120: 457.16
F121: Custo Unitário de Execução => | J121: 2.6059
E122: MO sem LS => | F122: 0 | G122: LS => | H122: 0 | I122: MO com LS => | J122: 0
E123: Valor do BDI => | F123: 0.58 | H123: Valor com BDI => | J123: 3.19
G124: Quant. => | H124: 3434.074635 | I124: Preço Total => | J124: 10954.69
A126: 4.2.5 | B126: Código | C126: Banco | D126: Descrição | E126: Tipo | G126: Und | H126: Quant. | I126: Porcent. | J126: Valor Unit | K126: Total
A127: Composição | B127: 5901639 | C127: SICRO3 | D127: Transporte com caminhão basculante com caçamba estanque com capacidade de 14 m³ - rodovia em leito natural | G127: tkm | H127: 1 | J127: 0.87 | K127: 0.87
A128: A | B128: Código | C128: Banco | D128: Equipamentos | E128: Quantidade | F128: Utilização | H128: Custo Operacional | J128: Custo Horário
F129: Operativa | G129: Improdutiva | H129: Operativa | I129: Improdutiva
A130: Insumo | B130: E9575 | C130: SICRO3 | D130: Caminhão basculante com caçamba estanque com capacidade de 14 m³ - 188 kW | E130: 1 | F130: 1 | G130: 0 | H130: 297.7142 | I130: 90.7746 | J130: 297.7142
F131: Custo Horário de Equipamentos => | J131: 297.7142
F132: Custo Horário de Execução => | J132: 297.7142
F133: Fator de Influencia da Chuva - FIC => | J133: 0.0143
F134: Custo do FIC => | J134: 0.0122
F135: Produção de Equipe => | J135: 348.6
F136: Custo Unitário de Execução => | J136: 0.854
E137: MO sem LS => | F137: 0 | G137: LS => | H137: 0 | I137: MO com LS => | J137: 0
E138: Valor do BDI => | F138: 0.19 | H138: Valor com BDI => | J138: 1.06
G139: Quant. => | H139: 3434.074635 | I139: Preço Total => | J139: 3640.11
A141: 4.2.6 | B141: Código | C141: Banco | D141: Descrição | E141: Tipo | G141: Und | H141: Quant. | I141: Porcent. | J141: Valor Unit | K141: Total
A142: Composição | B142: 100574 | C142: SINAPI | D142: ESPALHAMENTO DE MATERIAL COM TRATOR DE ESTEIRAS. | E142: PAVI - PAVIMENTAÇÃO | G142: m³ | H142: 1 | J142: 1.56 | K142: 1.56
A143: Composição Auxiliar | B143: 5851 | C143: SINAPI | D143: TRATOR DE ESTEIRAS, POTÊNCIA 150 HP, PESO OPERACIONAL 16,7 T, COM RODA MOTRIZ ELEVADA E LÂMINA 3,18 M3 - CHP DIURNO. AF_06/2014 | E143: CHOR - CUSTOS HORÁRIOS DE MÁQUINAS E EQUIPAMENTOS | G143: CHP | H143: 0.003 | J143: 261.35 | K143: 0.78
A144: Composição Auxiliar | B144: 5853 | C144: SINAPI | D144: TRATOR DE ESTEIRAS, POTÊNCIA 150 HP, PESO OPERACIONAL 16,7 T, COM RODA MOTRIZ ELEVADA E LÂMINA 3,18 M3 - CHI DIURNO. AF_06/2014 | E144: CHOR - CUSTOS HORÁRIOS DE MÁQUINAS E EQUIPAMENTOS | G144: CHI | H144: 0.006 | J144: 97 | K144: 0.58
A145: Composição Auxiliar | B145: 88316 | C145: SINAPI | D145: SERVENTE COM ENCARGOS COMPLEMENTARES | E145: SEDI - SERVIÇOS DIVERSOS | G145: H | H145: 0.009 | J145: 23.23 | K145: 0.2
E146: MO sem LS => | F146: 0.41 | G146: LS => | H146: 0 | I146: MO com LS => | J146: 0.41
E147: Valor do BDI => | F147: 0.35 | H147: Valor com BDI => | J147: 1.91
G148: Quant. => | H148: 2289.372 | I148: Preço Total => | J148: 4372.7
A150: 4.3 | D150: ATERRO LANÇADO NO SELO DA ENSECADEIRA | K150: 47929.99
A151: 4.3.1 | B151: Código | C151: Banco | D151: Descrição | E151: Tipo | G151: Und | H151: Quant. | I151: Porcent. | J151: Valor Unit | K151: Total
A152: Composição | B152: 2531 | C152: ORSE | D152: Aterro de áreas sem aquisição de material, com espalhamento mecânico, sem compactação e sem transporte | E152: Execução de Cortes e Aterros | G152: m³ | H152: 1 | J152: 8.4 | K152: 8.4
A153: Composição Auxiliar | B153: 10549 | C153: ORSE | D153: Encargos Complementares - Servente | E153: Provisórios | G153: h | H153: 0.05 | J153: 3.79 | K153: 0.18
A154: Insumo | B154: 2475 | C154: ORSE | D154: Motoniveladora 15000 kg com escarificador (cat - 140M - 185,0 hp ou equivalente) | E154: Equipamento | G154: h | H154: 0.05 | J154: 150.88 | K154: 7.54
A155: Insumo | B155: 00006111/SINAPI | C155: ORSE | D155: Servente de obras (horista) | E155: Mão de Obra | G155: h | H155: 0.05 | J155: 13.65 | K155: 0.68
E156: MO sem LS => | F156: 0.68 | G156: LS => | H156: 0 | I156: MO com LS => | J156: 0.68
E157: Valor do BDI => | F157: 1.89 | H157: Valor com BDI => | J157: 10.29
G158: Quant. => | H158: 4657.92 | I158: Preço Total => | J158: 47929.99
A160: 4.4 | D160: ESGOTAMENTO | K160: 4201.28
A161: 4.4.1 | B161: Código | C161: Banco | D161: Descrição | E161: Tipo | G161: Und | H161: Quant. | I161: Porcent. | J161: Valor Unit | K161: Total
A162: Composição | B162: 2003864 | C162: SICRO3 | D162: Esgotamento de água com bomba submersa | G162: h | H162: 1 | J162: 12.99 | K162: 12.99
A163: A | B163: Código | C163: Banco | D163: Equipamentos | E163: Quantidade | F163: Utilização | H163: Custo Operacional | J163: Custo Horário
F164: Operativa | G164: Improdutiva | H164: Operativa | I164: Improdutiva
A165: Insumo | B165: E9630 | C165: SICRO3 | D165: Bomba submersível com capacidade de 75 m³/h - 3,6 kW | E165: 1 | F165: 1 | G165: 0 | H165: 0.9049 | I165: 0.529 | J165: 0.9049
A166: Insumo | B166: E9764 | C166: SICRO3 | D166: Grupo gerador - 7,2 kVA | E166: 1 | F166: 1 | G166: 0 | H166: 10.1777 | I166: 0.483 | J166: 10.1777
F167: Custo Horário de Equipamentos => | J167: 11.0826
A168: B | B168: Código | C168: Banco | D168: Mão de Obra | E168: Quantidade | F168: Salário Hora | J168: Custo Horário
A169: Insumo | B169: P9807 | C169: SICRO3 | D169: Bombeiro hidráulico | E169: 0.05 | I169: 31.5606 | J169: 1.578
A170: Insumo | B170: P9810 | C170: SICRO3 | D170: Eletricista | E170: 0.01 | I170: 32.7045 | J170: 0.327
F171: Custo Horário da Mão de Obra => | J171: 1.905
F172: Adc.M.O. - Ferramentas (0,0%) => | J172: 0
F173: Custo Horário de Execução => | J173: 12.9876
F174: Fator de Influencia da Chuva - FIC => | J174: 0
F175: Custo do FIC => | J175: 0
F176: Produção de Equipe => | J176: 1
F177: Custo Unitário de Execução => | J177: 12.9876
E178: MO sem LS => | F178: 1.905075 | G178: LS => | H178: 0 | I178: MO com LS => | J178: 1.905075
E179: Valor do BDI => | F179: 2.93 | H179: Valor com BDI => | J179: 15.92
G180: Quant. => | H180: 263.9 | I180: Preço Total => | J180: 4201.28
A182: 5 | D182: ESTRUTURA DE TOMADA D'ÁGUA DO RC-500 | K182: 5590395.64
A183: 5.1 | D183: SEVIÇOS PRELIMINARES | K183: 12061.34
A184: 5.1.1 | B184: Código | C184: Banco | D184: Descrição | E184: Tipo | G184: Und | H184: Quant. | I184: Porcent. | J184: Valor Unit | K184: Total
A185: Composição | B185: 5501700 | C185: SICRO3 | D185: Desmatamento, destocamento e limpeza de área com árvores de diâmetro até 0,15 m | G185: m² | H185: 1 | J185: 0.53 | K185: 0.53
A186: A | B186: Código | C186: Banco | D186: Equipamentos | E186: Quantidade | F186: Utilização | H186: Custo Operacional | J186: Custo Horário
F187: Operativa | G187: Improdutiva | H187: Operativa | I187: Improdutiva
A188: Insumo | B188: E9541 | C188: SICRO3 | D188: Trator sobre esteiras com lâmina - 259 kW | E188: 1 | F188: 1 | G188: 0 | H188: 760.5062 | I188: 307.0212 | J188: 760.5062
F189: Custo Horário de Equipamentos => | J189: 760.5062
A190: B | B190: Código | C190: Banco | D190: Mão de Obra | E190: Quantidade | F190: Salário Hora | J190: Custo Horário
A191: Insumo | B191: P9824 | C191: SICRO3 | D191: Servente | E191: 2 | I191: 21.4657 | J191: 42.9314
F192: Custo Horário da Mão de Obra => | J192: 42.9314
F193: Adc.M.O. - Ferramentas (0,0%) => | J193: 0
F194: Custo Horário de Execução => | J194: 803.4376
F195: Fator de Influencia da Chuva - FIC => | J195: 0.0024
F196: Custo do FIC => | J196: 0.0012
F197: Produção de Equipe => | J197: 1532.91
F198: Custo Unitário de Execução => | J198: 0.5241
E199: MO sem LS => | F199: 0.02800647135 | G199: LS => | H199: 0 | I199: MO com LS => | J199: 0.02800647135
E200: Valor do BDI => | F200: 0.11 | H200: Valor com BDI => | J200: 0.64
G201: Quant. => | H201: 4114.542 | I201: Preço Total => | J201: 2633.3
A203: 5.1.2 | B203: Código | C203: Banco | D203: Descrição | E203: Tipo | G203: Und | H203: Quant. | I203: Porcent. | J203: Valor Unit | K203: Total
A204: Composição | B204: 100983 | C204: SINAPI | D204: CARGA, MANOBRA E DESCARGA DE ENTULHO EM CAMINHÃO BASCULANTE 14 M³ - CARGA COM ESCAVADEIRA HIDRÁULICA (CAÇAMBA DE 0,80 M³ / 111 HP) E DESCARGA LIVRE (UNIDADE: M3). AF_07/2020 | E204: TRAN - TRANSPORTES, CARGAS E DESCARGAS | G204: m³ | H204: 1 | J204: 9.12 | K204: 9.12
A205: Composição Auxiliar | B205: 5631 | C205: SINAPI | D205: ESCAVADEIRA HIDRÁULICA SOBRE ESTEIRAS, CAÇAMBA 0,80 M3, PESO OPERACIONAL 17 T, POTENCIA BRUTA 111 HP - CHP DIURNO. AF_06/2014 | E205: CHOR - CUSTOS HORÁRIOS DE MÁQUINAS E EQUIPAMENTOS | G205: CHP | H205: 0.0083 | J205: 224.35 | K205: 1.86
A206: Composição Auxiliar | B206: 5632 | C206: SINAPI | D206: ESCAVADEIRA HIDRÁULICA SOBRE ESTEIRAS, CAÇAMBA 0,80 M3, PESO OPERACIONAL 17 T, POTENCIA BRUTA 111 HP - CHI DIURNO. AF_06/2014 | E206: CHOR - CUSTOS HORÁRIOS DE MÁQUINAS E EQUIPAMENTOS | G206: CHI | H206: 0.0085 | J206: 101.91 | K206: 0.86
A207: Composição Auxiliar | B207: 89876 | C207: SINAPI | D207: CAMINHÃO BASCULANTE 14 M3, COM CAVALO MECÂNICO DE CAPACIDADE MÁXIMA DE TRAÇÃO COMBINADO DE 36000 KG, POTÊNCIA 286 CV, INCLUSIVE SEMIREBOQUE COM CAÇAMBA METÁLICA - CHP DIURNO. AF_12/2014 | E207: CHOR - CUSTOS HORÁRIOS DE MÁQUINAS E EQUIPAMENTOS | G207: CHP | H207: 0.0169 | J207: 323.52 | K207: 5.46
A208: Composição Auxiliar | B208: 89877 | C208: SINAPI | D208: CAMINHÃO BASCULANTE 14 M3, COM CAVALO MECÂNICO DE CAPACIDADE MÁXIMA DE TRAÇÃO COMBINADO DE 36000 KG, POTÊNCIA 286 CV, INCLUSIVE SEMIREBOQUE COM CAÇAMBA METÁLICA - CHI DIURNO. AF_12/2014 | E208: CHOR - CUSTOS HORÁRIOS DE MÁQUINAS E EQUIPAMENTOS | G208: CHI | H208: 0.011 | J208: 86.24 | K208: 0.94
E209: MO sem LS => | F209: 1.31 | G209: LS => | H209: 0 | I209: MO com LS => | J209: 1.31
E210: Valor do BDI => | F210: 2.05 | H210: Valor com BDI => | J210: 11.17
G211: Quant. => | H211: 617.1813 | I211: Preço Total => | J211: 6893.91
A213: 5.1.3 | B213: Código | C213: Banco | D213: Descrição | E213: Tipo | G213: Und | H213: Quant. | I213: Porcent. | J213: Valor Unit | K213: Total
... 11349 more rows

Sheet 5 - CURVA ABC
A1: ='2 - ORÇAMENTO'!$A$1 -> MINISTÉRIO DA INTEGRAÇÃO E DO DESENVOLVIMENTO REGIONAL – MIDR COMPANHIA DE DESENVOLVIMENTO DOS VALES DO SÃO FRANCISCO E DO PARAÍBA - CODEVASF
A2: CURVA ABC
A3: OBJETO: | D3: ='2 - ORÇAMENTO'!$B$3 -> ORÇAMENTO PROJETO BÁSICO DO CANAL DO SERTÃO BAIANO (CSB) - ETAPA 2A: PROJETO BÁSICO DO CANAL PRINCIPAL DO PIS - CANAL CP-500/2 | G3: BDI: SERV. | H3: ='2 - ORÇAMENTO'!$J$3 -> 0.2256 | J3: A | K3: =L3/L6 -> 0.466691969 | L3: =SUMIF(L8:L265,"A",I8:I265) -> 50612191.25
A4: LOCALIDADE: | D4: ='2 - ORÇAMENTO'!$B$4 -> ESTADO DA BAHIA | G4: BDI: MAT. EQUIP. | H4: ='2 - ORÇAMENTO'!$J$4 -> 0.14015 | J4: B | K4: =L4/L6 -> 0.3244967866 | L4: =SUMIF(L8:L265,"B",I8:I265) -> 35191292.14
A5: REFERÊNCIAS: | D5: ='2 - ORÇAMENTO'!$B$5 -> SICRO3 BA 04/2024, SINAPI BA 07/2024, DNIT 04/2024, AGESUL 06/2024, AGETOP 04/2024, COMPESA 07/2023, CPOS 06/2024, EMBASA 05/2024, EMOP 07/2024, FDE 04/2024, IOPES 06/2024, ORSE 06/2024, SBC 08/2024, SEDOP 05/2024, SEINFRA 028, SETOP 04/2024, SIURB 01/2024, SUDECAP 04/2024 | G5: DATA BASE: | H5: ='2 - ORÇAMENTO'!$J$6 -> 2024-09-01 | J5: C | K5: =L3/L6 -> 0.466691969 | L5: =SUMIF(L8:L265,"C",I8:I265) -> 22645332.12
A6: MODALIDADE: | C6: ='2 - ORÇAMENTO'!$B$6 -> ONERADO | G6: REVISÃO: | H6: ='2 - ORÇAMENTO'!$J$5 -> 0C | J6: TOTAL | K6: =L6/L6 -> 1 | L6: =SUM(L3:L5) -> 108448815.5
A7: ITEM | B7: ABC | C7: CÓDIGO DA FONTE | D7: FONTE DE REFERÊNCIA | E7: SERVIÇO | F7: UNIDADE | G7: QUANTIDADE | H7: P. UNITARIO C/ BDI | I7: TOTAL | J7: % | K7: % ACUM. | L7: CLASSIF.
A8: 1 | B8: 157 | C8: =VLOOKUP(B8,'APOIO ABC'!A:K,4,0) -> 2408149 | D8: =VLOOKUP(B8,'APOIO ABC'!A:K,3,0) -> SICRO3 | E8: =VLOOKUP(B8,'APOIO ABC'!A:K,5,0) -> Estrutura em perfil de aço ASTM A36 corte, solda e montagem - fornecimento e instalação | F8: =VLOOKUP(B8,'APOIO ABC'!A:K,6,0) -> kg | G8: =SUMIF('APOIO ABC'!A:A,B8,'APOIO ABC'!G:G) -> 1554.4 | H8: =VLOOKUP(B8,'APOIO ABC'!A:K,10,0) -> 19.14 | I8: =SUMIF('APOIO ABC'!A:A,B8,'APOIO ABC'!K:K) -> 29751.21 | J8: =I8/$I$267 -> 0.0002743341166 | K8: =J8 -> 0.0002743341166 | L8: =IF(K8<=50%,"A",IF(AND(K8>50%,K8<=80%),"B","C")) -> A
A9: 2 | B9: 156 | C9: =VLOOKUP(B9,'APOIO ABC'!A:K,4,0) -> 4413942 | D9: =VLOOKUP(B9,'APOIO ABC'!A:K,3,0) -> SICRO3 | E9: =VLOOKUP(B9,'APOIO ABC'!A:K,5,0) -> Espalhamento de material em bota-fora | F9: =VLOOKUP(B9,'APOIO ABC'!A:K,6,0) -> m³ | G9: =SUMIF('APOIO ABC'!A:A,B9,'APOIO ABC'!G:G) -> 1503130.193 | H9: =VLOOKUP(B9,'APOIO ABC'!A:K,10,0) -> 2.41 | I9: =SUMIF('APOIO ABC'!A:A,B9,'APOIO ABC'!K:K) -> 3622543.69 | J9: 0.03340325732 | K9: =J9+K8 -> 0.03367759143 | L9: A
A10: 3 | B10: 178 | C10: =VLOOKUP(B10,'APOIO ABC'!A:K,4,0) -> 101546 | D10: =VLOOKUP(B10,'APOIO ABC'!A:K,3,0) -> SINAPI | E10: =VLOOKUP(B10,'APOIO ABC'!A:K,5,0) -> ISOLADOR, TIPO PINO, PARA TENSÃO 15 KV - FORNECIMENTO E INSTALAÇÃO. AF_07/2020 | F10: =VLOOKUP(B10,'APOIO ABC'!A:K,6,0) -> UN | G10: =SUMIF('APOIO ABC'!A:A,B10,'APOIO ABC'!G:G) -> 3 | H10: =VLOOKUP(B10,'APOIO ABC'!A:K,10,0) -> 32.28 | I10: =SUMIF('APOIO ABC'!A:A,B10,'APOIO ABC'!K:K) -> 96.84 | J10: 8.929558109e-07 | K10: =J10+K9 -> 0.03367848439 | L10: A
A11: 4 | B11: 253 | C11: =VLOOKUP(B11,'APOIO ABC'!A:K,4,0) -> 5914346 | D11: =VLOOKUP(B11,'APOIO ABC'!A:K,3,0) -> SICRO3 | E11: =VLOOKUP(B11,'APOIO ABC'!A:K,5,0) -> Transporte de material de 3ª categoria com caminhão basculante de 8 m³ para rocha - rodovia em leito natural | F11: =VLOOKUP(B11,'APOIO ABC'!A:K,6,0) -> tkm | G11: =SUMIF('APOIO ABC'!A:A,B11,'APOIO ABC'!G:G) -> 466132.6098 | H11: =VLOOKUP(B11,'APOIO ABC'!A:K,10,0) -> 2.05 | I11: =SUMIF('APOIO ABC'!A:A,B11,'APOIO ABC'!K:K) -> 955571.75 | J11: 0.008811269588 | K11: 0.04248975398 | L11: A
A12: 5 | B12: 22 | C12: =VLOOKUP(B12,'APOIO ABC'!A:K,4,0) -> COMP-0044 | D12: =VLOOKUP(B12,'APOIO ABC'!A:K,3,0) -> PRÓPRIO | E12: =VLOOKUP(B12,'APOIO ABC'!A:K,5,0) -> ATERRO DE SOLO-CAL COM 4% DE CAL E MISTURA NA PISTA COM MATERIAL DE ESCAVAÇÃO | F12: =VLOOKUP(B12,'APOIO ABC'!A:K,6,0) -> M³ | G12: =SUMIF('APOIO ABC'!A:A,B12,'APOIO ABC'!G:G) -> 83005.12 | H12: =VLOOKUP(B12,'APOIO ABC'!A:K,10,0) -> 69.3 | I12: =SUMIF('APOIO ABC'!A:A,B12,'APOIO ABC'!K:K) -> 5752254.81 | J12: 0.05304119536 | K12: 0.09553094934 | L12: A
A13: 6 | B13: 222 | C13: =VLOOKUP(B13,'APOIO ABC'!A:K,4,0) -> COMP-0022 | D13: =VLOOKUP(B13,'APOIO ABC'!A:K,3,0) -> PRÓPRIO | E13: =VLOOKUP(B13,'APOIO ABC'!A:K,5,0) -> RACHÃO OU PEDRA DE MÃO PRODUZIDA. | F13: =VLOOKUP(B13,'APOIO ABC'!A:K,6,0) -> M³ | G13: =SUMIF('APOIO ABC'!A:A,B13,'APOIO ABC'!G:G) -> 31109.65148 | H13: =VLOOKUP(B13,'APOIO ABC'!A:K,10,0) -> 24.57 | I13: =SUMIF('APOIO ABC'!A:A,B13,'APOIO ABC'!K:K) -> 764364.13 | J13: 0.007048155634 | K13: 0.102579105 | L13: A
A14: 7 | B14: 50 | C14: =VLOOKUP(B14,'APOIO ABC'!A:K,4,0) -> 101198 | D14: =VLOOKUP(B14,'APOIO ABC'!A:K,3,0) -> SINAPI | E14: =VLOOKUP(B14,'APOIO ABC'!A:K,5,0) -> CERCA COM MOURÕES DE CONCRETO, SEÇÃO "T" PONTA INCLINADA, 10X10 CM, ESPAÇAMENTO DE 2,5 M, CRAVADOS 0,5 M, COM 11 FIOS DE ARAME DE AÇO OVALADO 15X17 - FORNECIMENTO E INSTALAÇÃO. AF_05/2020 | F14: =VLOOKUP(B14,'APOIO ABC'!A:K,6,0) -> M | G14: =SUMIF('APOIO ABC'!A:A,B14,'APOIO ABC'!G:G) -> 21315.2 | H14: =VLOOKUP(B14,'APOIO ABC'!A:K,10,0) -> 104.01 | I14: =SUMIF('APOIO ABC'!A:A,B14,'APOIO ABC'!K:K) -> 2216993.95 | J14: 0.02044276777 | K14: 0.1230218727 | L14: A
A15: 8 | B15: 60 | C15: =VLOOKUP(B15,'APOIO ABC'!A:K,4,0) -> 1107929 | D15: =VLOOKUP(B15,'APOIO ABC'!A:K,3,0) -> SICRO3 | E15: =VLOOKUP(B15,'APOIO ABC'!A:K,5,0) -> Concreto fck = 20 MPa - confecção em central dosadora de 30 m³/h - areia extraída e brita produzida | F15: =VLOOKUP(B15,'APOIO ABC'!A:K,6,0) -> m³ | G15: =SUMIF('APOIO ABC'!A:A,B15,'APOIO ABC'!G:G) -> 12004.93 | H15: =VLOOKUP(B15,'APOIO ABC'!A:K,10,0) -> 325.51 | I15: =SUMIF('APOIO ABC'!A:A,B15,'APOIO ABC'!K:K) -> 3907724.75 | J15: 0.0360328947 | K15: 0.1590547674 | L15: A
A16: 9 | B16: 63 | C16: =VLOOKUP(B16,'APOIO ABC'!A:K,4,0) -> 1106382 | D16: =VLOOKUP(B16,'APOIO ABC'!A:K,3,0) -> SICRO3 | E16: =VLOOKUP(B16,'APOIO ABC'!A:K,5,0) -> Concreto para bombeamento fck = 35 MPa - confecção em central dosadora de 30 m³/h - areia extraída e brita produzida | F16: =VLOOKUP(B16,'APOIO ABC'!A:K,6,0) -> m³ | G16: =SUMIF('APOIO ABC'!A:A,B16,'APOIO ABC'!G:G) -> 832.42 | H16: =VLOOKUP(B16,'APOIO ABC'!A:K,10,0) -> 457.65 | I16: =SUMIF('APOIO ABC'!A:A,B16,'APOIO ABC'!K:K) -> 380956.98 | J16: 0.003512781382 | K16: 0.1625675488 | L16: A
A17: 10 | B17: 149 | C17: =VLOOKUP(B17,'APOIO ABC'!A:K,4,0) -> 5502589 | D17: =VLOOKUP(B17,'APOIO ABC'!A:K,3,0) -> SICRO3 | E17: =VLOOKUP(B17,'APOIO ABC'!A:K,5,0) -> Escavação, carga e transporte de material de 2ª categoria - DMT de 800 a 1.000 m - caminho de serviço em leito natural - com escavadeira e caminhão basculante de 14 m³ | F17: =VLOOKUP(B17,'APOIO ABC'!A:K,6,0) -> m³ | G17: =SUMIF('APOIO ABC'!A:A,B17,'APOIO ABC'!G:G) -> 627.505 | H17: =VLOOKUP(B17,'APOIO ABC'!A:K,10,0) -> 12.55 | I17: =SUMIF('APOIO ABC'!A:A,B17,'APOIO ABC'!K:K) -> 7875.18 | J17: 7.261656075e-05 | K17: 0.1626401654 | L17: A
A18: 11 | B18: 164 | C18: =VLOOKUP(B18,'APOIO ABC'!A:K,4,0) -> 3107997 | D18: =VLOOKUP(B18,'APOIO ABC'!A:K,3,0) -> SICRO3 | E18: =VLOOKUP(B18,'APOIO ABC'!A:K,5,0) -> Fôrmas de compensado resinado 10 mm - uso geral - utilização de 3 vezes - confecção, instalação e retirada | F18: =VLOOKUP(B18,'APOIO ABC'!A:K,6,0) -> m² | G18: =SUMIF('APOIO ABC'!A:A,B18,'APOIO ABC'!G:G) -> 4821.139 | H18: =VLOOKUP(B18,'APOIO ABC'!A:K,10,0) -> 100.45 | I18: =SUMIF('APOIO ABC'!A:A,B18,'APOIO ABC'!K:K) -> 484283.33 | J18: 0.004465547436 | K18: 0.1671057128 | L18: A
A19: 12 | B19: 160 | C19: =VLOOKUP(B19,'APOIO ABC'!A:K,4,0) -> 09.90.01 | D19: =VLOOKUP(B19,'APOIO ABC'!A:K,3,0) -> EMBASA | E19: =VLOOKUP(B19,'APOIO ABC'!A:K,5,0) -> EXECUCAO DE SOLO-CIMENTO PARA REPAVIMENTACAO, C/ FORNEC. DO MAT. | F19: =VLOOKUP(B19,'APOIO ABC'!A:K,6,0) -> m³ | G19: =SUMIF('APOIO ABC'!A:A,B19,'APOIO ABC'!G:G) -> 10272.152 | H19: =VLOOKUP(B19,'APOIO ABC'!A:K,10,0) -> 665.9 | I19: =SUMIF('APOIO ABC'!A:A,B19,'APOIO ABC'!K:K) -> 6840226 | J19: 0.06307331221 | K19: 0.230179025 | L19: A
A20: 13 | B20: 13 | C20: =VLOOKUP(B20,'APOIO ABC'!A:K,4,0) -> 407819 | D20: =VLOOKUP(B20,'APOIO ABC'!A:K,3,0) -> SICRO3 | E20: =VLOOKUP(B20,'APOIO ABC'!A:K,5,0) -> ARMAÇÃO EM AÇO CA-50 - FORNECIMENTO, PREPARO E COLOCAÇÃO. | F20: =VLOOKUP(B20,'APOIO ABC'!A:K,6,0) -> KG | G20: =SUMIF('APOIO ABC'!A:A,B20,'APOIO ABC'!G:G) -> 181193.79 | H20: =VLOOKUP(B20,'APOIO ABC'!A:K,10,0) -> 14.56 | I20: =SUMIF('APOIO ABC'!A:A,B20,'APOIO ABC'!K:K) -> 2638181.54 | J20: 0.02432651318 | K20: 0.2545055382 | L20: A
A21: 14 | B21: 257 | C21: =VLOOKUP(B21,'APOIO ABC'!A:K,4,0) ->  | D21: =VLOOKUP(B21,'APOIO ABC'!A:K,3,0) ->  | E21: =VLOOKUP(B21,'APOIO ABC'!A:K,5,0) ->  | F21: =VLOOKUP(B21,'APOIO ABC'!A:K,6,0) ->  | G21: =SUMIF('APOIO ABC'!A:A,B21,'APOIO ABC'!G:G) -> 0 | H21: =VLOOKUP(B21,'APOIO ABC'!A:K,10,0) ->  | I21: =SUMIF('APOIO ABC'!A:A,B21,'APOIO ABC'!K:K) -> 0 | J21: 0 | K21: 0.2545055382 | L21: A
A22: 15 | B22: 61 | C22: =VLOOKUP(B22,'APOIO ABC'!A:K,4,0) -> 1106135 | D22: =VLOOKUP(B22,'APOIO ABC'!A:K,3,0) -> SICRO3 | E22: =VLOOKUP(B22,'APOIO ABC'!A:K,5,0) -> Concreto fck = 25 MPa - confecção em central dosadora de 30 m³/h - areia extraída e brita produzida | F22: =VLOOKUP(B22,'APOIO ABC'!A:K,6,0) -> m³ | G22: =SUMIF('APOIO ABC'!A:A,B22,'APOIO ABC'!G:G) -> 41.8 | H22: =VLOOKUP(B22,'APOIO ABC'!A:K,10,0) -> 345.53 | I22: =SUMIF('APOIO ABC'!A:A,B22,'APOIO ABC'!K:K) -> 14443.13 | J22: 0.0001331792324 | K22: 0.2546387174 | L22: A
A23: 16 | B23: 53 | C23: =VLOOKUP(B23,'APOIO ABC'!A:K,4,0) -> 09.80.029 | D23: =VLOOKUP(B23,'APOIO ABC'!A:K,3,0) -> FDE | E23: =VLOOKUP(B23,'APOIO ABC'!A:K,5,0) -> CHAVE FUSIVEL INDIC 'MATHEUS' P/100 A/15 KV RUPTURA 1200A POSTE/ESTAL | F23: =VLOOKUP(B23,'APOIO ABC'!A:K,6,0) -> UN | G23: =SUMIF('APOIO ABC'!A:A,B23,'APOIO ABC'!G:G) -> 3 | H23: =VLOOKUP(B23,'APOIO ABC'!A:K,10,0) -> 503.63 | I23: =SUMIF('APOIO ABC'!A:A,B23,'APOIO ABC'!K:K) -> 1510.89 | J23: 1.393182575e-05 | K23: 0.2546526493 | L23: A
A24: 17 | B24: 49 | C24: =VLOOKUP(B24,'APOIO ABC'!A:K,4,0) -> 91727 | D24: =VLOOKUP(B24,'APOIO ABC'!A:K,3,0) -> SIURB | E24: =VLOOKUP(B24,'APOIO ABC'!A:K,5,0) -> CARTUCHO PARA CONEXÃO EXOTERMICA CABO/ HASTE | F24: =VLOOKUP(B24,'APOIO ABC'!A:K,6,0) -> UN | G24: =SUMIF('APOIO ABC'!A:A,B24,'APOIO ABC'!G:G) -> 1 | H24: =VLOOKUP(B24,'APOIO ABC'!A:K,10,0) -> 202.83 | I24: =SUMIF('APOIO ABC'!A:A,B24,'APOIO ABC'!K:K) -> 202.83 | J24: 1.870283221e-06 | K24: 0.2546545196 | L24: A
A25: 18 | B25: 148 | C25: =VLOOKUP(B25,'APOIO ABC'!A:K,4,0) -> 5502187 | D25: =VLOOKUP(B25,'APOIO ABC'!A:K,3,0) -> SICRO3 | E25: =VLOOKUP(B25,'APOIO ABC'!A:K,5,0) -> Escavação, carga e transporte de material de 2ª categoria - DMT de 50 m | F25: =VLOOKUP(B25,'APOIO ABC'!A:K,6,0) -> m³ | G25: =SUMIF('APOIO ABC'!A:A,B25,'APOIO ABC'!G:G) -> 1622.47 | H25: =VLOOKUP(B25,'APOIO ABC'!A:K,10,0) -> 8.77 | I25: =SUMIF('APOIO ABC'!A:A,B25,'APOIO ABC'!K:K) -> 14229.06 | J25: 0.0001312053058 | K25: 0.2547857249 | L25: A
A26: 19 | B26: 69 | C26: =VLOOKUP(B26,'APOIO ABC'!A:K,4,0) -> 170909 | D26: =VLOOKUP(B26,'APOIO ABC'!A:K,3,0) -> SEDOP | E26: =VLOOKUP(B26,'APOIO ABC'!A:K,5,0) -> Condulete de aluminio tipo T 3/4" | F26: =VLOOKUP(B26,'APOIO ABC'!A:K,6,0) -> un | G26: =SUMIF('APOIO ABC'!A:A,B26,'APOIO ABC'!G:G) -> 4 | H26: =VLOOKUP(B26,'APOIO ABC'!A:K,10,0) -> 74.03 | I26: =SUMIF('APOIO ABC'!A:A,B26,'APOIO ABC'!K:K) -> 296.12 | J26: 2.730504696e-06 | K26: 0.2547884554 | L26: A
A27: 20 | B27: 155 | C27: =VLOOKUP(B27,'APOIO ABC'!A:K,4,0) -> 100574 | D27: =VLOOKUP(B27,'APOIO ABC'!A:K,3,0) -> SINAPI | E27: =VLOOKUP(B27,'APOIO ABC'!A:K,5,0) -> ESPALHAMENTO DE MATERIAL COM TRATOR DE ESTEIRAS. AF_11/2019 | F27: =VLOOKUP(B27,'APOIO ABC'!A:K,6,0) -> m³ | G27: =SUMIF('APOIO ABC'!A:A,B27,'APOIO ABC'!G:G) -> 12259.892 | H27: =VLOOKUP(B27,'APOIO ABC'!A:K,10,0) -> 1.91 | I27: =SUMIF('APOIO ABC'!A:A,B27,'APOIO ABC'!K:K) -> 23416.39 | J27: 0.0002159211227 | K27: 0.2550043765 | L27: A
A28: 21 | B28: 29 | C28: =VLOOKUP(B28,'APOIO ABC'!A:K,4,0) -> 4816012 | D28: =VLOOKUP(B28,'APOIO ABC'!A:K,3,0) -> SICRO3 | E28: =VLOOKUP(B28,'APOIO ABC'!A:K,5,0) -> Brita produzida em central de britagem de 80 m³/h | F28: =VLOOKUP(B28,'APOIO ABC'!A:K,6,0) -> m³ | G28: =SUMIF('APOIO ABC'!A:A,B28,'APOIO ABC'!G:G) -> 16632.422 | H28: =VLOOKUP(B28,'APOIO ABC'!A:K,10,0) -> 66.1 | I28: =SUMIF('APOIO ABC'!A:A,B28,'APOIO ABC'!K:K) -> 1099403.07 | J28: 0.01013752953 | K28: 0.265141906 | L28: A
A29: 22 | B29: 256 | C29: =VLOOKUP(B29,'APOIO ABC'!A:K,4,0) ->  | D29: =VLOOKUP(B29,'APOIO ABC'!A:K,3,0) ->  | E29: =VLOOKUP(B29,'APOIO ABC'!A:K,5,0) ->  | F29: =VLOOKUP(B29,'APOIO ABC'!A:K,6,0) ->  | G29: =SUMIF('APOIO ABC'!A:A,B29,'APOIO ABC'!G:G) -> 0 | H29: =VLOOKUP(B29,'APOIO ABC'!A:K,10,0) ->  | I29: =SUMIF('APOIO ABC'!A:A,B29,'APOIO ABC'!K:K) -> 0 | J29: 0 | K29: 0.265141906 | L29: A
A30: 23 | B30: 186 | C30: =VLOOKUP(B30,'APOIO ABC'!A:K,4,0) -> 61385 | D30: =VLOOKUP(B30,'APOIO ABC'!A:K,3,0) -> SBC | E30: =VLOOKUP(B30,'APOIO ABC'!A:K,5,0) -> LUVA Ø 1.1/4" PARA ELETRODUTO, EM AÇO GALVANIZADO À FOGO, TIPO PESADO, ROSCA BSP. | F30: =VLOOKUP(B30,'APOIO ABC'!A:K,6,0) -> UN | G30: =SUMIF('APOIO ABC'!A:A,B30,'APOIO ABC'!G:G) -> 13 | H30: =VLOOKUP(B30,'APOIO ABC'!A:K,10,0) -> 10.14 | I30: =SUMIF('APOIO ABC'!A:A,B30,'APOIO ABC'!K:K) -> 131.82 | J30: 1.215504285e-06 | K30: 0.2651431215 | L30: A
A31: 24 | B31: 144 | C31: =VLOOKUP(B31,'APOIO ABC'!A:K,4,0) -> 5502116 | D31: =VLOOKUP(B31,'APOIO ABC'!A:K,3,0) -> SICRO3 | E31: =VLOOKUP(B31,'APOIO ABC'!A:K,5,0) -> Escavação, carga e transporte de material de 1ª categoria - DMT de 1.400 a 1.600 m - caminho de serviço em leito natural - com escavadeira e caminhão basculante de 14 m³ | F31: =VLOOKUP(B31,'APOIO ABC'!A:K,6,0) -> m³ | G31: =SUMIF('APOIO ABC'!A:A,B31,'APOIO ABC'!G:G) -> 142967 | H31: =VLOOKUP(B31,'APOIO ABC'!A:K,10,0) -> 10.56 | I31: =SUMIF('APOIO ABC'!A:A,B31,'APOIO ABC'!K:K) -> 1509731.52 | J31: 0.01392114347 | K31: 0.279064265 | L31: A
A32: 25 | B32: 78 | C32: =VLOOKUP(B32,'APOIO ABC'!A:K,4,0) -> 705345 | D32: =VLOOKUP(B32,'APOIO ABC'!A:K,3,0) -> SICRO3 | E32: =VLOOKUP(B32,'APOIO ABC'!A:K,5,0) -> CORPO DE BTCC 1,50 X 1,50 M - MOLDADO NO LOCAL - ALTURA DO ATERRO 0,00 A 1,00 M - AREIA EXTRAÍDA E BRITA PRODUZIDA | F32: =VLOOKUP(B32,'APOIO ABC'!A:K,6,0) -> M | G32: =SUMIF('APOIO ABC'!A:A,B32,'APOIO ABC'!G:G) -> 129.6 | H32: =VLOOKUP(B32,'APOIO ABC'!A:K,10,0) -> 6306.36 | I32: =SUMIF('APOIO ABC'!A:A,B32,'APOIO ABC'!K:K) -> 817304.25 | J32: 0.007536313294 | K32: 0.2866005783 | L32: A
A33: 26 | B33: 82 | C33: =VLOOKUP(B33,'APOIO ABC'!A:K,4,0) -> 71151 | D33: =VLOOKUP(B33,'APOIO ABC'!A:K,3,0) -> AGETOP CIVIL | E33: =VLOOKUP(B33,'APOIO ABC'!A:K,5,0) -> CURVA DE 90 GRAUS AÇO GALVANIZADO DIAM.3/4" | F33: =VLOOKUP(B33,'APOIO ABC'!A:K,6,0) -> Un | G33: =SUMIF('APOIO ABC'!A:A,B33,'APOIO ABC'!G:G) -> 3 | H33: =VLOOKUP(B33,'APOIO ABC'!A:K,10,0) -> 15.02 | I33: =SUMIF('APOIO ABC'!A:A,B33,'APOIO ABC'!K:K) -> 45.06 | J33: 4.154955477e-07 | K33: 0.2866009938 | L33: A
A34: 27 | B34: 121 | C34: =VLOOKUP(B34,'APOIO ABC'!A:K,4,0) -> 34.05.29 | D34: =VLOOKUP(B34,'APOIO ABC'!A:K,3,0) -> EMBASA | E34: =VLOOKUP(B34,'APOIO ABC'!A:K,5,0) -> ENSAIO DE ANÁLISE MINERALÓGICA | F34: =VLOOKUP(B34,'APOIO ABC'!A:K,6,0) -> UN | G34: =SUMIF('APOIO ABC'!A:A,B34,'APOIO ABC'!G:G) -> 9 | H34: =VLOOKUP(B34,'APOIO ABC'!A:K,10,0) -> 1596.21 | I34: =SUMIF('APOIO ABC'!A:A,B34,'APOIO ABC'!K:K) -> 14365.89 | J34: 0.000132467007 | K34: 0.2867334608 | L34: A
A35: 28 | B35: 225 | C35: =VLOOKUP(B35,'APOIO ABC'!A:K,4,0) -> 101632 | D35: =VLOOKUP(B35,'APOIO ABC'!A:K,3,0) -> SINAPI | E35: =VLOOKUP(B35,'APOIO ABC'!A:K,5,0) -> RELÉ FOTOELÉTRICO PARA COMANDO DE ILUMINAÇÃO EXTERNA 1000 W - FORNECIMENTO E INSTALAÇÃO. AF_08/2020 | F35: =VLOOKUP(B35,'APOIO ABC'!A:K,6,0) -> UN | G35: =SUMIF('APOIO ABC'!A:A,B35,'APOIO ABC'!G:G) -> 19 | H35: =VLOOKUP(B35,'APOIO ABC'!A:K,10,0) -> 46.63 | I35: =SUMIF('APOIO ABC'!A:A,B35,'APOIO ABC'!K:K) -> 885.97 | J35: 8.169476041e-06 | K35: 0.2867416303 | L35: A
A36: 29 | B36: 145 | C36: =VLOOKUP(B36,'APOIO ABC'!A:K,4,0) -> 5502109 | D36: =VLOOKUP(B36,'APOIO ABC'!A:K,3,0) -> SICRO3 | E36: =VLOOKUP(B36,'APOIO ABC'!A:K,5,0) -> Escavação, carga e transporte de material de 1ª categoria - DMT de 50 a 200 m - caminho de serviço em leito natural - com escavadeira e caminhão basculante de 14 m³ | F36: =VLOOKUP(B36,'APOIO ABC'!A:K,6,0) -> m³ | G36: =SUMIF('APOIO ABC'!A:A,B36,'APOIO ABC'!G:G) -> 566710.669 | H36: =VLOOKUP(B36,'APOIO ABC'!A:K,10,0) -> 7.02 | I36: =SUMIF('APOIO ABC'!A:A,B36,'APOIO ABC'!K:K) -> 3978308.84 | J36: 0.03668374635 | K36: 0.3234253766 | L36: A
A37: 30 | B37: 95 | C37: =VLOOKUP(B37,'APOIO ABC'!A:K,4,0) -> 34.01.07 | D37: =VLOOKUP(B37,'APOIO ABC'!A:K,3,0) -> EMBASA | E37: =VLOOKUP(B37,'APOIO ABC'!A:K,5,0) -> DETERMINACAO DE LIMITE DE LIQUIDEZ (NBR - 06459) | F37: =VLOOKUP(B37,'APOIO ABC'!A:K,6,0) -> UN | G37: =SUMIF('APOIO ABC'!A:A,B37,'APOIO ABC'!G:G) -> 106 | H37: =VLOOKUP(B37,'APOIO ABC'!A:K,10,0) -> 205.22 | I37: =SUMIF('APOIO ABC'!A:A,B37,'APOIO ABC'!K:K) -> 21753.32 | J37: 0.0002005860543 | K37: 0.3236259627 | L37: A
A38: 31 | B38: 226 | C38: =VLOOKUP(B38,'APOIO ABC'!A:K,4,0) -> 34.04.07 | D38: =VLOOKUP(B38,'APOIO ABC'!A:K,3,0) -> EMBASA | E38: =VLOOKUP(B38,'APOIO ABC'!A:K,5,0) -> RETIRADA DE AMOSTRA DEFORMADA | F38: =VLOOKUP(B38,'APOIO ABC'!A:K,6,0) -> UN | G38: =SUMIF('APOIO ABC'!A:A,B38,'APOIO ABC'!G:G) -> 103 | H38: =VLOOKUP(B38,'APOIO ABC'!A:K,10,0) -> 119.98 | I38: =SUMIF('APOIO ABC'!A:A,B38,'APOIO ABC'!K:K) -> 12357.94 | J38: 0.0001139518209 | K38: 0.3237399145 | L38: A
A39: 32 | B39: 124 | C39: =VLOOKUP(B39,'APOIO ABC'!A:K,4,0) -> 34.05.28 | D39: =VLOOKUP(B39,'APOIO ABC'!A:K,3,0) -> EMBASA | E39: =VLOOKUP(B39,'APOIO ABC'!A:K,5,0) -> ENSAIO DE DENSIDADE - MATERIAL PETREO | F39: =VLOOKUP(B39,'APOIO ABC'!A:K,6,0) -> UN | G39: =SUMIF('APOIO ABC'!A:A,B39,'APOIO ABC'!G:G) -> 106 | H39: =VLOOKUP(B39,'APOIO ABC'!A:K,10,0) -> 250.83 | I39: =SUMIF('APOIO ABC'!A:A,B39,'APOIO ABC'!K:K) -> 26587.98 | J39: 0.0002451661632 | K39: 0.3239850807 | L39: A
A40: 33 | B40: 80 | C40: =VLOOKUP(B40,'APOIO ABC'!A:K,4,0) -> 97562 | D40: =VLOOKUP(B40,'APOIO ABC'!A:K,3,0) -> SINAPI | E40: =VLOOKUP(B40,'APOIO ABC'!A:K,5,0) -> CURVA 135 GRAUS PARA ELETRODUTO, PVC, ROSCÁVEL, DN 25 MM (3/4"), PARA CIRCUITOS TERMINAIS, INSTALADA EM LAJE - FORNECIMENTO E INSTALAÇÃO. AF_03/2023 | F40: =VLOOKUP(B40,'APOIO ABC'!A:K,6,0) -> UN | G40: =SUMIF('APOIO ABC'!A:A,B40,'APOIO ABC'!G:G) -> 19 | H40: =VLOOKUP(B40,'APOIO ABC'!A:K,10,0) -> 14.06 | I40: =SUMIF('APOIO ABC'!A:A,B40,'APOIO ABC'!K:K) -> 267.14 | J40: 2.46328186e-06 | K40: 0.3239875439 | L40: A
A41: 34 | B41: 163 | C41: =VLOOKUP(B41,'APOIO ABC'!A:K,4,0) -> 69.20.070 | D41: =VLOOKUP(B41,'APOIO ABC'!A:K,3,0) -> CPOS/CDHU | E41: =VLOOKUP(B41,'APOIO ABC'!A:K,5,0) -> Fita em aço inoxidável para poste de 0,50 m x 19 mm, com fecho em aço inoxidável | F41: =VLOOKUP(B41,'APOIO ABC'!A:K,6,0) -> UN | G41: =SUMIF('APOIO ABC'!A:A,B41,'APOIO ABC'!G:G) -> 64 | H41: =VLOOKUP(B41,'APOIO ABC'!A:K,10,0) -> 17.08 | I41: =SUMIF('APOIO ABC'!A:A,B41,'APOIO ABC'!K:K) -> 1093.12 | J41: 1.007959372e-05 | K41: 0.3239976235 | L41: A
A42: 35 | B42: 168 | C42: =VLOOKUP(B42,'APOIO ABC'!A:K,4,0) -> 103695 | D42: =VLOOKUP(B42,'APOIO ABC'!A:K,3,0) -> SINAPI | E42: =VLOOKUP(B42,'APOIO ABC'!A:K,5,0) -> FORNECIMENTO E INSTALAÇÃO DE SUPORTE DE MADEIRA PARA PLACAS DE SINALIZAÇÃO, EM SOLO, COM H= DE 2,0 M E SEÇÃO DE 7,5 X 7,5 CM. AF_03/2022 | F42: =VLOOKUP(B42,'APOIO ABC'!A:K,6,0) -> UN | G42: =SUMIF('APOIO ABC'!A:A,B42,'APOIO ABC'!G:G) -> 47 | H42: =VLOOKUP(B42,'APOIO ABC'!A:K,10,0) -> 124.37 | I42: =SUMIF('APOIO ABC'!A:A,B42,'APOIO ABC'!K:K) -> 5845.39 | J42: 5.389998934e-05 | K42: 0.3240515235 | L42: A
A43: 36 | B43: 96 | C43: =VLOOKUP(B43,'APOIO ABC'!A:K,4,0) -> 34.01.10 | D43: =VLOOKUP(B43,'APOIO ABC'!A:K,3,0) -> EMBASA | E43: =VLOOKUP(B43,'APOIO ABC'!A:K,5,0) -> DETERMINACAO DE LIMITEDE PLASTICIDADE (NBR- 07180) | F43: =VLOOKUP(B43,'APOIO ABC'!A:K,6,0) -> UN | G43: =SUMIF('APOIO ABC'!A:A,B43,'APOIO ABC'!G:G) -> 106 | H43: =VLOOKUP(B43,'APOIO ABC'!A:K,10,0) -> 205.22 | I43: =SUMIF('APOIO ABC'!A:A,B43,'APOIO ABC'!K:K) -> 21753.32 | J43: 0.0002005860543 | K43: 0.3242521096 | L43: A
A44: 37 | B44: 97 | C44: =VLOOKUP(B44,'APOIO ABC'!A:K,4,0) -> 01.001.0210-0 | D44: =VLOOKUP(B44,'APOIO ABC'!A:K,3,0) -> EMOP | E44: =VLOOKUP(B44,'APOIO ABC'!A:K,5,0) -> DETERMINACAO DE MASSA ESPECIFICA APARENTE "IN SITU" COM EMPR EGO DO FRASCO DE AREIA | F44: =VLOOKUP(B44,'APOIO ABC'!A:K,6,0) -> UN | G44: =SUMIF('APOIO ABC'!A:A,B44,'APOIO ABC'!G:G) -> 106 | H44: =VLOOKUP(B44,'APOIO ABC'!A:K,10,0) -> 135.74 | I44: =SUMIF('APOIO ABC'!A:A,B44,'APOIO ABC'!K:K) -> 14388.44 | J44: 0.0001326749392 | K44: 0.3243847845 | L44: A
A45: 38 | B45: 79 | C45: =VLOOKUP(B45,'APOIO ABC'!A:K,4,0) -> 7893 | D45: =VLOOKUP(B45,'APOIO ABC'!A:K,3,0) -> ORSE | E45: =VLOOKUP(B45,'APOIO ABC'!A:K,5,0) -> Cabeçote de alumínio de 1 1/4" | F45: =VLOOKUP(B45,'APOIO ABC'!A:K,6,0) -> un | G45: =SUMIF('APOIO ABC'!A:A,B45,'APOIO ABC'!G:G) -> 1 | H45: =VLOOKUP(B45,'APOIO ABC'!A:K,10,0) -> 16.9 | I45: =SUMIF('APOIO ABC'!A:A,B45,'APOIO ABC'!K:K) -> 16.9 | J45: 1.558338827e-07 | K45: 0.3243849403 | L45: A
A46: 39 | B46: 151 | C46: =VLOOKUP(B46,'APOIO ABC'!A:K,4,0) -> 5502753 | D46: =VLOOKUP(B46,'APOIO ABC'!A:K,3,0) -> SICRO3 | E46: =VLOOKUP(B46,'APOIO ABC'!A:K,5,0) -> Escavação, carga e transporte de material de 3ª categoria - DMT de 2.500 a 3.000 m - caminho de serviço em leito natural com caminhão basculante de 12 m³ | F46: =VLOOKUP(B46,'APOIO ABC'!A:K,6,0) -> m³ | G46: =SUMIF('APOIO ABC'!A:A,B46,'APOIO ABC'!G:G) -> 17665.54 | H46: =VLOOKUP(B46,'APOIO ABC'!A:K,10,0) -> 62.51 | I46: =SUMIF('APOIO ABC'!A:A,B46,'APOIO ABC'!K:K) -> 1104272.9 | J46: 0.01018243394 | K46: 0.3345673743 | L46: A
A47: 40 | B47: 7 | C47: =VLOOKUP(B47,'APOIO ABC'!A:K,4,0) -> 40305 | D47: =VLOOKUP(B47,'APOIO ABC'!A:K,3,0) -> AGETOP RODOVIARIA | E47: =VLOOKUP(B47,'APOIO ABC'!A:K,5,0) -> ACABAMENTO E RECOMPOSIÇÃO DE JAZIDA | F47: =VLOOKUP(B47,'APOIO ABC'!A:K,6,0) -> m² | G47: =SUMIF('APOIO ABC'!A:A,B47,'APOIO ABC'!G:G) -> 684717.4168 | H47: =VLOOKUP(B47,'APOIO ABC'!A:K,10,0) -> 0.44 | I47: =SUMIF('APOIO ABC'!A:A,B47,'APOIO ABC'!K:K) -> 301275.66 | J47: 0.002778044726 | K47: 0.337345419 | L47: A
A48: 41 | B48: 235 | C48: =VLOOKUP(B48,'APOIO ABC'!A:K,4,0) -> 42.20.160 | D48: =VLOOKUP(B48,'APOIO ABC'!A:K,3,0) -> CPOS/CDHU | E48: =VLOOKUP(B48,'APOIO ABC'!A:K,5,0) -> Solda exotérmica conexão cabo-cabo horizontal em T, bitola do cabo de 50-50mm² a 95-50mm² | F48: =VLOOKUP(B48,'APOIO ABC'!A:K,6,0) -> UN | G48: =SUMIF('APOIO ABC'!A:A,B48,'APOIO ABC'!G:G) -> 2 | H48: =VLOOKUP(B48,'APOIO ABC'!A:K,10,0) -> 57.02 | I48: =SUMIF('APOIO ABC'!A:A,B48,'APOIO ABC'!K:K) -> 114.04 | J48: 1.051555976e-06 | K48: 0.3373464706 | L48: A
A49: 42 | B49: 67 | C49: =VLOOKUP(B49,'APOIO ABC'!A:K,4,0) -> 170902 | D49: =VLOOKUP(B49,'APOIO ABC'!A:K,3,0) -> SEDOP | E49: =VLOOKUP(B49,'APOIO ABC'!A:K,5,0) -> Condulete de aluminio tipo LL 3/4" | F49: =VLOOKUP(B49,'APOIO ABC'!A:K,6,0) -> un | G49: =SUMIF('APOIO ABC'!A:A,B49,'APOIO ABC'!G:G) -> 3 | H49: =VLOOKUP(B49,'APOIO ABC'!A:K,10,0) -> 59.73 | I49: =SUMIF('APOIO ABC'!A:A,B49,'APOIO ABC'!K:K) -> 179.19 | J49: 1.652300204e-06 | K49: 0.3373481229 | L49: A
A50: 43 | B50: 169 | C50: =VLOOKUP(B50,'APOIO ABC'!A:K,4,0) -> 9526 | D50: =VLOOKUP(B50,'APOIO ABC'!A:K,3,0) -> ORSE | E50: =VLOOKUP(B50,'APOIO ABC'!A:K,5,0) -> Gancho curto para perfilado, ( ref.: Mopa ou similar) | F50: =VLOOKUP(B50,'APOIO ABC'!A:K,6,0) -> un | G50: =SUMIF('APOIO ABC'!A:A,B50,'APOIO ABC'!G:G) -> 4 | H50: =VLOOKUP(B50,'APOIO ABC'!A:K,10,0) -> 12.67 | I50: =SUMIF('APOIO ABC'!A:A,B50,'APOIO ABC'!K:K) -> 50.68 | J50: 4.673172294e-07 | K50: 0.3373485902 | L50: A
A51: 44 | B51: 166 | C51: =VLOOKUP(B51,'APOIO ABC'!A:K,4,0) -> 2864 | D51: =VLOOKUP(B51,'APOIO ABC'!A:K,3,0) -> ORSE | E51: =VLOOKUP(B51,'APOIO ABC'!A:K,5,0) -> Fornecimento de cruzeta de concreto tipo "t" 1900mm | F51: =VLOOKUP(B51,'APOIO ABC'!A:K,6,0) -> un | G51: =SUMIF('APOIO ABC'!A:A,B51,'APOIO ABC'!G:G) -> 4 | H51: =VLOOKUP(B51,'APOIO ABC'!A:K,10,0) -> 348.07 | I51: =SUMIF('APOIO ABC'!A:A,B51,'APOIO ABC'!K:K) -> 1392.28 | J51: 1.283813008e-05 | K51: 0.3373614283 | L51: A
A52: 45 | B52: 254 | C52: =VLOOKUP(B52,'APOIO ABC'!A:K,4,0) -> 41780 | D52: =VLOOKUP(B52,'APOIO ABC'!A:K,3,0) -> SINAPI | E52: =VLOOKUP(B52,'APOIO ABC'!A:K,5,0) -> TUBO CORRUGADO PEAD, PAREDE DUPLA, INTERNA LISA, JEI, DN/DI 300 MM, PARA SANEAMENTO (DRENAGEM/ESGOTO) | F52: =VLOOKUP(B52,'APOIO ABC'!A:K,6,0) -> M | G52: =SUMIF('APOIO ABC'!A:A,B52,'APOIO ABC'!G:G) -> 10648.6 | H52: =VLOOKUP(B52,'APOIO ABC'!A:K,10,0) -> 241.89 | I52: =SUMIF('APOIO ABC'!A:A,B52,'APOIO ABC'!K:K) -> 2575789.85 | J52: 0.02375120316 | K52: 0.3611126315 | L52: A
A53: 46 | B53: 255 | C53: =VLOOKUP(B53,'APOIO ABC'!A:K,4,0) -> COT.NETS-05 | D53: =VLOOKUP(B53,'APOIO ABC'!A:K,3,0) -> PRÓPRIO | E53: =VLOOKUP(B53,'APOIO ABC'!A:K,5,0) -> VIGA PESCADORA COMPLETA, EM AÇO CARBONO ASTM A36, COM DISTÂNCIA ENTRE RODAS DE 5110mm, COM CAVALETE DE ESTOCAGEM PARA APOIO. | F53: =VLOOKUP(B53,'APOIO ABC'!A:K,6,0) -> UN | G53: =SUMIF('APOIO ABC'!A:A,B53,'APOIO ABC'!G:G) -> 1 | H53: =VLOOKUP(B53,'APOIO ABC'!A:K,10,0) -> 48714.01 | I53: =SUMIF('APOIO ABC'!A:A,B53,'APOIO ABC'!K:K) -> 48714.01 | J53: 0.000449188954 | K53: 0.3615618204 | L53: A
A54: 47 | B54: 58 | C54: =VLOOKUP(B54,'APOIO ABC'!A:K,4,0) -> COT.NETS-02 | D54: =VLOOKUP(B54,'APOIO ABC'!A:K,3,0) -> PRÓPRIO | E54: =VLOOKUP(B54,'APOIO ABC'!A:K,5,0) -> COMPORTA SEGMENTO, COM DIMENSÕES DE 4760 x 5250mm, COMPLETA, COM TABULEIRO, BRAÇO E TERMINAL, MANCAL DE ARTICULAÇÃO, SUPORTE DO CILINDRO, CILNDRO HIDRAULICO, DISPOSITIVO DE CALAGEM, COM AS RESPECTIVAS GUIAS, PEÇAS DE SEGUNDA CONCRETAGEM PARA GUIAMENTO, DESLIZAMENTO, APOIO E VEDAÇÃO, UNIDADE HIDRAULICA DE ACIONAMENTO, COMPLETA, COM TODO SISTEMA DE INTERLIGAÇÃO, SERVO MOTOR, CILINDRO HIDRÁULICO, INDICADOR DE POSIÇÃO, VEDAÇÕES E TUBULAÇÕES, COM TODOS OS PINOS, PARAFUSOS, PORCAS E ARRUELAS, NECESSARIOS À MONTAGEM DOS EQUIPAMENTOS NA OBRA. | F54: =VLOOKUP(B54,'APOIO ABC'!A:K,6,0) -> UN | G54: =SUMIF('APOIO ABC'!A:A,B54,'APOIO ABC'!G:G) -> 2 | H54: =VLOOKUP(B54,'APOIO ABC'!A:K,10,0) -> 630016.67 | I54: =SUMIF('APOIO ABC'!A:A,B54,'APOIO ABC'!K:K) -> 1260033.34 | J54: 0.01161869158 | K54: 0.373180512 | L54: A
A55: 48 | B55: 65 | C55: =VLOOKUP(B55,'APOIO ABC'!A:K,4,0) -> 1103852 | D55: =VLOOKUP(B55,'APOIO ABC'!A:K,3,0) -> SICRO3 | E55: =VLOOKUP(B55,'APOIO ABC'!A:K,5,0) -> Concreto poroso para tubos de drenagem fck = 25 MPa - confecção em betoneira e lançamento manual - areia extraída e brita produzida | F55: =VLOOKUP(B55,'APOIO ABC'!A:K,6,0) -> m³ | G55: =SUMIF('APOIO ABC'!A:A,B55,'APOIO ABC'!G:G) -> 2505.8 | H55: =VLOOKUP(B55,'APOIO ABC'!A:K,10,0) -> 450.75 | I55: =SUMIF('APOIO ABC'!A:A,B55,'APOIO ABC'!K:K) -> 1129489.34 | J55: 0.01041495322 | K55: 0.3835954652 | L55: A
A56: 49 | B56: 66 | C56: =VLOOKUP(B56,'APOIO ABC'!A:K,4,0) -> 61542 | D56: =VLOOKUP(B56,'APOIO ABC'!A:K,3,0) -> SBC | E56: =VLOOKUP(B56,'APOIO ABC'!A:K,5,0) -> CONDULETE PARA ELETRODUTO Ø 3/4" TIPO "E" A PROVA DE TGVP, IP54, COPPER FREE, , TAMPA DE ALUMÍNIO, COM VEDAÇÃO, PARAFUSOS EM AÇO INOX, PINTURA A PÓ EM POLIÉSTER NA COR CINZA, ROSCA BSP | F56: =VLOOKUP(B56,'APOIO ABC'!A:K,6,0) -> UN | G56: =SUMIF('APOIO ABC'!A:A,B56,'APOIO ABC'!G:G) -> 4 | H56: =VLOOKUP(B56,'APOIO ABC'!A:K,10,0) -> 31.54 | I56: =SUMIF('APOIO ABC'!A:A,B56,'APOIO ABC'!K:K) -> 126.16 | J56: 1.163313766e-06 | K56: 0.3835966286 | L56: A
A57: 50 | B57: 137 | C57: =VLOOKUP(B57,'APOIO ABC'!A:K,4,0) -> AD 35.25.0150 | D57: =VLOOKUP(B57,'APOIO ABC'!A:K,3,0) -> SCO | E57: =VLOOKUP(B57,'APOIO ABC'!A:K,5,0) -> Ensaio para determinacao da resistencia a compressao simples axial, em corpos de prova em rocha, com diametro entre N ate H, excluindo a preparacao da amostra. | F57: =VLOOKUP(B57,'APOIO ABC'!A:K,6,0) -> un | G57: =SUMIF('APOIO ABC'!A:A,B57,'APOIO ABC'!G:G) -> 19 | H57: =VLOOKUP(B57,'APOIO ABC'!A:K,10,0) -> 254.35 | I57: =SUMIF('APOIO ABC'!A:A,B57,'APOIO ABC'!K:K) -> 4832.65 | J57: 4.456157476e-05 | K57: 0.3836411901 | L57: A
A58: 51 | B58: 11 | C58: =VLOOKUP(B58,'APOIO ABC'!A:K,4,0) -> 40035 | D58: =VLOOKUP(B58,'APOIO ABC'!A:K,3,0) -> SBC | E58: =VLOOKUP(B58,'APOIO ABC'!A:K,5,0) -> APLICACAO DE ADESIVO ESTRUTURAL | F58: =VLOOKUP(B58,'APOIO ABC'!A:K,6,0) -> M² | G58: =SUMIF('APOIO ABC'!A:A,B58,'APOIO ABC'!G:G) -> 430.36 | H58: =VLOOKUP(B58,'APOIO ABC'!A:K,10,0) -> 311.58 | I58: =SUMIF('APOIO ABC'!A:A,B58,'APOIO ABC'!K:K) -> 134091.56 | J58: 0.001236450203 | K58: 0.3848776403 | L58: A
A59: 52 | B59: 154 | C59: =VLOOKUP(B59,'APOIO ABC'!A:K,4,0) -> 2003864 | D59: =VLOOKUP(B59,'APOIO ABC'!A:K,3,0) -> SICRO3 | E59: =VLOOKUP(B59,'APOIO ABC'!A:K,5,0) -> Esgotamento de água com bomba submersa | F59: =VLOOKUP(B59,'APOIO ABC'!A:K,6,0) -> h | G59: =SUMIF('APOIO ABC'!A:A,B59,'APOIO ABC'!G:G) -> 263.9 | H59: =VLOOKUP(B59,'APOIO ABC'!A:K,10,0) -> 15.92 | I59: =SUMIF('APOIO ABC'!A:A,B59,'APOIO ABC'!K:K) -> 4201.28 | J59: 3.873974999e-05 | K59: 0.3849163801 | L59: A
A60: 53 | B60: 47 | C60: =VLOOKUP(B60,'APOIO ABC'!A:K,4,0) -> 100983 | D60: =VLOOKUP(B60,'APOIO ABC'!A:K,3,0) -> SINAPI | E60: =VLOOKUP(B60,'APOIO ABC'!A:K,5,0) -> CARGA, MANOBRA E DESCARGA DE ENTULHO EM CAMINHÃO BASCULANTE 14 M³ - CARGA COM ESCAVADEIRA HIDRÁULICA (CAÇAMBA DE 0,80 M³ / 111 HP) E DESCARGA LIVRE (UNIDADE: M3). AF_07/2020 | F60: =VLOOKUP(B60,'APOIO ABC'!A:K,6,0) -> m³ | G60: =SUMIF('APOIO ABC'!A:A,B60,'APOIO ABC'!G:G) -> 428549.7573 | H60: =VLOOKUP(B60,'APOIO ABC'!A:K,10,0) -> 11.17 | I60: =SUMIF('APOIO ABC'!A:A,B60,'APOIO ABC'!K:K) -> 4786900.75 | J60: 0.04413972368 | K60: 0.4290561038 | L60: A
A61: 54 | B61: 162 | C61: =VLOOKUP(B61,'APOIO ABC'!A:K,4,0) -> M0006 | D61: =VLOOKUP(B61,'APOIO ABC'!A:K,3,0) -> SICRO3 | E61: =VLOOKUP(B61,'APOIO ABC'!A:K,5,0) -> Fibra de poliamida para concreto | F61: =VLOOKUP(B61,'APOIO ABC'!A:K,6,0) -> kg | G61: =SUMIF('APOIO ABC'!A:A,B61,'APOIO ABC'!G:G) -> 7084.8 | H61: =VLOOKUP(B61,'APOIO ABC'!A:K,10,0) -> 31.53 | I61: =SUMIF('APOIO ABC'!A:A,B61,'APOIO ABC'!K:K) -> 223383.73 | J61: 0.002059807928 | K61: 0.4311159117 | L61: A
A62: 55 | B62: 81 | C62: =VLOOKUP(B62,'APOIO ABC'!A:K,4,0) -> 71153 | D62: =VLOOKUP(B62,'APOIO ABC'!A:K,3,0) -> AGETOP CIVIL | E62: =VLOOKUP(B62,'APOIO ABC'!A:K,5,0) -> CURVA DE 90 GRAUS AÇO GALVANIZADO DIAM.1.1/4" | F62: =VLOOKUP(B62,'APOIO ABC'!A:K,6,0) -> Un | G62: =SUMIF('APOIO ABC'!A:A,B62,'APOIO ABC'!G:G) -> 4 | H62: =VLOOKUP(B62,'APOIO ABC'!A:K,10,0) -> 39.37 | I62: =SUMIF('APOIO ABC'!A:A,B62,'APOIO ABC'!K:K) -> 157.48 | J62: 1.452113601e-06 | K62: 0.4311173638 | L62: A
A63: 56 | B63: 135 | C63: =VLOOKUP(B63,'APOIO ABC'!A:K,4,0) -> 34.01.23 | D63: =VLOOKUP(B63,'APOIO ABC'!A:K,3,0) -> EMBASA | E63: =VLOOKUP(B63,'APOIO ABC'!A:K,5,0) -> ENSAIO DE UMIDADE NATURAL "SPEED" | F63: =VLOOKUP(B63,'APOIO ABC'!A:K,6,0) -> UN | G63: =SUMIF('APOIO ABC'!A:A,B63,'APOIO ABC'!G:G) -> 106 | H63: =VLOOKUP(B63,'APOIO ABC'!A:K,10,0) -> 85.51 | I63: =SUMIF('APOIO ABC'!A:A,B63,'APOIO ABC'!K:K) -> 9064.06 | J63: 8.357915167e-05 | K63: 0.431200943 | L63: A
A64: 57 | B64: 252 | C64: =VLOOKUP(B64,'APOIO ABC'!A:K,4,0) -> 5914539 | D64: =VLOOKUP(B64,'APOIO ABC'!A:K,3,0) -> SICRO3 | E64: =VLOOKUP(B64,'APOIO ABC'!A:K,5,0) -> Transporte com caminhão betoneira - rodovia em leito natural | F64: =VLOOKUP(B64,'APOIO ABC'!A:K,6,0) -> tkm | G64: =SUMIF('APOIO ABC'!A:A,B64,'APOIO ABC'!G:G) -> 171546.0079 | H64: =VLOOKUP(B64,'APOIO ABC'!A:K,10,0) -> 1.2 | I64: =SUMIF('APOIO ABC'!A:A,B64,'APOIO ABC'!K:K) -> 205855.13 | J64: 0.001898177763 | K64: 0.4330991207 | L64: A
A65: 58 | B65: 142 | C65: =VLOOKUP(B65,'APOIO ABC'!A:K,4,0) -> 5502120 | D65: =VLOOKUP(B65,'APOIO ABC'!A:K,3,0) -> SICRO3 | E65: =VLOOKUP(B65,'APOIO ABC'!A:K,5,0) -> Escavação, carga e transporte de material de 1ª categoria - DMT de 2.500 a 3.000 m - caminho de serviço em leito natural - com escavadeira e caminhão basculante de 14 m³ | F65: =VLOOKUP(B65,'APOIO ABC'!A:K,6,0) -> m³ | G65: =SUMIF('APOIO ABC'!A:A,B65,'APOIO ABC'!G:G) -> 4657.92 | H65: =VLOOKUP(B65,'APOIO ABC'!A:K,10,0) -> 13.61 | I65: =SUMIF('APOIO ABC'!A:A,B65,'APOIO ABC'!K:K) -> 63394.29 | J65: 0.0005845549322 | K65: 0.4336836756 | L65: A
A66: 59 | B66: 197 | C66: =VLOOKUP(B66,'APOIO ABC'!A:K,4,0) -> COMP-0042 | D66: =VLOOKUP(B66,'APOIO ABC'!A:K,3,0) -> PRÓPRIO | E66: =VLOOKUP(B66,'APOIO ABC'!A:K,5,0) -> MONTAGEM E INSTALAÇÃO DE COMPORTAS E GUIAS EM AÇO ASTM A36 DE 25,00M² (4760 x 5250mm) | F66: =VLOOKUP(B66,'APOIO ABC'!A:K,6,0) -> UN | G66: =SUMIF('APOIO ABC'!A:A,B66,'APOIO ABC'!G:G) -> 2 | H66: =VLOOKUP(B66,'APOIO ABC'!A:K,10,0) -> 22076.54 | I66: =SUMIF('APOIO ABC'!A:A,B66,'APOIO ABC'!K:K) -> 44153.08 | J66: 0.000407132893 | K66: 0.4340908085 | L66: A
A67: 60 | B67: 27 | C67: =VLOOKUP(B67,'APOIO ABC'!A:K,4,0) -> 705402 | D67: =VLOOKUP(B67,'APOIO ABC'!A:K,3,0) -> SICRO3 | E67: =VLOOKUP(B67,'APOIO ABC'!A:K,5,0) -> BOCA DE BTCC 1,50 X 1,50 M - ESCONSIDADE 0° - AREIA EXTRAÍDA E BRITA PRODUZIDA | F67: =VLOOKUP(B67,'APOIO ABC'!A:K,6,0) -> UN | G67: =SUMIF('APOIO ABC'!A:A,B67,'APOIO ABC'!G:G) -> 4 | H67: =VLOOKUP(B67,'APOIO ABC'!A:K,10,0) -> 18805.59 | I67: =SUMIF('APOIO ABC'!A:A,B67,'APOIO ABC'!K:K) -> 75222.36 | J67: 0.0006936208537 | K67: 0.4347844294 | L67: A
A68: 61 | B68: 68 | C68: =VLOOKUP(B68,'APOIO ABC'!A:K,4,0) -> 61543 | D68: =VLOOKUP(B68,'APOIO ABC'!A:K,3,0) -> SBC | E68: =VLOOKUP(B68,'APOIO ABC'!A:K,5,0) -> CONDULETE PARA ELETRODUTO Ø 3/4" TIPO "LR" A PROVA DE TGVP, IP54, COPPER FREE, , TAMPA DE ALUMÍNIO, COM VEDAÇÃO, PARAFUSOS EM AÇO INOX, PINTURA A PÓ EM POLIÉSTER NA COR CINZA, ROSCA BSP | F68: =VLOOKUP(B68,'APOIO ABC'!A:K,6,0) -> UN | G68: =SUMIF('APOIO ABC'!A:A,B68,'APOIO ABC'!G:G) -> 3 | H68: =VLOOKUP(B68,'APOIO ABC'!A:K,10,0) -> 33.87 | I68: =SUMIF('APOIO ABC'!A:A,B68,'APOIO ABC'!K:K) -> 101.61 | J68: 9.369396938e-07 | K68: 0.4347853663 | L68: A
A69: 62 | B69: 133 | C69: =VLOOKUP(B69,'APOIO ABC'!A:K,4,0) -> 34.01.46 | D69: =VLOOKUP(B69,'APOIO ABC'!A:K,3,0) -> EMBASA | E69: =VLOOKUP(B69,'APOIO ABC'!A:K,5,0) -> ENSAIO DE PERMEABILIDADE COM CARGA VARIAVEL | F69: =VLOOKUP(B69,'APOIO ABC'!A:K,6,0) -> UN | G69: =SUMIF('APOIO ABC'!A:A,B69,'APOIO ABC'!G:G) -> 106 | H69: =VLOOKUP(B69,'APOIO ABC'!A:K,10,0) -> 1401.62 | I69: =SUMIF('APOIO ABC'!A:A,B69,'APOIO ABC'!K:K) -> 148571.72 | J69: 0.001369970887 | K69: 0.4361553372 | L69: A
A70: 63 | B70: 146 | C70: =VLOOKUP(B70,'APOIO ABC'!A:K,4,0) -> 5502113 | D70: =VLOOKUP(B70,'APOIO ABC'!A:K,3,0) -> SICRO3 | E70: =VLOOKUP(B70,'APOIO ABC'!A:K,5,0) -> Escavação, carga e transporte de material de 1ª categoria - DMT de 800 a 1.000 m - caminho de serviço em leito natural - com escavadeira e caminhão basculante de 14 m³ | F70: =VLOOKUP(B70,'APOIO ABC'!A:K,6,0) -> m³ | G70: =SUMIF('APOIO ABC'!A:A,B70,'APOIO ABC'!G:G) -> 3811.29 | H70: =VLOOKUP(B70,'APOIO ABC'!A:K,10,0) -> 9.14 | I70: =SUMIF('APOIO ABC'!A:A,B70,'APOIO ABC'!K:K) -> 34835.19 | J70: 0.0003212131902 | K70: 0.4364765504 | L70: A
A71: 64 | B71: 126 | C71: =VLOOKUP(B71,'APOIO ABC'!A:K,4,0) -> ED-49567 | D71: =VLOOKUP(B71,'APOIO ABC'!A:K,3,0) -> SETOP | E71: =VLOOKUP(B71,'APOIO ABC'!A:K,5,0) -> ENSAIO DE EXPANSIBILIDADE SOLOS | F71: =VLOOKUP(B71,'APOIO ABC'!A:K,6,0) -> U | G71: =SUMIF('APOIO ABC'!A:A,B71,'APOIO ABC'!G:G) -> 106 | H71: =VLOOKUP(B71,'APOIO ABC'!A:K,10,0) -> 93.38 | I71: =SUMIF('APOIO ABC'!A:A,B71,'APOIO ABC'!K:K) -> 9898.28 | J71: 9.127144408e-05 | K71: 0.4365678219 | L71: A
A72: 65 | B72: 8 | C72: =VLOOKUP(B72,'APOIO ABC'!A:K,4,0) -> 1100657 | D72: =VLOOKUP(B72,'APOIO ABC'!A:K,3,0) -> SICRO3 | E72: =VLOOKUP(B72,'APOIO ABC'!A:K,5,0) -> Adensamento de concreto por vibrador de imersão | F72: =VLOOKUP(B72,'APOIO ABC'!A:K,6,0) -> m³ | G72: =SUMIF('APOIO ABC'!A:A,B72,'APOIO ABC'!G:G) -> 13137.27 | H72: =VLOOKUP(B72,'APOIO ABC'!A:K,10,0) -> 4.06 | I72: =SUMIF('APOIO ABC'!A:A,B72,'APOIO ABC'!K:K) -> 53337.27 | J72: =I72/$I$267 -> 0.0004918197562 | K72: 0.4370596416 | L72: =IF(K72<=50%,"A",IF(AND(K72>50%,K72<=80%),"B","C")) -> A
A73: 66 | B73: 26 | C73: =VLOOKUP(B73,'APOIO ABC'!A:K,4,0) -> 705224 | D73: =VLOOKUP(B73,'APOIO ABC'!A:K,3,0) -> SICRO3 | E73: =VLOOKUP(B73,'APOIO ABC'!A:K,5,0) -> BOCA DE BSCC 1,50 X 1,50 M - ESCONSIDADE 0° - AREIA EXTRAÍDA E BRITA PRODUZIDA | F73: =VLOOKUP(B73,'APOIO ABC'!A:K,6,0) -> M | G73: =SUMIF('APOIO ABC'!A:A,B73,'APOIO ABC'!G:G) -> 4 | H73: =VLOOKUP(B73,'APOIO ABC'!A:K,10,0) -> 12925.18 | I73: =SUMIF('APOIO ABC'!A:A,B73,'APOIO ABC'!K:K) -> 51700.72 | J73: 0.0004767292271 | K73: 0.4375363708 | L73: A
A74: 67 | B74: 258 | C74: =VLOOKUP(B74,'APOIO ABC'!A:K,4,0) ->  | D74: =VLOOKUP(B74,'APOIO ABC'!A:K,3,0) ->  | E74: =VLOOKUP(B74,'APOIO ABC'!A:K,5,0) ->  | F74: =VLOOKUP(B74,'APOIO ABC'!A:K,6,0) ->  | G74: =SUMIF('APOIO ABC'!A:A,B74,'APOIO ABC'!G:G) -> 0 | H74: =VLOOKUP(B74,'APOIO ABC'!A:K,10,0) ->  | I74: =SUMIF('APOIO ABC'!A:A,B74,'APOIO ABC'!K:K) -> 0 | J74: 0 | K74: =J74+K73 -> 0.4375363708 | L74: A
A75: 68 | B75: 21 | C75: =VLOOKUP(B75,'APOIO ABC'!A:K,4,0) -> 2531 | D75: =VLOOKUP(B75,'APOIO ABC'!A:K,3,0) -> ORSE | E75: =VLOOKUP(B75,'APOIO ABC'!A:K,5,0) -> Aterro de áreas sem aquisição de material, com espalhamento mecânico, sem compactação e sem transporte | F75: =VLOOKUP(B75,'APOIO ABC'!A:K,6,0) -> m³ | G75: =SUMIF('APOIO ABC'!A:A,B75,'APOIO ABC'!G:G) -> 4657.92 | H75: =VLOOKUP(B75,'APOIO ABC'!A:K,10,0) -> 10.29 | I75: =SUMIF('APOIO ABC'!A:A,B75,'APOIO ABC'!K:K) -> 47929.99 | J75: 0.0004419595528 | K75: 0.4379783304 | L75: A
A76: 69 | B76: 212 | C76: =VLOOKUP(B76,'APOIO ABC'!A:K,4,0) -> 71981 | D76: =VLOOKUP(B76,'APOIO ABC'!A:K,3,0) -> AGETOP CIVIL | E76: =VLOOKUP(B76,'APOIO ABC'!A:K,5,0) -> PORCA SEXTAVADA DIAMETRO 1/4" | F76: =VLOOKUP(B76,'APOIO ABC'!A:K,6,0) -> Un | G76: =SUMIF('APOIO ABC'!A:A,B76,'APOIO ABC'!G:G) -> 176 | H76: =VLOOKUP(B76,'APOIO ABC'!A:K,10,0) -> 0.46 | I76: =SUMIF('APOIO ABC'!A:A,B76,'APOIO ABC'!K:K) -> 80.96 | J76: 7.465272868e-07 | K76: 0.4379790769 | L76: A
A77: 70 | B77: 25 | C77: =VLOOKUP(B77,'APOIO ABC'!A:K,4,0) -> 705321 | D77: =VLOOKUP(B77,'APOIO ABC'!A:K,3,0) -> SICRO3 | E77: =VLOOKUP(B77,'APOIO ABC'!A:K,5,0) -> BOCA DE BDCC2,00 X 2,00 M - ESCONSIDADE 0° - AREIA EXTRAÍDA E BRITA PRODUZIDA | F77: =VLOOKUP(B77,'APOIO ABC'!A:K,6,0) -> UN | G77: =SUMIF('APOIO ABC'!A:A,B77,'APOIO ABC'!G:G) -> 2 | H77: =VLOOKUP(B77,'APOIO ABC'!A:K,10,0) -> 23201.36 | I77: =SUMIF('APOIO ABC'!A:A,B77,'APOIO ABC'!K:K) -> 46402.72 | J77: 0.000427876688 | K77: 0.4384069536 | L77: A
A78: 71 | B78: 176 | C78: =VLOOKUP(B78,'APOIO ABC'!A:K,4,0) -> 62871 | D78: =VLOOKUP(B78,'APOIO ABC'!A:K,3,0) -> SBC | E78: =VLOOKUP(B78,'APOIO ABC'!A:K,5,0) -> INTERRUPTOR SIMPLES COM TAMPA PARA CONDULETE, 10A - 250V, COM PARAFUSOS | F78: =VLOOKUP(B78,'APOIO ABC'!A:K,6,0) -> UN | G78: =SUMIF('APOIO ABC'!A:A,B78,'APOIO ABC'!G:G) -> 1 | H78: =VLOOKUP(B78,'APOIO ABC'!A:K,10,0) -> 71.59 | I78: =SUMIF('APOIO ABC'!A:A,B78,'APOIO ABC'!K:K) -> 71.59 | J78: 6.601270808e-07 | K78: 0.4384076137 | L78: A
A79: 72 | B79: 132 | C79: =VLOOKUP(B79,'APOIO ABC'!A:K,4,0) -> 34.01.43 | D79: =VLOOKUP(B79,'APOIO ABC'!A:K,3,0) -> EMBASA | E79: =VLOOKUP(B79,'APOIO ABC'!A:K,5,0) -> ENSAIO DE PERMEABILIDADE COM CARGA CONSTANTE | F79: =VLOOKUP(B79,'APOIO ABC'!A:K,6,0) -> UN | G79: =SUMIF('APOIO ABC'!A:A,B79,'APOIO ABC'!G:G) -> 20 | H79: =VLOOKUP(B79,'APOIO ABC'!A:K,10,0) -> 1186.37 | I79: =SUMIF('APOIO ABC'!A:A,B79,'APOIO ABC'!K:K) -> 23727.4 | J79: 0.0002187889272 | K79: 0.4386264027 | L79: A
A80: 73 | B80: 201 | C80: =VLOOKUP(B80,'APOIO ABC'!A:K,4,0) -> 60.15.20 | D80: =VLOOKUP(B80,'APOIO ABC'!A:K,3,0) -> EMBASA | E80: =VLOOKUP(B80,'APOIO ABC'!A:K,5,0) -> PARAFUSO CABEÇA LENTILHA, 1/4" X 1/2" | F80: =VLOOKUP(B80,'APOIO ABC'!A:K,6,0) -> UN | G80: =SUMIF('APOIO ABC'!A:A,B80,'APOIO ABC'!G:G) -> 90 | H80: =VLOOKUP(B80,'APOIO ABC'!A:K,10,0) -> 5.62 | I80: =SUMIF('APOIO ABC'!A:A,B80,'APOIO ABC'!K:K) -> 505.8 | J80: 4.663951355e-06 | K80: 0.4386310666 | L80: A
A81: 74 | B81: 240 | C81: =VLOOKUP(B81,'APOIO ABC'!A:K,4,0) -> 10431 | D81: =VLOOKUP(B81,'APOIO ABC'!A:K,3,0) -> ORSE | E81: =VLOOKUP(B81,'APOIO ABC'!A:K,5,0) -> Tampa de concreto para caixas de passagem 0,70x0,70mx0,07m | F81: =VLOOKUP(B81,'APOIO ABC'!A:K,6,0) -> un | G81: =SUMIF('APOIO ABC'!A:A,B81,'APOIO ABC'!G:G) -> 22 | H81: =VLOOKUP(B81,'APOIO ABC'!A:K,10,0) -> 99.16 | I81: =SUMIF('APOIO ABC'!A:A,B81,'APOIO ABC'!K:K) -> 2181.52 | J81: 2.011566461e-05 | K81: 0.4386511823 | L81: A
A82: 75 | B82: 127 | C82: =VLOOKUP(B82,'APOIO ABC'!A:K,4,0) -> 01.07.07U | D82: =VLOOKUP(B82,'APOIO ABC'!A:K,3,0) -> COMPESA | E82: =VLOOKUP(B82,'APOIO ABC'!A:K,5,0) -> ENSAIO DE GRANULOMETRIA POR PENEIRAMENTO E SEDIMENTAÇÃO - SOLOS | F82: =VLOOKUP(B82,'APOIO ABC'!A:K,6,0) -> UN | G82: =SUMIF('APOIO ABC'!A:A,B82,'APOIO ABC'!G:G) -> 106 | H82: =VLOOKUP(B82,'APOIO ABC'!A:K,10,0) -> 235.72 | I82: =SUMIF('APOIO ABC'!A:A,B82,'APOIO ABC'!K:K) -> 24986.32 | J82: 0.0002303973527 | K82: 0.4388815796 | L82: A
A83: 76 | B83: 200 | C83: =VLOOKUP(B83,'APOIO ABC'!A:K,4,0) -> 5014 | D83: =VLOOKUP(B83,'APOIO ABC'!A:K,3,0) -> ORSE | E83: =VLOOKUP(B83,'APOIO ABC'!A:K,5,0) -> Fornecimento e Instalação de Carpete Berber Point 650 da Beaulieu e=6mm | F83: =VLOOKUP(B83,'APOIO ABC'!A:K,6,0) -> m² | G83: =SUMIF('APOIO ABC'!A:A,B83,'APOIO ABC'!G:G) -> 10 | H83: =VLOOKUP(B83,'APOIO ABC'!A:K,10,0) -> 3.24 | I83: =SUMIF('APOIO ABC'!A:A,B83,'APOIO ABC'!K:K) -> 32.4 | J83: 2.987584498e-07 | K83: 0.4388818784 | L83: A
A84: 77 | B84: 138 | C84: =VLOOKUP(B84,'APOIO ABC'!A:K,4,0) -> 34.05.31 | D84: =VLOOKUP(B84,'APOIO ABC'!A:K,3,0) -> EMBASA | E84: =VLOOKUP(B84,'APOIO ABC'!A:K,5,0) -> ENSAIO SEDIMENTOMÉTRICO COMPARATIVO | F84: =VLOOKUP(B84,'APOIO ABC'!A:K,6,0) -> UN | G84: =SUMIF('APOIO ABC'!A:A,B84,'APOIO ABC'!G:G) -> 106 | H84: =VLOOKUP(B84,'APOIO ABC'!A:K,10,0) -> 794.68 | I84: =SUMIF('APOIO ABC'!A:A,B84,'APOIO ABC'!K:K) -> 84236.08 | J84: 0.0007767358233 | K84: 0.4396586142 | L84: A
A85: 78 | B85: 150 | C85: =VLOOKUP(B85,'APOIO ABC'!A:K,4,0) -> 5502752 | D85: =VLOOKUP(B85,'APOIO ABC'!A:K,3,0) -> SICRO3 | E85: =VLOOKUP(B85,'APOIO ABC'!A:K,5,0) -> Escavação, carga e transporte de material de 3ª categoria - DMT de 2.000 a 2.500 m - caminho de serviço em leito natural com caminhão basculante de 12 m³ | F85: =VLOOKUP(B85,'APOIO ABC'!A:K,6,0) -> m³ | G85: =SUMIF('APOIO ABC'!A:A,B85,'APOIO ABC'!G:G) -> 2323.26 | H85: =VLOOKUP(B85,'APOIO ABC'!A:K,10,0) -> 60.98 | I85: =SUMIF('APOIO ABC'!A:A,B85,'APOIO ABC'!K:K) -> 141672.39 | J85: 0.001306352581 | K85: 0.4409649668 | L85: A
A86: 79 | B86: 122 | C86: =VLOOKUP(B86,'APOIO ABC'!A:K,4,0) -> 34.97.02 | D86: =VLOOKUP(B86,'APOIO ABC'!A:K,3,0) -> EMBASA | E86: =VLOOKUP(B86,'APOIO ABC'!A:K,5,0) -> ENSAIO DE CARACTERIZACAO PETROGRAFICA | F86: =VLOOKUP(B86,'APOIO ABC'!A:K,6,0) -> UN | G86: =SUMIF('APOIO ABC'!A:A,B86,'APOIO ABC'!G:G) -> 18 | H86: =VLOOKUP(B86,'APOIO ABC'!A:K,10,0) -> 3058.41 | I86: =SUMIF('APOIO ABC'!A:A,B86,'APOIO ABC'!K:K) -> 55051.38 | J86: 0.0005076254613 | K86: 0.4414725923 | L86: A
A87: 80 | B87: 12 | C87: =VLOOKUP(B87,'APOIO ABC'!A:K,4,0) -> 4816018 | D87: =VLOOKUP(B87,'APOIO ABC'!A:K,3,0) -> SICRO3 | E87: =VLOOKUP(B87,'APOIO ABC'!A:K,5,0) -> Areia extraída com trator e carregadeira | F87: =VLOOKUP(B87,'APOIO ABC'!A:K,6,0) -> m³ | G87: =SUMIF('APOIO ABC'!A:A,B87,'APOIO ABC'!G:G) -> 5332.29125 | H87: =VLOOKUP(B87,'APOIO ABC'!A:K,10,0) -> 6.11 | I87: =SUMIF('APOIO ABC'!A:A,B87,'APOIO ABC'!K:K) -> 32580.26 | J87: 0.0003004206164 | K87: 0.4417730129 | L87: A
A88: 81 | B88: 48 | C88: =VLOOKUP(B88,'APOIO ABC'!A:K,4,0) -> 101009 | D88: =VLOOKUP(B88,'APOIO ABC'!A:K,3,0) -> SINAPI | E88: =VLOOKUP(B88,'APOIO ABC'!A:K,5,0) -> CARGA, MANOBRA E DESCARGA DE POSTE DE CONCRETO EM CAMINHÃO CARROCERIA COM GUINDAUTO (MUNCK) 11,7 TM. AF_07/2020 | F88: =VLOOKUP(B88,'APOIO ABC'!A:K,6,0) -> T | G88: =SUMIF('APOIO ABC'!A:A,B88,'APOIO ABC'!G:G) -> 6.18 | H88: =VLOOKUP(B88,'APOIO ABC'!A:K,10,0) -> 53.82 | I88: =SUMIF('APOIO ABC'!A:A,B88,'APOIO ABC'!K:K) -> 332.6 | J88: 3.06688458e-06 | K88: 0.4417760798 | L88: A
A89: 82 | B89: 24 | C89: =VLOOKUP(B89,'APOIO ABC'!A:K,4,0) -> 705312 | D89: =VLOOKUP(B89,'APOIO ABC'!A:K,3,0) -> SICRO3 | E89: =VLOOKUP(B89,'APOIO ABC'!A:K,5,0) -> BOCA DE BDCC 1,50 X 1,50 M - ESCONSIDADE 0° - AREIA EXTRAÍDA E BRITA PRODUZIDA | F89: =VLOOKUP(B89,'APOIO ABC'!A:K,6,0) -> UN | G89: =SUMIF('APOIO ABC'!A:A,B89,'APOIO ABC'!G:G) -> 2 | H89: =VLOOKUP(B89,'APOIO ABC'!A:K,10,0) -> 15152.71 | I89: =SUMIF('APOIO ABC'!A:A,B89,'APOIO ABC'!K:K) -> 30305.42 | J89: 0.0002794444537 | K89: 0.4420555242 | L89: A
A90: 83 | B90: 46 | C90: =VLOOKUP(B90,'APOIO ABC'!A:K,4,0) -> 5914657 | D90: =VLOOKUP(B90,'APOIO ABC'!A:K,3,0) -> SICRO3 | E90: =VLOOKUP(B90,'APOIO ABC'!A:K,5,0) -> Carga, manobra e descarga de blocos de rocha em caminhão basculante de 8 m³ - carga com retroescavadeira de 0,29 m³ e descarga livre | F90: =VLOOKUP(B90,'APOIO ABC'!A:K,6,0) -> t | G90: =SUMIF('APOIO ABC'!A:A,B90,'APOIO ABC'!G:G) -> 81584.58121 | H90: =VLOOKUP(B90,'APOIO ABC'!A:K,10,0) -> 21.57 | I90: =SUMIF('APOIO ABC'!A:A,B90,'APOIO ABC'!K:K) -> 1759779.29 | J90: 0.01622681891 | K90: 0.4582823431 | L90: A
A91: 84 | B91: 161 | C91: =VLOOKUP(B91,'APOIO ABC'!A:K,4,0) -> 170497 | D91: =VLOOKUP(B91,'APOIO ABC'!A:K,3,0) -> CAEMA | E91: =VLOOKUP(B91,'APOIO ABC'!A:K,5,0) -> EXECUÇÃO MURETA EM ALVENARIA DE BLOCO DE CONCRETO, PARA A INSTALAÇÃO DE QUADRO DE MEDIÇÃO TRIFÁSICO PADRÃO CEMAR, NAS DIMENSÕES 2,10 X 2,05 X 0,40M MONTAGEM E INSTALAÇÃO | F91: =VLOOKUP(B91,'APOIO ABC'!A:K,6,0) -> UN | G91: =SUMIF('APOIO ABC'!A:A,B91,'APOIO ABC'!G:G) -> 1 | H91: =VLOOKUP(B91,'APOIO ABC'!A:K,10,0) -> 948.99 | I91: =SUMIF('APOIO ABC'!A:A,B91,'APOIO ABC'!K:K) -> 948.99 | J91: 8.750579668e-06 | K91: 0.4582910937 | L91: A
A92: 85 | B92: 128 | C92: =VLOOKUP(B92,'APOIO ABC'!A:K,4,0) -> 34.01.34 | D92: =VLOOKUP(B92,'APOIO ABC'!A:K,3,0) -> EMBASA | E92: =VLOOKUP(B92,'APOIO ABC'!A:K,5,0) -> ENSAIO DE INDICE DE SUPORTE CALIFORNIA (NBR 09895) | F92: =VLOOKUP(B92,'APOIO ABC'!A:K,6,0) -> UN | G92: =SUMIF('APOIO ABC'!A:A,B92,'APOIO ABC'!G:G) -> 106 | H92: =VLOOKUP(B92,'APOIO ABC'!A:K,10,0) -> 399.05 | I92: =SUMIF('APOIO ABC'!A:A,B92,'APOIO ABC'!K:K) -> 42299.3 | J92: 0.0003900392992 | K92: 0.458681133 | L92: A
A93: 86 | B93: 62 | C93: =VLOOKUP(B93,'APOIO ABC'!A:K,4,0) -> 1106138 | D93: =VLOOKUP(B93,'APOIO ABC'!A:K,3,0) -> SICRO3 | E93: =VLOOKUP(B93,'APOIO ABC'!A:K,5,0) -> Concreto fck = 30 MPa - confecção em central dosadora de 30 m³/h - areia extraída e brita produzida | F93: =VLOOKUP(B93,'APOIO ABC'!A:K,6,0) -> m³ | G93: =SUMIF('APOIO ABC'!A:A,B93,'APOIO ABC'!G:G) -> 455.05 | H93: =VLOOKUP(B93,'APOIO ABC'!A:K,10,0) -> 371.66 | I93: =SUMIF('APOIO ABC'!A:A,B93,'APOIO ABC'!K:K) -> 169123.87 | J93: 0.001559481025 | K93: 0.460240614 | L93: A
A94: 87 | B94: 131 | C94: =VLOOKUP(B94,'APOIO ABC'!A:K,4,0) -> 34.01.42 | D94: =VLOOKUP(B94,'APOIO ABC'!A:K,3,0) -> EMBASA | E94: =VLOOKUP(B94,'APOIO ABC'!A:K,5,0) -> ENSAIO DE PERMEABILIDADE "IN SITU" | F94: =VLOOKUP(B94,'APOIO ABC'!A:K,6,0) -> UN | G94: =SUMIF('APOIO ABC'!A:A,B94,'APOIO ABC'!G:G) -> 106 | H94: =VLOOKUP(B94,'APOIO ABC'!A:K,10,0) -> 969.12 | I94: =SUMIF('APOIO ABC'!A:A,B94,'APOIO ABC'!K:K) -> 102726.72 | J94: 0.0009472369017 | K94: 0.4611878509 | L94: A
A95: 88 | B95: 136 | C95: =VLOOKUP(B95,'APOIO ABC'!A:K,4,0) -> 34.01.22 | D95: =VLOOKUP(B95,'APOIO ABC'!A:K,3,0) -> EMBASA | E95: =VLOOKUP(B95,'APOIO ABC'!A:K,5,0) -> ENSAIO DE UMIDADE NATURAL (ESTUFA) | F95: =VLOOKUP(B95,'APOIO ABC'!A:K,6,0) -> UN | G95: =SUMIF('APOIO ABC'!A:A,B95,'APOIO ABC'!G:G) -> 106 | H95: =VLOOKUP(B95,'APOIO ABC'!A:K,10,0) -> 92.35 | I95: =SUMIF('APOIO ABC'!A:A,B95,'APOIO ABC'!K:K) -> 9789.1 | J95: 9.026470187e-05 | K95: 0.4612781156 | L95: A
A96: 89 | B96: 33 | C96: =VLOOKUP(B96,'APOIO ABC'!A:K,4,0) -> 92984 | D96: =VLOOKUP(B96,'APOIO ABC'!A:K,3,0) -> SINAPI | E96: =VLOOKUP(B96,'APOIO ABC'!A:K,5,0) -> CABO DE COBRE FLEXÍVEL ISOLADO, 25 MM², ANTI-CHAMA 0,6/1,0 KV, PARA REDE ENTERRADA DE DISTRIBUIÇÃO DE ENERGIA ELÉTRICA - FORNECIMENTO E INSTALAÇÃO. AF_12/2021 | F96: =VLOOKUP(B96,'APOIO ABC'!A:K,6,0) -> M | G96: =SUMIF('APOIO ABC'!A:A,B96,'APOIO ABC'!G:G) -> 749 | H96: =VLOOKUP(B96,'APOIO ABC'!A:K,10,0) -> 32.91 | I96: =SUMIF('APOIO ABC'!A:A,B96,'APOIO ABC'!K:K) -> 24649.59 | J96: 0.0002272923857 | K96: 0.461505408 | L96: A
A97: 90 | B97: 99 | C97: =VLOOKUP(B97,'APOIO ABC'!A:K,4,0) -> 101895 | D97: =VLOOKUP(B97,'APOIO ABC'!A:K,3,0) -> SINAPI | E97: =VLOOKUP(B97,'APOIO ABC'!A:K,5,0) -> DISJUNTOR TERMOMAGNÉTICO TRIPOLAR , CORRENTE NOMINAL DE 125A - FORNECIMENTO E INSTALAÇÃO. AF_10/2020 | F97: =VLOOKUP(B97,'APOIO ABC'!A:K,6,0) -> UN | G97: =SUMIF('APOIO ABC'!A:A,B97,'APOIO ABC'!G:G) -> 2 | H97: =VLOOKUP(B97,'APOIO ABC'!A:K,10,0) -> 495.41 | I97: =SUMIF('APOIO ABC'!A:A,B97,'APOIO ABC'!K:K) -> 990.82 | J97: 9.13629158e-06 | K97: 0.4615145443 | L97: A
A98: 91 | B98: 100 | C98: =VLOOKUP(B98,'APOIO ABC'!A:K,4,0) -> 60107 | D98: =VLOOKUP(B98,'APOIO ABC'!A:K,3,0) -> SBC | E98: =VLOOKUP(B98,'APOIO ABC'!A:K,5,0) -> ELETROCALHA PERFURADA TIPO ""U"" 100X50 CHAPA 20 SEM TAMPA | F98: =VLOOKUP(B98,'APOIO ABC'!A:K,6,0) -> M | G98: =SUMIF('APOIO ABC'!A:A,B98,'APOIO ABC'!G:G) -> 40 | H98: =VLOOKUP(B98,'APOIO ABC'!A:K,10,0) -> 67.81 | I98: =SUMIF('APOIO ABC'!A:A,B98,'APOIO ABC'!K:K) -> 2712.4 | J98: 2.501087713e-05 | K98: 0.4615395552 | L98: A
A99: 92 | B99: 159 | C99: =VLOOKUP(B99,'APOIO ABC'!A:K,4,0) -> 4015612 | D99: =VLOOKUP(B99,'APOIO ABC'!A:K,3,0) -> SICRO3 | E99: =VLOOKUP(B99,'APOIO ABC'!A:K,5,0) -> Execução de revestimento primário com material de jazida | F99: =VLOOKUP(B99,'APOIO ABC'!A:K,6,0) -> m³ | G99: =SUMIF('APOIO ABC'!A:A,B99,'APOIO ABC'!G:G) -> 33603.676 | H99: =VLOOKUP(B99,'APOIO ABC'!A:K,10,0) -> 14.78 | I99: =SUMIF('APOIO ABC'!A:A,B99,'APOIO ABC'!K:K) -> 496662.32 | J99: 0.004579693357 | K99: 0.4661192485 | L99: A
A100: 93 | B100: 196 | C100: =VLOOKUP(B100,'APOIO ABC'!A:K,4,0) -> COMP-0041 | D100: =VLOOKUP(B100,'APOIO ABC'!A:K,3,0) -> PRÓPRIO | E100: =VLOOKUP(B100,'APOIO ABC'!A:K,5,0) -> MONTAGEM E INSTALAÇÃO DE COMPORTAS E GUIAS EM AÇO ASTM A36 DE 10,47M² (2050 x 5110mm) | F100: =VLOOKUP(B100,'APOIO ABC'!A:K,6,0) -> UN | G100: =SUMIF('APOIO ABC'!A:A,B100,'APOIO ABC'!G:G) -> 4 | H100: =VLOOKUP(B100,'APOIO ABC'!A:K,10,0) -> 9425.66 | I100: =SUMIF('APOIO ABC'!A:A,B100,'APOIO ABC'!K:K) -> 37702.64 | J100: 0.000347653774 | K100: 0.4664669023 | L100: A
A101: 94 | B101: 98 | C101: =VLOOKUP(B101,'APOIO ABC'!A:K,4,0) -> 34.02.19 | D101: =VLOOKUP(B101,'APOIO ABC'!A:K,3,0) -> EMBASA | E101: =VLOOKUP(B101,'APOIO ABC'!A:K,5,0) -> DETERMINACAO DO TEOR DE MATERIAIS PULVERULENTOS (NBR 07219) | F101: =VLOOKUP(B101,'APOIO ABC'!A:K,6,0) -> UN | G101: =SUMIF('APOIO ABC'!A:A,B101,'APOIO ABC'!G:G) -> 9 | H101: =VLOOKUP(B101,'APOIO ABC'!A:K,10,0) -> 262.23 | I101: =SUMIF('APOIO ABC'!A:A,B101,'APOIO ABC'!K:K) -> 2360.07 | J101: 2.176206341e-05 | K101: 0.4664886644 | L101: A
A102: 95 | B102: 236 | C102: =VLOOKUP(B102,'APOIO ABC'!A:K,4,0) -> 42.20.220 | D102: =VLOOKUP(B102,'APOIO ABC'!A:K,3,0) -> CPOS/CDHU | E102: =VLOOKUP(B102,'APOIO ABC'!A:K,5,0) -> Solda exotérmica conexão cabo-haste em T, bitola do cabo de 50mm² a 95mm² para haste de 5/8" e 3/4" | F102: =VLOOKUP(B102,'APOIO ABC'!A:K,6,0) -> UN | G102: =SUMIF('APOIO ABC'!A:A,B102,'APOIO ABC'!G:G) -> 1 | H102: =VLOOKUP(B102,'APOIO ABC'!A:K,10,0) -> 78.48 | I102: =SUMIF('APOIO ABC'!A:A,B102,'APOIO ABC'!K:K) -> 78.48 | J102: 7.236593561e-07 | K102: 0.466489388 | L102: A
A103: 96 | B103: 1 | C103: =VLOOKUP(B103,'APOIO ABC'!A:K,4,0) -> COT.NETS-09 | D103: =VLOOKUP(B103,'APOIO ABC'!A:K,3,0) -> PRÓPRIO | E103: =VLOOKUP(B103,'APOIO ABC'!A:K,5,0) -> (PGBT-RC500) PAINEL DE CONTROLE DAS INSTALAÇÕES DE FORÇA COM ARMÁRIOS, AUTOPORTANTE, EM AÇO GALVANIZADO, IP41, COMBINÁVEL COM OUTROS MÓDULOS, COM PORTA. DIM. APROX. 2000X800X600mm (HxLxC). CONFORME DESENHO E ESPECIFICAÇÕES DE REFERÊNCIA. | F103: =VLOOKUP(B103,'APOIO ABC'!A:K,6,0) -> CJ | G103: =SUMIF('APOIO ABC'!A:A,B103,'APOIO ABC'!G:G) -> 1 | H103: =VLOOKUP(B103,'APOIO ABC'!A:K,10,0) -> 19182.61 | I103: =SUMIF('APOIO ABC'!A:A,B103,'APOIO ABC'!K:K) -> 19182.61 | J103: 0.0001768816922 | K103: 0.4666662697 | L103: A
A104: 97 | B104: 109 | C104: =VLOOKUP(B104,'APOIO ABC'!A:K,4,0) -> 71213 | D104: =VLOOKUP(B104,'APOIO ABC'!A:K,3,0) -> AGETOP CIVIL | E104: =VLOOKUP(B104,'APOIO ABC'!A:K,5,0) -> ELETRODUTO EM AÇO GALVANIZADO A FOGO DIÂMETRO 1 1/4" - PESADO | F104: =VLOOKUP(B104,'APOIO ABC'!A:K,6,0) -> M | G104: =SUMIF('APOIO ABC'!A:A,B104,'APOIO ABC'!G:G) -> 13 | H104: =VLOOKUP(B104,'APOIO ABC'!A:K,10,0) -> 92.83 | I104: =SUMIF('APOIO ABC'!A:A,B104,'APOIO ABC'!K:K) -> 1206.79 | J104: 1.112773795e-05 | K104: 0.4666773975 | L104: A
A105: 98 | B105: 221 | C105: =VLOOKUP(B105,'APOIO ABC'!A:K,4,0) -> COT.NETS-07 | D105: =VLOOKUP(B105,'APOIO ABC'!A:K,3,0) -> PRÓPRIO | E105: =VLOOKUP(B105,'APOIO ABC'!A:K,5,0) -> QUADRO DE MEDIÇÃO DIRETA SEM TC, COM VISOR, PADRÃO COELBA, TIPO F3, DIM. APROX. 850X550X250mm. | F105: =VLOOKUP(B105,'APOIO ABC'!A:K,6,0) -> UN | G105: =SUMIF('APOIO ABC'!A:A,B105,'APOIO ABC'!G:G) -> 1 | H105: =VLOOKUP(B105,'APOIO ABC'!A:K,10,0) -> 1580.27 | I105: =SUMIF('APOIO ABC'!A:A,B105,'APOIO ABC'!K:K) -> 1580.27 | J105: 1.457157455e-05 | K105: 0.466691969 | L105: A
A106: 99 | B106: 57 | C106: =VLOOKUP(B106,'APOIO ABC'!A:K,4,0) -> 5502978 | D106: =VLOOKUP(B106,'APOIO ABC'!A:K,3,0) -> SICRO3 | E106: =VLOOKUP(B106,'APOIO ABC'!A:K,5,0) -> Compactação de aterros a 100% do Proctor normal | F106: =VLOOKUP(B106,'APOIO ABC'!A:K,6,0) -> m³ | G106: =SUMIF('APOIO ABC'!A:A,B106,'APOIO ABC'!G:G) -> 729352.528 | H106: =VLOOKUP(B106,'APOIO ABC'!A:K,10,0) -> 6.1 | I106: =SUMIF('APOIO ABC'!A:A,B106,'APOIO ABC'!K:K) -> 4449050.39 | J106: 0.04102442585 | K106: 0.5077163949 | L106: B
A107: 100 | B107: 251 | C107: =VLOOKUP(B107,'APOIO ABC'!A:K,4,0) -> 5914359 | D107: =VLOOKUP(B107,'APOIO ABC'!A:K,3,0) -> SICRO3 | E107: =VLOOKUP(B107,'APOIO ABC'!A:K,5,0) -> Transporte com caminhão basculante de 10 m³ - rodovia em leito natural | F107: =VLOOKUP(B107,'APOIO ABC'!A:K,6,0) -> tkm | G107: =SUMIF('APOIO ABC'!A:A,B107,'APOIO ABC'!G:G) -> 149346.114 | H107: =VLOOKUP(B107,'APOIO ABC'!A:K,10,0) -> 1.48 | I107: =SUMIF('APOIO ABC'!A:A,B107,'APOIO ABC'!K:K) -> 221032.23 | J107: 0.002038124888 | K107: 0.5097545198 | L107: B
A108: 101 | B108: 64 | C108: =VLOOKUP(B108,'APOIO ABC'!A:K,4,0) -> 1106058 | D108: =VLOOKUP(B108,'APOIO ABC'!A:K,3,0) -> SICRO3 | E108: =VLOOKUP(B108,'APOIO ABC'!A:K,5,0) -> Concreto magro - confecção em betoneira e lançamento manual - areia extraída e brita produzida | F108: =VLOOKUP(B108,'APOIO ABC'!A:K,6,0) -> m³ | G108: =SUMIF('APOIO ABC'!A:A,B108,'APOIO ABC'!G:G) -> 172.76 | H108: =VLOOKUP(B108,'APOIO ABC'!A:K,10,0) -> 393.8 | I108: =SUMIF('APOIO ABC'!A:A,B108,'APOIO ABC'!K:K) -> 68032.87 | J108: 0.0006273269992 | K108: 0.5103818468 | L108: B
A109: 102 | B109: 125 | C109: =VLOOKUP(B109,'APOIO ABC'!A:K,4,0) -> 01.07.16U | D109: =VLOOKUP(B109,'APOIO ABC'!A:K,3,0) -> COMPESA | E109: =VLOOKUP(B109,'APOIO ABC'!A:K,5,0) -> ENSAIO DE DETERMINAÇÃO DO ÍNDICE DE FORMA - AGREGADOS | F109: =VLOOKUP(B109,'APOIO ABC'!A:K,6,0) -> UN | G109: =SUMIF('APOIO ABC'!A:A,B109,'APOIO ABC'!G:G) -> 19 | H109: =VLOOKUP(B109,'APOIO ABC'!A:K,10,0) -> 124.07 | I109: =SUMIF('APOIO ABC'!A:A,B109,'APOIO ABC'!K:K) -> 2357.33 | J109: 2.173679804e-05 | K109: 0.5104035836 | L109: B
A110: 103 | B110: 101 | C110: =VLOOKUP(B110,'APOIO ABC'!A:K,4,0) -> 61086 | D110: =VLOOKUP(B110,'APOIO ABC'!A:K,3,0) -> SBC | E110: =VLOOKUP(B110,'APOIO ABC'!A:K,5,0) -> ELETRODUTO DE PVC RÍGIDO ROSCÁVEL Ø 1" - FORNECIMENTO E INSTALAÇÃO | F110: =VLOOKUP(B110,'APOIO ABC'!A:K,6,0) -> M | G110: =SUMIF('APOIO ABC'!A:A,B110,'APOIO ABC'!G:G) -> 16 | H110: =VLOOKUP(B110,'APOIO ABC'!A:K,10,0) -> 23.06 | I110: =SUMIF('APOIO ABC'!A:A,B110,'APOIO ABC'!K:K) -> 368.96 | J110: 3.402157951e-06 | K110: 0.5104069857 | L110: B
A111: 104 | B111: 152 | C111: =VLOOKUP(B111,'APOIO ABC'!A:K,4,0) -> 5502744 | D111: =VLOOKUP(B111,'APOIO ABC'!A:K,3,0) -> SICRO3 | E111: =VLOOKUP(B111,'APOIO ABC'!A:K,5,0) -> Escavação, carga e transporte de material de 3ª categoria - DMT de 400 a 600 m - caminho de serviço em leito natural com caminhão basculante de 12 m³ | F111: =VLOOKUP(B111,'APOIO ABC'!A:K,6,0) -> m³ | G111: =SUMIF('APOIO ABC'!A:A,B111,'APOIO ABC'!G:G) -> 184628 | H111: =VLOOKUP(B111,'APOIO ABC'!A:K,10,0) -> 53.96 | I111: =SUMIF('APOIO ABC'!A:A,B111,'APOIO ABC'!K:K) -> 9962526.88 | J111: 0.09186386069 | K111: 0.6022708464 | L111: B
A112: 105 | B112: 229 | C112: =VLOOKUP(B112,'APOIO ABC'!A:K,4,0) -> 54965 | D112: =VLOOKUP(B112,'APOIO ABC'!A:K,3,0) -> SIURB | E112: =VLOOKUP(B112,'APOIO ABC'!A:K,5,0) -> SAÍDA LATERAL P/ ELETRODUTO EM PERFILADO - 3/4" | F112: =VLOOKUP(B112,'APOIO ABC'!A:K,6,0) -> Un | G112: =SUMIF('APOIO ABC'!A:A,B112,'APOIO ABC'!G:G) -> 5 | H112: =VLOOKUP(B112,'APOIO ABC'!A:K,10,0) -> 2.5 | I112: =SUMIF('APOIO ABC'!A:A,B112,'APOIO ABC'!K:K) -> 12.5 | J112: 1.152617476e-07 | K112: 0.6022709617 | L112: B
A113: 106 | B113: 19 | C113: =VLOOKUP(B113,'APOIO ABC'!A:K,4,0) -> 3243 | D113: =VLOOKUP(B113,'APOIO ABC'!A:K,3,0) -> ORSE | E113: =VLOOKUP(B113,'APOIO ABC'!A:K,5,0) -> Assentamento de poste circular de concreto | F113: =VLOOKUP(B113,'APOIO ABC'!A:K,6,0) -> un | G113: =SUMIF('APOIO ABC'!A:A,B113,'APOIO ABC'!G:G) -> 19 | H113: =VLOOKUP(B113,'APOIO ABC'!A:K,10,0) -> 769.01 | I113: =SUMIF('APOIO ABC'!A:A,B113,'APOIO ABC'!K:K) -> 14611.19 | J113: 0.0001347289035 | K113: 0.6024056906 | L113: B
A114: 107 | B114: 108 | C114: =VLOOKUP(B114,'APOIO ABC'!A:K,4,0) -> 67005 | D114: =VLOOKUP(B114,'APOIO ABC'!A:K,3,0) -> SBC | E114: =VLOOKUP(B114,'APOIO ABC'!A:K,5,0) -> ELETRODUTO RÍGIDO Ø 1" EM AÇO GALVANIZADO À FOGO, TIPO PESADO, ROSCA BSP | F114: =VLOOKUP(B114,'APOIO ABC'!A:K,6,0) -> M | G114: =SUMIF('APOIO ABC'!A:A,B114,'APOIO ABC'!G:G) -> 149 | H114: =VLOOKUP(B114,'APOIO ABC'!A:K,10,0) -> 34.32 | I114: =SUMIF('APOIO ABC'!A:A,B114,'APOIO ABC'!K:K) -> 5113.68 | J114: 4.715293547e-05 | K114: 0.6024528435 | L114: B
A115: 108 | B115: 209 | C115: =VLOOKUP(B115,'APOIO ABC'!A:K,4,0) -> 98294 | D115: =VLOOKUP(B115,'APOIO ABC'!A:K,3,0) -> SIURB | E115: =VLOOKUP(B115,'APOIO ABC'!A:K,5,0) -> PLUG PARA TOMADA UNIVERSAL + TERRA SUPORTE PARA PERFILADO | F115: =VLOOKUP(B115,'APOIO ABC'!A:K,6,0) -> UN | G115: =SUMIF('APOIO ABC'!A:A,B115,'APOIO ABC'!G:G) -> 2 | H115: =VLOOKUP(B115,'APOIO ABC'!A:K,10,0) -> 34.35 | I115: =SUMIF('APOIO ABC'!A:A,B115,'APOIO ABC'!K:K) -> 68.7 | J115: 6.334785648e-07 | K115: 0.602453477 | L115: B
A116: 109 | B116: 39 | C116: =VLOOKUP(B116,'APOIO ABC'!A:K,4,0) -> 91929 | D116: =VLOOKUP(B116,'APOIO ABC'!A:K,3,0) -> SINAPI | E116: =VLOOKUP(B116,'APOIO ABC'!A:K,5,0) -> CABO DE COBRE FLEXÍVEL ISOLADO, 4 MM², ANTI-CHAMA 0,6/1,0 KV, PARA CIRCUITOS TERMINAIS - FORNECIMENTO E INSTALAÇÃO. AF_03/2023 | F116: =VLOOKUP(B116,'APOIO ABC'!A:K,6,0) -> M | G116: =SUMIF('APOIO ABC'!A:A,B116,'APOIO ABC'!G:G) -> 1320 | H116: =VLOOKUP(B116,'APOIO ABC'!A:K,10,0) -> 8.71 | I116: =SUMIF('APOIO ABC'!A:A,B116,'APOIO ABC'!K:K) -> 11497.2 | J116: 0.0001060149892 | K116: 0.602559492 | L116: B
A117: 110 | B117: 41 | C117: =VLOOKUP(B117,'APOIO ABC'!A:K,4,0) -> 97888 | D117: =VLOOKUP(B117,'APOIO ABC'!A:K,3,0) -> SINAPI | E117: =VLOOKUP(B117,'APOIO ABC'!A:K,5,0) -> CAIXA ENTERRADA ELÉTRICA RETANGULAR, EM ALVENARIA COM TIJOLOS CERÂMICOS MACIÇOS, FUNDO COM BRITA, DIMENSÕES INTERNAS: 0,6X0,6X0,6 M. AF_12/2020 | F117: =VLOOKUP(B117,'APOIO ABC'!A:K,6,0) -> UN | G117: =SUMIF('APOIO ABC'!A:A,B117,'APOIO ABC'!G:G) -> 2 | H117: =VLOOKUP(B117,'APOIO ABC'!A:K,10,0) -> 670.74 | I117: =SUMIF('APOIO ABC'!A:A,B117,'APOIO ABC'!K:K) -> 1341.48 | J117: 1.236970633e-05 | K117: 0.6025718617 | L117: B
A118: 111 | B118: 234 | C118: =VLOOKUP(B118,'APOIO ABC'!A:K,4,0) -> 42.20.120 | D118: =VLOOKUP(B118,'APOIO ABC'!A:K,3,0) -> CPOS/CDHU | E118: =VLOOKUP(B118,'APOIO ABC'!A:K,5,0) -> Solda exotérmica conexão cabo-cabo horizontal em X sobreposto, bitola do cabo de 35-35mm² a 50-35mm² | F118: =VLOOKUP(B118,'APOIO ABC'!A:K,6,0) -> UN | G118: =SUMIF('APOIO ABC'!A:A,B118,'APOIO ABC'!G:G) -> 1 | H118: =VLOOKUP(B118,'APOIO ABC'!A:K,10,0) -> 57.43 | I118: =SUMIF('APOIO ABC'!A:A,B118,'APOIO ABC'!K:K) -> 57.43 | J118: 5.295585731e-07 | K118: 0.6025723912 | L118: B
A119: 112 | B119: 187 | C119: =VLOOKUP(B119,'APOIO ABC'!A:K,4,0) -> 13364 | D119: =VLOOKUP(B119,'APOIO ABC'!A:K,3,0) -> ORSE | E119: =VLOOKUP(B119,'APOIO ABC'!A:K,5,0) -> Luva de emenda para eletroduto, aço galvanizado, dn 25 mm (1"), aparente, instalada em teto - fornecimento e instalaçâo | F119: =VLOOKUP(B119,'APOIO ABC'!A:K,6,0) -> un | G119: =SUMIF('APOIO ABC'!A:A,B119,'APOIO ABC'!G:G) -> 17 | H119: =VLOOKUP(B119,'APOIO ABC'!A:K,10,0) -> 24.98 | I119: =SUMIF('APOIO ABC'!A:A,B119,'APOIO ABC'!K:K) -> 424.66 | J119: 3.915764299e-06 | K119: 0.602576307 | L119: B
A120: 113 | B120: 123 | C120: =VLOOKUP(B120,'APOIO ABC'!A:K,4,0) -> 34.01.25 | D120: =VLOOKUP(B120,'APOIO ABC'!A:K,3,0) -> EMBASA | E120: =VLOOKUP(B120,'APOIO ABC'!A:K,5,0) -> ENSAIO DE COMPACTACAO - PROCTOR NORMAL (NBR - 07182) | F120: =VLOOKUP(B120,'APOIO ABC'!A:K,6,0) -> UN | G120: =SUMIF('APOIO ABC'!A:A,B120,'APOIO ABC'!G:G) -> 106 | H120: =VLOOKUP(B120,'APOIO ABC'!A:K,10,0) -> 364.84 | I120: =SUMIF('APOIO ABC'!A:A,B120,'APOIO ABC'!K:K) -> 38673.04 | J120: 0.000356601774 | K120: 0.6029329088 | L120: B
A121: 114 | B121: 130 | C121: =VLOOKUP(B121,'APOIO ABC'!A:K,4,0) -> 32.04.61 | D121: =VLOOKUP(B121,'APOIO ABC'!A:K,3,0) -> EMBASA | E121: =VLOOKUP(B121,'APOIO ABC'!A:K,5,0) -> ENSAIO DE PERDA DAGUA SOB PRESSAO | F121: =VLOOKUP(B121,'APOIO ABC'!A:K,6,0) -> UN | G121: =SUMIF('APOIO ABC'!A:A,B121,'APOIO ABC'!G:G) -> 11 | H121: =VLOOKUP(B121,'APOIO ABC'!A:K,10,0) -> 699.68 | I121: =SUMIF('APOIO ABC'!A:A,B121,'APOIO ABC'!K:K) -> 7696.48 | J121: 7.096877881e-05 | K121: 0.6030038776 | L121: B
A122: 115 | B122: 140 | C122: =VLOOKUP(B122,'APOIO ABC'!A:K,4,0) -> 4016096 | D122: =VLOOKUP(B122,'APOIO ABC'!A:K,3,0) -> SICRO3 | E122: =VLOOKUP(B122,'APOIO ABC'!A:K,5,0) -> Escavação e carga de material de jazida com escavadeira hidráulica de 1,56 m³ | F122: =VLOOKUP(B122,'APOIO ABC'!A:K,6,0) -> m³ | G122: =SUMIF('APOIO ABC'!A:A,B122,'APOIO ABC'!G:G) -> 553722.543 | H122: =VLOOKUP(B122,'APOIO ABC'!A:K,10,0) -> 1.66 | I122: =SUMIF('APOIO ABC'!A:A,B122,'APOIO ABC'!K:K) -> 919179.39 | J122: 0.008475697827 | K122: 0.6114795754 | L122: B
A123: 116 | B123: 139 | C123: =VLOOKUP(B123,'APOIO ABC'!A:K,4,0) -> 32.03.04 | D123: =VLOOKUP(B123,'APOIO ABC'!A:K,3,0) -> EMBASA | E123: =VLOOKUP(B123,'APOIO ABC'!A:K,5,0) -> ESCAVACAO (PA E PICARETA) SEM ESCORAMENTO, INCLUSIVE COLETAS DE AMOSTRAS DEFORMADAS DE SOLO | F123: =VLOOKUP(B123,'APOIO ABC'!A:K,6,0) -> M | G123: =SUMIF('APOIO ABC'!A:A,B123,'APOIO ABC'!G:G) -> 23 | H123: =VLOOKUP(B123,'APOIO ABC'!A:K,10,0) -> 107.98 | I123: =SUMIF('APOIO ABC'!A:A,B123,'APOIO ABC'!K:K) -> 2483.54 | J123: 2.290057285e-05 | K123: 0.611502476 | L123: B
A124: 117 | B124: 194 | C124: =VLOOKUP(B124,'APOIO ABC'!A:K,4,0) -> 104746 | D124: =VLOOKUP(B124,'APOIO ABC'!A:K,3,0) -> SINAPI | E124: =VLOOKUP(B124,'APOIO ABC'!A:K,5,0) -> MINI CAPTOR PARA SPDA - FORNECIMENTO E INSTALAÇÃO. AF_08/2023 | F124: =VLOOKUP(B124,'APOIO ABC'!A:K,6,0) -> UN | G124: =SUMIF('APOIO ABC'!A:A,B124,'APOIO ABC'!G:G) -> 4 | H124: =VLOOKUP(B124,'APOIO ABC'!A:K,10,0) -> 33.55 | I124: =SUMIF('APOIO ABC'!A:A,B124,'APOIO ABC'!K:K) -> 134.2 | J124: 1.237450122e-06 | K124: 0.6115037134 | L124: B
A125: 118 | B125: 185 | C125: =VLOOKUP(B125,'APOIO ABC'!A:K,4,0) -> 71703 | D125: =VLOOKUP(B125,'APOIO ABC'!A:K,3,0) -> AGETOP CIVIL | E125: =VLOOKUP(B125,'APOIO ABC'!A:K,5,0) -> LUVA EM AÇO GALVANIZADO DIÂMETRO 1.1/4" | F125: =VLOOKUP(B125,'APOIO ABC'!A:K,6,0) -> Un | G125: =SUMIF('APOIO ABC'!A:A,B125,'APOIO ABC'!G:G) -> 14 | H125: =VLOOKUP(B125,'APOIO ABC'!A:K,10,0) -> 10.34 | I125: =SUMIF('APOIO ABC'!A:A,B125,'APOIO ABC'!K:K) -> 144.76 | J125: 1.334823247e-06 | K125: 0.6115050482 | L125: B
A126: 119 | B126: 134 | C126: =VLOOKUP(B126,'APOIO ABC'!A:K,4,0) -> 34.97.01 | D126: =VLOOKUP(B126,'APOIO ABC'!A:K,3,0) -> EMBASA | E126: =VLOOKUP(B126,'APOIO ABC'!A:K,5,0) -> ENSAIO DE REATIVIDADE ALCALI-AGREGADO | F126: =VLOOKUP(B126,'APOIO ABC'!A:K,6,0) -> UN | G126: =SUMIF('APOIO ABC'!A:A,B126,'APOIO ABC'!G:G) -> 19 | H126: =VLOOKUP(B126,'APOIO ABC'!A:K,10,0) -> 1824.24 | I126: =SUMIF('APOIO ABC'!A:A,B126,'APOIO ABC'!K:K) -> 34660.56 | J126: 0.0003196029375 | K126: 0.6118246512 | L126: B
A127: 120 | B127: 153 | C127: =VLOOKUP(B127,'APOIO ABC'!A:K,4,0) -> 5502742 | D127: =VLOOKUP(B127,'APOIO ABC'!A:K,3,0) -> SICRO3 | E127: =VLOOKUP(B127,'APOIO ABC'!A:K,5,0) -> Escavação, carga e transporte de material de 3ª categoria - DMT de 50 a 200 m - caminho de serviço em leito natural com caminhão basculante de 12 m³ | F127: =VLOOKUP(B127,'APOIO ABC'!A:K,6,0) -> m³ | G127: =SUMIF('APOIO ABC'!A:A,B127,'APOIO ABC'!G:G) -> 207404.07 | H127: =VLOOKUP(B127,'APOIO ABC'!A:K,10,0) -> 50.23 | I127: =SUMIF('APOIO ABC'!A:A,B127,'APOIO ABC'!K:K) -> 10417906.43 | J127: 0.09606288811 | K127: 0.7078875393 | L127: B
A128: 121 | B128: 10 | C128: =VLOOKUP(B128,'APOIO ABC'!A:K,4,0) -> 2009618 | D128: =VLOOKUP(B128,'APOIO ABC'!A:K,3,0) -> SICRO3 | E128: =VLOOKUP(B128,'APOIO ABC'!A:K,5,0) -> Alvenaria de blocos de concreto 19 x 19 x 39 cm com espessura de 20 cm - areia extraída | F128: =VLOOKUP(B128,'APOIO ABC'!A:K,6,0) -> m² | G128: =SUMIF('APOIO ABC'!A:A,B128,'APOIO ABC'!G:G) -> 45.438 | H128: =VLOOKUP(B128,'APOIO ABC'!A:K,10,0) -> 146.34 | I128: =SUMIF('APOIO ABC'!A:A,B128,'APOIO ABC'!K:K) -> 6649.39 | J128: 6.131362495e-05 | K128: 0.7079488529 | L128: B
A129: 122 | B129: 112 | C129: =VLOOKUP(B129,'APOIO ABC'!A:K,4,0) -> 88495 | D129: =VLOOKUP(B129,'APOIO ABC'!A:K,3,0) -> SINAPI | E129: =VLOOKUP(B129,'APOIO ABC'!A:K,5,0) -> EMASSAMENTO COM MASSA LÁTEX, APLICAÇÃO EM PAREDE, UMA DEMÃO, LIXAMENTO MANUAL. AF_04/2023 | F129: =VLOOKUP(B129,'APOIO ABC'!A:K,6,0) -> m² | G129: =SUMIF('APOIO ABC'!A:A,B129,'APOIO ABC'!G:G) -> 90.876 | H129: =VLOOKUP(B129,'APOIO ABC'!A:K,10,0) -> 15.02 | I129: =SUMIF('APOIO ABC'!A:A,B129,'APOIO ABC'!K:K) -> 1364.95 | J129: 1.258612179e-05 | K129: 0.707961439 | L129: B
A130: 123 | B130: 141 | C130: =VLOOKUP(B130,'APOIO ABC'!A:K,4,0) -> 4016008 | D130: =VLOOKUP(B130,'APOIO ABC'!A:K,3,0) -> SICRO3 | E130: =VLOOKUP(B130,'APOIO ABC'!A:K,5,0) -> Escavação e carga de material de jazida com trator de 127 kW e carregadeira de 3,4 m³ | F130: =VLOOKUP(B130,'APOIO ABC'!A:K,6,0) -> m³ | G130: =SUMIF('APOIO ABC'!A:A,B130,'APOIO ABC'!G:G) -> 135283.66 | H130: =VLOOKUP(B130,'APOIO ABC'!A:K,10,0) -> 5.38 | I130: =SUMIF('APOIO ABC'!A:A,B130,'APOIO ABC'!K:K) -> 727826.08 | J130: 0.006711240474 | K130: 0.7146726795 | L130: B
A131: 124 | B131: 172 | C131: =VLOOKUP(B131,'APOIO ABC'!A:K,4,0) -> 99837 | D131: =VLOOKUP(B131,'APOIO ABC'!A:K,3,0) -> SINAPI | E131: =VLOOKUP(B131,'APOIO ABC'!A:K,5,0) -> GUARDA-CORPO DE AÇO GALVANIZADO DE 1,10M, MONTANTES TUBULARES DE 1.1/4 ESPAÇADOS DE 1,20M, TRAVESSA SUPERIOR DE 1.1/2, GRADIL FORMADO POR TUBOS HORIZONTAIS DE 1 E VERTICAIS DE 3/4, FIXADO COM CHUMBADOR MECÂNICO. AF_04/2019_PS | F131: =VLOOKUP(B131,'APOIO ABC'!A:K,6,0) -> M | G131: =SUMIF('APOIO ABC'!A:A,B131,'APOIO ABC'!G:G) -> 60 | H131: =VLOOKUP(B131,'APOIO ABC'!A:K,10,0) -> 793.18 | I131: =SUMIF('APOIO ABC'!A:A,B131,'APOIO ABC'!K:K) -> 47590.8 | J131: 0.0004388319022 | K131: 0.7151115114 | L131: B
A132: 125 | B132: 94 | C132: =VLOOKUP(B132,'APOIO ABC'!A:K,4,0) -> 34.05.19 | D132: =VLOOKUP(B132,'APOIO ABC'!A:K,3,0) -> EMBASA | E132: =VLOOKUP(B132,'APOIO ABC'!A:K,5,0) -> DETERMINACAO DA MASSA ESPECIFICA APARENTE "IN SITU", COM EMPREGO DO CILINDRO DE CRAVACAO (NBR-09813) | F132: =VLOOKUP(B132,'APOIO ABC'!A:K,6,0) -> UN | G132: =SUMIF('APOIO ABC'!A:A,B132,'APOIO ABC'!G:G) -> 106 | H132: =VLOOKUP(B132,'APOIO ABC'!A:K,10,0) -> 179.98 | I132: =SUMIF('APOIO ABC'!A:A,B132,'APOIO ABC'!K:K) -> 19077.88 | J132: 0.0001759159831 | K132: 0.7152874274 | L132: B
A133: 126 | B133: 28 | C133: =VLOOKUP(B133,'APOIO ABC'!A:K,4,0) -> 101636 | D133: =VLOOKUP(B133,'APOIO ABC'!A:K,3,0) -> SINAPI | E133: =VLOOKUP(B133,'APOIO ABC'!A:K,5,0) -> BRAÇO PARA ILUMINAÇÃO PÚBLICA, EM TUBO DE AÇO GALVANIZADO, COMPRIMENTO DE 1,50 M, PARA FIXAÇÃO EM POSTE DE CONCRETO - FORNECIMENTO E INSTALAÇÃO. AF_08/2020 | F133: =VLOOKUP(B133,'APOIO ABC'!A:K,6,0) -> UN | G133: =SUMIF('APOIO ABC'!A:A,B133,'APOIO ABC'!G:G) -> 26 | H133: =VLOOKUP(B133,'APOIO ABC'!A:K,10,0) -> 194.41 | I133: =SUMIF('APOIO ABC'!A:A,B133,'APOIO ABC'!K:K) -> 5054.66 | J133: 4.660871561e-05 | K133: 0.7153340361 | L133: B
A134: 127 | B134: 202 | C134: =VLOOKUP(B134,'APOIO ABC'!A:K,4,0) -> 5014 | D134: =VLOOKUP(B134,'APOIO ABC'!A:K,3,0) -> ORSE | E134: =VLOOKUP(B134,'APOIO ABC'!A:K,5,0) -> Fornecimento e Instalação de Carpete Berber Point 650 da Beaulieu e=6mm | F134: =VLOOKUP(B134,'APOIO ABC'!A:K,6,0) -> m² | G134: =SUMIF('APOIO ABC'!A:A,B134,'APOIO ABC'!G:G) -> 40 | H134: =VLOOKUP(B134,'APOIO ABC'!A:K,10,0) -> 3.24 | I134: =SUMIF('APOIO ABC'!A:A,B134,'APOIO ABC'!K:K) -> 129.6 | J134: 1.195033799e-06 | K134: 0.7153352311 | L134: B
A135: 128 | B135: 59 | C135: =VLOOKUP(B135,'APOIO ABC'!A:K,4,0) -> 1107889 | D135: =VLOOKUP(B135,'APOIO ABC'!A:K,3,0) -> SICRO3 | E135: =VLOOKUP(B135,'APOIO ABC'!A:K,5,0) -> Concreto fck = 15 MPa - confecção em betoneira e lançamento manual - areia extraída e brita produzida | F135: =VLOOKUP(B135,'APOIO ABC'!A:K,6,0) -> m³ | G135: =SUMIF('APOIO ABC'!A:A,B135,'APOIO ABC'!G:G) -> 67.77 | H135: =VLOOKUP(B135,'APOIO ABC'!A:K,10,0) -> 376.47 | I135: =SUMIF('APOIO ABC'!A:A,B135,'APOIO ABC'!K:K) -> 25513.36 | J135: 0.0002352571568 | K135: 0.7155704883 | L135: B
A136: 129 | B136: 217 | C136: =VLOOKUP(B136,'APOIO ABC'!A:K,4,0) -> 41204 | D136: =VLOOKUP(B136,'APOIO ABC'!A:K,3,0) -> SINAPI | E136: =VLOOKUP(B136,'APOIO ABC'!A:K,5,0) -> POSTE DE CONCRETO ARMADO DE SECAO DUPLO T, EXTENSAO DE 11,00 M, RESISTENCIA DE 600 DAN, TIPO B | F136: =VLOOKUP(B136,'APOIO ABC'!A:K,6,0) -> UN | G136: =SUMIF('APOIO ABC'!A:A,B136,'APOIO ABC'!G:G) -> 1 | H136: =VLOOKUP(B136,'APOIO ABC'!A:K,10,0) -> 2351.92 | I136: =SUMIF('APOIO ABC'!A:A,B136,'APOIO ABC'!K:K) -> 2351.92 | J136: =I136/$I$267 -> 2.168691275e-05 | K136: 0.7155921752 | L136: =IF(K136<=50%,"A",IF(AND(K136>50%,K136<=80%),"B","C")) -> B
A137: 130 | B137: 158 | C137: =VLOOKUP(B137,'APOIO ABC'!A:K,4,0) -> 92400 | D137: =VLOOKUP(B137,'APOIO ABC'!A:K,3,0) -> SINAPI | E137: =VLOOKUP(B137,'APOIO ABC'!A:K,5,0) -> EXECUÇÃO DE PAVIMENTO EM PISO INTERTRAVADO, COM BLOCO RETANGULAR DE 20 X 10 CM, ESPESSURA 10 CM. AF_10/2022 | F137: =VLOOKUP(B137,'APOIO ABC'!A:K,6,0) -> m² | G137: =SUMIF('APOIO ABC'!A:A,B137,'APOIO ABC'!G:G) -> 1255.095 | H137: =VLOOKUP(B137,'APOIO ABC'!A:K,10,0) -> 116.97 | I137: =SUMIF('APOIO ABC'!A:A,B137,'APOIO ABC'!K:K) -> 146808.46 | J137: 0.001353711973 | K137: 0.7169458872 | L137: B
A138: 131 | B138: 42 | C138: =VLOOKUP(B138,'APOIO ABC'!A:K,4,0) -> 98111 | D138: =VLOOKUP(B138,'APOIO ABC'!A:K,3,0) -> SINAPI | E138: =VLOOKUP(B138,'APOIO ABC'!A:K,5,0) -> CAIXA DE INSPEÇÃO PARA ATERRAMENTO, CIRCULAR, EM POLIETILENO, DIÂMETRO INTERNO = 0,3 M. AF_12/2020 | F138: =VLOOKUP(B138,'APOIO ABC'!A:K,6,0) -> UN | G138: =SUMIF('APOIO ABC'!A:A,B138,'APOIO ABC'!G:G) -> 10 | H138: =VLOOKUP(B138,'APOIO ABC'!A:K,10,0) -> 53.11 | I138: =SUMIF('APOIO ABC'!A:A,B138,'APOIO ABC'!K:K) -> 531.1 | J138: 4.897241132e-06 | K138: =J138+K137 -> 0.7169507844 | L138: B
A139: 132 | B139: 179 | C139: =VLOOKUP(B139,'APOIO ABC'!A:K,4,0) -> 1201008133 | D139: =VLOOKUP(B139,'APOIO ABC'!A:K,3,0) -> AGESUL | E139: =VLOOKUP(B139,'APOIO ABC'!A:K,5,0) -> ISOLADOR SUSPENSAO POLIMERICO, CLASSE 15 KV | F139: =VLOOKUP(B139,'APOIO ABC'!A:K,6,0) -> UN | G139: =SUMIF('APOIO ABC'!A:A,B139,'APOIO ABC'!G:G) -> 3 | H139: =VLOOKUP(B139,'APOIO ABC'!A:K,10,0) -> 111.81 | I139: =SUMIF('APOIO ABC'!A:A,B139,'APOIO ABC'!K:K) -> 335.43 | J139: 3.09297984e-06 | K139: 0.7169538774 | L139: B
A140: 133 | B140: 184 | C140: =VLOOKUP(B140,'APOIO ABC'!A:K,4,0) -> 60988 | D140: =VLOOKUP(B140,'APOIO ABC'!A:K,3,0) -> SBC | E140: =VLOOKUP(B140,'APOIO ABC'!A:K,5,0) -> LUMINÁRIA HERMÉTICA LED DE SOBREBOR, COM FIXAÇÃO EM PERFILADO, 35W, IP66, 4000K, 100 A 250V | F140: =VLOOKUP(B140,'APOIO ABC'!A:K,6,0) -> UN | G140: =SUMIF('APOIO ABC'!A:A,B140,'APOIO ABC'!G:G) -> 2 | H140: =VLOOKUP(B140,'APOIO ABC'!A:K,10,0) -> 198.54 | I140: =SUMIF('APOIO ABC'!A:A,B140,'APOIO ABC'!K:K) -> 397.08 | J140: 3.661450779e-06 | K140: 0.7169575389 | L140: B
A141: 134 | B141: 117 | C141: =VLOOKUP(B141,'APOIO ABC'!A:K,4,0) -> COMP-0021 | D141: =VLOOKUP(B141,'APOIO ABC'!A:K,3,0) -> PRÓPRIO | E141: =VLOOKUP(B141,'APOIO ABC'!A:K,5,0) -> ENROCAMENTO DE PEDRA ESPALHADA E COMPACTADA MECANICAMENTE - PEDRA DE MÃO PRODUZIDA - SEM FORNECIMENTO E COM ASSENTAMENTO | F141: =VLOOKUP(B141,'APOIO ABC'!A:K,6,0) -> M³ | G141: =SUMIF('APOIO ABC'!A:A,B141,'APOIO ABC'!G:G) -> 30317.04 | H141: =VLOOKUP(B141,'APOIO ABC'!A:K,10,0) -> 26.96 | I141: =SUMIF('APOIO ABC'!A:A,B141,'APOIO ABC'!K:K) -> 817347.39 | J141: 0.007536711085 | K141: 0.7244942499 | L141: B
A142: 135 | B142: 92 | C142: =VLOOKUP(B142,'APOIO ABC'!A:K,4,0) -> 5501701 | D142: =VLOOKUP(B142,'APOIO ABC'!A:K,3,0) -> SICRO3 | E142: =VLOOKUP(B142,'APOIO ABC'!A:K,5,0) -> Destocamento de árvores com diâmetro de 0,15 a 0,30 m | F142: =VLOOKUP(B142,'APOIO ABC'!A:K,6,0) -> un | G142: =SUMIF('APOIO ABC'!A:A,B142,'APOIO ABC'!G:G) -> 8838 | H142: =VLOOKUP(B142,'APOIO ABC'!A:K,10,0) -> 47.56 | I142: =SUMIF('APOIO ABC'!A:A,B142,'APOIO ABC'!K:K) -> 420335.28 | J142: 0.003875886316 | K142: 0.7283701363 | L142: B
A143: 136 | B143: 104 | C143: =VLOOKUP(B143,'APOIO ABC'!A:K,4,0) -> 151137 | D143: =VLOOKUP(B143,'APOIO ABC'!A:K,3,0) -> IOPES | E143: =VLOOKUP(B143,'APOIO ABC'!A:K,5,0) -> Eletroduto PEAD parede simples, corrugado, cor preta, diâmetro 1.1/2", referencia Kanaflex, Plastibras ou equivalente | F143: =VLOOKUP(B143,'APOIO ABC'!A:K,6,0) -> m | G143: =SUMIF('APOIO ABC'!A:A,B143,'APOIO ABC'!G:G) -> 303 | H143: =VLOOKUP(B143,'APOIO ABC'!A:K,10,0) -> 31.6 | I143: =SUMIF('APOIO ABC'!A:A,B143,'APOIO ABC'!K:K) -> 9574.8 | J143: 8.828865447e-05 | K143: 0.7284584249 | L143: B
A144: 137 | B144: 2 | C144: =VLOOKUP(B144,'APOIO ABC'!A:K,4,0) -> COT.NETS-08 | D144: =VLOOKUP(B144,'APOIO ABC'!A:K,3,0) -> PRÓPRIO | E144: =VLOOKUP(B144,'APOIO ABC'!A:K,5,0) -> (QDL-RC500) QUADRO PARA ILUMINAÇÃO E TOMADAS EM CHAPA DE AÇO ZINCADO, PINTADO A PÓ ELETROSTÁTICAMENTE, PLACA INTERNA NA COR LARANJA, IP65, PORTA REMOVÍVEL, DIM. APROX. 500X500X250MM (HxLxC). CONFORME DESENHO E ESPECIFICAÇÕES DE REFERÊNCIA. | F144: =VLOOKUP(B144,'APOIO ABC'!A:K,6,0) -> CJ | G144: =SUMIF('APOIO ABC'!A:A,B144,'APOIO ABC'!G:G) -> 1 | H144: =VLOOKUP(B144,'APOIO ABC'!A:K,10,0) -> 2582 | I144: =SUMIF('APOIO ABC'!A:A,B144,'APOIO ABC'!K:K) -> 2582 | J144: 2.380846658e-05 | K144: 0.7284822334 | L144: B
A145: 138 | B145: 195 | C145: =VLOOKUP(B145,'APOIO ABC'!A:K,4,0) -> 11.92.04 | D145: =VLOOKUP(B145,'APOIO ABC'!A:K,3,0) -> SUDECAP | E145: =VLOOKUP(B145,'APOIO ABC'!A:K,5,0) -> MOLDE P/ SOLDA EXOTERMICA HCL 5/8".50-5 | F145: =VLOOKUP(B145,'APOIO ABC'!A:K,6,0) -> UN | G145: =SUMIF('APOIO ABC'!A:A,B145,'APOIO ABC'!G:G) -> 1 | H145: =VLOOKUP(B145,'APOIO ABC'!A:K,10,0) -> 251.99 | I145: =SUMIF('APOIO ABC'!A:A,B145,'APOIO ABC'!K:K) -> 251.99 | J145: 2.323584622e-06 | K145: 0.728484557 | L145: B
A146: 139 | B146: 91 | C146: =VLOOKUP(B146,'APOIO ABC'!A:K,4,0) -> 5501700 | D146: =VLOOKUP(B146,'APOIO ABC'!A:K,3,0) -> SICRO3 | E146: =VLOOKUP(B146,'APOIO ABC'!A:K,5,0) -> Desmatamento, destocamento e limpeza de área com árvores de diâmetro até 0,15 m | F146: =VLOOKUP(B146,'APOIO ABC'!A:K,6,0) -> m² | G146: =SUMIF('APOIO ABC'!A:A,B146,'APOIO ABC'!G:G) -> 1073945.982 | H146: =VLOOKUP(B146,'APOIO ABC'!A:K,10,0) -> 0.64 | I146: =SUMIF('APOIO ABC'!A:A,B146,'APOIO ABC'!K:K) -> 687325.4 | J146: 0.006337786141 | K146: 0.7348223431 | L146: B
A147: 140 | B147: 219 | C147: =VLOOKUP(B147,'APOIO ABC'!A:K,4,0) -> 5505768 | D147: =VLOOKUP(B147,'APOIO ABC'!A:K,3,0) -> SICRO3 | E147: =VLOOKUP(B147,'APOIO ABC'!A:K,5,0) -> Pré-fissuramento de material de 3ª categoria | F147: =VLOOKUP(B147,'APOIO ABC'!A:K,6,0) -> m² | G147: =SUMIF('APOIO ABC'!A:A,B147,'APOIO ABC'!G:G) -> 50116 | H147: =VLOOKUP(B147,'APOIO ABC'!A:K,10,0) -> 99.16 | I147: =SUMIF('APOIO ABC'!A:A,B147,'APOIO ABC'!K:K) -> 4969502.56 | J147: 0.04582348398 | K147: 0.7806458271 | L147: B
A148: 141 | B148: 143 | C148: =VLOOKUP(B148,'APOIO ABC'!A:K,4,0) -> 5502110 | D148: =VLOOKUP(B148,'APOIO ABC'!A:K,3,0) -> SICRO3 | E148: =VLOOKUP(B148,'APOIO ABC'!A:K,5,0) -> Escavação, carga e transporte de material de 1ª categoria - DMT de 200 a 400 m - caminho de serviço em leito natural - com escavadeira e caminhão basculante de 14 m³ | F148: =VLOOKUP(B148,'APOIO ABC'!A:K,6,0) -> m³ | G148: =SUMIF('APOIO ABC'!A:A,B148,'APOIO ABC'!G:G) -> 227.5 | H148: =VLOOKUP(B148,'APOIO ABC'!A:K,10,0) -> 7.51 | I148: =SUMIF('APOIO ABC'!A:A,B148,'APOIO ABC'!K:K) -> 1708.52 | J148: 1.575416008e-05 | K148: 0.7806615812 | L148: B
A149: 142 | B149: 54 | C149: =VLOOKUP(B149,'APOIO ABC'!A:K,4,0) -> 78390 | D149: =VLOOKUP(B149,'APOIO ABC'!A:K,3,0) -> SBC | E149: =VLOOKUP(B149,'APOIO ABC'!A:K,5,0) -> CHUMBADOR TIPO "CB" EM AÇO GALV. COM ARRUELA E PARAFUSO, ROSCA INTERNA Ø3/8" | F149: =VLOOKUP(B149,'APOIO ABC'!A:K,6,0) -> UN | G149: =SUMIF('APOIO ABC'!A:A,B149,'APOIO ABC'!G:G) -> 1104 | H149: =VLOOKUP(B149,'APOIO ABC'!A:K,10,0) -> 11.21 | I149: =SUMIF('APOIO ABC'!A:A,B149,'APOIO ABC'!K:K) -> 12375.84 | J149: 0.0001141168757 | K149: 0.7807756981 | L149: B
A150: 143 | B150: 102 | C150: =VLOOKUP(B150,'APOIO ABC'!A:K,4,0) -> 21128 | D150: =VLOOKUP(B150,'APOIO ABC'!A:K,3,0) -> SINAPI | E150: =VLOOKUP(B150,'APOIO ABC'!A:K,5,0) -> ELETRODUTO EM ACO GALVANIZADO ELETROLITICO, LEVE, DIAMETRO 3/4", PAREDE DE 0,90 MM | F150: =VLOOKUP(B150,'APOIO ABC'!A:K,6,0) -> M | G150: =SUMIF('APOIO ABC'!A:A,B150,'APOIO ABC'!G:G) -> 18 | H150: =VLOOKUP(B150,'APOIO ABC'!A:K,10,0) -> 9.02 | I150: =SUMIF('APOIO ABC'!A:A,B150,'APOIO ABC'!K:K) -> 162.36 | J150: 1.497111787e-06 | K150: 0.7807771952 | L150: B
A151: 144 | B151: 129 | C151: =VLOOKUP(B151,'APOIO ABC'!A:K,4,0) -> 32.02.19 | D151: =VLOOKUP(B151,'APOIO ABC'!A:K,3,0) -> EMBASA | E151: =VLOOKUP(B151,'APOIO ABC'!A:K,5,0) -> ENSAIO DE INFILTRACAO | F151: =VLOOKUP(B151,'APOIO ABC'!A:K,6,0) -> UN | G151: =SUMIF('APOIO ABC'!A:A,B151,'APOIO ABC'!G:G) -> 106 | H151: =VLOOKUP(B151,'APOIO ABC'!A:K,10,0) -> 629.96 | I151: =SUMIF('APOIO ABC'!A:A,B151,'APOIO ABC'!K:K) -> 66775.76 | J151: 0.0006157352636 | K151: 0.7813929305 | L151: B
A152: 145 | B152: 38 | C152: =VLOOKUP(B152,'APOIO ABC'!A:K,4,0) -> 91927 | D152: =VLOOKUP(B152,'APOIO ABC'!A:K,3,0) -> SINAPI | E152: =VLOOKUP(B152,'APOIO ABC'!A:K,5,0) -> CABO DE COBRE FLEXÍVEL ISOLADO, 2,5 MM², ANTI-CHAMA 0,6/1,0 KV, PARA CIRCUITOS TERMINAIS - FORNECIMENTO E INSTALAÇÃO. AF_03/2023 | F152: =VLOOKUP(B152,'APOIO ABC'!A:K,6,0) -> M | G152: =SUMIF('APOIO ABC'!A:A,B152,'APOIO ABC'!G:G) -> 138 | H152: =VLOOKUP(B152,'APOIO ABC'!A:K,10,0) -> 5.93 | I152: =SUMIF('APOIO ABC'!A:A,B152,'APOIO ABC'!K:K) -> 818.34 | J152: 7.545863882e-06 | K152: 0.7814004764 | L152: B
A153: 146 | B153: 93 | C153: =VLOOKUP(B153,'APOIO ABC'!A:K,4,0) -> 5501702 | D153: =VLOOKUP(B153,'APOIO ABC'!A:K,3,0) -> SICRO3 | E153: =VLOOKUP(B153,'APOIO ABC'!A:K,5,0) -> Destocamento de árvores com diâmetro maior que 0,30 m | F153: =VLOOKUP(B153,'APOIO ABC'!A:K,6,0) -> un | G153: =SUMIF('APOIO ABC'!A:A,B153,'APOIO ABC'!G:G) -> 3283 | H153: =VLOOKUP(B153,'APOIO ABC'!A:K,10,0) -> 118.91 | I153: =SUMIF('APOIO ABC'!A:A,B153,'APOIO ABC'!K:K) -> 390381.53 | J153: 0.00359968459 | K153: 0.7850001609 | L153: B
A154: 147 | B154: 220 | C154: =VLOOKUP(B154,'APOIO ABC'!A:K,4,0) -> 78039 | D154: =VLOOKUP(B154,'APOIO ABC'!A:K,3,0) -> SBC | E154: =VLOOKUP(B154,'APOIO ABC'!A:K,5,0) -> PRESILHA PARA FIXAÇÃO DE CABO DE COBRE NU #35mm² COM FURO ∅7mm | F154: =VLOOKUP(B154,'APOIO ABC'!A:K,6,0) -> UN | G154: =SUMIF('APOIO ABC'!A:A,B154,'APOIO ABC'!G:G) -> 26 | H154: =VLOOKUP(B154,'APOIO ABC'!A:K,10,0) -> 1.74 | I154: =SUMIF('APOIO ABC'!A:A,B154,'APOIO ABC'!K:K) -> 45.24 | J154: 4.171553169e-07 | K154: 0.7850005781 | L154: B
A155: 148 | B155: 242 | C155: =VLOOKUP(B155,'APOIO ABC'!A:K,4,0) -> 94210 | D155: =VLOOKUP(B155,'APOIO ABC'!A:K,3,0) -> SINAPI | E155: =VLOOKUP(B155,'APOIO ABC'!A:K,5,0) -> TELHAMENTO COM TELHA ONDULADA DE FIBROCIMENTO E = 6 MM, COM RECOBRIMENTO LATERAL DE 1 1/4 DE ONDA PARA TELHADO COM INCLINAÇÃO MÁXIMA DE 10°, COM ATÉ 2 ÁGUAS, INCLUSO IÇAMENTO. AF_07/2019 | F155: =VLOOKUP(B155,'APOIO ABC'!A:K,6,0) -> m² | G155: =SUMIF('APOIO ABC'!A:A,B155,'APOIO ABC'!G:G) -> 33.274 | H155: =VLOOKUP(B155,'APOIO ABC'!A:K,10,0) -> 65.05 | I155: =SUMIF('APOIO ABC'!A:A,B155,'APOIO ABC'!K:K) -> 2164.47 | J155: 1.995844758e-05 | K155: 0.7850205366 | L155: B
A156: 149 | B156: 243 | C156: =VLOOKUP(B156,'APOIO ABC'!A:K,4,0) -> 11.92.19 | D156: =VLOOKUP(B156,'APOIO ABC'!A:K,3,0) -> SUDECAP | E156: =VLOOKUP(B156,'APOIO ABC'!A:K,5,0) -> TERMINAL DE 1 COMPRESSAO 1 FURO 35 MM2 | F156: =VLOOKUP(B156,'APOIO ABC'!A:K,6,0) -> UN | G156: =SUMIF('APOIO ABC'!A:A,B156,'APOIO ABC'!G:G) -> 25 | H156: =VLOOKUP(B156,'APOIO ABC'!A:K,10,0) -> 8.16 | I156: =SUMIF('APOIO ABC'!A:A,B156,'APOIO ABC'!K:K) -> 204 | J156: 1.881071721e-06 | K156: 0.7850224176 | L156: B
A157: 150 | B157: 245 | C157: =VLOOKUP(B157,'APOIO ABC'!A:K,4,0) -> C2489 | D157: =VLOOKUP(B157,'APOIO ABC'!A:K,3,0) -> SEINFRA | E157: =VLOOKUP(B157,'APOIO ABC'!A:K,5,0) -> TOMADA TRIPOLAR (3P+T) - 32A/380V | F157: =VLOOKUP(B157,'APOIO ABC'!A:K,6,0) -> UN | G157: =SUMIF('APOIO ABC'!A:A,B157,'APOIO ABC'!G:G) -> 3 | H157: =VLOOKUP(B157,'APOIO ABC'!A:K,10,0) -> 111.29 | I157: =SUMIF('APOIO ABC'!A:A,B157,'APOIO ABC'!K:K) -> 333.87 | J157: 3.078595173e-06 | K157: 0.7850254962 | L157: B
A158: 151 | B158: 177 | C158: =VLOOKUP(B158,'APOIO ABC'!A:K,4,0) -> COMP-0028 | D158: =VLOOKUP(B158,'APOIO ABC'!A:K,3,0) -> PRÓPRIO | E158: =VLOOKUP(B158,'APOIO ABC'!A:K,5,0) -> INTERRUPTOR SIMPLES E UMA TOMADA 2P+T COM TAMPA PARA CONDULETE, 20A - 250V, COM PARAFUSOS | F158: =VLOOKUP(B158,'APOIO ABC'!A:K,6,0) -> CJ | G158: =SUMIF('APOIO ABC'!A:A,B158,'APOIO ABC'!G:G) -> 1 | H158: =VLOOKUP(B158,'APOIO ABC'!A:K,10,0) -> 25.97 | I158: =SUMIF('APOIO ABC'!A:A,B158,'APOIO ABC'!K:K) -> 25.97 | J158: 2.394678068e-07 | K158: 0.7850257357 | L158: B
A159: 152 | B159: 224 | C159: =VLOOKUP(B159,'APOIO ABC'!A:K,4,0) -> 13603 | D159: =VLOOKUP(B159,'APOIO ABC'!A:K,3,0) -> EMOP | E159: =VLOOKUP(B159,'APOIO ABC'!A:K,5,0) -> REBITE POP, DE (1/8"X3/8"), REF.440, REF AL OU SIMILAR | F159: =VLOOKUP(B159,'APOIO ABC'!A:K,6,0) -> UN | G159: =SUMIF('APOIO ABC'!A:A,B159,'APOIO ABC'!G:G) -> 8 | H159: =VLOOKUP(B159,'APOIO ABC'!A:K,10,0) -> 0.06 | I159: =SUMIF('APOIO ABC'!A:A,B159,'APOIO ABC'!K:K) -> 0.48 | J159: 4.426051108e-09 | K159: 0.7850257401 | L159: B
A160: 153 | B160: 37 | C160: =VLOOKUP(B160,'APOIO ABC'!A:K,4,0) -> 70544 | D160: =VLOOKUP(B160,'APOIO ABC'!A:K,3,0) -> AGETOP CIVIL | E160: =VLOOKUP(B160,'APOIO ABC'!A:K,5,0) -> CABO DE COBRE NU 50 MM2 | F160: =VLOOKUP(B160,'APOIO ABC'!A:K,6,0) -> M | G160: =SUMIF('APOIO ABC'!A:A,B160,'APOIO ABC'!G:G) -> 220 | H160: =VLOOKUP(B160,'APOIO ABC'!A:K,10,0) -> 55.44 | I160: =SUMIF('APOIO ABC'!A:A,B160,'APOIO ABC'!K:K) -> 12196.8 | J160: 0.0001124659586 | K160: 0.7851382061 | L160: B
A161: 154 | B161: 147 | C161: =VLOOKUP(B161,'APOIO ABC'!A:K,4,0) -> 5502585 | D161: =VLOOKUP(B161,'APOIO ABC'!A:K,3,0) -> SICRO3 | E161: =VLOOKUP(B161,'APOIO ABC'!A:K,5,0) -> Escavação, carga e transporte de material de 2ª categoria - DMT de 50 a 200 m - caminho de serviço em leito natural - com escavadeira e caminhão basculante de 14 m³ | F161: =VLOOKUP(B161,'APOIO ABC'!A:K,6,0) -> m³ | G161: =SUMIF('APOIO ABC'!A:A,B161,'APOIO ABC'!G:G) -> 35505.202 | H161: =VLOOKUP(B161,'APOIO ABC'!A:K,10,0) -> 9.85 | I161: =SUMIF('APOIO ABC'!A:A,B161,'APOIO ABC'!K:K) -> 349726.23 | J161: 0.003224804516 | K161: 0.7883630106 | L161: B
A162: 155 | B162: 114 | C162: =VLOOKUP(B162,'APOIO ABC'!A:K,4,0) -> 60523 | D162: =VLOOKUP(B162,'APOIO ABC'!A:K,3,0) -> SBC | E162: =VLOOKUP(B162,'APOIO ABC'!A:K,5,0) -> EMENDA INTERNA ""L"" PARA PERFILADO 38x38mm | F162: =VLOOKUP(B162,'APOIO ABC'!A:K,6,0) -> UN | G162: =SUMIF('APOIO ABC'!A:A,B162,'APOIO ABC'!G:G) -> 3 | H162: =VLOOKUP(B162,'APOIO ABC'!A:K,10,0) -> 10.41 | I162: =SUMIF('APOIO ABC'!A:A,B162,'APOIO ABC'!K:K) -> 31.23 | J162: 2.879699502e-07 | K162: 0.7883632986 | L162: B
A163: 156 | B163: 56 | C163: =VLOOKUP(B163,'APOIO ABC'!A:K,4,0) -> 406 | D163: =VLOOKUP(B163,'APOIO ABC'!A:K,3,0) -> SINAPI | E163: =VLOOKUP(B163,'APOIO ABC'!A:K,5,0) -> FITA ACO INOX PARA CINTAR POSTE, L = 19 MM, E = 0,5 MM (ROLO DE 30M) | F163: =VLOOKUP(B163,'APOIO ABC'!A:K,6,0) -> UN | G163: =SUMIF('APOIO ABC'!A:A,B163,'APOIO ABC'!G:G) -> 57 | H163: =VLOOKUP(B163,'APOIO ABC'!A:K,10,0) -> 84.46 | I163: =SUMIF('APOIO ABC'!A:A,B163,'APOIO ABC'!K:K) -> 4814.22 | J163: 4.439163284e-05 | K163: 0.7884076902 | L163: B
A164: 157 | B164: 113 | C164: =VLOOKUP(B164,'APOIO ABC'!A:K,4,0) -> 903789 | D164: =VLOOKUP(B164,'APOIO ABC'!A:K,3,0) -> SICRO3 | E164: =VLOOKUP(B164,'APOIO ABC'!A:K,5,0) -> EMBOÇO COM ARGAMASSA DE CIMENTO, CAL HIDRATADA E AREIA 1:2:8 COM ESPESSURA DE 2 CM - APLICAÇÃO MANUAL | F164: =VLOOKUP(B164,'APOIO ABC'!A:K,6,0) -> M² | G164: =SUMIF('APOIO ABC'!A:A,B164,'APOIO ABC'!G:G) -> 90.876 | H164: =VLOOKUP(B164,'APOIO ABC'!A:K,10,0) -> 41.9 | I164: =SUMIF('APOIO ABC'!A:A,B164,'APOIO ABC'!K:K) -> 3807.7 | J164: 3.51105725e-05 | K164: 0.7884428008 | L164: B
A165: 158 | B165: 170 | C165: =VLOOKUP(B165,'APOIO ABC'!A:K,4,0) -> 4135 | D165: =VLOOKUP(B165,'APOIO ABC'!A:K,3,0) -> ORSE | E165: =VLOOKUP(B165,'APOIO ABC'!A:K,5,0) -> Gancho suspensão com olhal, fornecimento | F165: =VLOOKUP(B165,'APOIO ABC'!A:K,6,0) -> un | G165: =SUMIF('APOIO ABC'!A:A,B165,'APOIO ABC'!G:G) -> 3 | H165: =VLOOKUP(B165,'APOIO ABC'!A:K,10,0) -> 14.62 | I165: =SUMIF('APOIO ABC'!A:A,B165,'APOIO ABC'!K:K) -> 43.86 | J165: 4.0443042e-07 | K165: 0.7884432052 | L165: B
A166: 159 | B166: 116 | C166: =VLOOKUP(B166,'APOIO ABC'!A:K,4,0) -> 12352 | D166: =VLOOKUP(B166,'APOIO ABC'!A:K,3,0) -> ORSE | E166: =VLOOKUP(B166,'APOIO ABC'!A:K,5,0) -> Emboço ou reboco especial de parede, espessura 3cm, com argamassa 1:4 cal e areia | F166: =VLOOKUP(B166,'APOIO ABC'!A:K,6,0) -> m² | G166: =SUMIF('APOIO ABC'!A:A,B166,'APOIO ABC'!G:G) -> 4 | H166: =VLOOKUP(B166,'APOIO ABC'!A:K,10,0) -> 2.57 | I166: =SUMIF('APOIO ABC'!A:A,B166,'APOIO ABC'!K:K) -> 10.28 | J166: 9.479126122e-08 | K166: 0.7884433 | L166: B
A167: 160 | B167: 35 | C167: =VLOOKUP(B167,'APOIO ABC'!A:K,4,0) -> 91931 | D167: =VLOOKUP(B167,'APOIO ABC'!A:K,3,0) -> SINAPI | E167: =VLOOKUP(B167,'APOIO ABC'!A:K,5,0) -> CABO DE COBRE FLEXÍVEL ISOLADO, 6 MM², ANTI-CHAMA 0,6/1,0 KV, PARA CIRCUITOS TERMINAIS - FORNECIMENTO E INSTALAÇÃO. AF_03/2023 | F167: =VLOOKUP(B167,'APOIO ABC'!A:K,6,0) -> M | G167: =SUMIF('APOIO ABC'!A:A,B167,'APOIO ABC'!G:G) -> 110 | H167: =VLOOKUP(B167,'APOIO ABC'!A:K,10,0) -> 12.25 | I167: =SUMIF('APOIO ABC'!A:A,B167,'APOIO ABC'!K:K) -> 1347.5 | J167: 1.242521639e-05 | K167: 0.7884557252 | L167: B
A168: 161 | B168: 43 | C168: =VLOOKUP(B168,'APOIO ABC'!A:K,4,0) -> 63452 | D168: =VLOOKUP(B168,'APOIO ABC'!A:K,3,0) -> SBC | E168: =VLOOKUP(B168,'APOIO ABC'!A:K,5,0) -> CAIXA PARA TOMADA, FIXAÇÃO EM PERFILADO 38X38MM, FABRICADA EM CHAPA DE AÇO GALVANIZADO A FOGO, PARA TOMADA 2P+T 10A -250V | F168: =VLOOKUP(B168,'APOIO ABC'!A:K,6,0) -> UN | G168: =SUMIF('APOIO ABC'!A:A,B168,'APOIO ABC'!G:G) -> 2 | H168: =VLOOKUP(B168,'APOIO ABC'!A:K,10,0) -> 19.09 | I168: =SUMIF('APOIO ABC'!A:A,B168,'APOIO ABC'!K:K) -> 38.18 | J168: 3.520554818e-07 | K168: 0.7884560773 | L168: B
A169: 162 | B169: 20 | C169: =VLOOKUP(B169,'APOIO ABC'!A:K,4,0) -> 100612 | D169: =VLOOKUP(B169,'APOIO ABC'!A:K,3,0) -> SINAPI | E169: =VLOOKUP(B169,'APOIO ABC'!A:K,5,0) -> ASSENTAMENTO DE POSTE DE CONCRETO COM COMPRIMENTO NOMINAL DE 11 M, CARGA NOMINAL DE 600 DAN, ENGASTAMENTO BASE CONCRETADA COM 1 M DE CONCRETO E 0,7 M DE SOLO (NÃO INCLUI FORNECIMENTO). AF_11/2019 | F169: =VLOOKUP(B169,'APOIO ABC'!A:K,6,0) -> UN | G169: =SUMIF('APOIO ABC'!A:A,B169,'APOIO ABC'!G:G) -> 1 | H169: =VLOOKUP(B169,'APOIO ABC'!A:K,10,0) -> 1388.6 | I169: =SUMIF('APOIO ABC'!A:A,B169,'APOIO ABC'!K:K) -> 1388.6 | J169: 1.280419702e-05 | K169: 0.7884688815 | L169: B
A170: 163 | B170: 210 | C170: =VLOOKUP(B170,'APOIO ABC'!A:K,4,0) -> 17.97.04 | D170: =VLOOKUP(B170,'APOIO ABC'!A:K,3,0) -> EMBASA | E170: =VLOOKUP(B170,'APOIO ABC'!A:K,5,0) -> PMQAS - ESTIMATIVA DE CUSTO DE SERVICOS DE TERCEIROS - ANALISES DOS SEDIMENTOS- GRANULOMETRIA | F170: =VLOOKUP(B170,'APOIO ABC'!A:K,6,0) -> UN | G170: =SUMIF('APOIO ABC'!A:A,B170,'APOIO ABC'!G:G) -> 9 | H170: =VLOOKUP(B170,'APOIO ABC'!A:K,10,0) -> 125.41 | I170: =SUMIF('APOIO ABC'!A:A,B170,'APOIO ABC'!K:K) -> 1128.69 | J170: 1.040758255e-05 | K170: 0.788479289 | L170: B
A171: 164 | B171: 214 | C171: =VLOOKUP(B171,'APOIO ABC'!A:K,4,0) -> 63002 | D171: =VLOOKUP(B171,'APOIO ABC'!A:K,3,0) -> SBC | E171: =VLOOKUP(B171,'APOIO ABC'!A:K,5,0) -> PORCA SEXTAVADA 3/8" | F171: =VLOOKUP(B171,'APOIO ABC'!A:K,6,0) -> UN | G171: =SUMIF('APOIO ABC'!A:A,B171,'APOIO ABC'!G:G) -> 10 | H171: =VLOOKUP(B171,'APOIO ABC'!A:K,10,0) -> 447.5 | I171: =SUMIF('APOIO ABC'!A:A,B171,'APOIO ABC'!K:K) -> 4475 | J171: 4.126370564e-05 | K171: 0.7885205527 | L171: B
A172: 165 | B172: 211 | C172: =VLOOKUP(B172,'APOIO ABC'!A:K,4,0) -> 71980 | D172: =VLOOKUP(B172,'APOIO ABC'!A:K,3,0) -> AGETOP CIVIL | E172: =VLOOKUP(B172,'APOIO ABC'!A:K,5,0) -> PORCA QUADRADA DE ACO GALVANIZADO 16 X 2 | F172: =VLOOKUP(B172,'APOIO ABC'!A:K,6,0) -> Un | G172: =SUMIF('APOIO ABC'!A:A,B172,'APOIO ABC'!G:G) -> 8 | H172: =VLOOKUP(B172,'APOIO ABC'!A:K,10,0) -> 1.96 | I172: =SUMIF('APOIO ABC'!A:A,B172,'APOIO ABC'!K:K) -> 15.68 | J172: 1.445843362e-07 | K172: 0.7885206973 | L172: B
A173: 166 | B173: 208 | C173: =VLOOKUP(B173,'APOIO ABC'!A:K,4,0) -> 34723 | D173: =VLOOKUP(B173,'APOIO ABC'!A:K,3,0) -> SINAPI | E173: =VLOOKUP(B173,'APOIO ABC'!A:K,5,0) -> PLACA DE SINALIZACAO EM CHAPA DE ACO NUM 16 COM PINTURA REFLETIVA | F173: =VLOOKUP(B173,'APOIO ABC'!A:K,6,0) -> m² | G173: =SUMIF('APOIO ABC'!A:A,B173,'APOIO ABC'!G:G) -> 50.83984495 | H173: =VLOOKUP(B173,'APOIO ABC'!A:K,10,0) -> 987.65 | I173: =SUMIF('APOIO ABC'!A:A,B173,'APOIO ABC'!K:K) -> 50211.96 | J173: 0.0004630014608 | K173: 0.7889836988 | L173: B
A174: 167 | B174: 167 | C174: =VLOOKUP(B174,'APOIO ABC'!A:K,4,0) -> 2917 | D174: =VLOOKUP(B174,'APOIO ABC'!A:K,3,0) -> ORSE | E174: =VLOOKUP(B174,'APOIO ABC'!A:K,5,0) -> Fornecimento de parafuso cabeça quadrada 16 x 400mm | F174: =VLOOKUP(B174,'APOIO ABC'!A:K,6,0) -> un | G174: =SUMIF('APOIO ABC'!A:A,B174,'APOIO ABC'!G:G) -> 8 | H174: =VLOOKUP(B174,'APOIO ABC'!A:K,10,0) -> 24.14 | I174: =SUMIF('APOIO ABC'!A:A,B174,'APOIO ABC'!K:K) -> 193.12 | J174: 1.780747896e-06 | K174: 0.7889854795 | L174: B
A175: 168 | B175: 103 | C175: =VLOOKUP(B175,'APOIO ABC'!A:K,4,0) -> 21135 | D175: =VLOOKUP(B175,'APOIO ABC'!A:K,3,0) -> SINAPI | E175: =VLOOKUP(B175,'APOIO ABC'!A:K,5,0) -> ELETRODUTO EM ACO GALVANIZADO ELETROLITICO, SEMI-PESADO, DIAMETRO 1 1/4", PAREDE DE 1,20 MM | F175: =VLOOKUP(B175,'APOIO ABC'!A:K,6,0) -> M | G175: =SUMIF('APOIO ABC'!A:A,B175,'APOIO ABC'!G:G) -> 13 | H175: =VLOOKUP(B175,'APOIO ABC'!A:K,10,0) -> 22.44 | I175: =SUMIF('APOIO ABC'!A:A,B175,'APOIO ABC'!K:K) -> 291.72 | J175: 2.689932561e-06 | K175: 0.7889881695 | L175: B
A176: 169 | B176: 32 | C176: =VLOOKUP(B176,'APOIO ABC'!A:K,4,0) -> 91926 | D176: =VLOOKUP(B176,'APOIO ABC'!A:K,3,0) -> SINAPI | E176: =VLOOKUP(B176,'APOIO ABC'!A:K,5,0) -> CABO DE COBRE FLEXÍVEL ISOLADO, 2,5 MM², ANTI-CHAMA 450/750 V, PARA CIRCUITOS TERMINAIS - FORNECIMENTO E INSTALAÇÃO. AF_03/2023 | F176: =VLOOKUP(B176,'APOIO ABC'!A:K,6,0) -> M | G176: =SUMIF('APOIO ABC'!A:A,B176,'APOIO ABC'!G:G) -> 185 | H176: =VLOOKUP(B176,'APOIO ABC'!A:K,10,0) -> 5.31 | I176: =SUMIF('APOIO ABC'!A:A,B176,'APOIO ABC'!K:K) -> 982.35 | J176: 9.05819022e-06 | K176: 0.7889972277 | L176: B
A177: 170 | B177: 165 | C177: =VLOOKUP(B177,'APOIO ABC'!A:K,4,0) -> 11.10.01 | D177: =VLOOKUP(B177,'APOIO ABC'!A:K,3,0) -> EMBASA | E177: =VLOOKUP(B177,'APOIO ABC'!A:K,5,0) -> FORNEC. E COLOCACAO DE MANTA GEOTEXTIL NAO TECIDA C/ GRAMATURA DE 200 g/m² A 220 g/m² | F177: =VLOOKUP(B177,'APOIO ABC'!A:K,6,0) -> m² | G177: =SUMIF('APOIO ABC'!A:A,B177,'APOIO ABC'!G:G) -> 26621.5 | H177: =VLOOKUP(B177,'APOIO ABC'!A:K,10,0) -> 8.73 | I177: =SUMIF('APOIO ABC'!A:A,B177,'APOIO ABC'!K:K) -> 232405.69 | J177: 0.002142998878 | K177: 0.7911402265 | L177: B
A178: 171 | B178: 228 | C178: =VLOOKUP(B178,'APOIO ABC'!A:K,4,0) -> 2003 | D178: =VLOOKUP(B178,'APOIO ABC'!A:K,3,0) -> ORSE | E178: =VLOOKUP(B178,'APOIO ABC'!A:K,5,0) -> Bacia turca (celite ref 003006), caixa de descarga de embutir (montana) ou similares | F178: =VLOOKUP(B178,'APOIO ABC'!A:K,6,0) -> un | G178: =SUMIF('APOIO ABC'!A:A,B178,'APOIO ABC'!G:G) -> 6 | H178: =VLOOKUP(B178,'APOIO ABC'!A:K,10,0) -> 5.13 | I178: =SUMIF('APOIO ABC'!A:A,B178,'APOIO ABC'!K:K) -> 30.78 | J178: 2.838205273e-07 | K178: 0.7911405104 | L178: B
A179: 172 | B179: 31 | C179: =VLOOKUP(B179,'APOIO ABC'!A:K,4,0) -> 91927 | D179: =VLOOKUP(B179,'APOIO ABC'!A:K,3,0) -> SINAPI | E179: =VLOOKUP(B179,'APOIO ABC'!A:K,5,0) -> CABO DE COBRE FLEXÍVEL ISOLADO, 2,5 MM², ANTI-CHAMA 0,6/1,0 KV, PARA CIRCUITOS TERMINAIS - FORNECIMENTO E INSTALAÇÃO. AF_03/2023 | F179: =VLOOKUP(B179,'APOIO ABC'!A:K,6,0) -> M | G179: =SUMIF('APOIO ABC'!A:A,B179,'APOIO ABC'!G:G) -> 138 | H179: =VLOOKUP(B179,'APOIO ABC'!A:K,10,0) -> 5.93 | I179: =SUMIF('APOIO ABC'!A:A,B179,'APOIO ABC'!K:K) -> 818.34 | J179: 7.545863882e-06 | K179: 0.7911480562 | L179: B
A180: 173 | B180: 40 | C180: =VLOOKUP(B180,'APOIO ABC'!A:K,4,0) -> 97886 | D180: =VLOOKUP(B180,'APOIO ABC'!A:K,3,0) -> SINAPI | E180: =VLOOKUP(B180,'APOIO ABC'!A:K,5,0) -> CAIXA ENTERRADA ELÉTRICA RETANGULAR, EM ALVENARIA COM TIJOLOS CERÂMICOS MACIÇOS, FUNDO COM BRITA, DIMENSÕES INTERNAS: 0,3X0,3X0,3 M. AF_12/2020 | F180: =VLOOKUP(B180,'APOIO ABC'!A:K,6,0) -> UN | G180: =SUMIF('APOIO ABC'!A:A,B180,'APOIO ABC'!G:G) -> 20 | H180: =VLOOKUP(B180,'APOIO ABC'!A:K,10,0) -> 220.69 | I180: =SUMIF('APOIO ABC'!A:A,B180,'APOIO ABC'!K:K) -> 4413.8 | J180: 4.069938412e-05 | K180: 0.7911887556 | L180: B
A181: 174 | B181: 250 | C181: =VLOOKUP(B181,'APOIO ABC'!A:K,4,0) -> 5901639 | D181: =VLOOKUP(B181,'APOIO ABC'!A:K,3,0) -> SICRO3 | E181: =VLOOKUP(B181,'APOIO ABC'!A:K,5,0) -> Transporte com caminhão basculante com caçamba estanque com capacidade de 14 m³ - rodovia em leito natural | F181: =VLOOKUP(B181,'APOIO ABC'!A:K,6,0) -> tkm | G181: =SUMIF('APOIO ABC'!A:A,B181,'APOIO ABC'!G:G) -> 8450795.568 | H181: =VLOOKUP(B181,'APOIO ABC'!A:K,10,0) -> 1.06 | I181: =SUMIF('APOIO ABC'!A:A,B181,'APOIO ABC'!K:K) -> 8957843.06 | J181: 0.08259973166 | K181: 0.8737884873 | L181: C
A182: 175 | B182: 241 | C182: =VLOOKUP(B182,'APOIO ABC'!A:K,4,0) -> 8113 | D182: =VLOOKUP(B182,'APOIO ABC'!A:K,3,0) -> ORSE | E182: =VLOOKUP(B182,'APOIO ABC'!A:K,5,0) -> Tê horizontal 100 x 50 mm com base lisa perfurada para eletrocalha metálica (ref. Mopa ou similar) | F182: =VLOOKUP(B182,'APOIO ABC'!A:K,6,0) -> un | G182: =SUMIF('APOIO ABC'!A:A,B182,'APOIO ABC'!G:G) -> 2 | H182: =VLOOKUP(B182,'APOIO ABC'!A:K,10,0) -> 32.27 | I182: =SUMIF('APOIO ABC'!A:A,B182,'APOIO ABC'!K:K) -> 64.54 | J182: 5.951194552e-07 | K182: 0.8737890824 | L182: C
A183: 176 | B183: 205 | C183: =VLOOKUP(B183,'APOIO ABC'!A:K,4,0) -> 4011491 | D183: =VLOOKUP(B183,'APOIO ABC'!A:K,3,0) -> SICRO3 | E183: =VLOOKUP(B183,'APOIO ABC'!A:K,5,0) -> Pavimento de concreto compactado com rolo - brita produzida | F183: =VLOOKUP(B183,'APOIO ABC'!A:K,6,0) -> m³ | G183: =SUMIF('APOIO ABC'!A:A,B183,'APOIO ABC'!G:G) -> 36.06 | H183: =VLOOKUP(B183,'APOIO ABC'!A:K,10,0) -> 280.95 | I183: =SUMIF('APOIO ABC'!A:A,B183,'APOIO ABC'!K:K) -> 10131.04 | J183: 9.341771003e-05 | K183: 0.8738825001 | L183: C
A184: 177 | B184: 36 | C184: =VLOOKUP(B184,'APOIO ABC'!A:K,4,0) -> 70543 | D184: =VLOOKUP(B184,'APOIO ABC'!A:K,3,0) -> AGETOP CIVIL | E184: =VLOOKUP(B184,'APOIO ABC'!A:K,5,0) -> CABO DE COBRE NU 35 MM2 | F184: =VLOOKUP(B184,'APOIO ABC'!A:K,6,0) -> M | G184: =SUMIF('APOIO ABC'!A:A,B184,'APOIO ABC'!G:G) -> 47 | H184: =VLOOKUP(B184,'APOIO ABC'!A:K,10,0) -> 47.47 | I184: =SUMIF('APOIO ABC'!A:A,B184,'APOIO ABC'!K:K) -> 2231.09 | J184: 2.057274659e-05 | K184: 0.8739030728 | L184: C
A185: 178 | B185: 44 | C185: =VLOOKUP(B185,'APOIO ABC'!A:K,4,0) -> 2003813 | D185: =VLOOKUP(B185,'APOIO ABC'!A:K,3,0) -> SICRO3 | E185: =VLOOKUP(B185,'APOIO ABC'!A:K,5,0) -> Canaleta de concreto - CAU 03 - seção de 30 x 30 cm - espessura de 10 cm - apoiada em toda a extensão | F185: =VLOOKUP(B185,'APOIO ABC'!A:K,6,0) -> m | G185: =SUMIF('APOIO ABC'!A:A,B185,'APOIO ABC'!G:G) -> 118.1514 | H185: =VLOOKUP(B185,'APOIO ABC'!A:K,10,0) -> 249.47 | I185: =SUMIF('APOIO ABC'!A:A,B185,'APOIO ABC'!K:K) -> 29475.22 | J185: 0.0002717892294 | K185: 0.8741748621 | L185: C
A186: 179 | B186: 105 | C186: =VLOOKUP(B186,'APOIO ABC'!A:K,4,0) -> 151138 | D186: =VLOOKUP(B186,'APOIO ABC'!A:K,3,0) -> IOPES | E186: =VLOOKUP(B186,'APOIO ABC'!A:K,5,0) -> Eletroduto PEAD parede simples, corrugado, cor preta, diâmetro 1.1/4", referencia Kanaflex, Plastibras ou equivalente | F186: =VLOOKUP(B186,'APOIO ABC'!A:K,6,0) -> m | G186: =SUMIF('APOIO ABC'!A:A,B186,'APOIO ABC'!G:G) -> 550 | H186: =VLOOKUP(B186,'APOIO ABC'!A:K,10,0) -> 27.79 | I186: =SUMIF('APOIO ABC'!A:A,B186,'APOIO ABC'!K:K) -> 15284.5 | J186: 0.0001409374545 | K186: 0.8743157995 | L186: C
A187: 180 | B187: 55 | C187: =VLOOKUP(B187,'APOIO ABC'!A:K,4,0) -> 40338 | D187: =VLOOKUP(B187,'APOIO ABC'!A:K,3,0) -> SBC | E187: =VLOOKUP(B187,'APOIO ABC'!A:K,5,0) -> CIMBRAMENTO METALICO | F187: =VLOOKUP(B187,'APOIO ABC'!A:K,6,0) -> M3/M | G187: =SUMIF('APOIO ABC'!A:A,B187,'APOIO ABC'!G:G) -> 6065.14 | H187: =VLOOKUP(B187,'APOIO ABC'!A:K,10,0) -> 27.6 | I187: =SUMIF('APOIO ABC'!A:A,B187,'APOIO ABC'!K:K) -> 167397.84 | J187: 0.001543565407 | K187: 0.8758593649 | L187: C
A188: 181 | B188: 191 | C188: =VLOOKUP(B188,'APOIO ABC'!A:K,4,0) -> 67.01.03 | D188: =VLOOKUP(B188,'APOIO ABC'!A:K,3,0) -> SUDECAP | E188: =VLOOKUP(B188,'APOIO ABC'!A:K,5,0) -> MASSA ESPECÍFICA, MASSA ESPECÍFICA APARENTE E ABSORÇÃO DE ÁGUA (NBR 6458:2016) | F188: =VLOOKUP(B188,'APOIO ABC'!A:K,6,0) -> UN | G188: =SUMIF('APOIO ABC'!A:A,B188,'APOIO ABC'!G:G) -> 19 | H188: =VLOOKUP(B188,'APOIO ABC'!A:K,10,0) -> 136.81 | I188: =SUMIF('APOIO ABC'!A:A,B188,'APOIO ABC'!K:K) -> 2599.39 | J188: 2.396881873e-05 | K188: 0.8758833337 | L188: C
A189: 182 | B189: 188 | C189: =VLOOKUP(B189,'APOIO ABC'!A:K,4,0) -> 71701 | D189: =VLOOKUP(B189,'APOIO ABC'!A:K,3,0) -> AGETOP CIVIL | E189: =VLOOKUP(B189,'APOIO ABC'!A:K,5,0) -> LUVA EM AÇO GALVANIZADO DIÂMETRO 3/4" | F189: =VLOOKUP(B189,'APOIO ABC'!A:K,6,0) -> Un | G189: =SUMIF('APOIO ABC'!A:A,B189,'APOIO ABC'!G:G) -> 37 | H189: =VLOOKUP(B189,'APOIO ABC'!A:K,10,0) -> 6.09 | I189: =SUMIF('APOIO ABC'!A:A,B189,'APOIO ABC'!K:K) -> 225.33 | J189: 2.077754367e-06 | K189: 0.8758854115 | L189: C
A190: 183 | B190: 23 | C190: =VLOOKUP(B190,'APOIO ABC'!A:K,4,0) -> 60871 | D190: =VLOOKUP(B190,'APOIO ABC'!A:K,3,0) -> SBC | E190: =VLOOKUP(B190,'APOIO ABC'!A:K,5,0) -> BLOCO AUTÔNOMO DE ILUMINAÇÃO DE EMERGÊNCIA, FIXAÇÃO EM PAREDE, GRAU DE PROTEÇÃO IP-41, COM LÂMPADA LED 9 A 15W, 220V, AUTONOMIA 2 HORAS | F190: =VLOOKUP(B190,'APOIO ABC'!A:K,6,0) -> UN | G190: =SUMIF('APOIO ABC'!A:A,B190,'APOIO ABC'!G:G) -> 1 | H190: =VLOOKUP(B190,'APOIO ABC'!A:K,10,0) -> 387.87 | I190: =SUMIF('APOIO ABC'!A:A,B190,'APOIO ABC'!K:K) -> 387.87 | J190: 3.576525923e-06 | K190: 0.875888988 | L190: C
A191: 184 | B191: 183 | C191: =VLOOKUP(B191,'APOIO ABC'!A:K,4,0) -> 101655 | D191: =VLOOKUP(B191,'APOIO ABC'!A:K,3,0) -> SINAPI | E191: =VLOOKUP(B191,'APOIO ABC'!A:K,5,0) -> LUMINÁRIA DE LED PARA ILUMINAÇÃO PÚBLICA, DE 51 W ATÉ 67 W - FORNECIMENTO E INSTALAÇÃO. AF_08/2020 | F191: =VLOOKUP(B191,'APOIO ABC'!A:K,6,0) -> UN | G191: =SUMIF('APOIO ABC'!A:A,B191,'APOIO ABC'!G:G) -> 26 | H191: =VLOOKUP(B191,'APOIO ABC'!A:K,10,0) -> 416.12 | I191: =SUMIF('APOIO ABC'!A:A,B191,'APOIO ABC'!K:K) -> 10819.12 | J191: 9.976245429e-05 | K191: 0.8759887505 | L191: C
A192: 185 | B192: 248 | C192: =VLOOKUP(B192,'APOIO ABC'!A:K,4,0) -> 102103 | D192: =VLOOKUP(B192,'APOIO ABC'!A:K,3,0) -> SINAPI | E192: =VLOOKUP(B192,'APOIO ABC'!A:K,5,0) -> TRANSFORMADOR DE DISTRIBUIÇÃO, 45 KVA, TRIFÁSICO, 60 HZ, CLASSE 15 KV, IMERSO EM ÓLEO MINERAL, INSTALAÇÃO EM POSTE (NÃO INCLUSO SUPORTE) - FORNECIMENTO E INSTALAÇÃO. AF_12/2020 | F192: =VLOOKUP(B192,'APOIO ABC'!A:K,6,0) -> UN | G192: =SUMIF('APOIO ABC'!A:A,B192,'APOIO ABC'!G:G) -> 1 | H192: =VLOOKUP(B192,'APOIO ABC'!A:K,10,0) -> 15749.02 | I192: =SUMIF('APOIO ABC'!A:A,B192,'APOIO ABC'!K:K) -> 15749.02 | J192: 0.0001452207654 | K192: 0.8761339712 | L192: C
A193: 186 | B193: 51 | C193: =VLOOKUP(B193,'APOIO ABC'!A:K,4,0) -> 1337 | D193: =VLOOKUP(B193,'APOIO ABC'!A:K,3,0) -> SINAPI | E193: =VLOOKUP(B193,'APOIO ABC'!A:K,5,0) -> CHAPA DE ACO XADREZ PARA PISOS, E = 1/4" (6,30 MM) 54,53 KG/M2 | F193: =VLOOKUP(B193,'APOIO ABC'!A:K,6,0) -> KG | G193: =SUMIF('APOIO ABC'!A:A,B193,'APOIO ABC'!G:G) -> 227.3901 | H193: =VLOOKUP(B193,'APOIO ABC'!A:K,10,0) -> 11.51 | I193: =SUMIF('APOIO ABC'!A:A,B193,'APOIO ABC'!K:K) -> 2617.26 | J193: 2.413359692e-05 | K193: 0.8761581048 | L193: C
A194: 187 | B194: 247 | C194: =VLOOKUP(B194,'APOIO ABC'!A:K,4,0) -> 92544 | D194: =VLOOKUP(B194,'APOIO ABC'!A:K,3,0) -> SINAPI | E194: =VLOOKUP(B194,'APOIO ABC'!A:K,5,0) -> TRAMA DE MADEIRA COMPOSTA POR TERÇAS PARA TELHADOS DE ATÉ 2 ÁGUAS PARA TELHA ESTRUTURAL DE FIBROCIMENTO, INCLUSO TRANSPORTE VERTICAL. AF_07/2019 | F194: =VLOOKUP(B194,'APOIO ABC'!A:K,6,0) -> m² | G194: =SUMIF('APOIO ABC'!A:A,B194,'APOIO ABC'!G:G) -> 33.274 | H194: =VLOOKUP(B194,'APOIO ABC'!A:K,10,0) -> 23.91 | I194: =SUMIF('APOIO ABC'!A:A,B194,'APOIO ABC'!K:K) -> 795.58 | J194: 7.335995292e-06 | K194: 0.8761654408 | L194: C
A195: 188 | B195: 74 | C195: =VLOOKUP(B195,'APOIO ABC'!A:K,4,0) -> COT.NETS-03 | D195: =VLOOKUP(B195,'APOIO ABC'!A:K,3,0) -> PRÓPRIO | E195: =VLOOKUP(B195,'APOIO ABC'!A:K,5,0) -> CONJUNTO COMPLETO DE COMPORTA ENSECADEIRA, CONSTITUÍDO DE 2 PAINÉIS, FABRICADOS EM AÇO CARBONO ASTM A 36, COM VÁLVULA "BY PASS", CADA PAINEL COM LARGURA ENTRE PATINS DE DESLIZAMENTO DE 5110mm E ALTURA DE 2050 mm, COM AS RESPECTIVAS PEÇAS FIXAS DE 2ª CONCRETAGEM PARA GUIAMENTO, DESLIZAMENTO, APOIO E VEDAÇÃO, DISPOSITIVOS DE CALAGEM, CAVALETE DE ESTOCAGEM PARA APOIO DOS PAINEIS DE COMPORTA E COM TODOS OS PINOS, PARAFUSOS, PORCAS E ARRUELAS, NECESSARIOS À MONTAGEM DOS EQUIPAMENTOS NA OBRA. | F195: =VLOOKUP(B195,'APOIO ABC'!A:K,6,0) -> UN | G195: =SUMIF('APOIO ABC'!A:A,B195,'APOIO ABC'!G:G) -> 2 | H195: =VLOOKUP(B195,'APOIO ABC'!A:K,10,0) -> 433232.69 | I195: =SUMIF('APOIO ABC'!A:A,B195,'APOIO ABC'!K:K) -> 866465.38 | J195: 0.007989625114 | K195: 0.884155066 | L195: C
A196: 189 | B196: 30 | C196: =VLOOKUP(B196,'APOIO ABC'!A:K,4,0) -> 91924 | D196: =VLOOKUP(B196,'APOIO ABC'!A:K,3,0) -> SINAPI | E196: =VLOOKUP(B196,'APOIO ABC'!A:K,5,0) -> CABO DE COBRE FLEXÍVEL ISOLADO, 1,5 MM², ANTI-CHAMA 450/750 V, PARA CIRCUITOS TERMINAIS - FORNECIMENTO E INSTALAÇÃO. AF_03/2023 | F196: =VLOOKUP(B196,'APOIO ABC'!A:K,6,0) -> M | G196: =SUMIF('APOIO ABC'!A:A,B196,'APOIO ABC'!G:G) -> 85 | H196: =VLOOKUP(B196,'APOIO ABC'!A:K,10,0) -> 3.68 | I196: =SUMIF('APOIO ABC'!A:A,B196,'APOIO ABC'!K:K) -> 312.8 | J196: 2.884309972e-06 | K196: 0.8841579503 | L196: C
A197: 190 | B197: 73 | C197: =VLOOKUP(B197,'APOIO ABC'!A:K,4,0) -> 104753 | D197: =VLOOKUP(B197,'APOIO ABC'!A:K,3,0) -> SINAPI | E197: =VLOOKUP(B197,'APOIO ABC'!A:K,5,0) -> CONECTOR SPLIT-BOLT, PARA SPDA, PARA CABOS ATÉ 50 MM2 - FORNECIMENTO E INSTALAÇÃO. AF_08/2023 | F197: =VLOOKUP(B197,'APOIO ABC'!A:K,6,0) -> UN | G197: =SUMIF('APOIO ABC'!A:A,B197,'APOIO ABC'!G:G) -> 8 | H197: =VLOOKUP(B197,'APOIO ABC'!A:K,10,0) -> 29.46 | I197: =SUMIF('APOIO ABC'!A:A,B197,'APOIO ABC'!K:K) -> 235.68 | J197: 2.173191094e-06 | K197: 0.8841601235 | L197: C
A198: 191 | B198: 107 | C198: =VLOOKUP(B198,'APOIO ABC'!A:K,4,0) -> 59262 | D198: =VLOOKUP(B198,'APOIO ABC'!A:K,3,0) -> SBC | E198: =VLOOKUP(B198,'APOIO ABC'!A:K,5,0) -> ELETRODUTO PVC 1.1/2" | F198: =VLOOKUP(B198,'APOIO ABC'!A:K,6,0) -> M | G198: =SUMIF('APOIO ABC'!A:A,B198,'APOIO ABC'!G:G) -> 4 | H198: =VLOOKUP(B198,'APOIO ABC'!A:K,10,0) -> 29.2 | I198: =SUMIF('APOIO ABC'!A:A,B198,'APOIO ABC'!K:K) -> 116.8 | J198: 1.07700577e-06 | K198: 0.8841612005 | L198: C
A199: 192 | B199: 84 | C199: =VLOOKUP(B199,'APOIO ABC'!A:K,4,0) -> 71153 | D199: =VLOOKUP(B199,'APOIO ABC'!A:K,3,0) -> AGETOP CIVIL | E199: =VLOOKUP(B199,'APOIO ABC'!A:K,5,0) -> CURVA DE 90 GRAUS AÇO GALVANIZADO DIAM.1.1/4" | F199: =VLOOKUP(B199,'APOIO ABC'!A:K,6,0) -> Un | G199: =SUMIF('APOIO ABC'!A:A,B199,'APOIO ABC'!G:G) -> 4 | H199: =VLOOKUP(B199,'APOIO ABC'!A:K,10,0) -> 39.37 | I199: =SUMIF('APOIO ABC'!A:A,B199,'APOIO ABC'!K:K) -> 157.48 | J199: 1.452113601e-06 | K199: 0.8841626526 | L199: C
A200: 193 | B200: 199 | C200: =VLOOKUP(B200,'APOIO ABC'!A:K,4,0) -> 1201008134 | D200: =VLOOKUP(B200,'APOIO ABC'!A:K,3,0) -> AGESUL | E200: =VLOOKUP(B200,'APOIO ABC'!A:K,5,0) -> GANCHO OLHAL EM ACO GALVANIZADO, ESPESSURA 16MM, ABERTURA 21MM | F200: =VLOOKUP(B200,'APOIO ABC'!A:K,6,0) -> UN | G200: =SUMIF('APOIO ABC'!A:A,B200,'APOIO ABC'!G:G) -> 3 | H200: =VLOOKUP(B200,'APOIO ABC'!A:K,10,0) -> 26.95 | I200: =SUMIF('APOIO ABC'!A:A,B200,'APOIO ABC'!K:K) -> 80.85 | J200: =I200/$I$267 -> 7.455129834e-07 | K200: 0.8841633981 | L200: =IF(K200<=50%,"A",IF(AND(K200>50%,K200<=80%),"B","C")) -> C
... 66 more rows

Sheet APOIO ABC (hidden)
A2: =IF(E1=E2,A1,A1+1) -> 1 | B2: ='2 - ORÇAMENTO'!A450 -> 5.5.2.6.1.2 | C2: ='2 - ORÇAMENTO'!B450 -> PRÓPRIO | D2: ='2 - ORÇAMENTO'!C450 -> COT.NETS-09 | E2: ='2 - ORÇAMENTO'!D450 -> (PGBT-RC500) PAINEL DE CONTROLE DAS INSTALAÇÕES DE FORÇA COM ARMÁRIOS, AUTOPORTANTE, EM AÇO GALVANIZADO, IP41, COMBINÁVEL COM OUTROS MÓDULOS, COM PORTA. DIM. APROX. 2000X800X600mm (HxLxC). CONFORME DESENHO E ESPECIFICAÇÕES DE REFERÊNCIA. | F2: ='2 - ORÇAMENTO'!E450 -> CJ | G2: ='2 - ORÇAMENTO'!F450 -> 1 | H2: ='2 - ORÇAMENTO'!G450 -> 16824.64333 | I2: ='2 - ORÇAMENTO'!H450 -> 0.14015 | J2: ='2 - ORÇAMENTO'!I450 -> 19182.61 | K2: ='2 - ORÇAMENTO'!J450 -> 19182.61
A3: =IF(E2=E3,A2,A2+1) -> 2 | B3: ='2 - ORÇAMENTO'!A449 -> 5.5.2.6.1.1 | C3: ='2 - ORÇAMENTO'!B449 -> PRÓPRIO | D3: ='2 - ORÇAMENTO'!C449 -> COT.NETS-08 | E3: ='2 - ORÇAMENTO'!D449 -> (QDL-RC500) QUADRO PARA ILUMINAÇÃO E TOMADAS EM CHAPA DE AÇO ZINCADO, PINTADO A PÓ ELETROSTÁTICAMENTE, PLACA INTERNA NA COR LARANJA, IP65, PORTA REMOVÍVEL, DIM. APROX. 500X500X250MM (HxLxC). CONFORME DESENHO E ESPECIFICAÇÕES DE REFERÊNCIA. | F3: ='2 - ORÇAMENTO'!E449 -> CJ | G3: ='2 - ORÇAMENTO'!F449 -> 1 | H3: ='2 - ORÇAMENTO'!G449 -> 2264.62 | I3: ='2 - ORÇAMENTO'!H449 -> 0.14015 | J3: ='2 - ORÇAMENTO'!I449 -> 2582 | K3: ='2 - ORÇAMENTO'!J449 -> 2582
A4: 3 | B4: ='2 - ORÇAMENTO'!A412 -> 5.5.2.4.7.2 | C4: ='2 - ORÇAMENTO'!B412 -> ORSE | D4: ='2 - ORÇAMENTO'!C412 -> 12140 | E4: ='2 - ORÇAMENTO'!D412 -> Abraçadeira metálica tipo "D" de 1" | F4: ='2 - ORÇAMENTO'!E412 -> un | G4: ='2 - ORÇAMENTO'!F412 -> 4 | H4: ='2 - ORÇAMENTO'!G412 -> 5.71 | I4: ='2 - ORÇAMENTO'!H412 -> 0.2256 | J4: ='2 - ORÇAMENTO'!I412 -> 6.99 | K4: ='2 - ORÇAMENTO'!J412 -> 27.96
A5: 4 | B5: ='2 - ORÇAMENTO'!A411 -> 5.5.2.4.7.1 | C5: ='2 - ORÇAMENTO'!B411 -> ORSE | D5: ='2 - ORÇAMENTO'!C411 -> 8441 | E5: ='2 - ORÇAMENTO'!D411 -> Abraçadeira metálica tipo "D" de 3/4" | F5: ='2 - ORÇAMENTO'!E411 -> un | G5: ='2 - ORÇAMENTO'!F411 -> 18 | H5: ='2 - ORÇAMENTO'!G411 -> 5.49 | I5: ='2 - ORÇAMENTO'!H411 -> 0.2256 | J5: ='2 - ORÇAMENTO'!I411 -> 6.72 | K5: ='2 - ORÇAMENTO'!J411 -> 120.96
A6: 5 | B6: ='2 - ORÇAMENTO'!A443 -> 5.5.2.5.4.13 | C6: ='2 - ORÇAMENTO'!B443 -> SBC | D6: ='2 - ORÇAMENTO'!C443 -> 49205 | E6: ='2 - ORÇAMENTO'!D443 -> ABRAÇADEIRA TIPO UNHA PARA CABO 35MM², COM BUCHA DE NYLON , TIPO S-12, FIXAÇÃO COM PARAFUSO CABEÇA REDONDA ∅3/8"X2" | F6: ='2 - ORÇAMENTO'!E443 -> UN | G6: ='2 - ORÇAMENTO'!F443 -> 10 | H6: ='2 - ORÇAMENTO'!G443 -> 2.52 | I6: ='2 - ORÇAMENTO'!H443 -> 0.14015 | J6: ='2 - ORÇAMENTO'!I443 -> 2.87 | K6: ='2 - ORÇAMENTO'!J443 -> 28.7
A7: 6 | B7: ='2 - ORÇAMENTO'!A304 -> 5.5.2.1.5.4 | C7: ='2 - ORÇAMENTO'!B304 -> SINAPI | D7: ='2 - ORÇAMENTO'!C304 -> 11927 | E7: ='2 - ORÇAMENTO'!D304 -> ABRACADEIRA, GALVANIZADA/ZINCADA, ROSCA SEM FIM, PARAFUSO INOX, LARGURA FITA *12,6 A *14 MM, D = 2" A 2 1/2" | F7: ='2 - ORÇAMENTO'!E304 -> UN | G7: ='2 - ORÇAMENTO'!F304 -> 3 | H7: ='2 - ORÇAMENTO'!G304 -> 8.95 | I7: ='2 - ORÇAMENTO'!H304 -> 0.14015 | J7: ='2 - ORÇAMENTO'!I304 -> 10.2 | K7: ='2 - ORÇAMENTO'!J304 -> 30.6
A8: 7 | B8: ='2 - ORÇAMENTO'!A1091 -> 11.1 | C8: ='2 - ORÇAMENTO'!B1091 -> AGETOP RODOVIARIA | D8: ='2 - ORÇAMENTO'!C1091 -> 40305 | E8: ='2 - ORÇAMENTO'!D1091 -> ACABAMENTO E RECOMPOSIÇÃO DE JAZIDA | F8: ='2 - ORÇAMENTO'!E1091 -> m² | G8: ='2 - ORÇAMENTO'!F1091 -> 684717.4168 | H8: ='2 - ORÇAMENTO'!G1091 -> 0.39 | I8: ='2 - ORÇAMENTO'!H1091 -> 0.14015 | J8: ='2 - ORÇAMENTO'!I1091 -> 0.44 | K8: ='2 - ORÇAMENTO'!J1091 -> 301275.66
A9: 8 | B9: ='2 - ORÇAMENTO'!A204 -> 5.3.1.9 | C9: ='2 - ORÇAMENTO'!B204 -> SICRO3 | D9: ='2 - ORÇAMENTO'!C204 -> 1100657 | E9: ='2 - ORÇAMENTO'!D204 -> Adensamento de concreto por vibrador de imersão | F9: ='2 - ORÇAMENTO'!E204 -> m³ | G9: ='2 - ORÇAMENTO'!F204 -> 66.14 | H9: ='2 - ORÇAMENTO'!G204 -> 3.32 | I9: ='2 - ORÇAMENTO'!H204 -> 0.2256 | J9: ='2 - ORÇAMENTO'!I204 -> 4.06 | K9: ='2 - ORÇAMENTO'!J204 -> 268.52
A10: 8 | B10: ='2 - ORÇAMENTO'!A216 -> 5.3.2.9 | C10: ='2 - ORÇAMENTO'!B216 -> SICRO3 | D10: ='2 - ORÇAMENTO'!C216 -> 1100657 | E10: ='2 - ORÇAMENTO'!D216 -> Adensamento de concreto por vibrador de imersão | F10: ='2 - ORÇAMENTO'!E216 -> m³ | G10: ='2 - ORÇAMENTO'!F216 -> 239.95 | H10: ='2 - ORÇAMENTO'!G216 -> 3.32 | I10: ='2 - ORÇAMENTO'!H216 -> 0.2256 | J10: ='2 - ORÇAMENTO'!I216 -> 4.06 | K10: ='2 - ORÇAMENTO'!J216 -> 974.19
A11: 8 | B11: ='2 - ORÇAMENTO'!A228 -> 5.3.3.9 | C11: ='2 - ORÇAMENTO'!B228 -> SICRO3 | D11: ='2 - ORÇAMENTO'!C228 -> 1100657 | E11: ='2 - ORÇAMENTO'!D228 -> Adensamento de concreto por vibrador de imersão | F11: ='2 - ORÇAMENTO'!E228 -> m³ | G11: ='2 - ORÇAMENTO'!F228 -> 91.79 | H11: ='2 - ORÇAMENTO'!G228 -> 3.32 | I11: ='2 - ORÇAMENTO'!H228 -> 0.2256 | J11: ='2 - ORÇAMENTO'!I228 -> 4.06 | K11: ='2 - ORÇAMENTO'!J228 -> 372.66
A12: 8 | B12: ='2 - ORÇAMENTO'!A241 -> 5.3.4.10 | C12: ='2 - ORÇAMENTO'!B241 -> SICRO3 | D12: ='2 - ORÇAMENTO'!C241 -> 1100657 | E12: ='2 - ORÇAMENTO'!D241 -> Adensamento de concreto por vibrador de imersão | F12: ='2 - ORÇAMENTO'!E241 -> m³ | G12: ='2 - ORÇAMENTO'!F241 -> 111.5 | H12: ='2 - ORÇAMENTO'!G241 -> 3.32 | I12: ='2 - ORÇAMENTO'!H241 -> 0.2256 | J12: ='2 - ORÇAMENTO'!I241 -> 4.06 | K12: ='2 - ORÇAMENTO'!J241 -> 452.69
A13: 8 | B13: ='2 - ORÇAMENTO'!A255 -> 5.3.6.9 | C13: ='2 - ORÇAMENTO'!B255 -> SICRO3 | D13: ='2 - ORÇAMENTO'!C255 -> 1100657 | E13: ='2 - ORÇAMENTO'!D255 -> Adensamento de concreto por vibrador de imersão | F13: ='2 - ORÇAMENTO'!E255 -> m³ | G13: ='2 - ORÇAMENTO'!F255 -> 6.52 | H13: ='2 - ORÇAMENTO'!G255 -> 3.32 | I13: ='2 - ORÇAMENTO'!H255 -> 0.2256 | J13: ='2 - ORÇAMENTO'!I255 -> 4.06 | K13: ='2 - ORÇAMENTO'!J255 -> 26.47
A14: 8 | B14: ='2 - ORÇAMENTO'!A515 -> 6.1.5.9 | C14: ='2 - ORÇAMENTO'!B515 -> SICRO3 | D14: ='2 - ORÇAMENTO'!C515 -> 1100657 | E14: ='2 - ORÇAMENTO'!D515 -> Adensamento de concreto por vibrador de imersão | F14: ='2 - ORÇAMENTO'!E515 -> m³ | G14: ='2 - ORÇAMENTO'!F515 -> 1367 | H14: ='2 - ORÇAMENTO'!G515 -> 3.32 | I14: ='2 - ORÇAMENTO'!H515 -> 0.2256 | J14: ='2 - ORÇAMENTO'!I515 -> 4.06 | K14: ='2 - ORÇAMENTO'!J515 -> 5550.02
A15: 8 | B15: ='2 - ORÇAMENTO'!A581 -> 6.2.5.9 | C15: ='2 - ORÇAMENTO'!B581 -> SICRO3 | D15: ='2 - ORÇAMENTO'!C581 -> 1100657 | E15: ='2 - ORÇAMENTO'!D581 -> Adensamento de concreto por vibrador de imersão | F15: ='2 - ORÇAMENTO'!E581 -> m³ | G15: ='2 - ORÇAMENTO'!F581 -> 3268 | H15: ='2 - ORÇAMENTO'!G581 -> 3.32 | I15: ='2 - ORÇAMENTO'!H581 -> 0.2256 | J15: ='2 - ORÇAMENTO'!I581 -> 4.06 | K15: ='2 - ORÇAMENTO'!J581 -> 13268.08
A16: 8 | B16: ='2 - ORÇAMENTO'!A604 -> 6.2.6.1.3.3 | C16: ='2 - ORÇAMENTO'!B604 -> SICRO3 | D16: ='2 - ORÇAMENTO'!C604 -> 1100657 | E16: ='2 - ORÇAMENTO'!D604 -> Adensamento de concreto por vibrador de imersão | F16: ='2 - ORÇAMENTO'!E604 -> m³ | G16: ='2 - ORÇAMENTO'!F604 -> 11.07 | H16: ='2 - ORÇAMENTO'!G604 -> 3.32 | I16: ='2 - ORÇAMENTO'!H604 -> 0.2256 | J16: ='2 - ORÇAMENTO'!I604 -> 4.06 | K16: ='2 - ORÇAMENTO'!J604 -> 44.94
A17: 8 | B17: ='2 - ORÇAMENTO'!A611 -> 6.2.6.1.4.3 | C17: ='2 - ORÇAMENTO'!B611 -> SICRO3 | D17: ='2 - ORÇAMENTO'!C611 -> 1100657 | E17: ='2 - ORÇAMENTO'!D611 -> Adensamento de concreto por vibrador de imersão | F17: ='2 - ORÇAMENTO'!E611 -> m³ | G17: ='2 - ORÇAMENTO'!F611 -> 4.05 | H17: ='2 - ORÇAMENTO'!G611 -> 3.32 | I17: ='2 - ORÇAMENTO'!H611 -> 0.2256 | J17: ='2 - ORÇAMENTO'!I611 -> 4.06 | K17: ='2 - ORÇAMENTO'!J611 -> 16.44
A18: 8 | B18: ='2 - ORÇAMENTO'!A658 -> 6.3.5.9 | C18: ='2 - ORÇAMENTO'!B658 -> SICRO3 | D18: ='2 - ORÇAMENTO'!C658 -> 1100657 | E18: ='2 - ORÇAMENTO'!D658 -> Adensamento de concreto por vibrador de imersão | F18: ='2 - ORÇAMENTO'!E658 -> m³ | G18: ='2 - ORÇAMENTO'!F658 -> 4840 | H18: ='2 - ORÇAMENTO'!G658 -> 3.32 | I18: ='2 - ORÇAMENTO'!H658 -> 0.2256 | J18: ='2 - ORÇAMENTO'!I658 -> 4.06 | K18: ='2 - ORÇAMENTO'!J658 -> 19650.4
A19: 8 | B19: ='2 - ORÇAMENTO'!A681 -> 6.3.6.1.3.3 | C19: ='2 - ORÇAMENTO'!B681 -> SICRO3 | D19: ='2 - ORÇAMENTO'!C681 -> 1100657 | E19: ='2 - ORÇAMENTO'!D681 -> Adensamento de concreto por vibrador de imersão | F19: ='2 - ORÇAMENTO'!E681 -> m³ | G19: ='2 - ORÇAMENTO'!F681 -> 7.38 | H19: ='2 - ORÇAMENTO'!G681 -> 3.32 | I19: ='2 - ORÇAMENTO'!H681 -> 0.2256 | J19: ='2 - ORÇAMENTO'!I681 -> 4.06 | K19: ='2 - ORÇAMENTO'!J681 -> 29.96
A20: 8 | B20: ='2 - ORÇAMENTO'!A688 -> 6.3.6.1.4.3 | C20: ='2 - ORÇAMENTO'!B688 -> SICRO3 | D20: ='2 - ORÇAMENTO'!C688 -> 1100657 | E20: ='2 - ORÇAMENTO'!D688 -> Adensamento de concreto por vibrador de imersão | F20: ='2 - ORÇAMENTO'!E688 -> m³ | G20: ='2 - ORÇAMENTO'!F688 -> 2.7 | H20: ='2 - ORÇAMENTO'!G688 -> 3.32 | I20: ='2 - ORÇAMENTO'!H688 -> 0.2256 | J20: ='2 - ORÇAMENTO'!I688 -> 4.06 | K20: ='2 - ORÇAMENTO'!J688 -> 10.96
A21: 8 | B21: ='2 - ORÇAMENTO'!A735 -> 6.4.5.9 | C21: ='2 - ORÇAMENTO'!B735 -> SICRO3 | D21: ='2 - ORÇAMENTO'!C735 -> 1100657 | E21: ='2 - ORÇAMENTO'!D735 -> Adensamento de concreto por vibrador de imersão | F21: ='2 - ORÇAMENTO'!E735 -> m³ | G21: ='2 - ORÇAMENTO'!F735 -> 2333 | H21: ='2 - ORÇAMENTO'!G735 -> 3.32 | I21: ='2 - ORÇAMENTO'!H735 -> 0.2256 | J21: ='2 - ORÇAMENTO'!I735 -> 4.06 | K21: ='2 - ORÇAMENTO'!J735 -> 9471.98
A22: 8 | B22: ='2 - ORÇAMENTO'!A758 -> 6.4.6.1.3.3 | C22: ='2 - ORÇAMENTO'!B758 -> SICRO3 | D22: ='2 - ORÇAMENTO'!C758 -> 1100657 | E22: ='2 - ORÇAMENTO'!D758 -> Adensamento de concreto por vibrador de imersão | F22: ='2 - ORÇAMENTO'!E758 -> m³ | G22: ='2 - ORÇAMENTO'!F758 -> 7.38 | H22: ='2 - ORÇAMENTO'!G758 -> 3.32 | I22: ='2 - ORÇAMENTO'!H758 -> 0.2256 | J22: ='2 - ORÇAMENTO'!I758 -> 4.06 | K22: ='2 - ORÇAMENTO'!J758 -> 29.96
A23: 8 | B23: ='2 - ORÇAMENTO'!A765 -> 6.4.6.1.4.3 | C23: ='2 - ORÇAMENTO'!B765 -> SICRO3 | D23: ='2 - ORÇAMENTO'!C765 -> 1100657 | E23: ='2 - ORÇAMENTO'!D765 -> Adensamento de concreto por vibrador de imersão | F23: ='2 - ORÇAMENTO'!E765 -> m³ | G23: ='2 - ORÇAMENTO'!F765 -> 2.7 | H23: ='2 - ORÇAMENTO'!G765 -> 3.32 | I23: ='2 - ORÇAMENTO'!H765 -> 0.2256 | J23: ='2 - ORÇAMENTO'!I765 -> 4.06 | K23: ='2 - ORÇAMENTO'!J765 -> 10.96
A24: 8 | B24: ='2 - ORÇAMENTO'!A889 -> 9.1.2.10 | C24: ='2 - ORÇAMENTO'!B889 -> SICRO3 | D24: ='2 - ORÇAMENTO'!C889 -> 1100657 | E24: ='2 - ORÇAMENTO'!D889 -> Adensamento de concreto por vibrador de imersão | F24: ='2 - ORÇAMENTO'!E889 -> m³ | G24: ='2 - ORÇAMENTO'!F889 -> 387.17 | H24: ='2 - ORÇAMENTO'!G889 -> 3.32 | I24: ='2 - ORÇAMENTO'!H889 -> 0.2256 | J24: ='2 - ORÇAMENTO'!I889 -> 4.06 | K24: ='2 - ORÇAMENTO'!J889 -> 1571.91
A25: 8 | B25: ='2 - ORÇAMENTO'!A910 -> 9.2.2.10 | C25: ='2 - ORÇAMENTO'!B910 -> SICRO3 | D25: ='2 - ORÇAMENTO'!C910 -> 1100657 | E25: ='2 - ORÇAMENTO'!D910 -> Adensamento de concreto por vibrador de imersão | F25: ='2 - ORÇAMENTO'!E910 -> m³ | G25: ='2 - ORÇAMENTO'!F910 -> 390.92 | H25: ='2 - ORÇAMENTO'!G910 -> 3.32 | I25: ='2 - ORÇAMENTO'!H910 -> 0.2256 | J25: ='2 - ORÇAMENTO'!I910 -> 4.06 | K25: ='2 - ORÇAMENTO'!J910 -> 1587.13
A26: 9 | B26: ='2 - ORÇAMENTO'!A316 -> 5.5.2.1.6.6 | C26: ='2 - ORÇAMENTO'!B316 -> SUDECAP | D26: ='2 - ORÇAMENTO'!C316 -> 11.92.45 | E26: ='2 - ORÇAMENTO'!D316 -> FORNECIMENTO DE ALICATE PEQUENO Z-200 PARA UTILIZAÇÃO EM MOLDE DE SOLDA EXOTÉRMICA | F26: ='2 - ORÇAMENTO'!E316 -> UN | G26: ='2 - ORÇAMENTO'!F316 -> 1 | H26: ='2 - ORÇAMENTO'!G316 -> 92 | I26: ='2 - ORÇAMENTO'!H316 -> 0.2256 | J26: ='2 - ORÇAMENTO'!I316 -> 112.75 | K26: ='2 - ORÇAMENTO'!J316 -> 112.75
A27: 10 | B27: ='2 - ORÇAMENTO'!A459 -> 5.7.1 | C27: ='2 - ORÇAMENTO'!B459 -> SICRO3 | D27: ='2 - ORÇAMENTO'!C459 -> 2009618 | E27: ='2 - ORÇAMENTO'!D459 -> Alvenaria de blocos de concreto 19 x 19 x 39 cm com espessura de 20 cm - areia extraída | F27: ='2 - ORÇAMENTO'!E459 -> m² | G27: ='2 - ORÇAMENTO'!F459 -> 45.438 | H27: ='2 - ORÇAMENTO'!G459 -> 119.41 | I27: ='2 - ORÇAMENTO'!H459 -> 0.2256 | J27: ='2 - ORÇAMENTO'!I459 -> 146.34 | K27: ='2 - ORÇAMENTO'!J459 -> 6649.39
A28: 11 | B28: ='2 - ORÇAMENTO'!A784 -> 7.2.12 | C28: ='2 - ORÇAMENTO'!B784 -> SBC | D28: ='2 - ORÇAMENTO'!C784 -> 40035 | E28: ='2 - ORÇAMENTO'!D784 -> APLICACAO DE ADESIVO ESTRUTURAL | F28: ='2 - ORÇAMENTO'!E784 -> M² | G28: ='2 - ORÇAMENTO'!F784 -> 430.36 | H28: ='2 - ORÇAMENTO'!G784 -> 254.23 | I28: ='2 - ORÇAMENTO'!H784 -> 0.2256 | J28: ='2 - ORÇAMENTO'!I784 -> 311.58 | K28: ='2 - ORÇAMENTO'!J784 -> 134091.56
A29: 12 | B29: ='2 - ORÇAMENTO'!A520 -> 6.1.6.2.1.1 | C29: ='2 - ORÇAMENTO'!B520 -> SICRO3 | D29: ='2 - ORÇAMENTO'!C520 -> 4816018 | E29: ='2 - ORÇAMENTO'!D520 -> Areia extraída com trator e carregadeira | F29: ='2 - ORÇAMENTO'!E520 -> m³ | G29: ='2 - ORÇAMENTO'!F520 -> 251.20125 | H29: ='2 - ORÇAMENTO'!G520 -> 4.99 | I29: ='2 - ORÇAMENTO'!H520 -> 0.2256 | J29: ='2 - ORÇAMENTO'!I520 -> 6.11 | K29: ='2 - ORÇAMENTO'!J520 -> 1534.83
A30: 12 | B30: ='2 - ORÇAMENTO'!A526 -> 6.1.6.2.2.3 | C30: ='2 - ORÇAMENTO'!B526 -> SICRO3 | D30: ='2 - ORÇAMENTO'!C526 -> 4816018 | E30: ='2 - ORÇAMENTO'!D526 -> Areia extraída com trator e carregadeira | F30: ='2 - ORÇAMENTO'!E526 -> m³ | G30: ='2 - ORÇAMENTO'!F526 -> 494.22 | H30: ='2 - ORÇAMENTO'!G526 -> 4.99 | I30: ='2 - ORÇAMENTO'!H526 -> 0.2256 | J30: ='2 - ORÇAMENTO'!I526 -> 6.11 | K30: ='2 - ORÇAMENTO'!J526 -> 3019.68
A31: 12 | B31: ='2 - ORÇAMENTO'!A587 -> 6.2.6.1.1.1 | C31: ='2 - ORÇAMENTO'!B587 -> SICRO3 | D31: ='2 - ORÇAMENTO'!C587 -> 4816018 | E31: ='2 - ORÇAMENTO'!D587 -> Areia extraída com trator e carregadeira | F31: ='2 - ORÇAMENTO'!E587 -> m³ | G31: ='2 - ORÇAMENTO'!F587 -> 540 | H31: ='2 - ORÇAMENTO'!G587 -> 4.99 | I31: ='2 - ORÇAMENTO'!H587 -> 0.2256 | J31: ='2 - ORÇAMENTO'!I587 -> 6.11 | K31: ='2 - ORÇAMENTO'!J587 -> 3299.4
A32: 12 | B32: ='2 - ORÇAMENTO'!A593 -> 6.2.6.1.2.3 | C32: ='2 - ORÇAMENTO'!B593 -> SICRO3 | D32: ='2 - ORÇAMENTO'!C593 -> 4816018 | E32: ='2 - ORÇAMENTO'!D593 -> Areia extraída com trator e carregadeira | F32: ='2 - ORÇAMENTO'!E593 -> m³ | G32: ='2 - ORÇAMENTO'!F593 -> 1062.4 | H32: ='2 - ORÇAMENTO'!G593 -> 4.99 | I32: ='2 - ORÇAMENTO'!H593 -> 0.2256 | J32: ='2 - ORÇAMENTO'!I593 -> 6.11 | K32: ='2 - ORÇAMENTO'!J593 -> 6491.26
A33: 12 | B33: ='2 - ORÇAMENTO'!A664 -> 6.3.6.1.1.1 | C33: ='2 - ORÇAMENTO'!B664 -> SICRO3 | D33: ='2 - ORÇAMENTO'!C664 -> 4816018 | E33: ='2 - ORÇAMENTO'!D664 -> Areia extraída com trator e carregadeira | F33: ='2 - ORÇAMENTO'!E664 -> m³ | G33: ='2 - ORÇAMENTO'!F664 -> 691.875 | H33: ='2 - ORÇAMENTO'!G664 -> 4.99 | I33: ='2 - ORÇAMENTO'!H664 -> 0.2256 | J33: ='2 - ORÇAMENTO'!I664 -> 6.11 | K33: ='2 - ORÇAMENTO'!J664 -> 4227.35
A34: 12 | B34: ='2 - ORÇAMENTO'!A670 -> 6.3.6.1.2.3 | C34: ='2 - ORÇAMENTO'!B670 -> SICRO3 | D34: ='2 - ORÇAMENTO'!C670 -> 4816018 | E34: ='2 - ORÇAMENTO'!D670 -> Areia extraída com trator e carregadeira | F34: ='2 - ORÇAMENTO'!E670 -> m³ | G34: ='2 - ORÇAMENTO'!F670 -> 1361.2 | H34: ='2 - ORÇAMENTO'!G670 -> 4.99 | I34: ='2 - ORÇAMENTO'!H670 -> 0.2256 | J34: ='2 - ORÇAMENTO'!I670 -> 6.11 | K34: ='2 - ORÇAMENTO'!J670 -> 8316.93
A35: 12 | B35: ='2 - ORÇAMENTO'!A741 -> 6.4.6.1.1.1 | C35: ='2 - ORÇAMENTO'!B741 -> SICRO3 | D35: ='2 - ORÇAMENTO'!C741 -> 4816018 | E35: ='2 - ORÇAMENTO'!D741 -> Areia extraída com trator e carregadeira | F35: ='2 - ORÇAMENTO'!E741 -> m³ | G35: ='2 - ORÇAMENTO'!F741 -> 313.875 | H35: ='2 - ORÇAMENTO'!G741 -> 4.99 | I35: ='2 - ORÇAMENTO'!H741 -> 0.2256 | J35: ='2 - ORÇAMENTO'!I741 -> 6.11 | K35: ='2 - ORÇAMENTO'!J741 -> 1917.77
A36: 12 | B36: ='2 - ORÇAMENTO'!A747 -> 6.4.6.1.2.3 | C36: ='2 - ORÇAMENTO'!B747 -> SICRO3 | D36: ='2 - ORÇAMENTO'!C747 -> 4816018 | E36: ='2 - ORÇAMENTO'!D747 -> Areia extraída com trator e carregadeira | F36: ='2 - ORÇAMENTO'!E747 -> m³ | G36: ='2 - ORÇAMENTO'!F747 -> 617.52 | H36: ='2 - ORÇAMENTO'!G747 -> 4.99 | I36: ='2 - ORÇAMENTO'!H747 -> 0.2256 | J36: ='2 - ORÇAMENTO'!I747 -> 6.11 | K36: ='2 - ORÇAMENTO'!J747 -> 3773.04
A37: 13 | B37: ='2 - ORÇAMENTO'!A205 -> 5.3.1.10 | C37: ='2 - ORÇAMENTO'!B205 -> SICRO3 | D37: ='2 - ORÇAMENTO'!C205 -> 407819 | E37: ='2 - ORÇAMENTO'!D205 -> ARMAÇÃO EM AÇO CA-50 - FORNECIMENTO, PREPARO E COLOCAÇÃO. | F37: ='2 - ORÇAMENTO'!E205 -> KG | G37: ='2 - ORÇAMENTO'!F205 -> 7936.8 | H37: ='2 - ORÇAMENTO'!G205 -> 11.88 | I37: ='2 - ORÇAMENTO'!H205 -> 0.2256 | J37: ='2 - ORÇAMENTO'!I205 -> 14.56 | K37: ='2 - ORÇAMENTO'!J205 -> 115559.8
A38: 13 | B38: ='2 - ORÇAMENTO'!A217 -> 5.3.2.10 | C38: ='2 - ORÇAMENTO'!B217 -> SICRO3 | D38: ='2 - ORÇAMENTO'!C217 -> 407819 | E38: ='2 - ORÇAMENTO'!D217 -> ARMAÇÃO EM AÇO CA-50 - FORNECIMENTO, PREPARO E COLOCAÇÃO. | F38: ='2 - ORÇAMENTO'!E217 -> KG | G38: ='2 - ORÇAMENTO'!F217 -> 28794 | H38: ='2 - ORÇAMENTO'!G217 -> 11.88 | I38: ='2 - ORÇAMENTO'!H217 -> 0.2256 | J38: ='2 - ORÇAMENTO'!I217 -> 14.56 | K38: ='2 - ORÇAMENTO'!J217 -> 419240.64
A39: 13 | B39: ='2 - ORÇAMENTO'!A229 -> 5.3.3.10 | C39: ='2 - ORÇAMENTO'!B229 -> SICRO3 | D39: ='2 - ORÇAMENTO'!C229 -> 407819 | E39: ='2 - ORÇAMENTO'!D229 -> ARMAÇÃO EM AÇO CA-50 - FORNECIMENTO, PREPARO E COLOCAÇÃO. | F39: ='2 - ORÇAMENTO'!E229 -> KG | G39: ='2 - ORÇAMENTO'!F229 -> 11014.8 | H39: ='2 - ORÇAMENTO'!G229 -> 11.88 | I39: ='2 - ORÇAMENTO'!H229 -> 0.2256 | J39: ='2 - ORÇAMENTO'!I229 -> 14.56 | K39: ='2 - ORÇAMENTO'!J229 -> 160375.48
A40: 13 | B40: ='2 - ORÇAMENTO'!A242 -> 5.3.4.11 | C40: ='2 - ORÇAMENTO'!B242 -> SICRO3 | D40: ='2 - ORÇAMENTO'!C242 -> 407819 | E40: ='2 - ORÇAMENTO'!D242 -> ARMAÇÃO EM AÇO CA-50 - FORNECIMENTO, PREPARO E COLOCAÇÃO. | F40: ='2 - ORÇAMENTO'!E242 -> KG | G40: ='2 - ORÇAMENTO'!F242 -> 13380 | H40: ='2 - ORÇAMENTO'!G242 -> 11.88 | I40: ='2 - ORÇAMENTO'!H242 -> 0.2256 | J40: ='2 - ORÇAMENTO'!I242 -> 14.56 | K40: ='2 - ORÇAMENTO'!J242 -> 194812.8
A41: 13 | B41: ='2 - ORÇAMENTO'!A256 -> 5.3.6.10 | C41: ='2 - ORÇAMENTO'!B256 -> SICRO3 | D41: ='2 - ORÇAMENTO'!C256 -> 407819 | E41: ='2 - ORÇAMENTO'!D256 -> ARMAÇÃO EM AÇO CA-50 - FORNECIMENTO, PREPARO E COLOCAÇÃO. | F41: ='2 - ORÇAMENTO'!E256 -> KG | G41: ='2 - ORÇAMENTO'!F256 -> 176.04 | H41: ='2 - ORÇAMENTO'!G256 -> 11.88 | I41: ='2 - ORÇAMENTO'!H256 -> 0.2256 | J41: ='2 - ORÇAMENTO'!I256 -> 14.56 | K41: ='2 - ORÇAMENTO'!J256 -> 2563.14
A42: 13 | B42: ='2 - ORÇAMENTO'!A605 -> 6.2.6.1.3.4 | C42: ='2 - ORÇAMENTO'!B605 -> SICRO3 | D42: ='2 - ORÇAMENTO'!C605 -> 407819 | E42: ='2 - ORÇAMENTO'!D605 -> ARMAÇÃO EM AÇO CA-50 - FORNECIMENTO, PREPARO E COLOCAÇÃO. | F42: ='2 - ORÇAMENTO'!E605 -> KG | G42: ='2 - ORÇAMENTO'!F605 -> 719.55 | H42: ='2 - ORÇAMENTO'!G605 -> 11.88 | I42: ='2 - ORÇAMENTO'!H605 -> 0.2256 | J42: ='2 - ORÇAMENTO'!I605 -> 14.56 | K42: ='2 - ORÇAMENTO'!J605 -> 10476.64
A43: 13 | B43: ='2 - ORÇAMENTO'!A612 -> 6.2.6.1.4.4 | C43: ='2 - ORÇAMENTO'!B612 -> SICRO3 | D43: ='2 - ORÇAMENTO'!C612 -> 407819 | E43: ='2 - ORÇAMENTO'!D612 -> ARMAÇÃO EM AÇO CA-50 - FORNECIMENTO, PREPARO E COLOCAÇÃO. | F43: ='2 - ORÇAMENTO'!E612 -> KG | G43: ='2 - ORÇAMENTO'!F612 -> 12.3 | H43: ='2 - ORÇAMENTO'!G612 -> 11.88 | I43: ='2 - ORÇAMENTO'!H612 -> 0.2256 | J43: ='2 - ORÇAMENTO'!I612 -> 14.56 | K43: ='2 - ORÇAMENTO'!J612 -> 179.08
A44: 13 | B44: ='2 - ORÇAMENTO'!A682 -> 6.3.6.1.3.4 | C44: ='2 - ORÇAMENTO'!B682 -> SICRO3 | D44: ='2 - ORÇAMENTO'!C682 -> 407819 | E44: ='2 - ORÇAMENTO'!D682 -> ARMAÇÃO EM AÇO CA-50 - FORNECIMENTO, PREPARO E COLOCAÇÃO. | F44: ='2 - ORÇAMENTO'!E682 -> KG | G44: ='2 - ORÇAMENTO'!F682 -> 479.7 | H44: ='2 - ORÇAMENTO'!G682 -> 11.88 | I44: ='2 - ORÇAMENTO'!H682 -> 0.2256 | J44: ='2 - ORÇAMENTO'!I682 -> 14.56 | K44: ='2 - ORÇAMENTO'!J682 -> 6984.43
A45: 13 | B45: ='2 - ORÇAMENTO'!A689 -> 6.3.6.1.4.4 | C45: ='2 - ORÇAMENTO'!B689 -> SICRO3 | D45: ='2 - ORÇAMENTO'!C689 -> 407819 | E45: ='2 - ORÇAMENTO'!D689 -> ARMAÇÃO EM AÇO CA-50 - FORNECIMENTO, PREPARO E COLOCAÇÃO. | F45: ='2 - ORÇAMENTO'!E689 -> KG | G45: ='2 - ORÇAMENTO'!F689 -> 8.2 | H45: ='2 - ORÇAMENTO'!G689 -> 11.88 | I45: ='2 - ORÇAMENTO'!H689 -> 0.2256 | J45: ='2 - ORÇAMENTO'!I689 -> 14.56 | K45: ='2 - ORÇAMENTO'!J689 -> 119.39
A46: 13 | B46: ='2 - ORÇAMENTO'!A759 -> 6.4.6.1.3.4 | C46: ='2 - ORÇAMENTO'!B759 -> SICRO3 | D46: ='2 - ORÇAMENTO'!C759 -> 407819 | E46: ='2 - ORÇAMENTO'!D759 -> ARMAÇÃO EM AÇO CA-50 - FORNECIMENTO, PREPARO E COLOCAÇÃO. | F46: ='2 - ORÇAMENTO'!E759 -> KG | G46: ='2 - ORÇAMENTO'!F759 -> 479.7 | H46: ='2 - ORÇAMENTO'!G759 -> 11.88 | I46: ='2 - ORÇAMENTO'!H759 -> 0.2256 | J46: ='2 - ORÇAMENTO'!I759 -> 14.56 | K46: ='2 - ORÇAMENTO'!J759 -> 6984.43
A47: 13 | B47: ='2 - ORÇAMENTO'!A766 -> 6.4.6.1.4.4 | C47: ='2 - ORÇAMENTO'!B766 -> SICRO3 | D47: ='2 - ORÇAMENTO'!C766 -> 407819 | E47: ='2 - ORÇAMENTO'!D766 -> ARMAÇÃO EM AÇO CA-50 - FORNECIMENTO, PREPARO E COLOCAÇÃO. | F47: ='2 - ORÇAMENTO'!E766 -> KG | G47: ='2 - ORÇAMENTO'!F766 -> 8.2 | H47: ='2 - ORÇAMENTO'!G766 -> 11.88 | I47: ='2 - ORÇAMENTO'!H766 -> 0.2256 | J47: ='2 - ORÇAMENTO'!I766 -> 14.56 | K47: ='2 - ORÇAMENTO'!J766 -> 119.39
A48: 13 | B48: ='2 - ORÇAMENTO'!A890 -> 9.1.2.11 | C48: ='2 - ORÇAMENTO'!B890 -> SICRO3 | D48: ='2 - ORÇAMENTO'!C890 -> 407819 | E48: ='2 - ORÇAMENTO'!D890 -> ARMAÇÃO EM AÇO CA-50 - FORNECIMENTO, PREPARO E COLOCAÇÃO. | F48: ='2 - ORÇAMENTO'!E890 -> KG | G48: ='2 - ORÇAMENTO'!F890 -> 58811 | H48: ='2 - ORÇAMENTO'!G890 -> 11.88 | I48: ='2 - ORÇAMENTO'!H890 -> 0.2256 | J48: ='2 - ORÇAMENTO'!I890 -> 14.56 | K48: ='2 - ORÇAMENTO'!J890 -> 856288.16
A49: 13 | B49: ='2 - ORÇAMENTO'!A911 -> 9.2.2.11 | C49: ='2 - ORÇAMENTO'!B911 -> SICRO3 | D49: ='2 - ORÇAMENTO'!C911 -> 407819 | E49: ='2 - ORÇAMENTO'!D911 -> ARMAÇÃO EM AÇO CA-50 - FORNECIMENTO, PREPARO E COLOCAÇÃO. | F49: ='2 - ORÇAMENTO'!E911 -> KG | G49: ='2 - ORÇAMENTO'!F911 -> 59373.5 | H49: ='2 - ORÇAMENTO'!G911 -> 11.88 | I49: ='2 - ORÇAMENTO'!H911 -> 0.2256 | J49: ='2 - ORÇAMENTO'!I911 -> 14.56 | K49: ='2 - ORÇAMENTO'!J911 -> 864478.16
A50: 14 | B50: ='2 - ORÇAMENTO'!A436 -> 5.5.2.5.4.6 | C50: ='2 - ORÇAMENTO'!B436 -> ORSE | D50: ='2 - ORÇAMENTO'!C436 -> 12506 | E50: ='2 - ORÇAMENTO'!D436 -> Arruela de lisa 3/8" | F50: ='2 - ORÇAMENTO'!E436 -> un | G50: ='2 - ORÇAMENTO'!F436 -> 10 | H50: ='2 - ORÇAMENTO'!G436 -> 0.5 | I50: ='2 - ORÇAMENTO'!H436 -> 0.2256 | J50: ='2 - ORÇAMENTO'!I436 -> 0.61 | K50: ='2 - ORÇAMENTO'!J436 -> 6.1
A51: 15 | B51: ='2 - ORÇAMENTO'!A437 -> 5.5.2.5.4.7 | C51: ='2 - ORÇAMENTO'!B437 -> ORSE | D51: ='2 - ORÇAMENTO'!C437 -> 428 | E51: ='2 - ORÇAMENTO'!D437 -> Arruela de pressão 3/8" - Rev 02 | F51: ='2 - ORÇAMENTO'!E437 -> un | G51: ='2 - ORÇAMENTO'!F437 -> 10 | H51: ='2 - ORÇAMENTO'!G437 -> 0.66 | I51: ='2 - ORÇAMENTO'!H437 -> 0.2256 | J51: ='2 - ORÇAMENTO'!I437 -> 0.8 | K51: ='2 - ORÇAMENTO'!J437 -> 8
A52: 16 | B52: ='2 - ORÇAMENTO'!A351 -> 5.5.2.2.3.11 | C52: ='2 - ORÇAMENTO'!B351 -> AGETOP CIVIL | D52: ='2 - ORÇAMENTO'!C351 -> 70251 | E52: ='2 - ORÇAMENTO'!D351 -> ARRUELA LISA D=1/4" | F52: ='2 - ORÇAMENTO'!E351 -> Un | G52: ='2 - ORÇAMENTO'!F351 -> 90 | H52: ='2 - ORÇAMENTO'!G351 -> 0.1 | I52: ='2 - ORÇAMENTO'!H351 -> 0.2256 | J52: ='2 - ORÇAMENTO'!I351 -> 0.12 | K52: ='2 - ORÇAMENTO'!J351 -> 10.8
A53: 16 | B53: ='2 - ORÇAMENTO'!A416 -> 5.5.2.4.7.6 | C53: ='2 - ORÇAMENTO'!B416 -> AGETOP CIVIL | D53: ='2 - ORÇAMENTO'!C416 -> 70251 | E53: ='2 - ORÇAMENTO'!D416 -> ARRUELA LISA D=1/4" | F53: ='2 - ORÇAMENTO'!E416 -> Un | G53: ='2 - ORÇAMENTO'!F416 -> 88 | H53: ='2 - ORÇAMENTO'!G416 -> 0.1 | I53: ='2 - ORÇAMENTO'!H416 -> 0.2256 | J53: ='2 - ORÇAMENTO'!I416 -> 0.12 | K53: ='2 - ORÇAMENTO'!J416 -> 10.56
A54: 17 | B54: ='2 - ORÇAMENTO'!A440 -> 5.5.2.5.4.10 | C54: ='2 - ORÇAMENTO'!B440 -> ORSE | D54: ='2 - ORÇAMENTO'!C440 -> 5005 | E54: ='2 - ORÇAMENTO'!D440 -> Demolição de madeiramento de telhado de fibro-cimento 4mm e reassentamento para telha de fibro-cimento 8mm | F54: ='2 - ORÇAMENTO'!E440 -> m² | G54: ='2 - ORÇAMENTO'!F440 -> 30 | H54: ='2 - ORÇAMENTO'!G440 -> 0.05 | I54: ='2 - ORÇAMENTO'!H440 -> 0.14015 | J54: ='2 - ORÇAMENTO'!I440 -> 0.05 | K54: ='2 - ORÇAMENTO'!J440 -> 1.5
A55: 18 | B55: ='2 - ORÇAMENTO'!A282 -> 5.5.2.1.2.6 | C55: ='2 - ORÇAMENTO'!B282 -> AGETOP CIVIL | D55: ='2 - ORÇAMENTO'!C282 -> 70250 | E55: ='2 - ORÇAMENTO'!D282 -> ARRUELA QUADRADA EM ACO GALVANIZADO 3X38X38MM FURO 18MM | F55: ='2 - ORÇAMENTO'!E282 -> Un | G55: ='2 - ORÇAMENTO'!F282 -> 8 | H55: ='2 - ORÇAMENTO'!G282 -> 1.21 | I55: ='2 - ORÇAMENTO'!H282 -> 0.2256 | J55: ='2 - ORÇAMENTO'!I282 -> 1.48 | K55: ='2 - ORÇAMENTO'!J282 -> 11.84
A56: 19 | B56: ='2 - ORÇAMENTO'!A365 -> 5.5.2.3.1.4 | C56: ='2 - ORÇAMENTO'!B365 -> ORSE | D56: ='2 - ORÇAMENTO'!C365 -> 3243 | E56: ='2 - ORÇAMENTO'!D365 -> Assentamento de poste circular de concreto | F56: ='2 - ORÇAMENTO'!E365 -> un | G56: ='2 - ORÇAMENTO'!F365 -> 19 | H56: ='2 - ORÇAMENTO'!G365 -> 627.46 | I56: ='2 - ORÇAMENTO'!H365 -> 0.2256 | J56: ='2 - ORÇAMENTO'!I365 -> 769.01 | K56: ='2 - ORÇAMENTO'!J365 -> 14611.19
A57: 20 | B57: ='2 - ORÇAMENTO'!A278 -> 5.5.2.1.2.2 | C57: ='2 - ORÇAMENTO'!B278 -> SINAPI | D57: ='2 - ORÇAMENTO'!C278 -> 100612 | E57: ='2 - ORÇAMENTO'!D278 -> ASSENTAMENTO DE POSTE DE CONCRETO COM COMPRIMENTO NOMINAL DE 11 M, CARGA NOMINAL DE 600 DAN, ENGASTAMENTO BASE CONCRETADA COM 1 M DE CONCRETO E 0,7 M DE SOLO (NÃO INCLUI FORNECIMENTO). AF_11/2019 | F57: ='2 - ORÇAMENTO'!E278 -> UN | G57: ='2 - ORÇAMENTO'!F278 -> 1 | H57: ='2 - ORÇAMENTO'!G278 -> 1133 | I57: ='2 - ORÇAMENTO'!H278 -> 0.2256 | J57: ='2 - ORÇAMENTO'!I278 -> 1388.6 | K57: ='2 - ORÇAMENTO'!J278 -> 1388.6
A58: 21 | B58: ='2 - ORÇAMENTO'!A177 -> 4.3.1 | C58: ='2 - ORÇAMENTO'!B177 -> ORSE | D58: ='2 - ORÇAMENTO'!C177 -> 2531 | E58: ='2 - ORÇAMENTO'!D177 -> Aterro de áreas sem aquisição de material, com espalhamento mecânico, sem compactação e sem transporte | F58: ='2 - ORÇAMENTO'!E177 -> m³ | G58: ='2 - ORÇAMENTO'!F177 -> 4657.92 | H58: ='2 - ORÇAMENTO'!G177 -> 8.4 | I58: ='2 - ORÇAMENTO'!H177 -> 0.2256 | J58: ='2 - ORÇAMENTO'!I177 -> 10.29 | K58: ='2 - ORÇAMENTO'!J177 -> 47929.99
A59: 22 | B59: ='2 - ORÇAMENTO'!A709 -> 6.4.2.3.1 | C59: ='2 - ORÇAMENTO'!B709 -> PRÓPRIO | D59: ='2 - ORÇAMENTO'!C709 -> COMP-0044 | E59: ='2 - ORÇAMENTO'!D709 -> ATERRO DE SOLO-CAL COM 4% DE CAL E MISTURA NA PISTA COM MATERIAL DE ESCAVAÇÃO | F59: ='2 - ORÇAMENTO'!E709 -> M³ | G59: ='2 - ORÇAMENTO'!F709 -> 83005.12 | H59: ='2 - ORÇAMENTO'!G709 -> 56.55 | I59: ='2 - ORÇAMENTO'!H709 -> 0.2256 | J59: ='2 - ORÇAMENTO'!I709 -> 69.3 | K59: ='2 - ORÇAMENTO'!J709 -> 5752254.81
A60: 23 | B60: ='2 - ORÇAMENTO'!A383 -> 5.5.2.4.1.2 | C60: ='2 - ORÇAMENTO'!B383 -> SBC | D60: ='2 - ORÇAMENTO'!C383 -> 60871 | E60: ='2 - ORÇAMENTO'!D383 -> BLOCO AUTÔNOMO DE ILUMINAÇÃO DE EMERGÊNCIA, FIXAÇÃO EM PAREDE, GRAU DE PROTEÇÃO IP-41, COM LÂMPADA LED 9 A 15W, 220V, AUTONOMIA 2 HORAS | F60: ='2 - ORÇAMENTO'!E383 -> UN | G60: ='2 - ORÇAMENTO'!F383 -> 1 | H60: ='2 - ORÇAMENTO'!G383 -> 316.48 | I60: ='2 - ORÇAMENTO'!H383 -> 0.2256 | J60: ='2 - ORÇAMENTO'!I383 -> 387.87 | K60: ='2 - ORÇAMENTO'!J383 -> 387.87
A61: 24 | B61: ='2 - ORÇAMENTO'!A787 -> 7.2.15 | C61: ='2 - ORÇAMENTO'!B787 -> SICRO3 | D61: ='2 - ORÇAMENTO'!C787 -> 705312 | E61: ='2 - ORÇAMENTO'!D787 -> BOCA DE BDCC 1,50 X 1,50 M - ESCONSIDADE 0° - AREIA EXTRAÍDA E BRITA PRODUZIDA | F61: ='2 - ORÇAMENTO'!E787 -> UN | G61: ='2 - ORÇAMENTO'!F787 -> 2 | H61: ='2 - ORÇAMENTO'!G787 -> 12363.51 | I61: ='2 - ORÇAMENTO'!H787 -> 0.2256 | J61: ='2 - ORÇAMENTO'!I787 -> 15152.71 | K61: ='2 - ORÇAMENTO'!J787 -> 30305.42
A62: 25 | B62: ='2 - ORÇAMENTO'!A789 -> 7.2.17 | C62: ='2 - ORÇAMENTO'!B789 -> SICRO3 | D62: ='2 - ORÇAMENTO'!C789 -> 705321 | E62: ='2 - ORÇAMENTO'!D789 -> BOCA DE BDCC2,00 X 2,00 M - ESCONSIDADE 0° - AREIA EXTRAÍDA E BRITA PRODUZIDA | F62: ='2 - ORÇAMENTO'!E789 -> UN | G62: ='2 - ORÇAMENTO'!F789 -> 2 | H62: ='2 - ORÇAMENTO'!G789 -> 18930.62 | I62: ='2 - ORÇAMENTO'!H789 -> 0.2256 | J62: ='2 - ORÇAMENTO'!I789 -> 23201.36 | K62: ='2 - ORÇAMENTO'!J789 -> 46402.72
A63: 26 | B63: ='2 - ORÇAMENTO'!A802 -> 7.3.9 | C63: ='2 - ORÇAMENTO'!B802 -> SICRO3 | D63: ='2 - ORÇAMENTO'!C802 -> 705224 | E63: ='2 - ORÇAMENTO'!D802 -> BOCA DE BSCC 1,50 X 1,50 M - ESCONSIDADE 0° - AREIA EXTRAÍDA E BRITA PRODUZIDA | F63: ='2 - ORÇAMENTO'!E802 -> M | G63: ='2 - ORÇAMENTO'!F802 -> 4 | H63: ='2 - ORÇAMENTO'!G802 -> 10546.01 | I63: ='2 - ORÇAMENTO'!H802 -> 0.2256 | J63: ='2 - ORÇAMENTO'!I802 -> 12925.18 | K63: ='2 - ORÇAMENTO'!J802 -> 51700.72
A64: 27 | B64: ='2 - ORÇAMENTO'!A791 -> 7.2.19 | C64: ='2 - ORÇAMENTO'!B791 -> SICRO3 | D64: ='2 - ORÇAMENTO'!C791 -> 705402 | E64: ='2 - ORÇAMENTO'!D791 -> BOCA DE BTCC 1,50 X 1,50 M - ESCONSIDADE 0° - AREIA EXTRAÍDA E BRITA PRODUZIDA | F64: ='2 - ORÇAMENTO'!E791 -> UN | G64: ='2 - ORÇAMENTO'!F791 -> 4 | H64: ='2 - ORÇAMENTO'!G791 -> 15343.99 | I64: ='2 - ORÇAMENTO'!H791 -> 0.2256 | J64: ='2 - ORÇAMENTO'!I791 -> 18805.59 | K64: ='2 - ORÇAMENTO'!J791 -> 75222.36
A65: 28 | B65: ='2 - ORÇAMENTO'!A367 -> 5.5.2.3.1.6 | C65: ='2 - ORÇAMENTO'!B367 -> SINAPI | D65: ='2 - ORÇAMENTO'!C367 -> 101636 | E65: ='2 - ORÇAMENTO'!D367 -> BRAÇO PARA ILUMINAÇÃO PÚBLICA, EM TUBO DE AÇO GALVANIZADO, COMPRIMENTO DE 1,50 M, PARA FIXAÇÃO EM POSTE DE CONCRETO - FORNECIMENTO E INSTALAÇÃO. AF_08/2020 | F65: ='2 - ORÇAMENTO'!E367 -> UN | G65: ='2 - ORÇAMENTO'!F367 -> 26 | H65: ='2 - ORÇAMENTO'!G367 -> 158.63 | I65: ='2 - ORÇAMENTO'!H367 -> 0.2256 | J65: ='2 - ORÇAMENTO'!I367 -> 194.41 | K65: ='2 - ORÇAMENTO'!J367 -> 5054.66
A66: 29 | B66: ='2 - ORÇAMENTO'!A172 -> 4.2.3 | C66: ='2 - ORÇAMENTO'!B172 -> SICRO3 | D66: ='2 - ORÇAMENTO'!C172 -> 4816012 | E66: ='2 - ORÇAMENTO'!D172 -> Brita produzida em central de britagem de 80 m³/h | F66: ='2 - ORÇAMENTO'!E172 -> m³ | G66: ='2 - ORÇAMENTO'!F172 -> 2289.372 | H66: ='2 - ORÇAMENTO'!G172 -> 53.94 | I66: ='2 - ORÇAMENTO'!H172 -> 0.2256 | J66: ='2 - ORÇAMENTO'!I172 -> 66.1 | K66: ='2 - ORÇAMENTO'!J172 -> 151327.48
A67: =IF(E66=E67,A66,A66+1) -> 29 | B67: ='2 - ORÇAMENTO'!A496 -> 6.1.3.4 | C67: ='2 - ORÇAMENTO'!B496 -> SICRO3 | D67: ='2 - ORÇAMENTO'!C496 -> 4816012 | E67: ='2 - ORÇAMENTO'!D496 -> Brita produzida em central de britagem de 80 m³/h | F67: ='2 - ORÇAMENTO'!E496 -> m³ | G67: ='2 - ORÇAMENTO'!F496 -> 1153 | H67: ='2 - ORÇAMENTO'!G496 -> 53.94 | I67: ='2 - ORÇAMENTO'!H496 -> 0.2256 | J67: ='2 - ORÇAMENTO'!I496 -> 66.1 | K67: ='2 - ORÇAMENTO'!J496 -> 76213.3
A68: 29 | B68: ='2 - ORÇAMENTO'!A529 -> 6.1.6.2.2.6 | C68: ='2 - ORÇAMENTO'!B529 -> SICRO3 | D68: ='2 - ORÇAMENTO'!C529 -> 4816012 | E68: ='2 - ORÇAMENTO'!D529 -> Brita produzida em central de britagem de 80 m³/h | F68: ='2 - ORÇAMENTO'!E529 -> m³ | G68: ='2 - ORÇAMENTO'!F529 -> 162.73 | H68: ='2 - ORÇAMENTO'!G529 -> 53.94 | I68: ='2 - ORÇAMENTO'!H529 -> 0.2256 | J68: ='2 - ORÇAMENTO'!I529 -> 66.1 | K68: ='2 - ORÇAMENTO'!J529 -> 10756.45
A69: 29 | B69: ='2 - ORÇAMENTO'!A562 -> 6.2.3.4 | C69: ='2 - ORÇAMENTO'!B562 -> SICRO3 | D69: ='2 - ORÇAMENTO'!C562 -> 4816012 | E69: ='2 - ORÇAMENTO'!D562 -> Brita produzida em central de britagem de 80 m³/h | F69: ='2 - ORÇAMENTO'!E562 -> m³ | G69: ='2 - ORÇAMENTO'!F562 -> 2094 | H69: ='2 - ORÇAMENTO'!G562 -> 53.94 | I69: ='2 - ORÇAMENTO'!H562 -> 0.2256 | J69: ='2 - ORÇAMENTO'!I562 -> 66.1 | K69: ='2 - ORÇAMENTO'!J562 -> 138413.4
A70: 29 | B70: ='2 - ORÇAMENTO'!A596 -> 6.2.6.1.2.6 | C70: ='2 - ORÇAMENTO'!B596 -> SICRO3 | D70: ='2 - ORÇAMENTO'!C596 -> 4816012 | E70: ='2 - ORÇAMENTO'!D596 -> Brita produzida em central de britagem de 80 m³/h | F70: ='2 - ORÇAMENTO'!E596 -> m³ | G70: ='2 - ORÇAMENTO'!F596 -> 349.81 | H70: ='2 - ORÇAMENTO'!G596 -> 53.94 | I70: ='2 - ORÇAMENTO'!H596 -> 0.2256 | J70: ='2 - ORÇAMENTO'!I596 -> 66.1 | K70: ='2 - ORÇAMENTO'!J596 -> 23122.44
A71: 29 | B71: ='2 - ORÇAMENTO'!A639 -> 6.3.3.4 | C71: ='2 - ORÇAMENTO'!B639 -> SICRO3 | D71: ='2 - ORÇAMENTO'!C639 -> 4816012 | E71: ='2 - ORÇAMENTO'!D639 -> Brita produzida em central de britagem de 80 m³/h | F71: ='2 - ORÇAMENTO'!E639 -> m³ | G71: ='2 - ORÇAMENTO'!F639 -> 5477 | H71: ='2 - ORÇAMENTO'!G639 -> 53.94 | I71: ='2 - ORÇAMENTO'!H639 -> 0.2256 | J71: ='2 - ORÇAMENTO'!I639 -> 66.1 | K71: ='2 - ORÇAMENTO'!J639 -> 362029.7
A72: 29 | B72: ='2 - ORÇAMENTO'!A673 -> 6.3.6.1.2.6 | C72: ='2 - ORÇAMENTO'!B673 -> SICRO3 | D72: ='2 - ORÇAMENTO'!C673 -> 4816012 | E72: ='2 - ORÇAMENTO'!D673 -> Brita produzida em central de britagem de 80 m³/h | F72: ='2 - ORÇAMENTO'!E673 -> m³ | G72: ='2 - ORÇAMENTO'!F673 -> 448.19 | H72: ='2 - ORÇAMENTO'!G673 -> 53.94 | I72: ='2 - ORÇAMENTO'!H673 -> 0.2256 | J72: ='2 - ORÇAMENTO'!I673 -> 66.1 | K72: ='2 - ORÇAMENTO'!J673 -> 29625.35
A73: 29 | B73: ='2 - ORÇAMENTO'!A716 -> 6.4.3.4 | C73: ='2 - ORÇAMENTO'!B716 -> SICRO3 | D73: ='2 - ORÇAMENTO'!C716 -> 4816012 | E73: ='2 - ORÇAMENTO'!D716 -> Brita produzida em central de britagem de 80 m³/h | F73: ='2 - ORÇAMENTO'!E716 -> m³ | G73: ='2 - ORÇAMENTO'!F716 -> 4455 | H73: ='2 - ORÇAMENTO'!G716 -> 53.94 | I73: ='2 - ORÇAMENTO'!H716 -> 0.2256 | J73: ='2 - ORÇAMENTO'!I716 -> 66.1 | K73: ='2 - ORÇAMENTO'!J716 -> 294475.5
A74: 29 | B74: ='2 - ORÇAMENTO'!A750 -> 6.4.6.1.2.6 | C74: ='2 - ORÇAMENTO'!B750 -> SICRO3 | D74: ='2 - ORÇAMENTO'!C750 -> 4816012 | E74: ='2 - ORÇAMENTO'!D750 -> Brita produzida em central de britagem de 80 m³/h | F74: ='2 - ORÇAMENTO'!E750 -> m³ | G74: ='2 - ORÇAMENTO'!F750 -> 203.32 | H74: ='2 - ORÇAMENTO'!G750 -> 53.94 | I74: ='2 - ORÇAMENTO'!H750 -> 0.2256 | J74: ='2 - ORÇAMENTO'!I750 -> 66.1 | K74: ='2 - ORÇAMENTO'!J750 -> 13439.45
A75: 30 | B75: ='2 - ORÇAMENTO'!A385 -> 5.5.2.4.2.1 | C75: ='2 - ORÇAMENTO'!B385 -> SINAPI | D75: ='2 - ORÇAMENTO'!C385 -> 91924 | E75: ='2 - ORÇAMENTO'!D385 -> CABO DE COBRE FLEXÍVEL ISOLADO, 1,5 MM², ANTI-CHAMA 450/750 V, PARA CIRCUITOS TERMINAIS - FORNECIMENTO E INSTALAÇÃO. AF_03/2023 | F75: ='2 - ORÇAMENTO'!E385 -> M | G75: ='2 - ORÇAMENTO'!F385 -> 85 | H75: ='2 - ORÇAMENTO'!G385 -> 3.01 | I75: ='2 - ORÇAMENTO'!H385 -> 0.2256 | J75: ='2 - ORÇAMENTO'!I385 -> 3.68 | K75: ='2 - ORÇAMENTO'!J385 -> 312.8
A76: 31 | B76: ='2 - ORÇAMENTO'!A328 -> 5.5.2.2.1.4 | C76: ='2 - ORÇAMENTO'!B328 -> SINAPI | D76: ='2 - ORÇAMENTO'!C328 -> 91927 | E76: ='2 - ORÇAMENTO'!D328 -> CABO DE COBRE FLEXÍVEL ISOLADO, 2,5 MM², ANTI-CHAMA 0,6/1,0 KV, PARA CIRCUITOS TERMINAIS - FORNECIMENTO E INSTALAÇÃO. AF_03/2023 | F76: ='2 - ORÇAMENTO'!E328 -> M | G76: ='2 - ORÇAMENTO'!F328 -> 138 | H76: ='2 - ORÇAMENTO'!G328 -> 4.84 | I76: ='2 - ORÇAMENTO'!H328 -> 0.2256 | J76: ='2 - ORÇAMENTO'!I328 -> 5.93 | K76: ='2 - ORÇAMENTO'!J328 -> 818.34
A77: 32 | B77: ='2 - ORÇAMENTO'!A386 -> 5.5.2.4.2.2 | C77: ='2 - ORÇAMENTO'!B386 -> SINAPI | D77: ='2 - ORÇAMENTO'!C386 -> 91926 | E77: ='2 - ORÇAMENTO'!D386 -> CABO DE COBRE FLEXÍVEL ISOLADO, 2,5 MM², ANTI-CHAMA 450/750 V, PARA CIRCUITOS TERMINAIS - FORNECIMENTO E INSTALAÇÃO. AF_03/2023 | F77: ='2 - ORÇAMENTO'!E386 -> M | G77: ='2 - ORÇAMENTO'!F386 -> 185 | H77: ='2 - ORÇAMENTO'!G386 -> 4.34 | I77: ='2 - ORÇAMENTO'!H386 -> 0.2256 | J77: ='2 - ORÇAMENTO'!I386 -> 5.31 | K77: ='2 - ORÇAMENTO'!J386 -> 982.35
A78: 33 | B78: ='2 - ORÇAMENTO'!A290 -> 5.5.2.1.3.2 | C78: ='2 - ORÇAMENTO'!B290 -> SINAPI | D78: ='2 - ORÇAMENTO'!C290 -> 92984 | E78: ='2 - ORÇAMENTO'!D290 -> CABO DE COBRE FLEXÍVEL ISOLADO, 25 MM², ANTI-CHAMA 0,6/1,0 KV, PARA REDE ENTERRADA DE DISTRIBUIÇÃO DE ENERGIA ELÉTRICA - FORNECIMENTO E INSTALAÇÃO. AF_12/2021 | F78: ='2 - ORÇAMENTO'!E290 -> M | G78: ='2 - ORÇAMENTO'!F290 -> 89 | H78: ='2 - ORÇAMENTO'!G290 -> 26.86 | I78: ='2 - ORÇAMENTO'!H290 -> 0.2256 | J78: ='2 - ORÇAMENTO'!I290 -> 32.91 | K78: ='2 - ORÇAMENTO'!J290 -> 2928.99
A79: 33 | B79: ='2 - ORÇAMENTO'!A326 -> 5.5.2.2.1.2 | C79: ='2 - ORÇAMENTO'!B326 -> SINAPI | D79: ='2 - ORÇAMENTO'!C326 -> 92984 | E79: ='2 - ORÇAMENTO'!D326 -> CABO DE COBRE FLEXÍVEL ISOLADO, 25 MM², ANTI-CHAMA 0,6/1,0 KV, PARA REDE ENTERRADA DE DISTRIBUIÇÃO DE ENERGIA ELÉTRICA - FORNECIMENTO E INSTALAÇÃO. AF_12/2021 | F79: ='2 - ORÇAMENTO'!E326 -> M | G79: ='2 - ORÇAMENTO'!F326 -> 660 | H79: ='2 - ORÇAMENTO'!G326 -> 26.86 | I79: ='2 - ORÇAMENTO'!H326 -> 0.2256 | J79: ='2 - ORÇAMENTO'!I326 -> 32.91 | K79: ='2 - ORÇAMENTO'!J326 -> 21720.6
A80: 34 | B80: ='2 - ORÇAMENTO'!A327 -> 5.5.2.2.1.3 | C80: ='2 - ORÇAMENTO'!B327 -> SINAPI | D80: ='2 - ORÇAMENTO'!C327 -> 91929 | E80: ='2 - ORÇAMENTO'!D327 -> CABO DE COBRE FLEXÍVEL ISOLADO, 4 MM², ANTI-CHAMA 0,6/1,0 KV, PARA CIRCUITOS TERMINAIS - FORNECIMENTO E INSTALAÇÃO. AF_03/2023 | F80: ='2 - ORÇAMENTO'!E327 -> M | G80: ='2 - ORÇAMENTO'!F327 -> 28 | H80: ='2 - ORÇAMENTO'!G327 -> 7.11 | I80: ='2 - ORÇAMENTO'!H327 -> 0.2256 | J80: ='2 - ORÇAMENTO'!I327 -> 8.71 | K80: ='2 - ORÇAMENTO'!J327 -> 243.88
A81: 35 | B81: ='2 - ORÇAMENTO'!A325 -> 5.5.2.2.1.1 | C81: ='2 - ORÇAMENTO'!B325 -> SINAPI | D81: ='2 - ORÇAMENTO'!C325 -> 91931 | E81: ='2 - ORÇAMENTO'!D325 -> CABO DE COBRE FLEXÍVEL ISOLADO, 6 MM², ANTI-CHAMA 0,6/1,0 KV, PARA CIRCUITOS TERMINAIS - FORNECIMENTO E INSTALAÇÃO. AF_03/2023 | F81: ='2 - ORÇAMENTO'!E325 -> M | G81: ='2 - ORÇAMENTO'!F325 -> 110 | H81: ='2 - ORÇAMENTO'!G325 -> 10 | I81: ='2 - ORÇAMENTO'!H325 -> 0.2256 | J81: ='2 - ORÇAMENTO'!I325 -> 12.25 | K81: ='2 - ORÇAMENTO'!J325 -> 1347.5
A82: 36 | B82: ='2 - ORÇAMENTO'!A289 -> 5.5.2.1.3.1 | C82: ='2 - ORÇAMENTO'!B289 -> AGETOP CIVIL | D82: ='2 - ORÇAMENTO'!C289 -> 70543 | E82: ='2 - ORÇAMENTO'!D289 -> CABO DE COBRE NU 35 MM2 | F82: ='2 - ORÇAMENTO'!E289 -> M | G82: ='2 - ORÇAMENTO'!F289 -> 12 | H82: ='2 - ORÇAMENTO'!G289 -> 38.74 | I82: ='2 - ORÇAMENTO'!H289 -> 0.2256 | J82: ='2 - ORÇAMENTO'!I289 -> 47.47 | K82: ='2 - ORÇAMENTO'!J289 -> 569.64
A83: 36 | B83: ='2 - ORÇAMENTO'!A422 -> 5.5.2.5.1.2 | C83: ='2 - ORÇAMENTO'!B422 -> AGETOP CIVIL | D83: ='2 - ORÇAMENTO'!C422 -> 70543 | E83: ='2 - ORÇAMENTO'!D422 -> CABO DE COBRE NU 35 MM2 | F83: ='2 - ORÇAMENTO'!E422 -> M | G83: ='2 - ORÇAMENTO'!F422 -> 35 | H83: ='2 - ORÇAMENTO'!G422 -> 38.74 | I83: ='2 - ORÇAMENTO'!H422 -> 0.2256 | J83: ='2 - ORÇAMENTO'!I422 -> 47.47 | K83: ='2 - ORÇAMENTO'!J422 -> 1661.45
A84: 37 | B84: ='2 - ORÇAMENTO'!A311 -> 5.5.2.1.6.1 | C84: ='2 - ORÇAMENTO'!B311 -> AGETOP CIVIL | D84: ='2 - ORÇAMENTO'!C311 -> 70544 | E84: ='2 - ORÇAMENTO'!D311 -> CABO DE COBRE NU 50 MM2 | F84: ='2 - ORÇAMENTO'!E311 -> M | G84: ='2 - ORÇAMENTO'!F311 -> 40 | H84: ='2 - ORÇAMENTO'!G311 -> 45.24 | I84: ='2 - ORÇAMENTO'!H311 -> 0.2256 | J84: ='2 - ORÇAMENTO'!I311 -> 55.44 | K84: ='2 - ORÇAMENTO'!J311 -> 2217.6
A85: 37 | B85: ='2 - ORÇAMENTO'!A421 -> 5.5.2.5.1.1 | C85: ='2 - ORÇAMENTO'!B421 -> AGETOP CIVIL | D85: ='2 - ORÇAMENTO'!C421 -> 70544 | E85: ='2 - ORÇAMENTO'!D421 -> CABO DE COBRE NU 50 MM2 | F85: ='2 - ORÇAMENTO'!E421 -> M | G85: ='2 - ORÇAMENTO'!F421 -> 180 | H85: ='2 - ORÇAMENTO'!G421 -> 45.24 | I85: ='2 - ORÇAMENTO'!H421 -> 0.2256 | J85: ='2 - ORÇAMENTO'!I421 -> 55.44 | K85: ='2 - ORÇAMENTO'!J421 -> 9979.2
A86: 38 | B86: ='2 - ORÇAMENTO'!A371 -> 5.5.2.3.2.2 | C86: ='2 - ORÇAMENTO'!B371 -> SINAPI | D86: ='2 - ORÇAMENTO'!C371 -> 91927 | E86: ='2 - ORÇAMENTO'!D371 -> CABO DE COBRE FLEXÍVEL ISOLADO, 2,5 MM², ANTI-CHAMA 0,6/1,0 KV, PARA CIRCUITOS TERMINAIS - FORNECIMENTO E INSTALAÇÃO. AF_03/2023 | F86: ='2 - ORÇAMENTO'!E371 -> M | G86: ='2 - ORÇAMENTO'!F371 -> 138 | H86: ='2 - ORÇAMENTO'!G371 -> 4.84 | I86: ='2 - ORÇAMENTO'!H371 -> 0.2256 | J86: ='2 - ORÇAMENTO'!I371 -> 5.93 | K86: ='2 - ORÇAMENTO'!J371 -> 818.34
A87: 39 | B87: ='2 - ORÇAMENTO'!A370 -> 5.5.2.3.2.1 | C87: ='2 - ORÇAMENTO'!B370 -> SINAPI | D87: ='2 - ORÇAMENTO'!C370 -> 91929 | E87: ='2 - ORÇAMENTO'!D370 -> CABO DE COBRE FLEXÍVEL ISOLADO, 4 MM², ANTI-CHAMA 0,6/1,0 KV, PARA CIRCUITOS TERMINAIS - FORNECIMENTO E INSTALAÇÃO. AF_03/2023 | F87: ='2 - ORÇAMENTO'!E370 -> M | G87: ='2 - ORÇAMENTO'!F370 -> 1320 | H87: ='2 - ORÇAMENTO'!G370 -> 7.11 | I87: ='2 - ORÇAMENTO'!H370 -> 0.2256 | J87: ='2 - ORÇAMENTO'!I370 -> 8.71 | K87: ='2 - ORÇAMENTO'!J370 -> 11497.2
A88: 40 | B88: ='2 - ORÇAMENTO'!A356 -> 5.5.2.2.4.1 | C88: ='2 - ORÇAMENTO'!B356 -> SINAPI | D88: ='2 - ORÇAMENTO'!C356 -> 97886 | E88: ='2 - ORÇAMENTO'!D356 -> CAIXA ENTERRADA ELÉTRICA RETANGULAR, EM ALVENARIA COM TIJOLOS CERÂMICOS MACIÇOS, FUNDO COM BRITA, DIMENSÕES INTERNAS: 0,3X0,3X0,3 M. AF_12/2020 | F88: ='2 - ORÇAMENTO'!E356 -> UN | G88: ='2 - ORÇAMENTO'!F356 -> 20 | H88: ='2 - ORÇAMENTO'!G356 -> 180.07 | I88: ='2 - ORÇAMENTO'!H356 -> 0.2256 | J88: ='2 - ORÇAMENTO'!I356 -> 220.69 | K88: ='2 - ORÇAMENTO'!J356 -> 4413.8
A89: 41 | B89: ='2 - ORÇAMENTO'!A318 -> 5.5.2.1.7.1 | C89: ='2 - ORÇAMENTO'!B318 -> SINAPI | D89: ='2 - ORÇAMENTO'!C318 -> 97888 | E89: ='2 - ORÇAMENTO'!D318 -> CAIXA ENTERRADA ELÉTRICA RETANGULAR, EM ALVENARIA COM TIJOLOS CERÂMICOS MACIÇOS, FUNDO COM BRITA, DIMENSÕES INTERNAS: 0,6X0,6X0,6 M. AF_12/2020 | F89: ='2 - ORÇAMENTO'!E318 -> UN | G89: ='2 - ORÇAMENTO'!F318 -> 1 | H89: ='2 - ORÇAMENTO'!G318 -> 547.28 | I89: ='2 - ORÇAMENTO'!H318 -> 0.2256 | J89: ='2 - ORÇAMENTO'!I318 -> 670.74 | K89: ='2 - ORÇAMENTO'!J318 -> 670.74
A90: 41 | B90: ='2 - ORÇAMENTO'!A358 -> 5.5.2.2.4.3 | C90: ='2 - ORÇAMENTO'!B358 -> SINAPI | D90: ='2 - ORÇAMENTO'!C358 -> 97888 | E90: ='2 - ORÇAMENTO'!D358 -> CAIXA ENTERRADA ELÉTRICA RETANGULAR, EM ALVENARIA COM TIJOLOS CERÂMICOS MACIÇOS, FUNDO COM BRITA, DIMENSÕES INTERNAS: 0,6X0,6X0,6 M. AF_12/2020 | F90: ='2 - ORÇAMENTO'!E358 -> UN | G90: ='2 - ORÇAMENTO'!F358 -> 1 | H90: ='2 - ORÇAMENTO'!G358 -> 547.28 | I90: ='2 - ORÇAMENTO'!H358 -> 0.2256 | J90: ='2 - ORÇAMENTO'!I358 -> 670.74 | K90: ='2 - ORÇAMENTO'!J358 -> 670.74
A91: 42 | B91: ='2 - ORÇAMENTO'!A312 -> 5.5.2.1.6.2 | C91: ='2 - ORÇAMENTO'!B312 -> SINAPI | D91: ='2 - ORÇAMENTO'!C312 -> 98111 | E91: ='2 - ORÇAMENTO'!D312 -> CAIXA DE INSPEÇÃO PARA ATERRAMENTO, CIRCULAR, EM POLIETILENO, DIÂMETRO INTERNO = 0,3 M. AF_12/2020 | F91: ='2 - ORÇAMENTO'!E312 -> UN | G91: ='2 - ORÇAMENTO'!F312 -> 4 | H91: ='2 - ORÇAMENTO'!G312 -> 43.34 | I91: ='2 - ORÇAMENTO'!H312 -> 0.2256 | J91: ='2 - ORÇAMENTO'!I312 -> 53.11 | K91: ='2 - ORÇAMENTO'!J312 -> 212.44
A92: 42 | B92: ='2 - ORÇAMENTO'!A428 -> 5.5.2.5.3.1 | C92: ='2 - ORÇAMENTO'!B428 -> SINAPI | D92: ='2 - ORÇAMENTO'!C428 -> 98111 | E92: ='2 - ORÇAMENTO'!D428 -> CAIXA DE INSPEÇÃO PARA ATERRAMENTO, CIRCULAR, EM POLIETILENO, DIÂMETRO INTERNO = 0,3 M. AF_12/2020 | F92: ='2 - ORÇAMENTO'!E428 -> UN | G92: ='2 - ORÇAMENTO'!F428 -> 6 | H92: ='2 - ORÇAMENTO'!G428 -> 43.34 | I92: ='2 - ORÇAMENTO'!H428 -> 0.2256 | J92: ='2 - ORÇAMENTO'!I428 -> 53.11 | K92: ='2 - ORÇAMENTO'!J428 -> 318.66
A93: 43 | B93: ='2 - ORÇAMENTO'!A402 -> 5.5.2.4.5.3 | C93: ='2 - ORÇAMENTO'!B402 -> SBC | D93: ='2 - ORÇAMENTO'!C402 -> 63452 | E93: ='2 - ORÇAMENTO'!D402 -> CAIXA PARA TOMADA, FIXAÇÃO EM PERFILADO 38X38MM, FABRICADA EM CHAPA DE AÇO GALVANIZADO A FOGO, PARA TOMADA 2P+T 10A -250V | F93: ='2 - ORÇAMENTO'!E402 -> UN | G93: ='2 - ORÇAMENTO'!F402 -> 2 | H93: ='2 - ORÇAMENTO'!G402 -> 15.58 | I93: ='2 - ORÇAMENTO'!H402 -> 0.2256 | J93: ='2 - ORÇAMENTO'!I402 -> 19.09 | K93: ='2 - ORÇAMENTO'!J402 -> 38.18
A94: 44 | B94: ='2 - ORÇAMENTO'!A453 -> 5.6.2 | C94: ='2 - ORÇAMENTO'!B453 -> SICRO3 | D94: ='2 - ORÇAMENTO'!C453 -> 2003813 | E94: ='2 - ORÇAMENTO'!D453 -> Canaleta de concreto - CAU 03 - seção de 30 x 30 cm - espessura de 10 cm - apoiada em toda a extensão | F94: ='2 - ORÇAMENTO'!E453 -> m | G94: ='2 - ORÇAMENTO'!F453 -> 118.1514 | H94: ='2 - ORÇAMENTO'!G453 -> 203.55 | I94: ='2 - ORÇAMENTO'!H453 -> 0.2256 | J94: ='2 - ORÇAMENTO'!I453 -> 249.47 | K94: ='2 - ORÇAMENTO'!J453 -> 29475.22
A95: 45 | B95: ='2 - ORÇAMENTO'!A173 -> 4.2.4 | C95: ='2 - ORÇAMENTO'!B173 -> SICRO3 | D95: ='2 - ORÇAMENTO'!C173 -> 5914351 | E95: ='2 - ORÇAMENTO'!D173 -> Carga, manobra e descarga de agregados ou solos em caminhão basculante de 14 m³ - carga com carregadeira de 3,40 m³ e descarga livre | F95: ='2 - ORÇAMENTO'!E173 -> t | G95: ='2 - ORÇAMENTO'!F173 -> 3434.074635 | H95: ='2 - ORÇAMENTO'!G173 -> 2.61 | I95: ='2 - ORÇAMENTO'!H173 -> 0.2256 | J95: ='2 - ORÇAMENTO'!I173 -> 3.19 | K95: ='2 - ORÇAMENTO'!J173 -> 10954.69
A96: 45 | B96: ='2 - ORÇAMENTO'!A200 -> 5.3.1.5 | C96: ='2 - ORÇAMENTO'!B200 -> SICRO3 | D96: ='2 - ORÇAMENTO'!C200 -> 5914351 | E96: ='2 - ORÇAMENTO'!D200 -> Carga, manobra e descarga de agregados ou solos em caminhão basculante de 14 m³ - carga com carregadeira de 3,40 m³ e descarga livre | F96: ='2 - ORÇAMENTO'!E200 -> t | G96: ='2 - ORÇAMENTO'!F200 -> 133.1246498 | H96: ='2 - ORÇAMENTO'!G200 -> 2.61 | I96: ='2 - ORÇAMENTO'!H200 -> 0.2256 | J96: ='2 - ORÇAMENTO'!I200 -> 3.19 | K96: ='2 - ORÇAMENTO'!J200 -> 424.66
A97: 45 | B97: ='2 - ORÇAMENTO'!A212 -> 5.3.2.5 | C97: ='2 - ORÇAMENTO'!B212 -> SICRO3 | D97: ='2 - ORÇAMENTO'!C212 -> 5914351 | E97: ='2 - ORÇAMENTO'!D212 -> Carga, manobra e descarga de agregados ou solos em caminhão basculante de 14 m³ - carga com carregadeira de 3,40 m³ e descarga livre | F97: ='2 - ORÇAMENTO'!E212 -> t | G97: ='2 - ORÇAMENTO'!F212 -> 460.2503156 | H97: ='2 - ORÇAMENTO'!G212 -> 2.61 | I97: ='2 - ORÇAMENTO'!H212 -> 0.2256 | J97: ='2 - ORÇAMENTO'!I212 -> 3.19 | K97: ='2 - ORÇAMENTO'!J212 -> 1468.19
